{"text_format":"1","workbook":"xlsx","n_sheets":11,"sheets":["Général","1. Frais de personnel","2-3.Frais de voyage-séjour","4. Equipement","5. Sous-traitance","B. Mobilité Spécial - Etudiant","B. Mobilité Spécial - Personnel","Cofinancement","Ventilation&Financement Projet","Rates","Coûts Unitaires & RèglesFinance"],"not_rendered":{"charts":0,"images":2,"macros":1,"external_links":0,"defined_names":51,"comments":0,"pivot_tables":0},"unopened":[],"bounds":{"document_bytes":16777216,"sheet_cells":100000,"rows_first":2000,"rows_last":500,"rows_between":2000,"halvings":0,"cell_chars":16384,"cell_head_chars":4096},"cells_cut":0,"cells_raw":0,"read":"whole","date_system":"1900"}

{"sheet":"Général","index":0,"n_rows":87,"n_cols":12,"rows_kept":87,"cut":false,"hidden":false,"merged":[[23,8,26,8],[23,10,26,10],[26,6,26,7],[25,6,25,7],[24,6,24,7],[23,6,23,7],[16,4,16,11],[6,1,6,11],[7,1,7,11],[8,1,8,11],[10,1,10,2],[11,1,11,2],[12,1,12,2],[15,1,15,11],[16,1,16,2],[12,4,12,11],[11,4,11,11],[10,4,10,11],[13,1,13,2],[13,3,13,11],[30,1,30,11],[17,1,17,2],[18,1,18,2],[19,1,19,2],[20,1,20,2],[28,1,28,2],[21,1,21,2],[21,4,21,11],[28,4,28,11],[20,4,20,11],[19,4,19,11],[18,4,18,11],[17,4,17,11],[23,1,26,2],[23,3,26,3],[23,4,26,5]]}
[]
[]
[null,null,null,"Action clé n° 2:  coopération en faveur de l’innovation et de l’échange des bonnes pratiques"]
[null,null,null,"Renforcement des capacités dans le domaine de l’enseignement supérieur"]
[]
[]
[null,"Avant de compléter ce tableau, veuillez lire attentivement les instructions disponibles sur"]
[null,"APPEL A PROPOSITIONS 2017 – EAC/A03/2016 - Programme Erasmus+ (C2016/386/09)"]
[null,"Guide du programme et instructions pour les candidats"]
[]
[null,"Action",null,null,{"$f":"IF(D11=\"\",\"Veuillez sélectionner le type d'action\",IF(OR(D11=\"Projet Conjoint\",D11=\"Projet Structurel\"),\"\",\"Erreur Type Action\"))","v":"Veuillez sélectionner le type d'action"}]
[null,"Durée en nombre de mois",null,null,{"$f":"IF(D12=\"\",\"Veuillez sélectionner la durée\",IF(OR(D12=24,D12=36),\"\",\"Erreur durée\"))","v":"Veuillez sélectionner la durée"}]
[null,"Acronyme du Projet",null,null,{"$f":"IF(D13=\"\",\"Veuillez indiquer l'acronyme du projet\",\"\")","v":"Veuillez indiquer l'acronyme du projet"}]
[null,"Titre du Projet"]
[]
[null,"SUBVENTION UE DEMANDEE POUR LES ACTIVITES DU PROJET (en EUR)"]
[null,"1. Frais de personnel",null,{"$f":"'1. Frais de personnel'!D9","v":0},{"$f":"\"Ne peut excéder 40% du total de A.\"","v":"Ne peut excéder 40% du total de A."}]
[null,"2. Frais de voyage",null,{"$f":"'2-3.Frais de voyage-séjour'!D8","v":0}]
[null,"3. Frais de séjour",null,{"$f":"'2-3.Frais de voyage-séjour'!D9","v":0}]
[null,"4. Equipement",null,{"$f":"'4. Equipement'!C4","v":0},{"$f":"\"Ne peut excéder 30% du total de A.\"","v":"Ne peut excéder 30% du total de A."}]
[null,"5. Sous-traitance",null,{"$f":"'5. Sous-traitance'!C4","v":0},{"$f":"\"Ne peut excéder 10% du total de A.\"","v":"Ne peut excéder 10% du total de A."}]
[null,"A. Subvention pour les activités du projet",null,{"$f":"SUM(D17:D21)","v":0},{"$f":"\"Doit être supérieur ou égal à EUR 500.000,00 et inférieur ou égal à EUR 1.000.000,00\"","v":"Doit être supérieur ou égal à EUR 500.000,00 et inférieur ou égal à EUR 1.000.000,00"}]
[]
[null,"B. Subvention demandée pour le(s) Volet(s) Spéciale(s) Mobilité(s) ",null,{"$f":"SUM(J24:J27)","v":0},"Ne peut excéder 80% du total de A.",null,"Etudiants des Pays Partenaires",null,"Montants\n(en EUR)",{"$f":"SUMIF('B. Mobilité Spécial - Etudiant'!E:E,G24,'B. Mobilité Spécial - Etudiant'!N:N)","v":0},"Nombre de Participant(s)",{"$f":"SUMIFS('B. Mobilité Spécial - Etudiant'!G:G,'B. Mobilité Spécial - Etudiant'!E:E,G24,'B. Mobilité Spécial - Etudiant'!O:O,\"<>Erreur\")","v":0}]
[null,null,null,null,null,null,"Etudiants des Pays Programmes",null,null,{"$f":"SUMIF('B. Mobilité Spécial - Etudiant'!E:E,G25,'B. Mobilité Spécial - Etudiant'!N:N)","v":0},null,{"$f":"SUMIFS('B. Mobilité Spécial - Etudiant'!G:G,'B. Mobilité Spécial - Etudiant'!E:E,G25,'B. Mobilité Spécial - Etudiant'!O:O,\"<>Erreur\")","v":0}]
[null,null,null,null,null,null,"Personnel des Pays Partenaires",null,null,{"$f":"SUMIF('B. Mobilité Spécial - Personnel'!E:E,G26,'B. Mobilité Spécial - Personnel'!N:N)","v":0},null,{"$f":"SUMIFS('B. Mobilité Spécial - Personnel'!G:G,'B. Mobilité Spécial - Personnel'!E:E,G26,'B. Mobilité Spécial - Personnel'!O:O,\"<>Erreur\")","v":0}]
[null,null,null,null,null,null,"Personnel des Pays Programmes",null,null,{"$f":"SUMIF('B. Mobilité Spécial - Personnel'!E:E,G27,'B. Mobilité Spécial - Personnel'!N:N)","v":0},null,{"$f":"SUMIFS('B. Mobilité Spécial - Personnel'!G:G,'B. Mobilité Spécial - Personnel'!E:E,G27,'B. Mobilité Spécial - Personnel'!O:O,\"<>Erreur\")","v":0}]
[]
[null,"Subvention demandée à l'Union Européenne (A + B)",null,{"$f":"D22+D24","v":0}]
[]
[null,"DISTRIBUTION DE LA SUBVENTION PAR ORGANISATION (en EUR)"]
[null,"Part. \nN°","Nom du Partenaire","Pays","PR/PA","1. Frais de personnel","2. Frais de \nvoyage","3. Frais de \nséjour","4. Equipement","5. Sous-traitance","B. Volet Spécial Mobilité","Total"]
[null,"P1",null,null,{"$f":"IFERROR(IF(D33<>\"\",VLOOKUP(D33,CountryType,2,FALSE),\"\"),\"Pays non trouvé\")","v":""},{"$f":"SUMIF('1. Frais de personnel'!C:C,B33,'1. Frais de personnel'!S:S)","v":0},{"$f":"SUMIF('2-3.Frais de voyage-séjour'!C:C,B33,'2-3.Frais de voyage-séjour'!L:L)","v":0},{"$f":"SUMIF('2-3.Frais de voyage-séjour'!C:C,B33,'2-3.Frais de voyage-séjour'!M:M)","v":0},{"$f":"SUMIF('4. Equipement'!C:C,B33,'4. Equipement'!H:H)","v":0},{"$f":"SUMIF('5. Sous-traitance'!C:C,B33,'5. Sous-traitance'!H:H)","v":0},{"$f":"SUMIF('B. Mobilité Spécial - Etudiant'!B:B,B33,'B. Mobilité Spécial - Etudiant'!N:N)+SUMIF('B. Mobilité Spécial - Personnel'!B:B,B33,'B. Mobilité Spécial - Personnel'!N:N)","v":0},{"$f":"SUM(F33:K33)","v":0}]
[null,"P2",null,null,"",{"$f":"SUMIF('1. Frais de personnel'!C:C,B34,'1. Frais de personnel'!S:S)","v":0},{"$f":"SUMIF('2-3.Frais de voyage-séjour'!C:C,B34,'2-3.Frais de voyage-séjour'!L:L)","v":0},{"$f":"SUMIF('2-3.Frais de voyage-séjour'!C:C,B34,'2-3.Frais de voyage-séjour'!M:M)","v":0},{"$f":"SUMIF('4. Equipement'!C:C,B34,'4. Equipement'!H:H)","v":0},{"$f":"SUMIF('5. Sous-traitance'!C:C,B34,'5. Sous-traitance'!H:H)","v":0},{"$f":"SUMIF('B. Mobilité Spécial - Etudiant'!B:B,B34,'B. Mobilité Spécial - Etudiant'!N:N)+SUMIF('B. Mobilité Spécial - Personnel'!B:B,B34,'B. Mobilité Spécial - Personnel'!N:N)","v":0},{"$f":"SUM(F34:K34)","v":0}]
[null,"P3",null,null,"",{"$f":"SUMIF('1. Frais de personnel'!C:C,B35,'1. Frais de personnel'!S:S)","v":0},{"$f":"SUMIF('2-3.Frais de voyage-séjour'!C:C,B35,'2-3.Frais de voyage-séjour'!L:L)","v":0},{"$f":"SUMIF('2-3.Frais de voyage-séjour'!C:C,B35,'2-3.Frais de voyage-séjour'!M:M)","v":0},{"$f":"SUMIF('4. Equipement'!C:C,B35,'4. Equipement'!H:H)","v":0},{"$f":"SUMIF('5. Sous-traitance'!C:C,B35,'5. Sous-traitance'!H:H)","v":0},{"$f":"SUMIF('B. Mobilité Spécial - Etudiant'!B:B,B35,'B. Mobilité Spécial - Etudiant'!N:N)+SUMIF('B. Mobilité Spécial - Personnel'!B:B,B35,'B. Mobilité Spécial - Personnel'!N:N)","v":0},0]
[null,"P4",null,null,"",{"$f":"SUMIF('1. Frais de personnel'!C:C,B36,'1. Frais de personnel'!S:S)","v":0},{"$f":"SUMIF('2-3.Frais de voyage-séjour'!C:C,B36,'2-3.Frais de voyage-séjour'!L:L)","v":0},{"$f":"SUMIF('2-3.Frais de voyage-séjour'!C:C,B36,'2-3.Frais de voyage-séjour'!M:M)","v":0},{"$f":"SUMIF('4. Equipement'!C:C,B36,'4. Equipement'!H:H)","v":0},{"$f":"SUMIF('5. Sous-traitance'!C:C,B36,'5. Sous-traitance'!H:H)","v":0},{"$f":"SUMIF('B. Mobilité Spécial - Etudiant'!B:B,B36,'B. Mobilité Spécial - Etudiant'!N:N)+SUMIF('B. Mobilité Spécial - Personnel'!B:B,B36,'B. Mobilité Spécial - Personnel'!N:N)","v":0},0]
[null,"P5",null,null,"",{"$f":"SUMIF('1. Frais de personnel'!C:C,B37,'1. Frais de personnel'!S:S)","v":0},{"$f":"SUMIF('2-3.Frais de voyage-séjour'!C:C,B37,'2-3.Frais de voyage-séjour'!L:L)","v":0},{"$f":"SUMIF('2-3.Frais de voyage-séjour'!C:C,B37,'2-3.Frais de voyage-séjour'!M:M)","v":0},{"$f":"SUMIF('4. Equipement'!C:C,B37,'4. Equipement'!H:H)","v":0},{"$f":"SUMIF('5. Sous-traitance'!C:C,B37,'5. Sous-traitance'!H:H)","v":0},{"$f":"SUMIF('B. Mobilité Spécial - Etudiant'!B:B,B37,'B. Mobilité Spécial - Etudiant'!N:N)+SUMIF('B. Mobilité Spécial - Personnel'!B:B,B37,'B. Mobilité Spécial - Personnel'!N:N)","v":0},0]
[null,"P6",null,null,"",{"$f":"SUMIF('1. Frais de personnel'!C:C,B38,'1. Frais de personnel'!S:S)","v":0},{"$f":"SUMIF('2-3.Frais de voyage-séjour'!C:C,B38,'2-3.Frais de voyage-séjour'!L:L)","v":0},{"$f":"SUMIF('2-3.Frais de voyage-séjour'!C:C,B38,'2-3.Frais de voyage-séjour'!M:M)","v":0},{"$f":"SUMIF('4. Equipement'!C:C,B38,'4. Equipement'!H:H)","v":0},{"$f":"SUMIF('5. Sous-traitance'!C:C,B38,'5. Sous-traitance'!H:H)","v":0},{"$f":"SUMIF('B. Mobilité Spécial - Etudiant'!B:B,B38,'B. Mobilité Spécial - Etudiant'!N:N)+SUMIF('B. Mobilité Spécial - Personnel'!B:B,B38,'B. Mobilité Spécial - Personnel'!N:N)","v":0},0]
[null,"P7",null,null,"",{"$f":"SUMIF('1. Frais de personnel'!C:C,B39,'1. Frais de personnel'!S:S)","v":0},{"$f":"SUMIF('2-3.Frais de voyage-séjour'!C:C,B39,'2-3.Frais de voyage-séjour'!L:L)","v":0},{"$f":"SUMIF('2-3.Frais de voyage-séjour'!C:C,B39,'2-3.Frais de voyage-séjour'!M:M)","v":0},{"$f":"SUMIF('4. Equipement'!C:C,B39,'4. Equipement'!H:H)","v":0},{"$f":"SUMIF('5. Sous-traitance'!C:C,B39,'5. Sous-traitance'!H:H)","v":0},{"$f":"SUMIF('B. Mobilité Spécial - Etudiant'!B:B,B39,'B. Mobilité Spécial - Etudiant'!N:N)+SUMIF('B. Mobilité Spécial - Personnel'!B:B,B39,'B. Mobilité Spécial - Personnel'!N:N)","v":0},0]
[null,"P8",null,null,"",{"$f":"SUMIF('1. Frais de personnel'!C:C,B40,'1. Frais de personnel'!S:S)","v":0},{"$f":"SUMIF('2-3.Frais de voyage-séjour'!C:C,B40,'2-3.Frais de voyage-séjour'!L:L)","v":0},{"$f":"SUMIF('2-3.Frais de voyage-séjour'!C:C,B40,'2-3.Frais de voyage-séjour'!M:M)","v":0},{"$f":"SUMIF('4. Equipement'!C:C,B40,'4. Equipement'!H:H)","v":0},{"$f":"SUMIF('5. Sous-traitance'!C:C,B40,'5. Sous-traitance'!H:H)","v":0},{"$f":"SUMIF('B. Mobilité Spécial - Etudiant'!B:B,B40,'B. Mobilité Spécial - Etudiant'!N:N)+SUMIF('B. Mobilité Spécial - Personnel'!B:B,B40,'B. Mobilité Spécial - Personnel'!N:N)","v":0},0]
[null,"P9",null,null,"",{"$f":"SUMIF('1. Frais de personnel'!C:C,B41,'1. Frais de personnel'!S:S)","v":0},{"$f":"SUMIF('2-3.Frais de voyage-séjour'!C:C,B41,'2-3.Frais de voyage-séjour'!L:L)","v":0},{"$f":"SUMIF('2-3.Frais de voyage-séjour'!C:C,B41,'2-3.Frais de voyage-séjour'!M:M)","v":0},{"$f":"SUMIF('4. Equipement'!C:C,B41,'4. Equipement'!H:H)","v":0},{"$f":"SUMIF('5. Sous-traitance'!C:C,B41,'5. Sous-traitance'!H:H)","v":0},{"$f":"SUMIF('B. Mobilité Spécial - Etudiant'!B:B,B41,'B. Mobilité Spécial - Etudiant'!N:N)+SUMIF('B. Mobilité Spécial - Personnel'!B:B,B41,'B. Mobilité Spécial - Personnel'!N:N)","v":0},0]
[null,"P10",null,null,"",{"$f":"SUMIF('1. Frais de personnel'!C:C,B42,'1. Frais de personnel'!S:S)","v":0},{"$f":"SUMIF('2-3.Frais de voyage-séjour'!C:C,B42,'2-3.Frais de voyage-séjour'!L:L)","v":0},{"$f":"SUMIF('2-3.Frais de voyage-séjour'!C:C,B42,'2-3.Frais de voyage-séjour'!M:M)","v":0},{"$f":"SUMIF('4. Equipement'!C:C,B42,'4. Equipement'!H:H)","v":0},{"$f":"SUMIF('5. Sous-traitance'!C:C,B42,'5. Sous-traitance'!H:H)","v":0},{"$f":"SUMIF('B. Mobilité Spécial - Etudiant'!B:B,B42,'B. Mobilité Spécial - Etudiant'!N:N)+SUMIF('B. Mobilité Spécial - Personnel'!B:B,B42,'B. Mobilité Spécial - Personnel'!N:N)","v":0},0]
[null,"P11",null,null,"",{"$f":"SUMIF('1. Frais de personnel'!C:C,B43,'1. Frais de personnel'!S:S)","v":0},{"$f":"SUMIF('2-3.Frais de voyage-séjour'!C:C,B43,'2-3.Frais de voyage-séjour'!L:L)","v":0},{"$f":"SUMIF('2-3.Frais de voyage-séjour'!C:C,B43,'2-3.Frais de voyage-séjour'!M:M)","v":0},{"$f":"SUMIF('4. Equipement'!C:C,B43,'4. Equipement'!H:H)","v":0},{"$f":"SUMIF('5. Sous-traitance'!C:C,B43,'5. Sous-traitance'!H:H)","v":0},{"$f":"SUMIF('B. Mobilité Spécial - Etudiant'!B:B,B43,'B. Mobilité Spécial - Etudiant'!N:N)+SUMIF('B. Mobilité Spécial - Personnel'!B:B,B43,'B. Mobilité Spécial - Personnel'!N:N)","v":0},0]
[null,"P12",null,null,"",{"$f":"SUMIF('1. Frais de personnel'!C:C,B44,'1. Frais de personnel'!S:S)","v":0},{"$f":"SUMIF('2-3.Frais de voyage-séjour'!C:C,B44,'2-3.Frais de voyage-séjour'!L:L)","v":0},{"$f":"SUMIF('2-3.Frais de voyage-séjour'!C:C,B44,'2-3.Frais de voyage-séjour'!M:M)","v":0},{"$f":"SUMIF('4. Equipement'!C:C,B44,'4. Equipement'!H:H)","v":0},{"$f":"SUMIF('5. Sous-traitance'!C:C,B44,'5. Sous-traitance'!H:H)","v":0},{"$f":"SUMIF('B. Mobilité Spécial - Etudiant'!B:B,B44,'B. Mobilité Spécial - Etudiant'!N:N)+SUMIF('B. Mobilité Spécial - Personnel'!B:B,B44,'B. Mobilité Spécial - Personnel'!N:N)","v":0},0]
[null,"P13",null,null,"",{"$f":"SUMIF('1. Frais de personnel'!C:C,B45,'1. Frais de personnel'!S:S)","v":0},{"$f":"SUMIF('2-3.Frais de voyage-séjour'!C:C,B45,'2-3.Frais de voyage-séjour'!L:L)","v":0},{"$f":"SUMIF('2-3.Frais de voyage-séjour'!C:C,B45,'2-3.Frais de voyage-séjour'!M:M)","v":0},{"$f":"SUMIF('4. Equipement'!C:C,B45,'4. Equipement'!H:H)","v":0},{"$f":"SUMIF('5. Sous-traitance'!C:C,B45,'5. Sous-traitance'!H:H)","v":0},{"$f":"SUMIF('B. Mobilité Spécial - Etudiant'!B:B,B45,'B. Mobilité Spécial - Etudiant'!N:N)+SUMIF('B. Mobilité Spécial - Personnel'!B:B,B45,'B. Mobilité Spécial - Personnel'!N:N)","v":0},0]
[null,"P14",null,null,"",{"$f":"SUMIF('1. Frais de personnel'!C:C,B46,'1. Frais de personnel'!S:S)","v":0},{"$f":"SUMIF('2-3.Frais de voyage-séjour'!C:C,B46,'2-3.Frais de voyage-séjour'!L:L)","v":0},{"$f":"SUMIF('2-3.Frais de voyage-séjour'!C:C,B46,'2-3.Frais de voyage-séjour'!M:M)","v":0},{"$f":"SUMIF('4. Equipement'!C:C,B46,'4. Equipement'!H:H)","v":0},{"$f":"SUMIF('5. Sous-traitance'!C:C,B46,'5. Sous-traitance'!H:H)","v":0},{"$f":"SUMIF('B. Mobilité Spécial - Etudiant'!B:B,B46,'B. Mobilité Spécial - Etudiant'!N:N)+SUMIF('B. Mobilité Spécial - Personnel'!B:B,B46,'B. Mobilité Spécial - Personnel'!N:N)","v":0},0]
[null,"P15",null,null,"",{"$f":"SUMIF('1. Frais de personnel'!C:C,B47,'1. Frais de personnel'!S:S)","v":0},{"$f":"SUMIF('2-3.Frais de voyage-séjour'!C:C,B47,'2-3.Frais de voyage-séjour'!L:L)","v":0},{"$f":"SUMIF('2-3.Frais de voyage-séjour'!C:C,B47,'2-3.Frais de voyage-séjour'!M:M)","v":0},{"$f":"SUMIF('4. Equipement'!C:C,B47,'4. Equipement'!H:H)","v":0},{"$f":"SUMIF('5. Sous-traitance'!C:C,B47,'5. Sous-traitance'!H:H)","v":0},{"$f":"SUMIF('B. Mobilité Spécial - Etudiant'!B:B,B47,'B. Mobilité Spécial - Etudiant'!N:N)+SUMIF('B. Mobilité Spécial - Personnel'!B:B,B47,'B. Mobilité Spécial - Personnel'!N:N)","v":0},0]
[null,"P16",null,null,"",{"$f":"SUMIF('1. Frais de personnel'!C:C,B48,'1. Frais de personnel'!S:S)","v":0},{"$f":"SUMIF('2-3.Frais de voyage-séjour'!C:C,B48,'2-3.Frais de voyage-séjour'!L:L)","v":0},{"$f":"SUMIF('2-3.Frais de voyage-séjour'!C:C,B48,'2-3.Frais de voyage-séjour'!M:M)","v":0},{"$f":"SUMIF('4. Equipement'!C:C,B48,'4. Equipement'!H:H)","v":0},{"$f":"SUMIF('5. Sous-traitance'!C:C,B48,'5. Sous-traitance'!H:H)","v":0},{"$f":"SUMIF('B. Mobilité Spécial - Etudiant'!B:B,B48,'B. Mobilité Spécial - Etudiant'!N:N)+SUMIF('B. Mobilité Spécial - Personnel'!B:B,B48,'B. Mobilité Spécial - Personnel'!N:N)","v":0},0]
[null,"P17",null,null,"",{"$f":"SUMIF('1. Frais de personnel'!C:C,B49,'1. Frais de personnel'!S:S)","v":0},{"$f":"SUMIF('2-3.Frais de voyage-séjour'!C:C,B49,'2-3.Frais de voyage-séjour'!L:L)","v":0},{"$f":"SUMIF('2-3.Frais de voyage-séjour'!C:C,B49,'2-3.Frais de voyage-séjour'!M:M)","v":0},{"$f":"SUMIF('4. Equipement'!C:C,B49,'4. Equipement'!H:H)","v":0},{"$f":"SUMIF('5. Sous-traitance'!C:C,B49,'5. Sous-traitance'!H:H)","v":0},{"$f":"SUMIF('B. Mobilité Spécial - Etudiant'!B:B,B49,'B. Mobilité Spécial - Etudiant'!N:N)+SUMIF('B. Mobilité Spécial - Personnel'!B:B,B49,'B. Mobilité Spécial - Personnel'!N:N)","v":0},0]
[null,"P18",null,null,"",{"$f":"SUMIF('1. Frais de personnel'!C:C,B50,'1. Frais de personnel'!S:S)","v":0},{"$f":"SUMIF('2-3.Frais de voyage-séjour'!C:C,B50,'2-3.Frais de voyage-séjour'!L:L)","v":0},{"$f":"SUMIF('2-3.Frais de voyage-séjour'!C:C,B50,'2-3.Frais de voyage-séjour'!M:M)","v":0},{"$f":"SUMIF('4. Equipement'!C:C,B50,'4. Equipement'!H:H)","v":0},{"$f":"SUMIF('5. Sous-traitance'!C:C,B50,'5. Sous-traitance'!H:H)","v":0},{"$f":"SUMIF('B. Mobilité Spécial - Etudiant'!B:B,B50,'B. Mobilité Spécial - Etudiant'!N:N)+SUMIF('B. Mobilité Spécial - Personnel'!B:B,B50,'B. Mobilité Spécial - Personnel'!N:N)","v":0},0]
[null,"P19",null,null,"",{"$f":"SUMIF('1. Frais de personnel'!C:C,B51,'1. Frais de personnel'!S:S)","v":0},{"$f":"SUMIF('2-3.Frais de voyage-séjour'!C:C,B51,'2-3.Frais de voyage-séjour'!L:L)","v":0},{"$f":"SUMIF('2-3.Frais de voyage-séjour'!C:C,B51,'2-3.Frais de voyage-séjour'!M:M)","v":0},{"$f":"SUMIF('4. Equipement'!C:C,B51,'4. Equipement'!H:H)","v":0},{"$f":"SUMIF('5. Sous-traitance'!C:C,B51,'5. Sous-traitance'!H:H)","v":0},{"$f":"SUMIF('B. Mobilité Spécial - Etudiant'!B:B,B51,'B. Mobilité Spécial - Etudiant'!N:N)+SUMIF('B. Mobilité Spécial - Personnel'!B:B,B51,'B. Mobilité Spécial - Personnel'!N:N)","v":0},0]
[null,"P20",null,null,"",{"$f":"SUMIF('1. Frais de personnel'!C:C,B52,'1. Frais de personnel'!S:S)","v":0},{"$f":"SUMIF('2-3.Frais de voyage-séjour'!C:C,B52,'2-3.Frais de voyage-séjour'!L:L)","v":0},{"$f":"SUMIF('2-3.Frais de voyage-séjour'!C:C,B52,'2-3.Frais de voyage-séjour'!M:M)","v":0},{"$f":"SUMIF('4. Equipement'!C:C,B52,'4. Equipement'!H:H)","v":0},{"$f":"SUMIF('5. Sous-traitance'!C:C,B52,'5. Sous-traitance'!H:H)","v":0},{"$f":"SUMIF('B. Mobilité Spécial - Etudiant'!B:B,B52,'B. Mobilité Spécial - Etudiant'!N:N)+SUMIF('B. Mobilité Spécial - Personnel'!B:B,B52,'B. Mobilité Spécial - Personnel'!N:N)","v":0},0]
[null,"P21",null,null,"",{"$f":"SUMIF('1. Frais de personnel'!C:C,B53,'1. Frais de personnel'!S:S)","v":0},{"$f":"SUMIF('2-3.Frais de voyage-séjour'!C:C,B53,'2-3.Frais de voyage-séjour'!L:L)","v":0},{"$f":"SUMIF('2-3.Frais de voyage-séjour'!C:C,B53,'2-3.Frais de voyage-séjour'!M:M)","v":0},{"$f":"SUMIF('4. Equipement'!C:C,B53,'4. Equipement'!H:H)","v":0},{"$f":"SUMIF('5. Sous-traitance'!C:C,B53,'5. Sous-traitance'!H:H)","v":0},{"$f":"SUMIF('B. Mobilité Spécial - Etudiant'!B:B,B53,'B. Mobilité Spécial - Etudiant'!N:N)+SUMIF('B. Mobilité Spécial - Personnel'!B:B,B53,'B. Mobilité Spécial - Personnel'!N:N)","v":0},0]
[null,"P22",null,null,"",{"$f":"SUMIF('1. Frais de personnel'!C:C,B54,'1. Frais de personnel'!S:S)","v":0},{"$f":"SUMIF('2-3.Frais de voyage-séjour'!C:C,B54,'2-3.Frais de voyage-séjour'!L:L)","v":0},{"$f":"SUMIF('2-3.Frais de voyage-séjour'!C:C,B54,'2-3.Frais de voyage-séjour'!M:M)","v":0},{"$f":"SUMIF('4. Equipement'!C:C,B54,'4. Equipement'!H:H)","v":0},{"$f":"SUMIF('5. Sous-traitance'!C:C,B54,'5. Sous-traitance'!H:H)","v":0},{"$f":"SUMIF('B. Mobilité Spécial - Etudiant'!B:B,B54,'B. Mobilité Spécial - Etudiant'!N:N)+SUMIF('B. Mobilité Spécial - Personnel'!B:B,B54,'B. Mobilité Spécial - Personnel'!N:N)","v":0},0]
[null,"P23",null,null,"",{"$f":"SUMIF('1. Frais de personnel'!C:C,B55,'1. Frais de personnel'!S:S)","v":0},{"$f":"SUMIF('2-3.Frais de voyage-séjour'!C:C,B55,'2-3.Frais de voyage-séjour'!L:L)","v":0},{"$f":"SUMIF('2-3.Frais de voyage-séjour'!C:C,B55,'2-3.Frais de voyage-séjour'!M:M)","v":0},{"$f":"SUMIF('4. Equipement'!C:C,B55,'4. Equipement'!H:H)","v":0},{"$f":"SUMIF('5. Sous-traitance'!C:C,B55,'5. Sous-traitance'!H:H)","v":0},{"$f":"SUMIF('B. Mobilité Spécial - Etudiant'!B:B,B55,'B. Mobilité Spécial - Etudiant'!N:N)+SUMIF('B. Mobilité Spécial - Personnel'!B:B,B55,'B. Mobilité Spécial - Personnel'!N:N)","v":0},0]
[null,"P24",null,null,"",{"$f":"SUMIF('1. Frais de personnel'!C:C,B56,'1. Frais de personnel'!S:S)","v":0},{"$f":"SUMIF('2-3.Frais de voyage-séjour'!C:C,B56,'2-3.Frais de voyage-séjour'!L:L)","v":0},{"$f":"SUMIF('2-3.Frais de voyage-séjour'!C:C,B56,'2-3.Frais de voyage-séjour'!M:M)","v":0},{"$f":"SUMIF('4. Equipement'!C:C,B56,'4. Equipement'!H:H)","v":0},{"$f":"SUMIF('5. Sous-traitance'!C:C,B56,'5. Sous-traitance'!H:H)","v":0},{"$f":"SUMIF('B. Mobilité Spécial - Etudiant'!B:B,B56,'B. Mobilité Spécial - Etudiant'!N:N)+SUMIF('B. Mobilité Spécial - Personnel'!B:B,B56,'B. Mobilité Spécial - Personnel'!N:N)","v":0},0]
[null,"P25",null,null,"",{"$f":"SUMIF('1. Frais de personnel'!C:C,B57,'1. Frais de personnel'!S:S)","v":0},{"$f":"SUMIF('2-3.Frais de voyage-séjour'!C:C,B57,'2-3.Frais de voyage-séjour'!L:L)","v":0},{"$f":"SUMIF('2-3.Frais de voyage-séjour'!C:C,B57,'2-3.Frais de voyage-séjour'!M:M)","v":0},{"$f":"SUMIF('4. Equipement'!C:C,B57,'4. Equipement'!H:H)","v":0},{"$f":"SUMIF('5. Sous-traitance'!C:C,B57,'5. Sous-traitance'!H:H)","v":0},{"$f":"SUMIF('B. Mobilité Spécial - Etudiant'!B:B,B57,'B. Mobilité Spécial - Etudiant'!N:N)+SUMIF('B. Mobilité Spécial - Personnel'!B:B,B57,'B. Mobilité Spécial - Personnel'!N:N)","v":0},0]
[null,"P26",null,null,"",{"$f":"SUMIF('1. Frais de personnel'!C:C,B58,'1. Frais de personnel'!S:S)","v":0},{"$f":"SUMIF('2-3.Frais de voyage-séjour'!C:C,B58,'2-3.Frais de voyage-séjour'!L:L)","v":0},{"$f":"SUMIF('2-3.Frais de voyage-séjour'!C:C,B58,'2-3.Frais de voyage-séjour'!M:M)","v":0},{"$f":"SUMIF('4. Equipement'!C:C,B58,'4. Equipement'!H:H)","v":0},{"$f":"SUMIF('5. Sous-traitance'!C:C,B58,'5. Sous-traitance'!H:H)","v":0},{"$f":"SUMIF('B. Mobilité Spécial - Etudiant'!B:B,B58,'B. Mobilité Spécial - Etudiant'!N:N)+SUMIF('B. Mobilité Spécial - Personnel'!B:B,B58,'B. Mobilité Spécial - Personnel'!N:N)","v":0},0]
[null,"P27",null,null,"",{"$f":"SUMIF('1. Frais de personnel'!C:C,B59,'1. Frais de personnel'!S:S)","v":0},{"$f":"SUMIF('2-3.Frais de voyage-séjour'!C:C,B59,'2-3.Frais de voyage-séjour'!L:L)","v":0},{"$f":"SUMIF('2-3.Frais de voyage-séjour'!C:C,B59,'2-3.Frais de voyage-séjour'!M:M)","v":0},{"$f":"SUMIF('4. Equipement'!C:C,B59,'4. Equipement'!H:H)","v":0},{"$f":"SUMIF('5. Sous-traitance'!C:C,B59,'5. Sous-traitance'!H:H)","v":0},{"$f":"SUMIF('B. Mobilité Spécial - Etudiant'!B:B,B59,'B. Mobilité Spécial - Etudiant'!N:N)+SUMIF('B. Mobilité Spécial - Personnel'!B:B,B59,'B. Mobilité Spécial - Personnel'!N:N)","v":0},0]
[null,"P28",null,null,"",{"$f":"SUMIF('1. Frais de personnel'!C:C,B60,'1. Frais de personnel'!S:S)","v":0},{"$f":"SUMIF('2-3.Frais de voyage-séjour'!C:C,B60,'2-3.Frais de voyage-séjour'!L:L)","v":0},{"$f":"SUMIF('2-3.Frais de voyage-séjour'!C:C,B60,'2-3.Frais de voyage-séjour'!M:M)","v":0},{"$f":"SUMIF('4. Equipement'!C:C,B60,'4. Equipement'!H:H)","v":0},{"$f":"SUMIF('5. Sous-traitance'!C:C,B60,'5. Sous-traitance'!H:H)","v":0},{"$f":"SUMIF('B. Mobilité Spécial - Etudiant'!B:B,B60,'B. Mobilité Spécial - Etudiant'!N:N)+SUMIF('B. Mobilité Spécial - Personnel'!B:B,B60,'B. Mobilité Spécial - Personnel'!N:N)","v":0},0]
[null,"P29",null,null,"",{"$f":"SUMIF('1. Frais de personnel'!C:C,B61,'1. Frais de personnel'!S:S)","v":0},{"$f":"SUMIF('2-3.Frais de voyage-séjour'!C:C,B61,'2-3.Frais de voyage-séjour'!L:L)","v":0},{"$f":"SUMIF('2-3.Frais de voyage-séjour'!C:C,B61,'2-3.Frais de voyage-séjour'!M:M)","v":0},{"$f":"SUMIF('4. Equipement'!C:C,B61,'4. Equipement'!H:H)","v":0},{"$f":"SUMIF('5. Sous-traitance'!C:C,B61,'5. Sous-traitance'!H:H)","v":0},{"$f":"SUMIF('B. Mobilité Spécial - Etudiant'!B:B,B61,'B. Mobilité Spécial - Etudiant'!N:N)+SUMIF('B. Mobilité Spécial - Personnel'!B:B,B61,'B. Mobilité Spécial - Personnel'!N:N)","v":0},0]
[null,"P30",null,null,"",{"$f":"SUMIF('1. Frais de personnel'!C:C,B62,'1. Frais de personnel'!S:S)","v":0},{"$f":"SUMIF('2-3.Frais de voyage-séjour'!C:C,B62,'2-3.Frais de voyage-séjour'!L:L)","v":0},{"$f":"SUMIF('2-3.Frais de voyage-séjour'!C:C,B62,'2-3.Frais de voyage-séjour'!M:M)","v":0},{"$f":"SUMIF('4. Equipement'!C:C,B62,'4. Equipement'!H:H)","v":0},{"$f":"SUMIF('5. Sous-traitance'!C:C,B62,'5. Sous-traitance'!H:H)","v":0},{"$f":"SUMIF('B. Mobilité Spécial - Etudiant'!B:B,B62,'B. Mobilité Spécial - Etudiant'!N:N)+SUMIF('B. Mobilité Spécial - Personnel'!B:B,B62,'B. Mobilité Spécial - Personnel'!N:N)","v":0},0]
[null,"P31",null,null,"",{"$f":"SUMIF('1. Frais de personnel'!C:C,B63,'1. Frais de personnel'!S:S)","v":0},{"$f":"SUMIF('2-3.Frais de voyage-séjour'!C:C,B63,'2-3.Frais de voyage-séjour'!L:L)","v":0},{"$f":"SUMIF('2-3.Frais de voyage-séjour'!C:C,B63,'2-3.Frais de voyage-séjour'!M:M)","v":0},{"$f":"SUMIF('4. Equipement'!C:C,B63,'4. Equipement'!H:H)","v":0},{"$f":"SUMIF('5. Sous-traitance'!C:C,B63,'5. Sous-traitance'!H:H)","v":0},{"$f":"SUMIF('B. Mobilité Spécial - Etudiant'!B:B,B63,'B. Mobilité Spécial - Etudiant'!N:N)+SUMIF('B. Mobilité Spécial - Personnel'!B:B,B63,'B. Mobilité Spécial - Personnel'!N:N)","v":0},0]
[null,"P32",null,null,"",{"$f":"SUMIF('1. Frais de personnel'!C:C,B64,'1. Frais de personnel'!S:S)","v":0},{"$f":"SUMIF('2-3.Frais de voyage-séjour'!C:C,B64,'2-3.Frais de voyage-séjour'!L:L)","v":0},{"$f":"SUMIF('2-3.Frais de voyage-séjour'!C:C,B64,'2-3.Frais de voyage-séjour'!M:M)","v":0},{"$f":"SUMIF('4. Equipement'!C:C,B64,'4. Equipement'!H:H)","v":0},{"$f":"SUMIF('5. Sous-traitance'!C:C,B64,'5. Sous-traitance'!H:H)","v":0},{"$f":"SUMIF('B. Mobilité Spécial - Etudiant'!B:B,B64,'B. Mobilité Spécial - Etudiant'!N:N)+SUMIF('B. Mobilité Spécial - Personnel'!B:B,B64,'B. Mobilité Spécial - Personnel'!N:N)","v":0},0]
[null,"P33",null,null,{"$f":"IFERROR(IF(D65<>\"\",VLOOKUP(D65,CountryType,2,FALSE),\"\"),\"Pays non trouvé\")","v":""},{"$f":"SUMIF('1. Frais de personnel'!C:C,B65,'1. Frais de personnel'!S:S)","v":0},{"$f":"SUMIF('2-3.Frais de voyage-séjour'!C:C,B65,'2-3.Frais de voyage-séjour'!L:L)","v":0},{"$f":"SUMIF('2-3.Frais de voyage-séjour'!C:C,B65,'2-3.Frais de voyage-séjour'!M:M)","v":0},{"$f":"SUMIF('4. Equipement'!C:C,B65,'4. Equipement'!H:H)","v":0},{"$f":"SUMIF('5. Sous-traitance'!C:C,B65,'5. Sous-traitance'!H:H)","v":0},{"$f":"SUMIF('B. Mobilité Spécial - Etudiant'!B:B,B65,'B. Mobilité Spécial - Etudiant'!N:N)+SUMIF('B. Mobilité Spécial - Personnel'!B:B,B65,'B. Mobilité Spécial - Personnel'!N:N)","v":0},0]
[null,"P34",null,null,"",{"$f":"SUMIF('1. Frais de personnel'!C:C,B66,'1. Frais de personnel'!S:S)","v":0},{"$f":"SUMIF('2-3.Frais de voyage-séjour'!C:C,B66,'2-3.Frais de voyage-séjour'!L:L)","v":0},{"$f":"SUMIF('2-3.Frais de voyage-séjour'!C:C,B66,'2-3.Frais de voyage-séjour'!M:M)","v":0},{"$f":"SUMIF('4. Equipement'!C:C,B66,'4. Equipement'!H:H)","v":0},{"$f":"SUMIF('5. Sous-traitance'!C:C,B66,'5. Sous-traitance'!H:H)","v":0},{"$f":"SUMIF('B. Mobilité Spécial - Etudiant'!B:B,B66,'B. Mobilité Spécial - Etudiant'!N:N)+SUMIF('B. Mobilité Spécial - Personnel'!B:B,B66,'B. Mobilité Spécial - Personnel'!N:N)","v":0},0]
[null,"P35",null,null,"",{"$f":"SUMIF('1. Frais de personnel'!C:C,B67,'1. Frais de personnel'!S:S)","v":0},{"$f":"SUMIF('2-3.Frais de voyage-séjour'!C:C,B67,'2-3.Frais de voyage-séjour'!L:L)","v":0},{"$f":"SUMIF('2-3.Frais de voyage-séjour'!C:C,B67,'2-3.Frais de voyage-séjour'!M:M)","v":0},{"$f":"SUMIF('4. Equipement'!C:C,B67,'4. Equipement'!H:H)","v":0},{"$f":"SUMIF('5. Sous-traitance'!C:C,B67,'5. Sous-traitance'!H:H)","v":0},{"$f":"SUMIF('B. Mobilité Spécial - Etudiant'!B:B,B67,'B. Mobilité Spécial - Etudiant'!N:N)+SUMIF('B. Mobilité Spécial - Personnel'!B:B,B67,'B. Mobilité Spécial - Personnel'!N:N)","v":0},0]
[null,"P36",null,null,"",{"$f":"SUMIF('1. Frais de personnel'!C:C,B68,'1. Frais de personnel'!S:S)","v":0},{"$f":"SUMIF('2-3.Frais de voyage-séjour'!C:C,B68,'2-3.Frais de voyage-séjour'!L:L)","v":0},{"$f":"SUMIF('2-3.Frais de voyage-séjour'!C:C,B68,'2-3.Frais de voyage-séjour'!M:M)","v":0},{"$f":"SUMIF('4. Equipement'!C:C,B68,'4. Equipement'!H:H)","v":0},{"$f":"SUMIF('5. Sous-traitance'!C:C,B68,'5. Sous-traitance'!H:H)","v":0},{"$f":"SUMIF('B. Mobilité Spécial - Etudiant'!B:B,B68,'B. Mobilité Spécial - Etudiant'!N:N)+SUMIF('B. Mobilité Spécial - Personnel'!B:B,B68,'B. Mobilité Spécial - Personnel'!N:N)","v":0},0]
[null,"P37",null,null,"",{"$f":"SUMIF('1. Frais de personnel'!C:C,B69,'1. Frais de personnel'!S:S)","v":0},{"$f":"SUMIF('2-3.Frais de voyage-séjour'!C:C,B69,'2-3.Frais de voyage-séjour'!L:L)","v":0},{"$f":"SUMIF('2-3.Frais de voyage-séjour'!C:C,B69,'2-3.Frais de voyage-séjour'!M:M)","v":0},{"$f":"SUMIF('4. Equipement'!C:C,B69,'4. Equipement'!H:H)","v":0},{"$f":"SUMIF('5. Sous-traitance'!C:C,B69,'5. Sous-traitance'!H:H)","v":0},{"$f":"SUMIF('B. Mobilité Spécial - Etudiant'!B:B,B69,'B. Mobilité Spécial - Etudiant'!N:N)+SUMIF('B. Mobilité Spécial - Personnel'!B:B,B69,'B. Mobilité Spécial - Personnel'!N:N)","v":0},0]
[null,"P38",null,null,"",{"$f":"SUMIF('1. Frais de personnel'!C:C,B70,'1. Frais de personnel'!S:S)","v":0},{"$f":"SUMIF('2-3.Frais de voyage-séjour'!C:C,B70,'2-3.Frais de voyage-séjour'!L:L)","v":0},{"$f":"SUMIF('2-3.Frais de voyage-séjour'!C:C,B70,'2-3.Frais de voyage-séjour'!M:M)","v":0},{"$f":"SUMIF('4. Equipement'!C:C,B70,'4. Equipement'!H:H)","v":0},{"$f":"SUMIF('5. Sous-traitance'!C:C,B70,'5. Sous-traitance'!H:H)","v":0},{"$f":"SUMIF('B. Mobilité Spécial - Etudiant'!B:B,B70,'B. Mobilité Spécial - Etudiant'!N:N)+SUMIF('B. Mobilité Spécial - Personnel'!B:B,B70,'B. Mobilité Spécial - Personnel'!N:N)","v":0},0]
[null,"P39",null,null,"",{"$f":"SUMIF('1. Frais de personnel'!C:C,B71,'1. Frais de personnel'!S:S)","v":0},{"$f":"SUMIF('2-3.Frais de voyage-séjour'!C:C,B71,'2-3.Frais de voyage-séjour'!L:L)","v":0},{"$f":"SUMIF('2-3.Frais de voyage-séjour'!C:C,B71,'2-3.Frais de voyage-séjour'!M:M)","v":0},{"$f":"SUMIF('4. Equipement'!C:C,B71,'4. Equipement'!H:H)","v":0},{"$f":"SUMIF('5. Sous-traitance'!C:C,B71,'5. Sous-traitance'!H:H)","v":0},{"$f":"SUMIF('B. Mobilité Spécial - Etudiant'!B:B,B71,'B. Mobilité Spécial - Etudiant'!N:N)+SUMIF('B. Mobilité Spécial - Personnel'!B:B,B71,'B. Mobilité Spécial - Personnel'!N:N)","v":0},0]
[null,"P40",null,null,"",{"$f":"SUMIF('1. Frais de personnel'!C:C,B72,'1. Frais de personnel'!S:S)","v":0},{"$f":"SUMIF('2-3.Frais de voyage-séjour'!C:C,B72,'2-3.Frais de voyage-séjour'!L:L)","v":0},{"$f":"SUMIF('2-3.Frais de voyage-séjour'!C:C,B72,'2-3.Frais de voyage-séjour'!M:M)","v":0},{"$f":"SUMIF('4. Equipement'!C:C,B72,'4. Equipement'!H:H)","v":0},{"$f":"SUMIF('5. Sous-traitance'!C:C,B72,'5. Sous-traitance'!H:H)","v":0},{"$f":"SUMIF('B. Mobilité Spécial - Etudiant'!B:B,B72,'B. Mobilité Spécial - Etudiant'!N:N)+SUMIF('B. Mobilité Spécial - Personnel'!B:B,B72,'B. Mobilité Spécial - Personnel'!N:N)","v":0},0]
[null,"P41",null,null,"",{"$f":"SUMIF('1. Frais de personnel'!C:C,B73,'1. Frais de personnel'!S:S)","v":0},{"$f":"SUMIF('2-3.Frais de voyage-séjour'!C:C,B73,'2-3.Frais de voyage-séjour'!L:L)","v":0},{"$f":"SUMIF('2-3.Frais de voyage-séjour'!C:C,B73,'2-3.Frais de voyage-séjour'!M:M)","v":0},{"$f":"SUMIF('4. Equipement'!C:C,B73,'4. Equipement'!H:H)","v":0},{"$f":"SUMIF('5. Sous-traitance'!C:C,B73,'5. Sous-traitance'!H:H)","v":0},{"$f":"SUMIF('B. Mobilité Spécial - Etudiant'!B:B,B73,'B. Mobilité Spécial - Etudiant'!N:N)+SUMIF('B. Mobilité Spécial - Personnel'!B:B,B73,'B. Mobilité Spécial - Personnel'!N:N)","v":0},0]
[null,"P42",null,null,"",{"$f":"SUMIF('1. Frais de personnel'!C:C,B74,'1. Frais de personnel'!S:S)","v":0},{"$f":"SUMIF('2-3.Frais de voyage-séjour'!C:C,B74,'2-3.Frais de voyage-séjour'!L:L)","v":0},{"$f":"SUMIF('2-3.Frais de voyage-séjour'!C:C,B74,'2-3.Frais de voyage-séjour'!M:M)","v":0},{"$f":"SUMIF('4. Equipement'!C:C,B74,'4. Equipement'!H:H)","v":0},{"$f":"SUMIF('5. Sous-traitance'!C:C,B74,'5. Sous-traitance'!H:H)","v":0},{"$f":"SUMIF('B. Mobilité Spécial - Etudiant'!B:B,B74,'B. Mobilité Spécial - Etudiant'!N:N)+SUMIF('B. Mobilité Spécial - Personnel'!B:B,B74,'B. Mobilité Spécial - Personnel'!N:N)","v":0},0]
[null,"P43",null,null,"",{"$f":"SUMIF('1. Frais de personnel'!C:C,B75,'1. Frais de personnel'!S:S)","v":0},{"$f":"SUMIF('2-3.Frais de voyage-séjour'!C:C,B75,'2-3.Frais de voyage-séjour'!L:L)","v":0},{"$f":"SUMIF('2-3.Frais de voyage-séjour'!C:C,B75,'2-3.Frais de voyage-séjour'!M:M)","v":0},{"$f":"SUMIF('4. Equipement'!C:C,B75,'4. Equipement'!H:H)","v":0},{"$f":"SUMIF('5. Sous-traitance'!C:C,B75,'5. Sous-traitance'!H:H)","v":0},{"$f":"SUMIF('B. Mobilité Spécial - Etudiant'!B:B,B75,'B. Mobilité Spécial - Etudiant'!N:N)+SUMIF('B. Mobilité Spécial - Personnel'!B:B,B75,'B. Mobilité Spécial - Personnel'!N:N)","v":0},0]
[null,"P44",null,null,"",{"$f":"SUMIF('1. Frais de personnel'!C:C,B76,'1. Frais de personnel'!S:S)","v":0},{"$f":"SUMIF('2-3.Frais de voyage-séjour'!C:C,B76,'2-3.Frais de voyage-séjour'!L:L)","v":0},{"$f":"SUMIF('2-3.Frais de voyage-séjour'!C:C,B76,'2-3.Frais de voyage-séjour'!M:M)","v":0},{"$f":"SUMIF('4. Equipement'!C:C,B76,'4. Equipement'!H:H)","v":0},{"$f":"SUMIF('5. Sous-traitance'!C:C,B76,'5. Sous-traitance'!H:H)","v":0},{"$f":"SUMIF('B. Mobilité Spécial - Etudiant'!B:B,B76,'B. Mobilité Spécial - Etudiant'!N:N)+SUMIF('B. Mobilité Spécial - Personnel'!B:B,B76,'B. Mobilité Spécial - Personnel'!N:N)","v":0},0]
[null,"P45",null,null,"",{"$f":"SUMIF('1. Frais de personnel'!C:C,B77,'1. Frais de personnel'!S:S)","v":0},{"$f":"SUMIF('2-3.Frais de voyage-séjour'!C:C,B77,'2-3.Frais de voyage-séjour'!L:L)","v":0},{"$f":"SUMIF('2-3.Frais de voyage-séjour'!C:C,B77,'2-3.Frais de voyage-séjour'!M:M)","v":0},{"$f":"SUMIF('4. Equipement'!C:C,B77,'4. Equipement'!H:H)","v":0},{"$f":"SUMIF('5. Sous-traitance'!C:C,B77,'5. Sous-traitance'!H:H)","v":0},{"$f":"SUMIF('B. Mobilité Spécial - Etudiant'!B:B,B77,'B. Mobilité Spécial - Etudiant'!N:N)+SUMIF('B. Mobilité Spécial - Personnel'!B:B,B77,'B. Mobilité Spécial - Personnel'!N:N)","v":0},0]
[null,"P46",null,null,"",{"$f":"SUMIF('1. Frais de personnel'!C:C,B78,'1. Frais de personnel'!S:S)","v":0},{"$f":"SUMIF('2-3.Frais de voyage-séjour'!C:C,B78,'2-3.Frais de voyage-séjour'!L:L)","v":0},{"$f":"SUMIF('2-3.Frais de voyage-séjour'!C:C,B78,'2-3.Frais de voyage-séjour'!M:M)","v":0},{"$f":"SUMIF('4. Equipement'!C:C,B78,'4. Equipement'!H:H)","v":0},{"$f":"SUMIF('5. Sous-traitance'!C:C,B78,'5. Sous-traitance'!H:H)","v":0},{"$f":"SUMIF('B. Mobilité Spécial - Etudiant'!B:B,B78,'B. Mobilité Spécial - Etudiant'!N:N)+SUMIF('B. Mobilité Spécial - Personnel'!B:B,B78,'B. Mobilité Spécial - Personnel'!N:N)","v":0},0]
[null,"P47",null,null,"",{"$f":"SUMIF('1. Frais de personnel'!C:C,B79,'1. Frais de personnel'!S:S)","v":0},{"$f":"SUMIF('2-3.Frais de voyage-séjour'!C:C,B79,'2-3.Frais de voyage-séjour'!L:L)","v":0},{"$f":"SUMIF('2-3.Frais de voyage-séjour'!C:C,B79,'2-3.Frais de voyage-séjour'!M:M)","v":0},{"$f":"SUMIF('4. Equipement'!C:C,B79,'4. Equipement'!H:H)","v":0},{"$f":"SUMIF('5. Sous-traitance'!C:C,B79,'5. Sous-traitance'!H:H)","v":0},{"$f":"SUMIF('B. Mobilité Spécial - Etudiant'!B:B,B79,'B. Mobilité Spécial - Etudiant'!N:N)+SUMIF('B. Mobilité Spécial - Personnel'!B:B,B79,'B. Mobilité Spécial - Personnel'!N:N)","v":0},0]
[null,"P48",null,null,"",{"$f":"SUMIF('1. Frais de personnel'!C:C,B80,'1. Frais de personnel'!S:S)","v":0},{"$f":"SUMIF('2-3.Frais de voyage-séjour'!C:C,B80,'2-3.Frais de voyage-séjour'!L:L)","v":0},{"$f":"SUMIF('2-3.Frais de voyage-séjour'!C:C,B80,'2-3.Frais de voyage-séjour'!M:M)","v":0},{"$f":"SUMIF('4. Equipement'!C:C,B80,'4. Equipement'!H:H)","v":0},{"$f":"SUMIF('5. Sous-traitance'!C:C,B80,'5. Sous-traitance'!H:H)","v":0},{"$f":"SUMIF('B. Mobilité Spécial - Etudiant'!B:B,B80,'B. Mobilité Spécial - Etudiant'!N:N)+SUMIF('B. Mobilité Spécial - Personnel'!B:B,B80,'B. Mobilité Spécial - Personnel'!N:N)","v":0},0]
[null,"P49",null,null,"",{"$f":"SUMIF('1. Frais de personnel'!C:C,B81,'1. Frais de personnel'!S:S)","v":0},{"$f":"SUMIF('2-3.Frais de voyage-séjour'!C:C,B81,'2-3.Frais de voyage-séjour'!L:L)","v":0},{"$f":"SUMIF('2-3.Frais de voyage-séjour'!C:C,B81,'2-3.Frais de voyage-séjour'!M:M)","v":0},{"$f":"SUMIF('4. Equipement'!C:C,B81,'4. Equipement'!H:H)","v":0},{"$f":"SUMIF('5. Sous-traitance'!C:C,B81,'5. Sous-traitance'!H:H)","v":0},{"$f":"SUMIF('B. Mobilité Spécial - Etudiant'!B:B,B81,'B. Mobilité Spécial - Etudiant'!N:N)+SUMIF('B. Mobilité Spécial - Personnel'!B:B,B81,'B. Mobilité Spécial - Personnel'!N:N)","v":0},0]
[null,"P50",null,null,"",{"$f":"SUMIF('1. Frais de personnel'!C:C,B82,'1. Frais de personnel'!S:S)","v":0},{"$f":"SUMIF('2-3.Frais de voyage-séjour'!C:C,B82,'2-3.Frais de voyage-séjour'!L:L)","v":0},{"$f":"SUMIF('2-3.Frais de voyage-séjour'!C:C,B82,'2-3.Frais de voyage-séjour'!M:M)","v":0},{"$f":"SUMIF('4. Equipement'!C:C,B82,'4. Equipement'!H:H)","v":0},{"$f":"SUMIF('5. Sous-traitance'!C:C,B82,'5. Sous-traitance'!H:H)","v":0},{"$f":"SUMIF('B. Mobilité Spécial - Etudiant'!B:B,B82,'B. Mobilité Spécial - Etudiant'!N:N)+SUMIF('B. Mobilité Spécial - Personnel'!B:B,B82,'B. Mobilité Spécial - Personnel'!N:N)","v":0},0]
[null,"P51",null,null,"",{"$f":"SUMIF('1. Frais de personnel'!C:C,B83,'1. Frais de personnel'!S:S)","v":0},{"$f":"SUMIF('2-3.Frais de voyage-séjour'!C:C,B83,'2-3.Frais de voyage-séjour'!L:L)","v":0},{"$f":"SUMIF('2-3.Frais de voyage-séjour'!C:C,B83,'2-3.Frais de voyage-séjour'!M:M)","v":0},{"$f":"SUMIF('4. Equipement'!C:C,B83,'4. Equipement'!H:H)","v":0},{"$f":"SUMIF('5. Sous-traitance'!C:C,B83,'5. Sous-traitance'!H:H)","v":0},{"$f":"SUMIF('B. Mobilité Spécial - Etudiant'!B:B,B83,'B. Mobilité Spécial - Etudiant'!N:N)+SUMIF('B. Mobilité Spécial - Personnel'!B:B,B83,'B. Mobilité Spécial - Personnel'!N:N)","v":0},0]
[null,"P52",null,null,"",{"$f":"SUMIF('1. Frais de personnel'!C:C,B84,'1. Frais de personnel'!S:S)","v":0},{"$f":"SUMIF('2-3.Frais de voyage-séjour'!C:C,B84,'2-3.Frais de voyage-séjour'!L:L)","v":0},{"$f":"SUMIF('2-3.Frais de voyage-séjour'!C:C,B84,'2-3.Frais de voyage-séjour'!M:M)","v":0},{"$f":"SUMIF('4. Equipement'!C:C,B84,'4. Equipement'!H:H)","v":0},{"$f":"SUMIF('5. Sous-traitance'!C:C,B84,'5. Sous-traitance'!H:H)","v":0},{"$f":"SUMIF('B. Mobilité Spécial - Etudiant'!B:B,B84,'B. Mobilité Spécial - Etudiant'!N:N)+SUMIF('B. Mobilité Spécial - Personnel'!B:B,B84,'B. Mobilité Spécial - Personnel'!N:N)","v":0},0]
[null,"P53",null,null,"",{"$f":"SUMIF('1. Frais de personnel'!C:C,B85,'1. Frais de personnel'!S:S)","v":0},{"$f":"SUMIF('2-3.Frais de voyage-séjour'!C:C,B85,'2-3.Frais de voyage-séjour'!L:L)","v":0},{"$f":"SUMIF('2-3.Frais de voyage-séjour'!C:C,B85,'2-3.Frais de voyage-séjour'!M:M)","v":0},{"$f":"SUMIF('4. Equipement'!C:C,B85,'4. Equipement'!H:H)","v":0},{"$f":"SUMIF('5. Sous-traitance'!C:C,B85,'5. Sous-traitance'!H:H)","v":0},{"$f":"SUMIF('B. Mobilité Spécial - Etudiant'!B:B,B85,'B. Mobilité Spécial - Etudiant'!N:N)+SUMIF('B. Mobilité Spécial - Personnel'!B:B,B85,'B. Mobilité Spécial - Personnel'!N:N)","v":0},0]
[null,"P54",null,null,"",{"$f":"SUMIF('1. Frais de personnel'!C:C,B86,'1. Frais de personnel'!S:S)","v":0},{"$f":"SUMIF('2-3.Frais de voyage-séjour'!C:C,B86,'2-3.Frais de voyage-séjour'!L:L)","v":0},{"$f":"SUMIF('2-3.Frais de voyage-séjour'!C:C,B86,'2-3.Frais de voyage-séjour'!M:M)","v":0},{"$f":"SUMIF('4. Equipement'!C:C,B86,'4. Equipement'!H:H)","v":0},{"$f":"SUMIF('5. Sous-traitance'!C:C,B86,'5. Sous-traitance'!H:H)","v":0},{"$f":"SUMIF('B. Mobilité Spécial - Etudiant'!B:B,B86,'B. Mobilité Spécial - Etudiant'!N:N)+SUMIF('B. Mobilité Spécial - Personnel'!B:B,B86,'B. Mobilité Spécial - Personnel'!N:N)","v":0},0]
[null,"P55",null,null,"",{"$f":"SUMIF('1. Frais de personnel'!C:C,B87,'1. Frais de personnel'!S:S)","v":0},{"$f":"SUMIF('2-3.Frais de voyage-séjour'!C:C,B87,'2-3.Frais de voyage-séjour'!L:L)","v":0},{"$f":"SUMIF('2-3.Frais de voyage-séjour'!C:C,B87,'2-3.Frais de voyage-séjour'!M:M)","v":0},{"$f":"SUMIF('4. Equipement'!C:C,B87,'4. Equipement'!H:H)","v":0},{"$f":"SUMIF('5. Sous-traitance'!C:C,B87,'5. Sous-traitance'!H:H)","v":0},{"$f":"SUMIF('B. Mobilité Spécial - Etudiant'!B:B,B87,'B. Mobilité Spécial - Etudiant'!N:N)+SUMIF('B. Mobilité Spécial - Personnel'!B:B,B87,'B. Mobilité Spécial - Personnel'!N:N)","v":0},0]

{"sheet":"1. Frais de personnel","index":1,"n_rows":14,"n_cols":20,"rows_kept":14,"cut":false,"hidden":false,"merged":[[4,1,4,2],[3,1,3,2],[8,1,8,2],[2,1,2,18],[10,17,11,17],[10,19,11,19],[1,1,1,19],[10,18,11,18],[10,5,10,7],[10,8,10,10],[10,11,10,13],[10,14,10,16],[9,1,9,18],[3,6,8,19],[10,1,11,1],[10,4,11,4],[10,3,11,3],[10,2,11,2],[7,1,7,2],[6,1,6,2],[5,1,5,2]]}
[]
[null,"1. Frais de personnel"]
[]
[null,null,null,"Total (EUR)","Nombre de jours"]
[null,"Gestionnaire",null,{"$f":"SUM(H:H)","v":0},{"$f":"SUMIF(T:T,\"<>Erreur\",F:F)","v":0}]
[null,"Enseignant/formateur/chercheur",null,{"$f":"SUM(K:K)","v":0},{"$f":"SUMIF(T:T,\"<>Erreur\",I:I)","v":0}]
[null,"Personnel technique",null,{"$f":"SUM(N:N)","v":0},{"$f":"SUMIF(T:T,\"<>Erreur\",L:L)","v":0}]
[null,"Personnel administratif",null,{"$f":"SUM(Q:Q)","v":0},{"$f":"SUMIF(T:T,\"<>Erreur\",O:O)","v":0}]
[null,null,null,{"$f":"SUM(D5:D8)","v":0},{"$f":"SUM(E5:E8)","v":0}]
[]
[null,"Type de lot","Part.\nN°","Nom du partenaire\n(à encoder dans l'onglet \"général\")","Pays\n(à encoder dans l'onglet \"général\")",{"$f":"Rates!E3","v":"Gestionnaire"},null,null,{"$f":"Rates!F3","v":"Enseignant/formateur/chercheur"},null,null,{"$f":"Rates!G3","v":"Personnel technique"},null,null,{"$f":"Rates!H3","v":"Personnel administratif"},null,null,"Total Nombre \nde Jours","Total \n(EUR)","Erreur\nEncodage"]
[null,null,null,null,null,"Nombre de  \njours","Coûts par\njour","Total\n(EUR)","Nombre de  \njours","Coûts par\njour","Total\n(EUR)","Nombre de  \njours","Coûts par\njour","Total\n(EUR)","Nombre de  \njours","Coûts par\njour","Total\n(EUR)"]
[null,null,null,{"$f":"IFERROR(IF(VLOOKUP(C13,PartnerN°Ref,2,FALSE)=0,\"\",VLOOKUP(C13,PartnerN°Ref,2,FALSE)),\"\")","v":""},{"$f":"IFERROR(IF(OR(VLOOKUP(C13,PartnerN°Ref,4,FALSE)=\"Pays non trouvé\",VLOOKUP(C13,PartnerN°Ref,3,FALSE)=0),\"\",VLOOKUP(C13,PartnerN°Ref,3,FALSE)),\"\")","v":""},0,{"$f":"IF(T13=\"Erreur\",0,INDEX(Rates,MATCH(E13,CountryALL,0),MATCH($F$11,Category,0)))","v":0},{"$f":"IFERROR(IF(T13=\"Erreur\",0,ROUND(F13*G13,2)),0)","v":0},0,{"$f":"IF(T13=\"Erreur\",0,INDEX(Rates,MATCH(E13,CountryALL,0),MATCH($I$11,Category,0)))","v":0},{"$f":"IFERROR(IF(T13=\"Erreur\",0,ROUND(I13*J13,2)),0)","v":0},0,{"$f":"IF(T13=\"Erreur\",0,INDEX(Rates,MATCH(E13,CountryALL,0),MATCH($L$11,Category,0)))","v":0},{"$f":"IFERROR(IF(T13=\"Erreur\",0,ROUND(L13*M13,2)),0)","v":0},0,{"$f":"IF(T13=\"Erreur\",0,INDEX(Rates,MATCH(E13,CountryALL,0),MATCH($O$11,Category,0)))","v":0},{"$f":"IFERROR(IF(T13=\"Erreur\",0,ROUND(O13*P13,2)),0)","v":0},{"$f":"IF(T13=\"Erreur\",0,F13+I13+L13+O13)","v":0},{"$f":"IF(T13=\"Erreur\",0,H13+K13+N13+Q13)","v":0},{"$f":"IF(OR(COUNTIF(WorkPackage,B13)=0,COUNTIF(PartnerN°,C13)=0,D13=\"\",COUNTIF(CountryALL,E13)=0,ISNUMBER(F13)=FALSE,ISNUMBER(I13)=FALSE,ISNUMBER(L13)=FALSE,ISNUMBER(O13)=FALSE,IF(ISNUMBER(F13)=TRUE,F13=INT(F13*10)/10=FALSE),IF(ISNUMBER(I13)=TRUE,I13=INT(I13*10)/10=FALSE),IF(ISNUMBER(L13)=TRUE,L13=INT(L13*10)/10=FALSE),IF(ISNUMBER(O13)=TRUE,O13=INT(O13*10)/10=FALSE)),\"Erreur\",\"\")","v":"Erreur"}]
[null,null,null,{"$f":"IFERROR(IF(VLOOKUP(C14,PartnerN°Ref,2,FALSE)=0,\"\",VLOOKUP(C14,PartnerN°Ref,2,FALSE)),\"\")","v":""},{"$f":"IFERROR(IF(OR(VLOOKUP(C14,PartnerN°Ref,4,FALSE)=\"Pays non trouvé\",VLOOKUP(C14,PartnerN°Ref,3,FALSE)=0),\"\",VLOOKUP(C14,PartnerN°Ref,3,FALSE)),\"\")","v":""},0,{"$f":"IF(T14=\"Erreur\",0,INDEX(Rates,MATCH(E14,CountryALL,0),MATCH($F$11,Category,0)))","v":0},{"$f":"IFERROR(IF(T14=\"Erreur\",0,ROUND(F14*G14,2)),0)","v":0},0,{"$f":"IF(T14=\"Erreur\",0,INDEX(Rates,MATCH(E14,CountryALL,0),MATCH($I$11,Category,0)))","v":0},{"$f":"IFERROR(IF(T14=\"Erreur\",0,ROUND(I14*J14,2)),0)","v":0},0,{"$f":"IF(T14=\"Erreur\",0,INDEX(Rates,MATCH(E14,CountryALL,0),MATCH($L$11,Category,0)))","v":0},{"$f":"IFERROR(IF(T14=\"Erreur\",0,ROUND(L14*M14,2)),0)","v":0},0,{"$f":"IF(T14=\"Erreur\",0,INDEX(Rates,MATCH(E14,CountryALL,0),MATCH($O$11,Category,0)))","v":0},{"$f":"IFERROR(IF(T14=\"Erreur\",0,ROUND(O14*P14,2)),0)","v":0},{"$f":"IF(T14=\"Erreur\",0,F14+I14+L14+O14)","v":0},{"$f":"IF(T14=\"Erreur\",0,H14+K14+N14+Q14)","v":0},{"$f":"IF(OR(COUNTIF(WorkPackage,B14)=0,COUNTIF(PartnerN°,C14)=0,D14=\"\",COUNTIF(CountryALL,E14)=0,ISNUMBER(F14)=FALSE,ISNUMBER(I14)=FALSE,ISNUMBER(L14)=FALSE,ISNUMBER(O14)=FALSE,IF(ISNUMBER(F14)=TRUE,F14=INT(F14*10)/10=FALSE),IF(ISNUMBER(I14)=TRUE,I14=INT(I14*10)/10=FALSE),IF(ISNUMBER(L14)=TRUE,L14=INT(L14*10)/10=FALSE),IF(ISNUMBER(O14)=TRUE,O14=INT(O14*10)/10=FALSE)),\"Erreur\",\"\")","v":"Erreur"}]

{"sheet":"2-3.Frais de voyage-séjour","index":2,"n_rows":14,"n_cols":15,"rows_kept":14,"cut":false,"hidden":false,"merged":[[10,14,11,14],[1,1,1,14],[10,5,11,5],[10,8,11,8],[10,7,11,7],[10,6,11,6],[10,4,11,4],[10,3,11,3],[10,13,11,13],[10,12,11,12],[10,11,11,11],[10,10,11,10],[10,9,11,9],[7,5,8,5],[5,5,6,5],[3,5,4,5],[7,4,8,4],[5,4,6,4],[3,4,4,4],[10,1,11,1],[10,2,11,2],[8,1,8,2],[7,1,7,2],[6,1,6,2],[5,1,5,2],[4,1,4,2],[3,1,3,2]]}
[]
[null,"2-3.Frais de voyage-séjour"]
[]
[null,"Frais de voyage Etudiant (EUR)",null,{"$f":"SUMIF(G:G,\"Etudiant\",L:L)","v":0},{"$f":"D4+D5","v":0},{"$f":"SUMIFS(H:H,G:G,\"Etudiant\",O:O,\"<>Erreur\")","v":0}]
[null,"Frais de séjour Etudiant (EUR)",null,{"$f":"SUMIF(G:G,\"Etudiant\",M:M)","v":0}]
[null,"Frais de voyage Personnel (EUR)",null,{"$f":"SUMIF(G:G,\"Personnel\",L:L)","v":0},{"$f":"D6+D7","v":0},{"$f":"SUMIFS(H:H,G:G,\"Personnel\",O:O,\"<>Erreur\")","v":0}]
[null,"Frais de séjour Personnel (EUR)",null,{"$f":"SUMIF(G:G,\"Personnel\",M:M)","v":0}]
[null,"Total Frais de voyage (EUR)",null,{"$f":"SUM(L:L)","v":0},{"$f":"D8+D9","v":0},{"$f":"F4+F6","v":0}]
[null,"Total Frais de séjour (EUR)",null,{"$f":"SUM(M:M)","v":0}]
[]
[null,"Type de lot","Part.\nN°","Nom du partenaire\n(à encoder dans l'onglet \"général\")","Pays\n(à encoder dans l'onglet \"général\")","Ville de Départ","Personnel/\nEtudiant","Nombre de \nParticipants","Ville de Destination","Distance","Nombre de jours (par participant)","Frais de \nvoyage\n(EUR)","Frais de \nséjour\n(EUR)","Total \n(EUR)","Erreur\nEncodage"]
[]
[null,null,null,{"$f":"IFERROR(IF(VLOOKUP(C13,PartnerN°Ref,2,FALSE)=0,\"\",VLOOKUP(C13,PartnerN°Ref,2,FALSE)),\"\")","v":""},{"$f":"IFERROR(IF(OR(VLOOKUP(C13,PartnerN°Ref,4,FALSE)=\"Pays non trouvé\",VLOOKUP(C13,PartnerN°Ref,3,FALSE)=0),\"\",VLOOKUP(C13,PartnerN°Ref,3,FALSE)),\"\")","v":""},null,null,0,null,null,0,{"$f":"IF(O13=\"Erreur\",0,ROUND(ROUND(H13,0)*(VLOOKUP(J13,TravelCosts,2,FALSE)),2))","v":0},{"$f":"IF(O13=\"Erreur\",0,IF(AND(G13=\"Personnel\",K13>0,K13<15),(120*K13)*H13,IF(AND(G13=\"Personnel\",K13>14,K13<61),(1680+((K13-14)*70))*H13,IF(AND(G13=\"Personnel\",K13>60,K13<91),(4900+((K13-60)*50))*H13,IF(AND(G13=\"Etudiant\",K13>0,K13<15),(55*K13)*H13,IF(AND(G13=\"Etudiant\",K13>14,K13<91),(770+((K13-14)*40))*H13,0))))))","v":0},{"$f":"L13+M13","v":0},{"$f":"IF(OR(COUNTIF(WorkPackage,B13)=0,COUNTIF(PartnerN°,C13)=0,D13=\"\",COUNTIF(CountryALL,E13)=0,F13=\"\",COUNTIF(Category2,G13)=0,ISNUMBER(H13)=FALSE,I13=\"\",COUNTIF(TravelBands,J13)=0,ISNUMBER(K13)=FALSE,OR(K13<0,K13>90),IF(ISNUMBER(H13)=TRUE,H13=INT(H13*1)/1=FALSE),IF(ISNUMBER(K13)=TRUE,K13=INT(K13*1)/1=FALSE)),\"Erreur\",\"\")","v":"Erreur"}]
[null,null,null,{"$f":"IFERROR(IF(VLOOKUP(C14,PartnerN°Ref,2,FALSE)=0,\"\",VLOOKUP(C14,PartnerN°Ref,2,FALSE)),\"\")","v":""},{"$f":"IFERROR(IF(OR(VLOOKUP(C14,PartnerN°Ref,4,FALSE)=\"Pays non trouvé\",VLOOKUP(C14,PartnerN°Ref,3,FALSE)=0),\"\",VLOOKUP(C14,PartnerN°Ref,3,FALSE)),\"\")","v":""},null,null,0,null,null,0,{"$f":"IF(O14=\"Erreur\",0,ROUND(ROUND(H14,0)*(VLOOKUP(J14,TravelCosts,2,FALSE)),2))","v":0},{"$f":"IF(O14=\"Erreur\",0,IF(AND(G14=\"Personnel\",K14>0,K14<15),(120*K14)*H14,IF(AND(G14=\"Personnel\",K14>14,K14<61),(1680+((K14-14)*70))*H14,IF(AND(G14=\"Personnel\",K14>60,K14<91),(4900+((K14-60)*50))*H14,IF(AND(G14=\"Etudiant\",K14>0,K14<15),(55*K14)*H14,IF(AND(G14=\"Etudiant\",K14>14,K14<91),(770+((K14-14)*40))*H14,0))))))","v":0},{"$f":"L14+M14","v":0},{"$f":"IF(OR(COUNTIF(WorkPackage,B14)=0,COUNTIF(PartnerN°,C14)=0,D14=\"\",COUNTIF(CountryALL,E14)=0,F14=\"\",COUNTIF(Category2,G14)=0,ISNUMBER(H14)=FALSE,I14=\"\",COUNTIF(TravelBands,J14)=0,ISNUMBER(K14)=FALSE,OR(K14<0,K14>90),IF(ISNUMBER(H14)=TRUE,H14=INT(H14*1)/1=FALSE),IF(ISNUMBER(K14)=TRUE,K14=INT(K14*1)/1=FALSE)),\"Erreur\",\"\")","v":"Erreur"}]

{"sheet":"4. Equipement","index":3,"n_rows":14,"n_cols":9,"rows_kept":14,"cut":false,"hidden":false,"merged":[[10,8,11,8],[1,1,1,8],[10,7,11,7],[10,6,11,6],[10,5,11,5],[10,4,11,4],[3,1,8,1],[3,2,8,3],[10,3,11,3],[10,1,11,1],[10,2,11,2]]}
[]
[null,"4. Equipement"]
[]
[null,"Total (EUR)",{"$f":"SUM(H:H)","v":0}]
[]
[]
[]
[]
[]
[]
[null,"Type de lot","Part.\nN°","Nom du partenaire\n(à encoder dans l'onglet \"général\")","Pays\n(à encoder dans l'onglet \"général\")","Nature, type and specifications","Montant \nHors TVA\n(EUR)","Total\n(EUR)","Erreur\nEncodage"]
[]
[null,null,null,{"$f":"IFERROR(IF(VLOOKUP(C13,PartnerN°Ref,2,FALSE)=0,\"\",VLOOKUP(C13,PartnerN°Ref,2,FALSE)),\"\")","v":""},{"$f":"IFERROR(IF(OR(VLOOKUP(C13,PartnerN°Ref,4,FALSE)=\"Pays non trouvé\",VLOOKUP(C13,PartnerN°Ref,3,FALSE)=0),\"\",VLOOKUP(C13,PartnerN°Ref,3,FALSE)),\"\")","v":""},null,0,{"$f":"IF(I13=\"Erreur\",0,ROUND(G13,2))","v":0},{"$f":"IF(OR(COUNTIF(WorkPackage,B13)=0,COUNTIF(PartnerN°,C13)=0,D13=\"\",COUNTIF(CountryEligEquip,E13)=0,F13=\"\",ISNUMBER(G13)=FALSE,IF(ISNUMBER(G13)=TRUE,G13=INT(G13*100)/100=FALSE)),\"Erreur\",\"\")","v":"Erreur"}]
[null,null,null,{"$f":"IFERROR(IF(VLOOKUP(C14,PartnerN°Ref,2,FALSE)=0,\"\",VLOOKUP(C14,PartnerN°Ref,2,FALSE)),\"\")","v":""},{"$f":"IFERROR(IF(OR(VLOOKUP(C14,PartnerN°Ref,4,FALSE)=\"Pays non trouvé\",VLOOKUP(C14,PartnerN°Ref,3,FALSE)=0),\"\",VLOOKUP(C14,PartnerN°Ref,3,FALSE)),\"\")","v":""},null,0,{"$f":"IF(I14=\"Erreur\",0,ROUND(G14,2))","v":0},{"$f":"IF(OR(COUNTIF(WorkPackage,B14)=0,COUNTIF(PartnerN°,C14)=0,D14=\"\",COUNTIF(CountryEligEquip,E14)=0,F14=\"\",ISNUMBER(G14)=FALSE,IF(ISNUMBER(G14)=TRUE,G14=INT(G14*100)/100=FALSE)),\"Erreur\",\"\")","v":"Erreur"}]

{"sheet":"5. Sous-traitance","index":4,"n_rows":14,"n_cols":9,"rows_kept":14,"cut":false,"hidden":false,"merged":[[10,8,11,8],[1,1,1,8],[10,7,11,7],[3,1,8,1],[3,2,8,3],[10,1,11,1],[10,2,11,2],[10,3,11,3],[10,4,11,4],[10,5,11,5],[10,6,11,6]]}
[]
[null,"5. Sous-traitance"]
[]
[null,"Total (EUR)",{"$f":"SUM(H:H)","v":0}]
[]
[]
[]
[]
[]
[]
[null,"Type de lot","Part.\nN°","Nom du partenaire\n(à encoder dans l'onglet \"général\")","Pays\n(à encoder dans l'onglet \"général\")","Nature, type and specifications","Montant \nHors TVA\n(EUR)","Total\n(EUR)","Erreur\nEncodage"]
[]
[null,null,null,{"$f":"IFERROR(IF(VLOOKUP(C13,PartnerN°Ref,2,FALSE)=0,\"\",VLOOKUP(C13,PartnerN°Ref,2,FALSE)),\"\")","v":""},{"$f":"IFERROR(IF(OR(VLOOKUP(C13,PartnerN°Ref,4,FALSE)=\"Pays non trouvé\",VLOOKUP(C13,PartnerN°Ref,3,FALSE)=0),\"\",VLOOKUP(C13,PartnerN°Ref,3,FALSE)),\"\")","v":""},null,0,{"$f":"IF(I13=\"Erreur\",0,ROUND(G13,2))","v":0},{"$f":"IF(OR(COUNTIF(WorkPackage,B13)=0,COUNTIF(PartnerN°,C13)=0,D13=\"\",COUNTIF(CountryALL,E13)=0,F13=\"\",ISNUMBER(G13)=FALSE,IF(ISNUMBER(G13)=TRUE,G13=INT(G13*100)/100=FALSE)),\"Erreur\",\"\")","v":"Erreur"}]
[null,null,null,{"$f":"IFERROR(IF(VLOOKUP(C14,PartnerN°Ref,2,FALSE)=0,\"\",VLOOKUP(C14,PartnerN°Ref,2,FALSE)),\"\")","v":""},{"$f":"IFERROR(IF(OR(VLOOKUP(C14,PartnerN°Ref,4,FALSE)=\"Pays non trouvé\",VLOOKUP(C14,PartnerN°Ref,3,FALSE)=0),\"\",VLOOKUP(C14,PartnerN°Ref,3,FALSE)),\"\")","v":""},null,0,{"$f":"IF(I14=\"Erreur\",0,ROUND(G14,2))","v":0},{"$f":"IF(OR(COUNTIF(WorkPackage,B14)=0,COUNTIF(PartnerN°,C14)=0,D14=\"\",COUNTIF(CountryALL,E14)=0,F14=\"\",ISNUMBER(G14)=FALSE,IF(ISNUMBER(G14)=TRUE,G14=INT(G14*100)/100=FALSE)),\"Erreur\",\"\")","v":"Erreur"}]

{"sheet":"B. Mobilité Spécial - Etudiant","index":5,"n_rows":14,"n_cols":18,"rows_kept":14,"cut":false,"hidden":false,"merged":[[10,1,11,1],[10,2,11,2],[10,3,11,3],[10,4,11,4],[10,6,11,6],[10,14,11,14],[1,1,1,14],[10,10,11,10],[10,11,11,11],[10,12,11,12],[10,13,11,13],[10,8,11,8],[10,9,11,9],[3,1,4,1],[3,2,4,2],[5,1,6,1],[5,2,6,2],[7,1,8,1],[7,2,8,2],[10,5,11,5],[10,7,11,7]]}
[]
[null,"B. Mobilité Spécial - Etudiant"]
[]
[null,"Frais de voyage",{"$f":"SUM(L:L)","v":0}]
[]
[null,"Frais de séjour",{"$f":"SUM(M:M)","v":0}]
[]
[null,"Total (EUR)",{"$f":"C4+C6","v":0}]
[]
[]
[null,"Part. \nN°","Nom du partenaire\n(à encoder dans l'onglet \"général\")","Pays\n(à encoder dans l'onglet \"général\")","Categorie","Ville de Départ","Nombre de \nParticipants","Pays de Destination","Ville de Destination","Distance du \nVoyage","Numbre de \nmois (par participant)","Frais de \nVoyage\n(EUR)","Frais de \nSéjour\n(EUR)","Total \n(EUR)","Erreur\nEncodage"]
[]
[null,null,{"$f":"IFERROR(IF(VLOOKUP(B13,PartnerN°Ref,2,FALSE)=0,\"\",VLOOKUP(B13,PartnerN°Ref,2,FALSE)),\"\")","v":""},{"$f":"IFERROR(IF(OR(VLOOKUP(B13,PartnerN°Ref,4,FALSE)=\"Pays non trouvé\",VLOOKUP(B13,PartnerN°Ref,3,FALSE)=0),\"\",VLOOKUP(B13,PartnerN°Ref,3,FALSE)),\"\")","v":""},{"$f":"IF(D13=\"\",\"\",CONCATENATE(\"Etudiants des\",\" \",VLOOKUP(D13,CountryType,2,FALSE)))","v":""},null,0,null,null,null,null,{"$f":"IF(O13=\"Erreur\",0,ROUND(ROUND(G13,0)*(VLOOKUP(J13,TravelCosts,2,FALSE)),2))","v":0},{"$f":"IF(O13=\"Erreur\",0,ROUND(ROUND(G13,0)*(ROUND(K13,0)*(INDEX(Rates,MATCH(H13,CountryALL,0),MATCH(E13,Category,0)))),2))","v":0},{"$f":"L13+M13","v":0},{"$f":"IF(OR(COUNTIF(PartnerN°,B13)=0,C13=\"\",COUNTIF(SMSCountry,D13)=0,COUNTIF(Category,E13)=0,F13=\"\",ISNUMBER(G13)=FALSE,COUNTIF(SMSCountry,H13)=0,I13=\"\",COUNTIF(TravelBands,J13)=0,ISNUMBER(K13)=FALSE,COUNTIF(StudentSMSMonths,K13)=0,P13=1,Q13=1,R13=1,IF(ISNUMBER(G13)=TRUE,G13=INT(G13*1)/1=FALSE),IF(ISNUMBER(K13)=TRUE,K13=INT(K13*1)/1=FALSE)),\"Erreur\",\"\")","v":"Erreur"},{"$f":"IF(AND(COUNTIF(EUCountry,D13)=1,COUNTIF(EUCountry,H13)=1),1,0)","v":0},{"$f":"IF(AND(D13<>\"\",COUNTIF(SMSCountry,D13)=0),1,0)","v":0},{"$f":"IF(AND(H13<>\"\",COUNTIF(SMSCountry,H13)=0),1,0)","v":0}]
[null,null,{"$f":"IFERROR(IF(VLOOKUP(B14,PartnerN°Ref,2,FALSE)=0,\"\",VLOOKUP(B14,PartnerN°Ref,2,FALSE)),\"\")","v":""},{"$f":"IFERROR(IF(OR(VLOOKUP(B14,PartnerN°Ref,4,FALSE)=\"Pays non trouvé\",VLOOKUP(B14,PartnerN°Ref,3,FALSE)=0),\"\",VLOOKUP(B14,PartnerN°Ref,3,FALSE)),\"\")","v":""},{"$f":"IF(D14=\"\",\"\",CONCATENATE(\"Etudiants des\",\" \",VLOOKUP(D14,CountryType,2,FALSE)))","v":""},null,0,null,null,null,null,{"$f":"IF(O14=\"Erreur\",0,ROUND(ROUND(G14,0)*(VLOOKUP(J14,TravelCosts,2,FALSE)),2))","v":0},{"$f":"IF(O14=\"Erreur\",0,ROUND(ROUND(G14,0)*(ROUND(K14,0)*(INDEX(Rates,MATCH(H14,CountryALL,0),MATCH(E14,Category,0)))),2))","v":0},{"$f":"L14+M14","v":0},{"$f":"IF(OR(COUNTIF(PartnerN°,B14)=0,C14=\"\",COUNTIF(SMSCountry,D14)=0,COUNTIF(Category,E14)=0,F14=\"\",ISNUMBER(G14)=FALSE,COUNTIF(SMSCountry,H14)=0,I14=\"\",COUNTIF(TravelBands,J14)=0,ISNUMBER(K14)=FALSE,COUNTIF(StudentSMSMonths,K14)=0,P14=1,Q14=1,R14=1,IF(ISNUMBER(G14)=TRUE,G14=INT(G14*1)/1=FALSE),IF(ISNUMBER(K14)=TRUE,K14=INT(K14*1)/1=FALSE)),\"Erreur\",\"\")","v":"Erreur"},{"$f":"IF(AND(COUNTIF(EUCountry,D14)=1,COUNTIF(EUCountry,H14)=1),1,0)","v":0},{"$f":"IF(AND(D14<>\"\",COUNTIF(SMSCountry,D14)=0),1,0)","v":0},{"$f":"IF(AND(H14<>\"\",COUNTIF(SMSCountry,H14)=0),1,0)","v":0}]

{"sheet":"B. Mobilité Spécial - Personnel","index":6,"n_rows":14,"n_cols":18,"rows_kept":14,"cut":false,"hidden":false,"merged":[[10,3,11,3],[3,1,4,1],[3,2,4,2],[5,1,6,1],[5,2,6,2],[10,14,11,14],[1,1,1,14],[10,4,11,4],[10,5,11,5],[10,13,11,13],[10,7,11,7],[10,8,11,8],[10,9,11,9],[10,10,11,10],[10,11,11,11],[10,12,11,12],[10,6,11,6],[7,1,8,1],[7,2,8,2],[10,1,11,1],[10,2,11,2]]}
[]
[null,"B. Mobilité Spécial - Personnel"]
[]
[null,"Frais de voyage",{"$f":"SUM(L:L)","v":0}]
[]
[null,"Frais de séjour",{"$f":"SUM(M:M)","v":0}]
[]
[null,"Total (EUR)",{"$f":"C4+C6","v":0}]
[]
[]
[null,"Part. \nN°","Nom du partenaire\n(à encoder dans l'onglet \"général\")","Pays\n(à encoder dans l'onglet \"général\")","Categorie","Ville de Départ","Nombre de \nParticipants","Pays de Destination","Ville de Destination","Distance du \nVoyage","Numbre de \njours (par participant)","Frais de \nVoyage\n(EUR)","Frais de \nSéjour\n(EUR)","Total \n(EUR)","Erreur\nEncodage"]
[]
[null,null,{"$f":"IFERROR(IF(VLOOKUP(B13,PartnerN°Ref,2,FALSE)=0,\"\",VLOOKUP(B13,PartnerN°Ref,2,FALSE)),\"\")","v":""},{"$f":"IFERROR(IF(OR(VLOOKUP(B13,PartnerN°Ref,4,FALSE)=\"Pays non trouvé\",VLOOKUP(B13,PartnerN°Ref,3,FALSE)=0),\"\",VLOOKUP(B13,PartnerN°Ref,3,FALSE)),\"\")","v":""},{"$f":"IF(D13=\"\",\"\",CONCATENATE(\"Personnel des\",\" \",VLOOKUP(D13,CountryType,2,FALSE)))","v":""},null,0,null,null,null,null,{"$f":"IF(O13=\"Erreur\",0,ROUND(ROUND(G13,0)*(VLOOKUP(J13,TravelCosts,2,FALSE)),2))","v":0},{"$f":"IF(O13=\"Erreur\",0,ROUND(IF(AND(ROUND(K13,0)>0,ROUND(K13,0)<=14),ROUND(G13,0)*(ROUND(K13,0)*(INDEX(Rates,MATCH(H13,CountryALL,0),MATCH(E13,Category,0)))),IF(AND(ROUND(K13,0)>14,ROUND(K13,0)<=60),ROUND(G13,0)*((14*(INDEX(Rates,MATCH(H13,CountryALL,0),MATCH(E13,Category,0)))))+ROUND(G13,0)*(((ROUND(K13,0)-14)*(0.7*INDEX(Rates,MATCH(H13,CountryALL,0),MATCH(E13,Category,0))))),IF(ROUND(K13,0)>60,0))),2))","v":0},{"$f":"L13+M13","v":0},{"$f":"IF(OR(COUNTIF(PartnerN°,B13)=0,C13=\"\",COUNTIF(SMSCountry,D13)=0,COUNTIF(Category,E13)=0,F13=\"\",ISNUMBER(G13)=FALSE,COUNTIF(SMSCountry,H13)=0,I13=\"\",COUNTIF(TravelBands,J13)=0,ISNUMBER(K13)=FALSE,COUNTIF(StaffSMSDays,K13)=0,P13=1,Q13=1,R13=1,IF(ISNUMBER(G13)=TRUE,G13=INT(G13*1)/1=FALSE),IF(ISNUMBER(K13)=TRUE,K13=INT(K13*1)/1=FALSE)),\"Erreur\",\"\")","v":"Erreur"},{"$f":"IF(AND(COUNTIF(EUCountry,D13)=1,COUNTIF(EUCountry,H13)=1),1,0)","v":0},{"$f":"IF(AND(D13<>\"\",COUNTIF(SMSCountry,D13)=0),1,0)","v":0},{"$f":"IF(AND(H13<>\"\",COUNTIF(SMSCountry,H13)=0),1,0)","v":0}]
[null,null,{"$f":"IFERROR(IF(VLOOKUP(B14,PartnerN°Ref,2,FALSE)=0,\"\",VLOOKUP(B14,PartnerN°Ref,2,FALSE)),\"\")","v":""},{"$f":"IFERROR(IF(OR(VLOOKUP(B14,PartnerN°Ref,4,FALSE)=\"Pays non trouvé\",VLOOKUP(B14,PartnerN°Ref,3,FALSE)=0),\"\",VLOOKUP(B14,PartnerN°Ref,3,FALSE)),\"\")","v":""},{"$f":"IF(D14=\"\",\"\",CONCATENATE(\"Personnel des\",\" \",VLOOKUP(D14,CountryType,2,FALSE)))","v":""},null,0,null,null,null,null,{"$f":"IF(O14=\"Erreur\",0,ROUND(ROUND(G14,0)*(VLOOKUP(J14,TravelCosts,2,FALSE)),2))","v":0},{"$f":"IF(O14=\"Erreur\",0,ROUND(IF(AND(ROUND(K14,0)>0,ROUND(K14,0)<=14),ROUND(G14,0)*(ROUND(K14,0)*(INDEX(Rates,MATCH(H14,CountryALL,0),MATCH(E14,Category,0)))),IF(AND(ROUND(K14,0)>14,ROUND(K14,0)<=60),ROUND(G14,0)*((14*(INDEX(Rates,MATCH(H14,CountryALL,0),MATCH(E14,Category,0)))))+ROUND(G14,0)*(((ROUND(K14,0)-14)*(0.7*INDEX(Rates,MATCH(H14,CountryALL,0),MATCH(E14,Category,0))))),IF(ROUND(K14,0)>60,0))),2))","v":0},0,{"$f":"IF(OR(COUNTIF(PartnerN°,B14)=0,C14=\"\",COUNTIF(SMSCountry,D14)=0,COUNTIF(Category,E14)=0,F14=\"\",ISNUMBER(G14)=FALSE,COUNTIF(SMSCountry,H14)=0,I14=\"\",COUNTIF(TravelBands,J14)=0,ISNUMBER(K14)=FALSE,COUNTIF(StaffSMSDays,K14)=0,P14=1,Q14=1,R14=1,IF(ISNUMBER(G14)=TRUE,G14=INT(G14*1)/1=FALSE),IF(ISNUMBER(K14)=TRUE,K14=INT(K14*1)/1=FALSE)),\"Erreur\",\"\")","v":"Erreur"},{"$f":"IF(AND(COUNTIF(EUCountry,D14)=1,COUNTIF(EUCountry,H14)=1),1,0)","v":0},{"$f":"IF(AND(D14<>\"\",COUNTIF(SMSCountry,D14)=0),1,0)","v":0},{"$f":"IF(AND(H14<>\"\",COUNTIF(SMSCountry,H14)=0),1,0)","v":0}]

{"sheet":"Cofinancement","index":7,"n_rows":18,"n_cols":10,"rows_kept":18,"cut":false,"hidden":false,"merged":[[10,9,11,9],[1,1,1,9],[10,8,11,8],[10,5,11,5],[3,2,8,2],[3,1,8,1],[10,1,11,1],[10,2,11,2],[10,3,11,3],[10,6,11,6],[10,7,11,7],[10,4,11,4]]}
[]
[null,"Information sur le Cofinancement"]
[]
[null,"Total (EUR)",{"$f":"SUM(I:I)","v":0}]
[]
[]
[]
[]
[]
[]
[null,"Part. \nN°","Nom du partenaire\n(à encoder dans l'onglet \"général\")","Pays\n(à encoder dans l'onglet \"général\")","Objet*","Source du Cofinancement**","Justification***","Montant \nHors TVA\n(EUR)","Total\n(EUR)","Erreur\nEncodage"]
[]
[null,null,{"$f":"IFERROR(IF(VLOOKUP(B13,PartnerN°Ref,2,FALSE)=0,\"\",VLOOKUP(B13,PartnerN°Ref,2,FALSE)),\"\")","v":""},{"$f":"IFERROR(IF(OR(VLOOKUP(B13,PartnerN°Ref,4,FALSE)=\"Pays non trouvé\",VLOOKUP(B13,PartnerN°Ref,3,FALSE)=0),\"\",VLOOKUP(B13,PartnerN°Ref,3,FALSE)),\"\")","v":""},null,null,null,0,{"$f":"IF(J13=\"Erreur\",0,ROUND(H13,2))","v":0},{"$f":"IF(OR(COUNTIF(PartnerN°,B13)=0,C13=\"\",COUNTIF(CountryALL,D13)=0,E13=\"\",F13=\"\",G13=\"\",ISNUMBER(H13)=FALSE,IF(ISNUMBER(H13)=TRUE,H13=INT(H13*100)/100=FALSE)),\"Erreur\",\"\")","v":"Erreur"}]
[null,null,{"$f":"IFERROR(IF(VLOOKUP(B14,PartnerN°Ref,2,FALSE)=0,\"\",VLOOKUP(B14,PartnerN°Ref,2,FALSE)),\"\")","v":""},{"$f":"IFERROR(IF(OR(VLOOKUP(B14,PartnerN°Ref,4,FALSE)=\"Pays non trouvé\",VLOOKUP(B14,PartnerN°Ref,3,FALSE)=0),\"\",VLOOKUP(B14,PartnerN°Ref,3,FALSE)),\"\")","v":""},null,null,null,0,{"$f":"IF(J14=\"Erreur\",0,ROUND(H14,2))","v":0},{"$f":"IF(OR(COUNTIF(PartnerN°,B14)=0,C14=\"\",COUNTIF(CountryALL,D14)=0,E14=\"\",F14=\"\",G14=\"\",ISNUMBER(H14)=FALSE,IF(ISNUMBER(H14)=TRUE,H14=INT(H14*100)/100=FALSE)),\"Erreur\",\"\")","v":"Erreur"}]
[]
[null,"*     Equipement,  Frais de Personnel, Frais de Voyage et/ou Frais de Séjour, Impression & Publication"]
[null,"**   Subvention Gouvernementale, ressources propres de l'organisation/institution"]
[null,"*** Préparation du matériel de formation - 2 jours x 7,5 heures x 3 personnes x € 25"]

{"sheet":"Ventilation&Financement Projet","index":8,"n_rows":81,"n_cols":9,"rows_kept":81,"cut":false,"hidden":false,"merged":[[1,1,1,8],[13,1,13,8],[4,7,8,7],[22,1,22,8]]}
[]
[null,"Ventilation par Lot / Poste Budgétaire"]
[]
[null,"Lots","1. Frais de personnel","2. Frais de \nvoyage","3. Frais de \nséjour","4. Equipement","5. Sous-traitance","B. Mobilité(s)\nSpéciale(s)","Total\n(EUR)"]
[null,{"$f":"Rates!P14","v":"Préparation"},{"$f":"SUMIF('1. Frais de personnel'!B:B,B5,'1. Frais de personnel'!S:S)","v":0},{"$f":"SUMIF('2-3.Frais de voyage-séjour'!B:B,B5,'2-3.Frais de voyage-séjour'!L:L)","v":0},{"$f":"SUMIF('2-3.Frais de voyage-séjour'!B:B,B5,'2-3.Frais de voyage-séjour'!M:M)","v":0},{"$f":"SUMIF('4. Equipement'!B:B,B5,'4. Equipement'!H:H)","v":0},{"$f":"SUMIF('5. Sous-traitance'!B:B,B5,'5. Sous-traitance'!H:H)","v":0},null,{"$f":"SUM(C5:G5)","v":0}]
[null,{"$f":"Rates!P15","v":"Développement"},{"$f":"SUMIF('1. Frais de personnel'!B:B,B6,'1. Frais de personnel'!S:S)","v":0},{"$f":"SUMIF('2-3.Frais de voyage-séjour'!B:B,B6,'2-3.Frais de voyage-séjour'!L:L)","v":0},{"$f":"SUMIF('2-3.Frais de voyage-séjour'!B:B,B6,'2-3.Frais de voyage-séjour'!M:M)","v":0},{"$f":"SUMIF('4. Equipement'!B:B,B6,'4. Equipement'!H:H)","v":0},{"$f":"SUMIF('5. Sous-traitance'!B:B,B6,'5. Sous-traitance'!H:H)","v":0},null,{"$f":"SUM(C6:G6)","v":0}]
[null,{"$f":"Rates!P16","v":"Plan Qualité"},{"$f":"SUMIF('1. Frais de personnel'!B:B,B7,'1. Frais de personnel'!S:S)","v":0},{"$f":"SUMIF('2-3.Frais de voyage-séjour'!B:B,B7,'2-3.Frais de voyage-séjour'!L:L)","v":0},{"$f":"SUMIF('2-3.Frais de voyage-séjour'!B:B,B7,'2-3.Frais de voyage-séjour'!M:M)","v":0},{"$f":"SUMIF('4. Equipement'!B:B,B7,'4. Equipement'!H:H)","v":0},{"$f":"SUMIF('5. Sous-traitance'!B:B,B7,'5. Sous-traitance'!H:H)","v":0},null,0]
[null,{"$f":"Rates!P17","v":"Diffusion et Exploitation des Résultats"},{"$f":"SUMIF('1. Frais de personnel'!B:B,B8,'1. Frais de personnel'!S:S)","v":0},{"$f":"SUMIF('2-3.Frais de voyage-séjour'!B:B,B8,'2-3.Frais de voyage-séjour'!L:L)","v":0},{"$f":"SUMIF('2-3.Frais de voyage-séjour'!B:B,B8,'2-3.Frais de voyage-séjour'!M:M)","v":0},{"$f":"SUMIF('4. Equipement'!B:B,B8,'4. Equipement'!H:H)","v":0},{"$f":"SUMIF('5. Sous-traitance'!B:B,B8,'5. Sous-traitance'!H:H)","v":0},null,0]
[null,{"$f":"Rates!P18","v":"Gestion"},{"$f":"SUMIF('1. Frais de personnel'!B:B,B9,'1. Frais de personnel'!S:S)","v":0},{"$f":"SUMIF('2-3.Frais de voyage-séjour'!B:B,B9,'2-3.Frais de voyage-séjour'!L:L)","v":0},{"$f":"SUMIF('2-3.Frais de voyage-séjour'!B:B,B9,'2-3.Frais de voyage-séjour'!M:M)","v":0},{"$f":"SUMIF('4. Equipement'!B:B,B9,'4. Equipement'!H:H)","v":0},{"$f":"SUMIF('5. Sous-traitance'!B:B,B9,'5. Sous-traitance'!H:H)","v":0},null,0]
[null,"Total",{"$f":"SUM(C5:C9)","v":0},0,0,0,{"$f":"SUM(G5:G9)","v":0},{"$f":"'B. Mobilité Spécial - Etudiant'!C8+'B. Mobilité Spécial - Personnel'!C8","v":0},{"$f":"SUM(C10:H10)","v":0}]
[]
[]
[]
[null,"Ventilation par Pays Membres du Programme ou Pays Partenaires / Poste Budgétaire"]
[]
[null,"Pays","1. Frais de personnel","2. Frais de \nvoyage","3. Frais de \nséjour","4. Equipement","5. Sous-traitance","B. Mobilité(s)\nSpéciale(s)","Total\n(EUR)"]
[null,"Pays Programmes",{"$f":"SUMIF(Général!$E$33:$E$87,B17,Général!$F$33:$F$87)","v":0},{"$f":"SUMIF(Général!$E$33:$E$87,B17,Général!$G$33:$G$87)","v":0},{"$f":"SUMIF(Général!$E$33:$E$87,B17,Général!$H$33:$H$87)","v":0},{"$f":"SUMIF(Général!$E$33:$E$87,B17,Général!$I$33:$I$87)","v":0},{"$f":"SUMIF(Général!$E$33:$E$87,B17,Général!$J$33:$J$87)","v":0},{"$f":"SUMIF(Général!$E$33:$E$87,B17,Général!$K$33:$K$87)","v":0},{"$f":"SUM(C17:H17)","v":0}]
[null,"Pays Partenaires",{"$f":"SUMIF(Général!$E$33:$E$87,B18,Général!$F$33:$F$87)","v":0},{"$f":"SUMIF(Général!$E$33:$E$87,B18,Général!$G$33:$G$87)","v":0},{"$f":"SUMIF(Général!$E$33:$E$87,B18,Général!$H$33:$H$87)","v":0},{"$f":"SUMIF(Général!$E$33:$E$87,B18,Général!$I$33:$I$87)","v":0},{"$f":"SUMIF(Général!$E$33:$E$87,B18,Général!$J$33:$J$87)","v":0},{"$f":"SUMIF(Général!$E$33:$E$87,B18,Général!$K$33:$K$87)","v":0},{"$f":"SUM(C18:H18)","v":0}]
[null,"Total",{"$f":"SUM(C17:C18)","v":0},0,0,0,0,0,{"$f":"SUM(C19:H19)","v":0}]
[]
[]
[]
[null,"Ventilation par Partneraire / Lot"]
[]
[null,"Partenaire\nN°",{"$f":"Rates!P14","v":"Préparation"},{"$f":"Rates!P15","v":"Développement"},{"$f":"Rates!P16","v":"Plan Qualité"},{"$f":"Rates!P17","v":"Diffusion et Exploitation des Résultats"},{"$f":"Rates!P18","v":"Gestion"},"B. Mobilité(s)\nSpéciale(s)","Total\n(EUR)"]
[null,"P1",{"$f":"SUMIFS('1. Frais de personnel'!S:S,'1. Frais de personnel'!C:C,B26,'1. Frais de personnel'!B:B,$C$25)+SUMIFS('2-3.Frais de voyage-séjour'!N:N,'2-3.Frais de voyage-séjour'!C:C,B26,'2-3.Frais de voyage-séjour'!B:B,$C$25)+SUMIFS('4. Equipement'!H:H,'4. Equipement'!C:C,B26,'4. Equipement'!B:B,$C$25)+SUMIFS('5. Sous-traitance'!H:H,'5. Sous-traitance'!C:C,B26,'5. Sous-traitance'!B:B,$C$25)","v":0},{"$f":"SUMIFS('1. Frais de personnel'!S:S,'1. Frais de personnel'!C:C,B26,'1. Frais de personnel'!B:B,$D$25)+SUMIFS('2-3.Frais de voyage-séjour'!N:N,'2-3.Frais de voyage-séjour'!C:C,B26,'2-3.Frais de voyage-séjour'!B:B,$D$25)+SUMIFS('4. Equipement'!H:H,'4. Equipement'!C:C,B26,'4. Equipement'!B:B,$D$25)+SUMIFS('5. Sous-traitance'!H:H,'5. Sous-traitance'!C:C,B26,'5. Sous-traitance'!B:B,$D$25)","v":0},{"$f":"SUMIFS('1. Frais de personnel'!S:S,'1. Frais de personnel'!C:C,B26,'1. Frais de personnel'!B:B,$E$25)+SUMIFS('2-3.Frais de voyage-séjour'!N:N,'2-3.Frais de voyage-séjour'!C:C,B26,'2-3.Frais de voyage-séjour'!B:B,$E$25)+SUMIFS('4. Equipement'!H:H,'4. Equipement'!C:C,B26,'4. Equipement'!B:B,$E$25)+SUMIFS('5. Sous-traitance'!H:H,'5. Sous-traitance'!C:C,B26,'5. Sous-traitance'!B:B,$E$25)","v":0},{"$f":"SUMIFS('1. Frais de personnel'!S:S,'1. Frais de personnel'!C:C,B26,'1. Frais de personnel'!B:B,$B$8)+SUMIFS('2-3.Frais de voyage-séjour'!N:N,'2-3.Frais de voyage-séjour'!C:C,B26,'2-3.Frais de voyage-séjour'!B:B,$B$8)+SUMIFS('4. Equipement'!H:H,'4. Equipement'!C:C,B26,'4. Equipement'!B:B,$B$8)+SUMIFS('5. Sous-traitance'!H:H,'5. Sous-traitance'!C:C,B26,'5. Sous-traitance'!B:B,$B$8)","v":0},{"$f":"SUMIFS('1. Frais de personnel'!S:S,'1. Frais de personnel'!C:C,B26,'1. Frais de personnel'!B:B,$G$25)+SUMIFS('2-3.Frais de voyage-séjour'!N:N,'2-3.Frais de voyage-séjour'!C:C,B26,'2-3.Frais de voyage-séjour'!B:B,$G$25)+SUMIFS('4. Equipement'!H:H,'4. Equipement'!C:C,B26,'4. Equipement'!B:B,$G$25)+SUMIFS('5. Sous-traitance'!H:H,'5. Sous-traitance'!C:C,B26,'5. Sous-traitance'!B:B,$G$25)","v":0},{"$f":"SUMIF('B. Mobilité Spécial - Etudiant'!B:B,B26,'B. Mobilité Spécial - Etudiant'!N:N)+SUMIF('B. Mobilité Spécial - Personnel'!B:B,B26,'B. Mobilité Spécial - Personnel'!N:N)","v":0},{"$f":"SUM(C26:H26)","v":0}]
[null,"P2",{"$f":"SUMIFS('1. Frais de personnel'!S:S,'1. Frais de personnel'!C:C,B27,'1. Frais de personnel'!B:B,$C$25)+SUMIFS('2-3.Frais de voyage-séjour'!N:N,'2-3.Frais de voyage-séjour'!C:C,B27,'2-3.Frais de voyage-séjour'!B:B,$C$25)+SUMIFS('4. Equipement'!H:H,'4. Equipement'!C:C,B27,'4. Equipement'!B:B,$C$25)+SUMIFS('5. Sous-traitance'!H:H,'5. Sous-traitance'!C:C,B27,'5. Sous-traitance'!B:B,$C$25)","v":0},{"$f":"SUMIFS('1. Frais de personnel'!S:S,'1. Frais de personnel'!C:C,B27,'1. Frais de personnel'!B:B,$D$25)+SUMIFS('2-3.Frais de voyage-séjour'!N:N,'2-3.Frais de voyage-séjour'!C:C,B27,'2-3.Frais de voyage-séjour'!B:B,$D$25)+SUMIFS('4. Equipement'!H:H,'4. Equipement'!C:C,B27,'4. Equipement'!B:B,$D$25)+SUMIFS('5. Sous-traitance'!H:H,'5. Sous-traitance'!C:C,B27,'5. Sous-traitance'!B:B,$D$25)","v":0},{"$f":"SUMIFS('1. Frais de personnel'!S:S,'1. Frais de personnel'!C:C,B27,'1. Frais de personnel'!B:B,$E$25)+SUMIFS('2-3.Frais de voyage-séjour'!N:N,'2-3.Frais de voyage-séjour'!C:C,B27,'2-3.Frais de voyage-séjour'!B:B,$E$25)+SUMIFS('4. Equipement'!H:H,'4. Equipement'!C:C,B27,'4. Equipement'!B:B,$E$25)+SUMIFS('5. Sous-traitance'!H:H,'5. Sous-traitance'!C:C,B27,'5. Sous-traitance'!B:B,$E$25)","v":0},{"$f":"SUMIFS('1. Frais de personnel'!S:S,'1. Frais de personnel'!C:C,B27,'1. Frais de personnel'!B:B,$B$8)+SUMIFS('2-3.Frais de voyage-séjour'!N:N,'2-3.Frais de voyage-séjour'!C:C,B27,'2-3.Frais de voyage-séjour'!B:B,$B$8)+SUMIFS('4. Equipement'!H:H,'4. Equipement'!C:C,B27,'4. Equipement'!B:B,$B$8)+SUMIFS('5. Sous-traitance'!H:H,'5. Sous-traitance'!C:C,B27,'5. Sous-traitance'!B:B,$B$8)","v":0},{"$f":"SUMIFS('1. Frais de personnel'!S:S,'1. Frais de personnel'!C:C,B27,'1. Frais de personnel'!B:B,$G$25)+SUMIFS('2-3.Frais de voyage-séjour'!N:N,'2-3.Frais de voyage-séjour'!C:C,B27,'2-3.Frais de voyage-séjour'!B:B,$G$25)+SUMIFS('4. Equipement'!H:H,'4. Equipement'!C:C,B27,'4. Equipement'!B:B,$G$25)+SUMIFS('5. Sous-traitance'!H:H,'5. Sous-traitance'!C:C,B27,'5. Sous-traitance'!B:B,$G$25)","v":0},{"$f":"SUMIF('B. Mobilité Spécial - Etudiant'!B:B,B27,'B. Mobilité Spécial - Etudiant'!N:N)+SUMIF('B. Mobilité Spécial - Personnel'!B:B,B27,'B. Mobilité Spécial - Personnel'!N:N)","v":0},{"$f":"SUM(C27:H27)","v":0}]
[null,"P3",{"$f":"SUMIFS('1. Frais de personnel'!S:S,'1. Frais de personnel'!C:C,B28,'1. Frais de personnel'!B:B,$C$25)+SUMIFS('2-3.Frais de voyage-séjour'!N:N,'2-3.Frais de voyage-séjour'!C:C,B28,'2-3.Frais de voyage-séjour'!B:B,$C$25)+SUMIFS('4. Equipement'!H:H,'4. Equipement'!C:C,B28,'4. Equipement'!B:B,$C$25)+SUMIFS('5. Sous-traitance'!H:H,'5. Sous-traitance'!C:C,B28,'5. Sous-traitance'!B:B,$C$25)","v":0},{"$f":"SUMIFS('1. Frais de personnel'!S:S,'1. Frais de personnel'!C:C,B28,'1. Frais de personnel'!B:B,$D$25)+SUMIFS('2-3.Frais de voyage-séjour'!N:N,'2-3.Frais de voyage-séjour'!C:C,B28,'2-3.Frais de voyage-séjour'!B:B,$D$25)+SUMIFS('4. Equipement'!H:H,'4. Equipement'!C:C,B28,'4. Equipement'!B:B,$D$25)+SUMIFS('5. Sous-traitance'!H:H,'5. Sous-traitance'!C:C,B28,'5. Sous-traitance'!B:B,$D$25)","v":0},{"$f":"SUMIFS('1. Frais de personnel'!S:S,'1. Frais de personnel'!C:C,B28,'1. Frais de personnel'!B:B,$E$25)+SUMIFS('2-3.Frais de voyage-séjour'!N:N,'2-3.Frais de voyage-séjour'!C:C,B28,'2-3.Frais de voyage-séjour'!B:B,$E$25)+SUMIFS('4. Equipement'!H:H,'4. Equipement'!C:C,B28,'4. Equipement'!B:B,$E$25)+SUMIFS('5. Sous-traitance'!H:H,'5. Sous-traitance'!C:C,B28,'5. Sous-traitance'!B:B,$E$25)","v":0},{"$f":"SUMIFS('1. Frais de personnel'!S:S,'1. Frais de personnel'!C:C,B28,'1. Frais de personnel'!B:B,$B$8)+SUMIFS('2-3.Frais de voyage-séjour'!N:N,'2-3.Frais de voyage-séjour'!C:C,B28,'2-3.Frais de voyage-séjour'!B:B,$B$8)+SUMIFS('4. Equipement'!H:H,'4. Equipement'!C:C,B28,'4. Equipement'!B:B,$B$8)+SUMIFS('5. Sous-traitance'!H:H,'5. Sous-traitance'!C:C,B28,'5. Sous-traitance'!B:B,$B$8)","v":0},{"$f":"SUMIFS('1. Frais de personnel'!S:S,'1. Frais de personnel'!C:C,B28,'1. Frais de personnel'!B:B,$G$25)+SUMIFS('2-3.Frais de voyage-séjour'!N:N,'2-3.Frais de voyage-séjour'!C:C,B28,'2-3.Frais de voyage-séjour'!B:B,$G$25)+SUMIFS('4. Equipement'!H:H,'4. Equipement'!C:C,B28,'4. Equipement'!B:B,$G$25)+SUMIFS('5. Sous-traitance'!H:H,'5. Sous-traitance'!C:C,B28,'5. Sous-traitance'!B:B,$G$25)","v":0},{"$f":"SUMIF('B. Mobilité Spécial - Etudiant'!B:B,B28,'B. Mobilité Spécial - Etudiant'!N:N)+SUMIF('B. Mobilité Spécial - Personnel'!B:B,B28,'B. Mobilité Spécial - Personnel'!N:N)","v":0},0]
[null,"P4",{"$f":"SUMIFS('1. Frais de personnel'!S:S,'1. Frais de personnel'!C:C,B29,'1. Frais de personnel'!B:B,$C$25)+SUMIFS('2-3.Frais de voyage-séjour'!N:N,'2-3.Frais de voyage-séjour'!C:C,B29,'2-3.Frais de voyage-séjour'!B:B,$C$25)+SUMIFS('4. Equipement'!H:H,'4. Equipement'!C:C,B29,'4. Equipement'!B:B,$C$25)+SUMIFS('5. Sous-traitance'!H:H,'5. Sous-traitance'!C:C,B29,'5. Sous-traitance'!B:B,$C$25)","v":0},{"$f":"SUMIFS('1. Frais de personnel'!S:S,'1. Frais de personnel'!C:C,B29,'1. Frais de personnel'!B:B,$D$25)+SUMIFS('2-3.Frais de voyage-séjour'!N:N,'2-3.Frais de voyage-séjour'!C:C,B29,'2-3.Frais de voyage-séjour'!B:B,$D$25)+SUMIFS('4. Equipement'!H:H,'4. Equipement'!C:C,B29,'4. Equipement'!B:B,$D$25)+SUMIFS('5. Sous-traitance'!H:H,'5. Sous-traitance'!C:C,B29,'5. Sous-traitance'!B:B,$D$25)","v":0},{"$f":"SUMIFS('1. Frais de personnel'!S:S,'1. Frais de personnel'!C:C,B29,'1. Frais de personnel'!B:B,$E$25)+SUMIFS('2-3.Frais de voyage-séjour'!N:N,'2-3.Frais de voyage-séjour'!C:C,B29,'2-3.Frais de voyage-séjour'!B:B,$E$25)+SUMIFS('4. Equipement'!H:H,'4. Equipement'!C:C,B29,'4. Equipement'!B:B,$E$25)+SUMIFS('5. Sous-traitance'!H:H,'5. Sous-traitance'!C:C,B29,'5. Sous-traitance'!B:B,$E$25)","v":0},{"$f":"SUMIFS('1. Frais de personnel'!S:S,'1. Frais de personnel'!C:C,B29,'1. Frais de personnel'!B:B,$B$8)+SUMIFS('2-3.Frais de voyage-séjour'!N:N,'2-3.Frais de voyage-séjour'!C:C,B29,'2-3.Frais de voyage-séjour'!B:B,$B$8)+SUMIFS('4. Equipement'!H:H,'4. Equipement'!C:C,B29,'4. Equipement'!B:B,$B$8)+SUMIFS('5. Sous-traitance'!H:H,'5. Sous-traitance'!C:C,B29,'5. Sous-traitance'!B:B,$B$8)","v":0},{"$f":"SUMIFS('1. Frais de personnel'!S:S,'1. Frais de personnel'!C:C,B29,'1. Frais de personnel'!B:B,$G$25)+SUMIFS('2-3.Frais de voyage-séjour'!N:N,'2-3.Frais de voyage-séjour'!C:C,B29,'2-3.Frais de voyage-séjour'!B:B,$G$25)+SUMIFS('4. Equipement'!H:H,'4. Equipement'!C:C,B29,'4. Equipement'!B:B,$G$25)+SUMIFS('5. Sous-traitance'!H:H,'5. Sous-traitance'!C:C,B29,'5. Sous-traitance'!B:B,$G$25)","v":0},{"$f":"SUMIF('B. Mobilité Spécial - Etudiant'!B:B,B29,'B. Mobilité Spécial - Etudiant'!N:N)+SUMIF('B. Mobilité Spécial - Personnel'!B:B,B29,'B. Mobilité Spécial - Personnel'!N:N)","v":0},0]
[null,"P5",{"$f":"SUMIFS('1. Frais de personnel'!S:S,'1. Frais de personnel'!C:C,B30,'1. Frais de personnel'!B:B,$C$25)+SUMIFS('2-3.Frais de voyage-séjour'!N:N,'2-3.Frais de voyage-séjour'!C:C,B30,'2-3.Frais de voyage-séjour'!B:B,$C$25)+SUMIFS('4. Equipement'!H:H,'4. Equipement'!C:C,B30,'4. Equipement'!B:B,$C$25)+SUMIFS('5. Sous-traitance'!H:H,'5. Sous-traitance'!C:C,B30,'5. Sous-traitance'!B:B,$C$25)","v":0},{"$f":"SUMIFS('1. Frais de personnel'!S:S,'1. Frais de personnel'!C:C,B30,'1. Frais de personnel'!B:B,$D$25)+SUMIFS('2-3.Frais de voyage-séjour'!N:N,'2-3.Frais de voyage-séjour'!C:C,B30,'2-3.Frais de voyage-séjour'!B:B,$D$25)+SUMIFS('4. Equipement'!H:H,'4. Equipement'!C:C,B30,'4. Equipement'!B:B,$D$25)+SUMIFS('5. Sous-traitance'!H:H,'5. Sous-traitance'!C:C,B30,'5. Sous-traitance'!B:B,$D$25)","v":0},{"$f":"SUMIFS('1. Frais de personnel'!S:S,'1. Frais de personnel'!C:C,B30,'1. Frais de personnel'!B:B,$E$25)+SUMIFS('2-3.Frais de voyage-séjour'!N:N,'2-3.Frais de voyage-séjour'!C:C,B30,'2-3.Frais de voyage-séjour'!B:B,$E$25)+SUMIFS('4. Equipement'!H:H,'4. Equipement'!C:C,B30,'4. Equipement'!B:B,$E$25)+SUMIFS('5. Sous-traitance'!H:H,'5. Sous-traitance'!C:C,B30,'5. Sous-traitance'!B:B,$E$25)","v":0},{"$f":"SUMIFS('1. Frais de personnel'!S:S,'1. Frais de personnel'!C:C,B30,'1. Frais de personnel'!B:B,$B$8)+SUMIFS('2-3.Frais de voyage-séjour'!N:N,'2-3.Frais de voyage-séjour'!C:C,B30,'2-3.Frais de voyage-séjour'!B:B,$B$8)+SUMIFS('4. Equipement'!H:H,'4. Equipement'!C:C,B30,'4. Equipement'!B:B,$B$8)+SUMIFS('5. Sous-traitance'!H:H,'5. Sous-traitance'!C:C,B30,'5. Sous-traitance'!B:B,$B$8)","v":0},{"$f":"SUMIFS('1. Frais de personnel'!S:S,'1. Frais de personnel'!C:C,B30,'1. Frais de personnel'!B:B,$G$25)+SUMIFS('2-3.Frais de voyage-séjour'!N:N,'2-3.Frais de voyage-séjour'!C:C,B30,'2-3.Frais de voyage-séjour'!B:B,$G$25)+SUMIFS('4. Equipement'!H:H,'4. Equipement'!C:C,B30,'4. Equipement'!B:B,$G$25)+SUMIFS('5. Sous-traitance'!H:H,'5. Sous-traitance'!C:C,B30,'5. Sous-traitance'!B:B,$G$25)","v":0},{"$f":"SUMIF('B. Mobilité Spécial - Etudiant'!B:B,B30,'B. Mobilité Spécial - Etudiant'!N:N)+SUMIF('B. Mobilité Spécial - Personnel'!B:B,B30,'B. Mobilité Spécial - Personnel'!N:N)","v":0},0]
[null,"P6",{"$f":"SUMIFS('1. Frais de personnel'!S:S,'1. Frais de personnel'!C:C,B31,'1. Frais de personnel'!B:B,$C$25)+SUMIFS('2-3.Frais de voyage-séjour'!N:N,'2-3.Frais de voyage-séjour'!C:C,B31,'2-3.Frais de voyage-séjour'!B:B,$C$25)+SUMIFS('4. Equipement'!H:H,'4. Equipement'!C:C,B31,'4. Equipement'!B:B,$C$25)+SUMIFS('5. Sous-traitance'!H:H,'5. Sous-traitance'!C:C,B31,'5. Sous-traitance'!B:B,$C$25)","v":0},{"$f":"SUMIFS('1. Frais de personnel'!S:S,'1. Frais de personnel'!C:C,B31,'1. Frais de personnel'!B:B,$D$25)+SUMIFS('2-3.Frais de voyage-séjour'!N:N,'2-3.Frais de voyage-séjour'!C:C,B31,'2-3.Frais de voyage-séjour'!B:B,$D$25)+SUMIFS('4. Equipement'!H:H,'4. Equipement'!C:C,B31,'4. Equipement'!B:B,$D$25)+SUMIFS('5. Sous-traitance'!H:H,'5. Sous-traitance'!C:C,B31,'5. Sous-traitance'!B:B,$D$25)","v":0},{"$f":"SUMIFS('1. Frais de personnel'!S:S,'1. Frais de personnel'!C:C,B31,'1. Frais de personnel'!B:B,$E$25)+SUMIFS('2-3.Frais de voyage-séjour'!N:N,'2-3.Frais de voyage-séjour'!C:C,B31,'2-3.Frais de voyage-séjour'!B:B,$E$25)+SUMIFS('4. Equipement'!H:H,'4. Equipement'!C:C,B31,'4. Equipement'!B:B,$E$25)+SUMIFS('5. Sous-traitance'!H:H,'5. Sous-traitance'!C:C,B31,'5. Sous-traitance'!B:B,$E$25)","v":0},{"$f":"SUMIFS('1. Frais de personnel'!S:S,'1. Frais de personnel'!C:C,B31,'1. Frais de personnel'!B:B,$B$8)+SUMIFS('2-3.Frais de voyage-séjour'!N:N,'2-3.Frais de voyage-séjour'!C:C,B31,'2-3.Frais de voyage-séjour'!B:B,$B$8)+SUMIFS('4. Equipement'!H:H,'4. Equipement'!C:C,B31,'4. Equipement'!B:B,$B$8)+SUMIFS('5. Sous-traitance'!H:H,'5. Sous-traitance'!C:C,B31,'5. Sous-traitance'!B:B,$B$8)","v":0},{"$f":"SUMIFS('1. Frais de personnel'!S:S,'1. Frais de personnel'!C:C,B31,'1. Frais de personnel'!B:B,$G$25)+SUMIFS('2-3.Frais de voyage-séjour'!N:N,'2-3.Frais de voyage-séjour'!C:C,B31,'2-3.Frais de voyage-séjour'!B:B,$G$25)+SUMIFS('4. Equipement'!H:H,'4. Equipement'!C:C,B31,'4. Equipement'!B:B,$G$25)+SUMIFS('5. Sous-traitance'!H:H,'5. Sous-traitance'!C:C,B31,'5. Sous-traitance'!B:B,$G$25)","v":0},{"$f":"SUMIF('B. Mobilité Spécial - Etudiant'!B:B,B31,'B. Mobilité Spécial - Etudiant'!N:N)+SUMIF('B. Mobilité Spécial - Personnel'!B:B,B31,'B. Mobilité Spécial - Personnel'!N:N)","v":0},0]
[null,"P7",{"$f":"SUMIFS('1. Frais de personnel'!S:S,'1. Frais de personnel'!C:C,B32,'1. Frais de personnel'!B:B,$C$25)+SUMIFS('2-3.Frais de voyage-séjour'!N:N,'2-3.Frais de voyage-séjour'!C:C,B32,'2-3.Frais de voyage-séjour'!B:B,$C$25)+SUMIFS('4. Equipement'!H:H,'4. Equipement'!C:C,B32,'4. Equipement'!B:B,$C$25)+SUMIFS('5. Sous-traitance'!H:H,'5. Sous-traitance'!C:C,B32,'5. Sous-traitance'!B:B,$C$25)","v":0},{"$f":"SUMIFS('1. Frais de personnel'!S:S,'1. Frais de personnel'!C:C,B32,'1. Frais de personnel'!B:B,$D$25)+SUMIFS('2-3.Frais de voyage-séjour'!N:N,'2-3.Frais de voyage-séjour'!C:C,B32,'2-3.Frais de voyage-séjour'!B:B,$D$25)+SUMIFS('4. Equipement'!H:H,'4. Equipement'!C:C,B32,'4. Equipement'!B:B,$D$25)+SUMIFS('5. Sous-traitance'!H:H,'5. Sous-traitance'!C:C,B32,'5. Sous-traitance'!B:B,$D$25)","v":0},{"$f":"SUMIFS('1. Frais de personnel'!S:S,'1. Frais de personnel'!C:C,B32,'1. Frais de personnel'!B:B,$E$25)+SUMIFS('2-3.Frais de voyage-séjour'!N:N,'2-3.Frais de voyage-séjour'!C:C,B32,'2-3.Frais de voyage-séjour'!B:B,$E$25)+SUMIFS('4. Equipement'!H:H,'4. Equipement'!C:C,B32,'4. Equipement'!B:B,$E$25)+SUMIFS('5. Sous-traitance'!H:H,'5. Sous-traitance'!C:C,B32,'5. Sous-traitance'!B:B,$E$25)","v":0},{"$f":"SUMIFS('1. Frais de personnel'!S:S,'1. Frais de personnel'!C:C,B32,'1. Frais de personnel'!B:B,$B$8)+SUMIFS('2-3.Frais de voyage-séjour'!N:N,'2-3.Frais de voyage-séjour'!C:C,B32,'2-3.Frais de voyage-séjour'!B:B,$B$8)+SUMIFS('4. Equipement'!H:H,'4. Equipement'!C:C,B32,'4. Equipement'!B:B,$B$8)+SUMIFS('5. Sous-traitance'!H:H,'5. Sous-traitance'!C:C,B32,'5. Sous-traitance'!B:B,$B$8)","v":0},{"$f":"SUMIFS('1. Frais de personnel'!S:S,'1. Frais de personnel'!C:C,B32,'1. Frais de personnel'!B:B,$G$25)+SUMIFS('2-3.Frais de voyage-séjour'!N:N,'2-3.Frais de voyage-séjour'!C:C,B32,'2-3.Frais de voyage-séjour'!B:B,$G$25)+SUMIFS('4. Equipement'!H:H,'4. Equipement'!C:C,B32,'4. Equipement'!B:B,$G$25)+SUMIFS('5. Sous-traitance'!H:H,'5. Sous-traitance'!C:C,B32,'5. Sous-traitance'!B:B,$G$25)","v":0},{"$f":"SUMIF('B. Mobilité Spécial - Etudiant'!B:B,B32,'B. Mobilité Spécial - Etudiant'!N:N)+SUMIF('B. Mobilité Spécial - Personnel'!B:B,B32,'B. Mobilité Spécial - Personnel'!N:N)","v":0},0]
[null,"P8",{"$f":"SUMIFS('1. Frais de personnel'!S:S,'1. Frais de personnel'!C:C,B33,'1. Frais de personnel'!B:B,$C$25)+SUMIFS('2-3.Frais de voyage-séjour'!N:N,'2-3.Frais de voyage-séjour'!C:C,B33,'2-3.Frais de voyage-séjour'!B:B,$C$25)+SUMIFS('4. Equipement'!H:H,'4. Equipement'!C:C,B33,'4. Equipement'!B:B,$C$25)+SUMIFS('5. Sous-traitance'!H:H,'5. Sous-traitance'!C:C,B33,'5. Sous-traitance'!B:B,$C$25)","v":0},{"$f":"SUMIFS('1. Frais de personnel'!S:S,'1. Frais de personnel'!C:C,B33,'1. Frais de personnel'!B:B,$D$25)+SUMIFS('2-3.Frais de voyage-séjour'!N:N,'2-3.Frais de voyage-séjour'!C:C,B33,'2-3.Frais de voyage-séjour'!B:B,$D$25)+SUMIFS('4. Equipement'!H:H,'4. Equipement'!C:C,B33,'4. Equipement'!B:B,$D$25)+SUMIFS('5. Sous-traitance'!H:H,'5. Sous-traitance'!C:C,B33,'5. Sous-traitance'!B:B,$D$25)","v":0},{"$f":"SUMIFS('1. Frais de personnel'!S:S,'1. Frais de personnel'!C:C,B33,'1. Frais de personnel'!B:B,$E$25)+SUMIFS('2-3.Frais de voyage-séjour'!N:N,'2-3.Frais de voyage-séjour'!C:C,B33,'2-3.Frais de voyage-séjour'!B:B,$E$25)+SUMIFS('4. Equipement'!H:H,'4. Equipement'!C:C,B33,'4. Equipement'!B:B,$E$25)+SUMIFS('5. Sous-traitance'!H:H,'5. Sous-traitance'!C:C,B33,'5. Sous-traitance'!B:B,$E$25)","v":0},{"$f":"SUMIFS('1. Frais de personnel'!S:S,'1. Frais de personnel'!C:C,B33,'1. Frais de personnel'!B:B,$B$8)+SUMIFS('2-3.Frais de voyage-séjour'!N:N,'2-3.Frais de voyage-séjour'!C:C,B33,'2-3.Frais de voyage-séjour'!B:B,$B$8)+SUMIFS('4. Equipement'!H:H,'4. Equipement'!C:C,B33,'4. Equipement'!B:B,$B$8)+SUMIFS('5. Sous-traitance'!H:H,'5. Sous-traitance'!C:C,B33,'5. Sous-traitance'!B:B,$B$8)","v":0},{"$f":"SUMIFS('1. Frais de personnel'!S:S,'1. Frais de personnel'!C:C,B33,'1. Frais de personnel'!B:B,$G$25)+SUMIFS('2-3.Frais de voyage-séjour'!N:N,'2-3.Frais de voyage-séjour'!C:C,B33,'2-3.Frais de voyage-séjour'!B:B,$G$25)+SUMIFS('4. Equipement'!H:H,'4. Equipement'!C:C,B33,'4. Equipement'!B:B,$G$25)+SUMIFS('5. Sous-traitance'!H:H,'5. Sous-traitance'!C:C,B33,'5. Sous-traitance'!B:B,$G$25)","v":0},{"$f":"SUMIF('B. Mobilité Spécial - Etudiant'!B:B,B33,'B. Mobilité Spécial - Etudiant'!N:N)+SUMIF('B. Mobilité Spécial - Personnel'!B:B,B33,'B. Mobilité Spécial - Personnel'!N:N)","v":0},0]
[null,"P9",{"$f":"SUMIFS('1. Frais de personnel'!S:S,'1. Frais de personnel'!C:C,B34,'1. Frais de personnel'!B:B,$C$25)+SUMIFS('2-3.Frais de voyage-séjour'!N:N,'2-3.Frais de voyage-séjour'!C:C,B34,'2-3.Frais de voyage-séjour'!B:B,$C$25)+SUMIFS('4. Equipement'!H:H,'4. Equipement'!C:C,B34,'4. Equipement'!B:B,$C$25)+SUMIFS('5. Sous-traitance'!H:H,'5. Sous-traitance'!C:C,B34,'5. Sous-traitance'!B:B,$C$25)","v":0},{"$f":"SUMIFS('1. Frais de personnel'!S:S,'1. Frais de personnel'!C:C,B34,'1. Frais de personnel'!B:B,$D$25)+SUMIFS('2-3.Frais de voyage-séjour'!N:N,'2-3.Frais de voyage-séjour'!C:C,B34,'2-3.Frais de voyage-séjour'!B:B,$D$25)+SUMIFS('4. Equipement'!H:H,'4. Equipement'!C:C,B34,'4. Equipement'!B:B,$D$25)+SUMIFS('5. Sous-traitance'!H:H,'5. Sous-traitance'!C:C,B34,'5. Sous-traitance'!B:B,$D$25)","v":0},{"$f":"SUMIFS('1. Frais de personnel'!S:S,'1. Frais de personnel'!C:C,B34,'1. Frais de personnel'!B:B,$E$25)+SUMIFS('2-3.Frais de voyage-séjour'!N:N,'2-3.Frais de voyage-séjour'!C:C,B34,'2-3.Frais de voyage-séjour'!B:B,$E$25)+SUMIFS('4. Equipement'!H:H,'4. Equipement'!C:C,B34,'4. Equipement'!B:B,$E$25)+SUMIFS('5. Sous-traitance'!H:H,'5. Sous-traitance'!C:C,B34,'5. Sous-traitance'!B:B,$E$25)","v":0},{"$f":"SUMIFS('1. Frais de personnel'!S:S,'1. Frais de personnel'!C:C,B34,'1. Frais de personnel'!B:B,$B$8)+SUMIFS('2-3.Frais de voyage-séjour'!N:N,'2-3.Frais de voyage-séjour'!C:C,B34,'2-3.Frais de voyage-séjour'!B:B,$B$8)+SUMIFS('4. Equipement'!H:H,'4. Equipement'!C:C,B34,'4. Equipement'!B:B,$B$8)+SUMIFS('5. Sous-traitance'!H:H,'5. Sous-traitance'!C:C,B34,'5. Sous-traitance'!B:B,$B$8)","v":0},{"$f":"SUMIFS('1. Frais de personnel'!S:S,'1. Frais de personnel'!C:C,B34,'1. Frais de personnel'!B:B,$G$25)+SUMIFS('2-3.Frais de voyage-séjour'!N:N,'2-3.Frais de voyage-séjour'!C:C,B34,'2-3.Frais de voyage-séjour'!B:B,$G$25)+SUMIFS('4. Equipement'!H:H,'4. Equipement'!C:C,B34,'4. Equipement'!B:B,$G$25)+SUMIFS('5. Sous-traitance'!H:H,'5. Sous-traitance'!C:C,B34,'5. Sous-traitance'!B:B,$G$25)","v":0},{"$f":"SUMIF('B. Mobilité Spécial - Etudiant'!B:B,B34,'B. Mobilité Spécial - Etudiant'!N:N)+SUMIF('B. Mobilité Spécial - Personnel'!B:B,B34,'B. Mobilité Spécial - Personnel'!N:N)","v":0},0]
[null,"P10",{"$f":"SUMIFS('1. Frais de personnel'!S:S,'1. Frais de personnel'!C:C,B35,'1. Frais de personnel'!B:B,$C$25)+SUMIFS('2-3.Frais de voyage-séjour'!N:N,'2-3.Frais de voyage-séjour'!C:C,B35,'2-3.Frais de voyage-séjour'!B:B,$C$25)+SUMIFS('4. Equipement'!H:H,'4. Equipement'!C:C,B35,'4. Equipement'!B:B,$C$25)+SUMIFS('5. Sous-traitance'!H:H,'5. Sous-traitance'!C:C,B35,'5. Sous-traitance'!B:B,$C$25)","v":0},{"$f":"SUMIFS('1. Frais de personnel'!S:S,'1. Frais de personnel'!C:C,B35,'1. Frais de personnel'!B:B,$D$25)+SUMIFS('2-3.Frais de voyage-séjour'!N:N,'2-3.Frais de voyage-séjour'!C:C,B35,'2-3.Frais de voyage-séjour'!B:B,$D$25)+SUMIFS('4. Equipement'!H:H,'4. Equipement'!C:C,B35,'4. Equipement'!B:B,$D$25)+SUMIFS('5. Sous-traitance'!H:H,'5. Sous-traitance'!C:C,B35,'5. Sous-traitance'!B:B,$D$25)","v":0},{"$f":"SUMIFS('1. Frais de personnel'!S:S,'1. Frais de personnel'!C:C,B35,'1. Frais de personnel'!B:B,$E$25)+SUMIFS('2-3.Frais de voyage-séjour'!N:N,'2-3.Frais de voyage-séjour'!C:C,B35,'2-3.Frais de voyage-séjour'!B:B,$E$25)+SUMIFS('4. Equipement'!H:H,'4. Equipement'!C:C,B35,'4. Equipement'!B:B,$E$25)+SUMIFS('5. Sous-traitance'!H:H,'5. Sous-traitance'!C:C,B35,'5. Sous-traitance'!B:B,$E$25)","v":0},{"$f":"SUMIFS('1. Frais de personnel'!S:S,'1. Frais de personnel'!C:C,B35,'1. Frais de personnel'!B:B,$B$8)+SUMIFS('2-3.Frais de voyage-séjour'!N:N,'2-3.Frais de voyage-séjour'!C:C,B35,'2-3.Frais de voyage-séjour'!B:B,$B$8)+SUMIFS('4. Equipement'!H:H,'4. Equipement'!C:C,B35,'4. Equipement'!B:B,$B$8)+SUMIFS('5. Sous-traitance'!H:H,'5. Sous-traitance'!C:C,B35,'5. Sous-traitance'!B:B,$B$8)","v":0},{"$f":"SUMIFS('1. Frais de personnel'!S:S,'1. Frais de personnel'!C:C,B35,'1. Frais de personnel'!B:B,$G$25)+SUMIFS('2-3.Frais de voyage-séjour'!N:N,'2-3.Frais de voyage-séjour'!C:C,B35,'2-3.Frais de voyage-séjour'!B:B,$G$25)+SUMIFS('4. Equipement'!H:H,'4. Equipement'!C:C,B35,'4. Equipement'!B:B,$G$25)+SUMIFS('5. Sous-traitance'!H:H,'5. Sous-traitance'!C:C,B35,'5. Sous-traitance'!B:B,$G$25)","v":0},{"$f":"SUMIF('B. Mobilité Spécial - Etudiant'!B:B,B35,'B. Mobilité Spécial - Etudiant'!N:N)+SUMIF('B. Mobilité Spécial - Personnel'!B:B,B35,'B. Mobilité Spécial - Personnel'!N:N)","v":0},0]
[null,"P11",{"$f":"SUMIFS('1. Frais de personnel'!S:S,'1. Frais de personnel'!C:C,B36,'1. Frais de personnel'!B:B,$C$25)+SUMIFS('2-3.Frais de voyage-séjour'!N:N,'2-3.Frais de voyage-séjour'!C:C,B36,'2-3.Frais de voyage-séjour'!B:B,$C$25)+SUMIFS('4. Equipement'!H:H,'4. Equipement'!C:C,B36,'4. Equipement'!B:B,$C$25)+SUMIFS('5. Sous-traitance'!H:H,'5. Sous-traitance'!C:C,B36,'5. Sous-traitance'!B:B,$C$25)","v":0},{"$f":"SUMIFS('1. Frais de personnel'!S:S,'1. Frais de personnel'!C:C,B36,'1. Frais de personnel'!B:B,$D$25)+SUMIFS('2-3.Frais de voyage-séjour'!N:N,'2-3.Frais de voyage-séjour'!C:C,B36,'2-3.Frais de voyage-séjour'!B:B,$D$25)+SUMIFS('4. Equipement'!H:H,'4. Equipement'!C:C,B36,'4. Equipement'!B:B,$D$25)+SUMIFS('5. Sous-traitance'!H:H,'5. Sous-traitance'!C:C,B36,'5. Sous-traitance'!B:B,$D$25)","v":0},{"$f":"SUMIFS('1. Frais de personnel'!S:S,'1. Frais de personnel'!C:C,B36,'1. Frais de personnel'!B:B,$E$25)+SUMIFS('2-3.Frais de voyage-séjour'!N:N,'2-3.Frais de voyage-séjour'!C:C,B36,'2-3.Frais de voyage-séjour'!B:B,$E$25)+SUMIFS('4. Equipement'!H:H,'4. Equipement'!C:C,B36,'4. Equipement'!B:B,$E$25)+SUMIFS('5. Sous-traitance'!H:H,'5. Sous-traitance'!C:C,B36,'5. Sous-traitance'!B:B,$E$25)","v":0},{"$f":"SUMIFS('1. Frais de personnel'!S:S,'1. Frais de personnel'!C:C,B36,'1. Frais de personnel'!B:B,$B$8)+SUMIFS('2-3.Frais de voyage-séjour'!N:N,'2-3.Frais de voyage-séjour'!C:C,B36,'2-3.Frais de voyage-séjour'!B:B,$B$8)+SUMIFS('4. Equipement'!H:H,'4. Equipement'!C:C,B36,'4. Equipement'!B:B,$B$8)+SUMIFS('5. Sous-traitance'!H:H,'5. Sous-traitance'!C:C,B36,'5. Sous-traitance'!B:B,$B$8)","v":0},{"$f":"SUMIFS('1. Frais de personnel'!S:S,'1. Frais de personnel'!C:C,B36,'1. Frais de personnel'!B:B,$G$25)+SUMIFS('2-3.Frais de voyage-séjour'!N:N,'2-3.Frais de voyage-séjour'!C:C,B36,'2-3.Frais de voyage-séjour'!B:B,$G$25)+SUMIFS('4. Equipement'!H:H,'4. Equipement'!C:C,B36,'4. Equipement'!B:B,$G$25)+SUMIFS('5. Sous-traitance'!H:H,'5. Sous-traitance'!C:C,B36,'5. Sous-traitance'!B:B,$G$25)","v":0},{"$f":"SUMIF('B. Mobilité Spécial - Etudiant'!B:B,B36,'B. Mobilité Spécial - Etudiant'!N:N)+SUMIF('B. Mobilité Spécial - Personnel'!B:B,B36,'B. Mobilité Spécial - Personnel'!N:N)","v":0},0]
[null,"P12",{"$f":"SUMIFS('1. Frais de personnel'!S:S,'1. Frais de personnel'!C:C,B37,'1. Frais de personnel'!B:B,$C$25)+SUMIFS('2-3.Frais de voyage-séjour'!N:N,'2-3.Frais de voyage-séjour'!C:C,B37,'2-3.Frais de voyage-séjour'!B:B,$C$25)+SUMIFS('4. Equipement'!H:H,'4. Equipement'!C:C,B37,'4. Equipement'!B:B,$C$25)+SUMIFS('5. Sous-traitance'!H:H,'5. Sous-traitance'!C:C,B37,'5. Sous-traitance'!B:B,$C$25)","v":0},{"$f":"SUMIFS('1. Frais de personnel'!S:S,'1. Frais de personnel'!C:C,B37,'1. Frais de personnel'!B:B,$D$25)+SUMIFS('2-3.Frais de voyage-séjour'!N:N,'2-3.Frais de voyage-séjour'!C:C,B37,'2-3.Frais de voyage-séjour'!B:B,$D$25)+SUMIFS('4. Equipement'!H:H,'4. Equipement'!C:C,B37,'4. Equipement'!B:B,$D$25)+SUMIFS('5. Sous-traitance'!H:H,'5. Sous-traitance'!C:C,B37,'5. Sous-traitance'!B:B,$D$25)","v":0},{"$f":"SUMIFS('1. Frais de personnel'!S:S,'1. Frais de personnel'!C:C,B37,'1. Frais de personnel'!B:B,$E$25)+SUMIFS('2-3.Frais de voyage-séjour'!N:N,'2-3.Frais de voyage-séjour'!C:C,B37,'2-3.Frais de voyage-séjour'!B:B,$E$25)+SUMIFS('4. Equipement'!H:H,'4. Equipement'!C:C,B37,'4. Equipement'!B:B,$E$25)+SUMIFS('5. Sous-traitance'!H:H,'5. Sous-traitance'!C:C,B37,'5. Sous-traitance'!B:B,$E$25)","v":0},{"$f":"SUMIFS('1. Frais de personnel'!S:S,'1. Frais de personnel'!C:C,B37,'1. Frais de personnel'!B:B,$B$8)+SUMIFS('2-3.Frais de voyage-séjour'!N:N,'2-3.Frais de voyage-séjour'!C:C,B37,'2-3.Frais de voyage-séjour'!B:B,$B$8)+SUMIFS('4. Equipement'!H:H,'4. Equipement'!C:C,B37,'4. Equipement'!B:B,$B$8)+SUMIFS('5. Sous-traitance'!H:H,'5. Sous-traitance'!C:C,B37,'5. Sous-traitance'!B:B,$B$8)","v":0},{"$f":"SUMIFS('1. Frais de personnel'!S:S,'1. Frais de personnel'!C:C,B37,'1. Frais de personnel'!B:B,$G$25)+SUMIFS('2-3.Frais de voyage-séjour'!N:N,'2-3.Frais de voyage-séjour'!C:C,B37,'2-3.Frais de voyage-séjour'!B:B,$G$25)+SUMIFS('4. Equipement'!H:H,'4. Equipement'!C:C,B37,'4. Equipement'!B:B,$G$25)+SUMIFS('5. Sous-traitance'!H:H,'5. Sous-traitance'!C:C,B37,'5. Sous-traitance'!B:B,$G$25)","v":0},{"$f":"SUMIF('B. Mobilité Spécial - Etudiant'!B:B,B37,'B. Mobilité Spécial - Etudiant'!N:N)+SUMIF('B. Mobilité Spécial - Personnel'!B:B,B37,'B. Mobilité Spécial - Personnel'!N:N)","v":0},0]
[null,"P13",{"$f":"SUMIFS('1. Frais de personnel'!S:S,'1. Frais de personnel'!C:C,B38,'1. Frais de personnel'!B:B,$C$25)+SUMIFS('2-3.Frais de voyage-séjour'!N:N,'2-3.Frais de voyage-séjour'!C:C,B38,'2-3.Frais de voyage-séjour'!B:B,$C$25)+SUMIFS('4. Equipement'!H:H,'4. Equipement'!C:C,B38,'4. Equipement'!B:B,$C$25)+SUMIFS('5. Sous-traitance'!H:H,'5. Sous-traitance'!C:C,B38,'5. Sous-traitance'!B:B,$C$25)","v":0},{"$f":"SUMIFS('1. Frais de personnel'!S:S,'1. Frais de personnel'!C:C,B38,'1. Frais de personnel'!B:B,$D$25)+SUMIFS('2-3.Frais de voyage-séjour'!N:N,'2-3.Frais de voyage-séjour'!C:C,B38,'2-3.Frais de voyage-séjour'!B:B,$D$25)+SUMIFS('4. Equipement'!H:H,'4. Equipement'!C:C,B38,'4. Equipement'!B:B,$D$25)+SUMIFS('5. Sous-traitance'!H:H,'5. Sous-traitance'!C:C,B38,'5. Sous-traitance'!B:B,$D$25)","v":0},{"$f":"SUMIFS('1. Frais de personnel'!S:S,'1. Frais de personnel'!C:C,B38,'1. Frais de personnel'!B:B,$E$25)+SUMIFS('2-3.Frais de voyage-séjour'!N:N,'2-3.Frais de voyage-séjour'!C:C,B38,'2-3.Frais de voyage-séjour'!B:B,$E$25)+SUMIFS('4. Equipement'!H:H,'4. Equipement'!C:C,B38,'4. Equipement'!B:B,$E$25)+SUMIFS('5. Sous-traitance'!H:H,'5. Sous-traitance'!C:C,B38,'5. Sous-traitance'!B:B,$E$25)","v":0},{"$f":"SUMIFS('1. Frais de personnel'!S:S,'1. Frais de personnel'!C:C,B38,'1. Frais de personnel'!B:B,$B$8)+SUMIFS('2-3.Frais de voyage-séjour'!N:N,'2-3.Frais de voyage-séjour'!C:C,B38,'2-3.Frais de voyage-séjour'!B:B,$B$8)+SUMIFS('4. Equipement'!H:H,'4. Equipement'!C:C,B38,'4. Equipement'!B:B,$B$8)+SUMIFS('5. Sous-traitance'!H:H,'5. Sous-traitance'!C:C,B38,'5. Sous-traitance'!B:B,$B$8)","v":0},{"$f":"SUMIFS('1. Frais de personnel'!S:S,'1. Frais de personnel'!C:C,B38,'1. Frais de personnel'!B:B,$G$25)+SUMIFS('2-3.Frais de voyage-séjour'!N:N,'2-3.Frais de voyage-séjour'!C:C,B38,'2-3.Frais de voyage-séjour'!B:B,$G$25)+SUMIFS('4. Equipement'!H:H,'4. Equipement'!C:C,B38,'4. Equipement'!B:B,$G$25)+SUMIFS('5. Sous-traitance'!H:H,'5. Sous-traitance'!C:C,B38,'5. Sous-traitance'!B:B,$G$25)","v":0},{"$f":"SUMIF('B. Mobilité Spécial - Etudiant'!B:B,B38,'B. Mobilité Spécial - Etudiant'!N:N)+SUMIF('B. Mobilité Spécial - Personnel'!B:B,B38,'B. Mobilité Spécial - Personnel'!N:N)","v":0},0]
[null,"P14",{"$f":"SUMIFS('1. Frais de personnel'!S:S,'1. Frais de personnel'!C:C,B39,'1. Frais de personnel'!B:B,$C$25)+SUMIFS('2-3.Frais de voyage-séjour'!N:N,'2-3.Frais de voyage-séjour'!C:C,B39,'2-3.Frais de voyage-séjour'!B:B,$C$25)+SUMIFS('4. Equipement'!H:H,'4. Equipement'!C:C,B39,'4. Equipement'!B:B,$C$25)+SUMIFS('5. Sous-traitance'!H:H,'5. Sous-traitance'!C:C,B39,'5. Sous-traitance'!B:B,$C$25)","v":0},{"$f":"SUMIFS('1. Frais de personnel'!S:S,'1. Frais de personnel'!C:C,B39,'1. Frais de personnel'!B:B,$D$25)+SUMIFS('2-3.Frais de voyage-séjour'!N:N,'2-3.Frais de voyage-séjour'!C:C,B39,'2-3.Frais de voyage-séjour'!B:B,$D$25)+SUMIFS('4. Equipement'!H:H,'4. Equipement'!C:C,B39,'4. Equipement'!B:B,$D$25)+SUMIFS('5. Sous-traitance'!H:H,'5. Sous-traitance'!C:C,B39,'5. Sous-traitance'!B:B,$D$25)","v":0},{"$f":"SUMIFS('1. Frais de personnel'!S:S,'1. Frais de personnel'!C:C,B39,'1. Frais de personnel'!B:B,$E$25)+SUMIFS('2-3.Frais de voyage-séjour'!N:N,'2-3.Frais de voyage-séjour'!C:C,B39,'2-3.Frais de voyage-séjour'!B:B,$E$25)+SUMIFS('4. Equipement'!H:H,'4. Equipement'!C:C,B39,'4. Equipement'!B:B,$E$25)+SUMIFS('5. Sous-traitance'!H:H,'5. Sous-traitance'!C:C,B39,'5. Sous-traitance'!B:B,$E$25)","v":0},{"$f":"SUMIFS('1. Frais de personnel'!S:S,'1. Frais de personnel'!C:C,B39,'1. Frais de personnel'!B:B,$B$8)+SUMIFS('2-3.Frais de voyage-séjour'!N:N,'2-3.Frais de voyage-séjour'!C:C,B39,'2-3.Frais de voyage-séjour'!B:B,$B$8)+SUMIFS('4. Equipement'!H:H,'4. Equipement'!C:C,B39,'4. Equipement'!B:B,$B$8)+SUMIFS('5. Sous-traitance'!H:H,'5. Sous-traitance'!C:C,B39,'5. Sous-traitance'!B:B,$B$8)","v":0},{"$f":"SUMIFS('1. Frais de personnel'!S:S,'1. Frais de personnel'!C:C,B39,'1. Frais de personnel'!B:B,$G$25)+SUMIFS('2-3.Frais de voyage-séjour'!N:N,'2-3.Frais de voyage-séjour'!C:C,B39,'2-3.Frais de voyage-séjour'!B:B,$G$25)+SUMIFS('4. Equipement'!H:H,'4. Equipement'!C:C,B39,'4. Equipement'!B:B,$G$25)+SUMIFS('5. Sous-traitance'!H:H,'5. Sous-traitance'!C:C,B39,'5. Sous-traitance'!B:B,$G$25)","v":0},{"$f":"SUMIF('B. Mobilité Spécial - Etudiant'!B:B,B39,'B. Mobilité Spécial - Etudiant'!N:N)+SUMIF('B. Mobilité Spécial - Personnel'!B:B,B39,'B. Mobilité Spécial - Personnel'!N:N)","v":0},0]
[null,"P15",{"$f":"SUMIFS('1. Frais de personnel'!S:S,'1. Frais de personnel'!C:C,B40,'1. Frais de personnel'!B:B,$C$25)+SUMIFS('2-3.Frais de voyage-séjour'!N:N,'2-3.Frais de voyage-séjour'!C:C,B40,'2-3.Frais de voyage-séjour'!B:B,$C$25)+SUMIFS('4. Equipement'!H:H,'4. Equipement'!C:C,B40,'4. Equipement'!B:B,$C$25)+SUMIFS('5. Sous-traitance'!H:H,'5. Sous-traitance'!C:C,B40,'5. Sous-traitance'!B:B,$C$25)","v":0},{"$f":"SUMIFS('1. Frais de personnel'!S:S,'1. Frais de personnel'!C:C,B40,'1. Frais de personnel'!B:B,$D$25)+SUMIFS('2-3.Frais de voyage-séjour'!N:N,'2-3.Frais de voyage-séjour'!C:C,B40,'2-3.Frais de voyage-séjour'!B:B,$D$25)+SUMIFS('4. Equipement'!H:H,'4. Equipement'!C:C,B40,'4. Equipement'!B:B,$D$25)+SUMIFS('5. Sous-traitance'!H:H,'5. Sous-traitance'!C:C,B40,'5. Sous-traitance'!B:B,$D$25)","v":0},{"$f":"SUMIFS('1. Frais de personnel'!S:S,'1. Frais de personnel'!C:C,B40,'1. Frais de personnel'!B:B,$E$25)+SUMIFS('2-3.Frais de voyage-séjour'!N:N,'2-3.Frais de voyage-séjour'!C:C,B40,'2-3.Frais de voyage-séjour'!B:B,$E$25)+SUMIFS('4. Equipement'!H:H,'4. Equipement'!C:C,B40,'4. Equipement'!B:B,$E$25)+SUMIFS('5. Sous-traitance'!H:H,'5. Sous-traitance'!C:C,B40,'5. Sous-traitance'!B:B,$E$25)","v":0},{"$f":"SUMIFS('1. Frais de personnel'!S:S,'1. Frais de personnel'!C:C,B40,'1. Frais de personnel'!B:B,$B$8)+SUMIFS('2-3.Frais de voyage-séjour'!N:N,'2-3.Frais de voyage-séjour'!C:C,B40,'2-3.Frais de voyage-séjour'!B:B,$B$8)+SUMIFS('4. Equipement'!H:H,'4. Equipement'!C:C,B40,'4. Equipement'!B:B,$B$8)+SUMIFS('5. Sous-traitance'!H:H,'5. Sous-traitance'!C:C,B40,'5. Sous-traitance'!B:B,$B$8)","v":0},{"$f":"SUMIFS('1. Frais de personnel'!S:S,'1. Frais de personnel'!C:C,B40,'1. Frais de personnel'!B:B,$G$25)+SUMIFS('2-3.Frais de voyage-séjour'!N:N,'2-3.Frais de voyage-séjour'!C:C,B40,'2-3.Frais de voyage-séjour'!B:B,$G$25)+SUMIFS('4. Equipement'!H:H,'4. Equipement'!C:C,B40,'4. Equipement'!B:B,$G$25)+SUMIFS('5. Sous-traitance'!H:H,'5. Sous-traitance'!C:C,B40,'5. Sous-traitance'!B:B,$G$25)","v":0},{"$f":"SUMIF('B. Mobilité Spécial - Etudiant'!B:B,B40,'B. Mobilité Spécial - Etudiant'!N:N)+SUMIF('B. Mobilité Spécial - Personnel'!B:B,B40,'B. Mobilité Spécial - Personnel'!N:N)","v":0},0]
[null,"P16",{"$f":"SUMIFS('1. Frais de personnel'!S:S,'1. Frais de personnel'!C:C,B41,'1. Frais de personnel'!B:B,$C$25)+SUMIFS('2-3.Frais de voyage-séjour'!N:N,'2-3.Frais de voyage-séjour'!C:C,B41,'2-3.Frais de voyage-séjour'!B:B,$C$25)+SUMIFS('4. Equipement'!H:H,'4. Equipement'!C:C,B41,'4. Equipement'!B:B,$C$25)+SUMIFS('5. Sous-traitance'!H:H,'5. Sous-traitance'!C:C,B41,'5. Sous-traitance'!B:B,$C$25)","v":0},{"$f":"SUMIFS('1. Frais de personnel'!S:S,'1. Frais de personnel'!C:C,B41,'1. Frais de personnel'!B:B,$D$25)+SUMIFS('2-3.Frais de voyage-séjour'!N:N,'2-3.Frais de voyage-séjour'!C:C,B41,'2-3.Frais de voyage-séjour'!B:B,$D$25)+SUMIFS('4. Equipement'!H:H,'4. Equipement'!C:C,B41,'4. Equipement'!B:B,$D$25)+SUMIFS('5. Sous-traitance'!H:H,'5. Sous-traitance'!C:C,B41,'5. Sous-traitance'!B:B,$D$25)","v":0},{"$f":"SUMIFS('1. Frais de personnel'!S:S,'1. Frais de personnel'!C:C,B41,'1. Frais de personnel'!B:B,$E$25)+SUMIFS('2-3.Frais de voyage-séjour'!N:N,'2-3.Frais de voyage-séjour'!C:C,B41,'2-3.Frais de voyage-séjour'!B:B,$E$25)+SUMIFS('4. Equipement'!H:H,'4. Equipement'!C:C,B41,'4. Equipement'!B:B,$E$25)+SUMIFS('5. Sous-traitance'!H:H,'5. Sous-traitance'!C:C,B41,'5. Sous-traitance'!B:B,$E$25)","v":0},{"$f":"SUMIFS('1. Frais de personnel'!S:S,'1. Frais de personnel'!C:C,B41,'1. Frais de personnel'!B:B,$B$8)+SUMIFS('2-3.Frais de voyage-séjour'!N:N,'2-3.Frais de voyage-séjour'!C:C,B41,'2-3.Frais de voyage-séjour'!B:B,$B$8)+SUMIFS('4. Equipement'!H:H,'4. Equipement'!C:C,B41,'4. Equipement'!B:B,$B$8)+SUMIFS('5. Sous-traitance'!H:H,'5. Sous-traitance'!C:C,B41,'5. Sous-traitance'!B:B,$B$8)","v":0},{"$f":"SUMIFS('1. Frais de personnel'!S:S,'1. Frais de personnel'!C:C,B41,'1. Frais de personnel'!B:B,$G$25)+SUMIFS('2-3.Frais de voyage-séjour'!N:N,'2-3.Frais de voyage-séjour'!C:C,B41,'2-3.Frais de voyage-séjour'!B:B,$G$25)+SUMIFS('4. Equipement'!H:H,'4. Equipement'!C:C,B41,'4. Equipement'!B:B,$G$25)+SUMIFS('5. Sous-traitance'!H:H,'5. Sous-traitance'!C:C,B41,'5. Sous-traitance'!B:B,$G$25)","v":0},{"$f":"SUMIF('B. Mobilité Spécial - Etudiant'!B:B,B41,'B. Mobilité Spécial - Etudiant'!N:N)+SUMIF('B. Mobilité Spécial - Personnel'!B:B,B41,'B. Mobilité Spécial - Personnel'!N:N)","v":0},0]
[null,"P17",{"$f":"SUMIFS('1. Frais de personnel'!S:S,'1. Frais de personnel'!C:C,B42,'1. Frais de personnel'!B:B,$C$25)+SUMIFS('2-3.Frais de voyage-séjour'!N:N,'2-3.Frais de voyage-séjour'!C:C,B42,'2-3.Frais de voyage-séjour'!B:B,$C$25)+SUMIFS('4. Equipement'!H:H,'4. Equipement'!C:C,B42,'4. Equipement'!B:B,$C$25)+SUMIFS('5. Sous-traitance'!H:H,'5. Sous-traitance'!C:C,B42,'5. Sous-traitance'!B:B,$C$25)","v":0},{"$f":"SUMIFS('1. Frais de personnel'!S:S,'1. Frais de personnel'!C:C,B42,'1. Frais de personnel'!B:B,$D$25)+SUMIFS('2-3.Frais de voyage-séjour'!N:N,'2-3.Frais de voyage-séjour'!C:C,B42,'2-3.Frais de voyage-séjour'!B:B,$D$25)+SUMIFS('4. Equipement'!H:H,'4. Equipement'!C:C,B42,'4. Equipement'!B:B,$D$25)+SUMIFS('5. Sous-traitance'!H:H,'5. Sous-traitance'!C:C,B42,'5. Sous-traitance'!B:B,$D$25)","v":0},{"$f":"SUMIFS('1. Frais de personnel'!S:S,'1. Frais de personnel'!C:C,B42,'1. Frais de personnel'!B:B,$E$25)+SUMIFS('2-3.Frais de voyage-séjour'!N:N,'2-3.Frais de voyage-séjour'!C:C,B42,'2-3.Frais de voyage-séjour'!B:B,$E$25)+SUMIFS('4. Equipement'!H:H,'4. Equipement'!C:C,B42,'4. Equipement'!B:B,$E$25)+SUMIFS('5. Sous-traitance'!H:H,'5. Sous-traitance'!C:C,B42,'5. Sous-traitance'!B:B,$E$25)","v":0},{"$f":"SUMIFS('1. Frais de personnel'!S:S,'1. Frais de personnel'!C:C,B42,'1. Frais de personnel'!B:B,$B$8)+SUMIFS('2-3.Frais de voyage-séjour'!N:N,'2-3.Frais de voyage-séjour'!C:C,B42,'2-3.Frais de voyage-séjour'!B:B,$B$8)+SUMIFS('4. Equipement'!H:H,'4. Equipement'!C:C,B42,'4. Equipement'!B:B,$B$8)+SUMIFS('5. Sous-traitance'!H:H,'5. Sous-traitance'!C:C,B42,'5. Sous-traitance'!B:B,$B$8)","v":0},{"$f":"SUMIFS('1. Frais de personnel'!S:S,'1. Frais de personnel'!C:C,B42,'1. Frais de personnel'!B:B,$G$25)+SUMIFS('2-3.Frais de voyage-séjour'!N:N,'2-3.Frais de voyage-séjour'!C:C,B42,'2-3.Frais de voyage-séjour'!B:B,$G$25)+SUMIFS('4. Equipement'!H:H,'4. Equipement'!C:C,B42,'4. Equipement'!B:B,$G$25)+SUMIFS('5. Sous-traitance'!H:H,'5. Sous-traitance'!C:C,B42,'5. Sous-traitance'!B:B,$G$25)","v":0},{"$f":"SUMIF('B. Mobilité Spécial - Etudiant'!B:B,B42,'B. Mobilité Spécial - Etudiant'!N:N)+SUMIF('B. Mobilité Spécial - Personnel'!B:B,B42,'B. Mobilité Spécial - Personnel'!N:N)","v":0},0]
[null,"P18",{"$f":"SUMIFS('1. Frais de personnel'!S:S,'1. Frais de personnel'!C:C,B43,'1. Frais de personnel'!B:B,$C$25)+SUMIFS('2-3.Frais de voyage-séjour'!N:N,'2-3.Frais de voyage-séjour'!C:C,B43,'2-3.Frais de voyage-séjour'!B:B,$C$25)+SUMIFS('4. Equipement'!H:H,'4. Equipement'!C:C,B43,'4. Equipement'!B:B,$C$25)+SUMIFS('5. Sous-traitance'!H:H,'5. Sous-traitance'!C:C,B43,'5. Sous-traitance'!B:B,$C$25)","v":0},{"$f":"SUMIFS('1. Frais de personnel'!S:S,'1. Frais de personnel'!C:C,B43,'1. Frais de personnel'!B:B,$D$25)+SUMIFS('2-3.Frais de voyage-séjour'!N:N,'2-3.Frais de voyage-séjour'!C:C,B43,'2-3.Frais de voyage-séjour'!B:B,$D$25)+SUMIFS('4. Equipement'!H:H,'4. Equipement'!C:C,B43,'4. Equipement'!B:B,$D$25)+SUMIFS('5. Sous-traitance'!H:H,'5. Sous-traitance'!C:C,B43,'5. Sous-traitance'!B:B,$D$25)","v":0},{"$f":"SUMIFS('1. Frais de personnel'!S:S,'1. Frais de personnel'!C:C,B43,'1. Frais de personnel'!B:B,$E$25)+SUMIFS('2-3.Frais de voyage-séjour'!N:N,'2-3.Frais de voyage-séjour'!C:C,B43,'2-3.Frais de voyage-séjour'!B:B,$E$25)+SUMIFS('4. Equipement'!H:H,'4. Equipement'!C:C,B43,'4. Equipement'!B:B,$E$25)+SUMIFS('5. Sous-traitance'!H:H,'5. Sous-traitance'!C:C,B43,'5. Sous-traitance'!B:B,$E$25)","v":0},{"$f":"SUMIFS('1. Frais de personnel'!S:S,'1. Frais de personnel'!C:C,B43,'1. Frais de personnel'!B:B,$B$8)+SUMIFS('2-3.Frais de voyage-séjour'!N:N,'2-3.Frais de voyage-séjour'!C:C,B43,'2-3.Frais de voyage-séjour'!B:B,$B$8)+SUMIFS('4. Equipement'!H:H,'4. Equipement'!C:C,B43,'4. Equipement'!B:B,$B$8)+SUMIFS('5. Sous-traitance'!H:H,'5. Sous-traitance'!C:C,B43,'5. Sous-traitance'!B:B,$B$8)","v":0},{"$f":"SUMIFS('1. Frais de personnel'!S:S,'1. Frais de personnel'!C:C,B43,'1. Frais de personnel'!B:B,$G$25)+SUMIFS('2-3.Frais de voyage-séjour'!N:N,'2-3.Frais de voyage-séjour'!C:C,B43,'2-3.Frais de voyage-séjour'!B:B,$G$25)+SUMIFS('4. Equipement'!H:H,'4. Equipement'!C:C,B43,'4. Equipement'!B:B,$G$25)+SUMIFS('5. Sous-traitance'!H:H,'5. Sous-traitance'!C:C,B43,'5. Sous-traitance'!B:B,$G$25)","v":0},{"$f":"SUMIF('B. Mobilité Spécial - Etudiant'!B:B,B43,'B. Mobilité Spécial - Etudiant'!N:N)+SUMIF('B. Mobilité Spécial - Personnel'!B:B,B43,'B. Mobilité Spécial - Personnel'!N:N)","v":0},0]
[null,"P19",{"$f":"SUMIFS('1. Frais de personnel'!S:S,'1. Frais de personnel'!C:C,B44,'1. Frais de personnel'!B:B,$C$25)+SUMIFS('2-3.Frais de voyage-séjour'!N:N,'2-3.Frais de voyage-séjour'!C:C,B44,'2-3.Frais de voyage-séjour'!B:B,$C$25)+SUMIFS('4. Equipement'!H:H,'4. Equipement'!C:C,B44,'4. Equipement'!B:B,$C$25)+SUMIFS('5. Sous-traitance'!H:H,'5. Sous-traitance'!C:C,B44,'5. Sous-traitance'!B:B,$C$25)","v":0},{"$f":"SUMIFS('1. Frais de personnel'!S:S,'1. Frais de personnel'!C:C,B44,'1. Frais de personnel'!B:B,$D$25)+SUMIFS('2-3.Frais de voyage-séjour'!N:N,'2-3.Frais de voyage-séjour'!C:C,B44,'2-3.Frais de voyage-séjour'!B:B,$D$25)+SUMIFS('4. Equipement'!H:H,'4. Equipement'!C:C,B44,'4. Equipement'!B:B,$D$25)+SUMIFS('5. Sous-traitance'!H:H,'5. Sous-traitance'!C:C,B44,'5. Sous-traitance'!B:B,$D$25)","v":0},{"$f":"SUMIFS('1. Frais de personnel'!S:S,'1. Frais de personnel'!C:C,B44,'1. Frais de personnel'!B:B,$E$25)+SUMIFS('2-3.Frais de voyage-séjour'!N:N,'2-3.Frais de voyage-séjour'!C:C,B44,'2-3.Frais de voyage-séjour'!B:B,$E$25)+SUMIFS('4. Equipement'!H:H,'4. Equipement'!C:C,B44,'4. Equipement'!B:B,$E$25)+SUMIFS('5. Sous-traitance'!H:H,'5. Sous-traitance'!C:C,B44,'5. Sous-traitance'!B:B,$E$25)","v":0},{"$f":"SUMIFS('1. Frais de personnel'!S:S,'1. Frais de personnel'!C:C,B44,'1. Frais de personnel'!B:B,$B$8)+SUMIFS('2-3.Frais de voyage-séjour'!N:N,'2-3.Frais de voyage-séjour'!C:C,B44,'2-3.Frais de voyage-séjour'!B:B,$B$8)+SUMIFS('4. Equipement'!H:H,'4. Equipement'!C:C,B44,'4. Equipement'!B:B,$B$8)+SUMIFS('5. Sous-traitance'!H:H,'5. Sous-traitance'!C:C,B44,'5. Sous-traitance'!B:B,$B$8)","v":0},{"$f":"SUMIFS('1. Frais de personnel'!S:S,'1. Frais de personnel'!C:C,B44,'1. Frais de personnel'!B:B,$G$25)+SUMIFS('2-3.Frais de voyage-séjour'!N:N,'2-3.Frais de voyage-séjour'!C:C,B44,'2-3.Frais de voyage-séjour'!B:B,$G$25)+SUMIFS('4. Equipement'!H:H,'4. Equipement'!C:C,B44,'4. Equipement'!B:B,$G$25)+SUMIFS('5. Sous-traitance'!H:H,'5. Sous-traitance'!C:C,B44,'5. Sous-traitance'!B:B,$G$25)","v":0},{"$f":"SUMIF('B. Mobilité Spécial - Etudiant'!B:B,B44,'B. Mobilité Spécial - Etudiant'!N:N)+SUMIF('B. Mobilité Spécial - Personnel'!B:B,B44,'B. Mobilité Spécial - Personnel'!N:N)","v":0},0]
[null,"P20",{"$f":"SUMIFS('1. Frais de personnel'!S:S,'1. Frais de personnel'!C:C,B45,'1. Frais de personnel'!B:B,$C$25)+SUMIFS('2-3.Frais de voyage-séjour'!N:N,'2-3.Frais de voyage-séjour'!C:C,B45,'2-3.Frais de voyage-séjour'!B:B,$C$25)+SUMIFS('4. Equipement'!H:H,'4. Equipement'!C:C,B45,'4. Equipement'!B:B,$C$25)+SUMIFS('5. Sous-traitance'!H:H,'5. Sous-traitance'!C:C,B45,'5. Sous-traitance'!B:B,$C$25)","v":0},{"$f":"SUMIFS('1. Frais de personnel'!S:S,'1. Frais de personnel'!C:C,B45,'1. Frais de personnel'!B:B,$D$25)+SUMIFS('2-3.Frais de voyage-séjour'!N:N,'2-3.Frais de voyage-séjour'!C:C,B45,'2-3.Frais de voyage-séjour'!B:B,$D$25)+SUMIFS('4. Equipement'!H:H,'4. Equipement'!C:C,B45,'4. Equipement'!B:B,$D$25)+SUMIFS('5. Sous-traitance'!H:H,'5. Sous-traitance'!C:C,B45,'5. Sous-traitance'!B:B,$D$25)","v":0},{"$f":"SUMIFS('1. Frais de personnel'!S:S,'1. Frais de personnel'!C:C,B45,'1. Frais de personnel'!B:B,$E$25)+SUMIFS('2-3.Frais de voyage-séjour'!N:N,'2-3.Frais de voyage-séjour'!C:C,B45,'2-3.Frais de voyage-séjour'!B:B,$E$25)+SUMIFS('4. Equipement'!H:H,'4. Equipement'!C:C,B45,'4. Equipement'!B:B,$E$25)+SUMIFS('5. Sous-traitance'!H:H,'5. Sous-traitance'!C:C,B45,'5. Sous-traitance'!B:B,$E$25)","v":0},{"$f":"SUMIFS('1. Frais de personnel'!S:S,'1. Frais de personnel'!C:C,B45,'1. Frais de personnel'!B:B,$B$8)+SUMIFS('2-3.Frais de voyage-séjour'!N:N,'2-3.Frais de voyage-séjour'!C:C,B45,'2-3.Frais de voyage-séjour'!B:B,$B$8)+SUMIFS('4. Equipement'!H:H,'4. Equipement'!C:C,B45,'4. Equipement'!B:B,$B$8)+SUMIFS('5. Sous-traitance'!H:H,'5. Sous-traitance'!C:C,B45,'5. Sous-traitance'!B:B,$B$8)","v":0},{"$f":"SUMIFS('1. Frais de personnel'!S:S,'1. Frais de personnel'!C:C,B45,'1. Frais de personnel'!B:B,$G$25)+SUMIFS('2-3.Frais de voyage-séjour'!N:N,'2-3.Frais de voyage-séjour'!C:C,B45,'2-3.Frais de voyage-séjour'!B:B,$G$25)+SUMIFS('4. Equipement'!H:H,'4. Equipement'!C:C,B45,'4. Equipement'!B:B,$G$25)+SUMIFS('5. Sous-traitance'!H:H,'5. Sous-traitance'!C:C,B45,'5. Sous-traitance'!B:B,$G$25)","v":0},{"$f":"SUMIF('B. Mobilité Spécial - Etudiant'!B:B,B45,'B. Mobilité Spécial - Etudiant'!N:N)+SUMIF('B. Mobilité Spécial - Personnel'!B:B,B45,'B. Mobilité Spécial - Personnel'!N:N)","v":0},0]
[null,"P21",{"$f":"SUMIFS('1. Frais de personnel'!S:S,'1. Frais de personnel'!C:C,B46,'1. Frais de personnel'!B:B,$C$25)+SUMIFS('2-3.Frais de voyage-séjour'!N:N,'2-3.Frais de voyage-séjour'!C:C,B46,'2-3.Frais de voyage-séjour'!B:B,$C$25)+SUMIFS('4. Equipement'!H:H,'4. Equipement'!C:C,B46,'4. Equipement'!B:B,$C$25)+SUMIFS('5. Sous-traitance'!H:H,'5. Sous-traitance'!C:C,B46,'5. Sous-traitance'!B:B,$C$25)","v":0},{"$f":"SUMIFS('1. Frais de personnel'!S:S,'1. Frais de personnel'!C:C,B46,'1. Frais de personnel'!B:B,$D$25)+SUMIFS('2-3.Frais de voyage-séjour'!N:N,'2-3.Frais de voyage-séjour'!C:C,B46,'2-3.Frais de voyage-séjour'!B:B,$D$25)+SUMIFS('4. Equipement'!H:H,'4. Equipement'!C:C,B46,'4. Equipement'!B:B,$D$25)+SUMIFS('5. Sous-traitance'!H:H,'5. Sous-traitance'!C:C,B46,'5. Sous-traitance'!B:B,$D$25)","v":0},{"$f":"SUMIFS('1. Frais de personnel'!S:S,'1. Frais de personnel'!C:C,B46,'1. Frais de personnel'!B:B,$E$25)+SUMIFS('2-3.Frais de voyage-séjour'!N:N,'2-3.Frais de voyage-séjour'!C:C,B46,'2-3.Frais de voyage-séjour'!B:B,$E$25)+SUMIFS('4. Equipement'!H:H,'4. Equipement'!C:C,B46,'4. Equipement'!B:B,$E$25)+SUMIFS('5. Sous-traitance'!H:H,'5. Sous-traitance'!C:C,B46,'5. Sous-traitance'!B:B,$E$25)","v":0},{"$f":"SUMIFS('1. Frais de personnel'!S:S,'1. Frais de personnel'!C:C,B46,'1. Frais de personnel'!B:B,$B$8)+SUMIFS('2-3.Frais de voyage-séjour'!N:N,'2-3.Frais de voyage-séjour'!C:C,B46,'2-3.Frais de voyage-séjour'!B:B,$B$8)+SUMIFS('4. Equipement'!H:H,'4. Equipement'!C:C,B46,'4. Equipement'!B:B,$B$8)+SUMIFS('5. Sous-traitance'!H:H,'5. Sous-traitance'!C:C,B46,'5. Sous-traitance'!B:B,$B$8)","v":0},{"$f":"SUMIFS('1. Frais de personnel'!S:S,'1. Frais de personnel'!C:C,B46,'1. Frais de personnel'!B:B,$G$25)+SUMIFS('2-3.Frais de voyage-séjour'!N:N,'2-3.Frais de voyage-séjour'!C:C,B46,'2-3.Frais de voyage-séjour'!B:B,$G$25)+SUMIFS('4. Equipement'!H:H,'4. Equipement'!C:C,B46,'4. Equipement'!B:B,$G$25)+SUMIFS('5. Sous-traitance'!H:H,'5. Sous-traitance'!C:C,B46,'5. Sous-traitance'!B:B,$G$25)","v":0},{"$f":"SUMIF('B. Mobilité Spécial - Etudiant'!B:B,B46,'B. Mobilité Spécial - Etudiant'!N:N)+SUMIF('B. Mobilité Spécial - Personnel'!B:B,B46,'B. Mobilité Spécial - Personnel'!N:N)","v":0},0]
[null,"P22",{"$f":"SUMIFS('1. Frais de personnel'!S:S,'1. Frais de personnel'!C:C,B47,'1. Frais de personnel'!B:B,$C$25)+SUMIFS('2-3.Frais de voyage-séjour'!N:N,'2-3.Frais de voyage-séjour'!C:C,B47,'2-3.Frais de voyage-séjour'!B:B,$C$25)+SUMIFS('4. Equipement'!H:H,'4. Equipement'!C:C,B47,'4. Equipement'!B:B,$C$25)+SUMIFS('5. Sous-traitance'!H:H,'5. Sous-traitance'!C:C,B47,'5. Sous-traitance'!B:B,$C$25)","v":0},{"$f":"SUMIFS('1. Frais de personnel'!S:S,'1. Frais de personnel'!C:C,B47,'1. Frais de personnel'!B:B,$D$25)+SUMIFS('2-3.Frais de voyage-séjour'!N:N,'2-3.Frais de voyage-séjour'!C:C,B47,'2-3.Frais de voyage-séjour'!B:B,$D$25)+SUMIFS('4. Equipement'!H:H,'4. Equipement'!C:C,B47,'4. Equipement'!B:B,$D$25)+SUMIFS('5. Sous-traitance'!H:H,'5. Sous-traitance'!C:C,B47,'5. Sous-traitance'!B:B,$D$25)","v":0},{"$f":"SUMIFS('1. Frais de personnel'!S:S,'1. Frais de personnel'!C:C,B47,'1. Frais de personnel'!B:B,$E$25)+SUMIFS('2-3.Frais de voyage-séjour'!N:N,'2-3.Frais de voyage-séjour'!C:C,B47,'2-3.Frais de voyage-séjour'!B:B,$E$25)+SUMIFS('4. Equipement'!H:H,'4. Equipement'!C:C,B47,'4. Equipement'!B:B,$E$25)+SUMIFS('5. Sous-traitance'!H:H,'5. Sous-traitance'!C:C,B47,'5. Sous-traitance'!B:B,$E$25)","v":0},{"$f":"SUMIFS('1. Frais de personnel'!S:S,'1. Frais de personnel'!C:C,B47,'1. Frais de personnel'!B:B,$B$8)+SUMIFS('2-3.Frais de voyage-séjour'!N:N,'2-3.Frais de voyage-séjour'!C:C,B47,'2-3.Frais de voyage-séjour'!B:B,$B$8)+SUMIFS('4. Equipement'!H:H,'4. Equipement'!C:C,B47,'4. Equipement'!B:B,$B$8)+SUMIFS('5. Sous-traitance'!H:H,'5. Sous-traitance'!C:C,B47,'5. Sous-traitance'!B:B,$B$8)","v":0},{"$f":"SUMIFS('1. Frais de personnel'!S:S,'1. Frais de personnel'!C:C,B47,'1. Frais de personnel'!B:B,$G$25)+SUMIFS('2-3.Frais de voyage-séjour'!N:N,'2-3.Frais de voyage-séjour'!C:C,B47,'2-3.Frais de voyage-séjour'!B:B,$G$25)+SUMIFS('4. Equipement'!H:H,'4. Equipement'!C:C,B47,'4. Equipement'!B:B,$G$25)+SUMIFS('5. Sous-traitance'!H:H,'5. Sous-traitance'!C:C,B47,'5. Sous-traitance'!B:B,$G$25)","v":0},{"$f":"SUMIF('B. Mobilité Spécial - Etudiant'!B:B,B47,'B. Mobilité Spécial - Etudiant'!N:N)+SUMIF('B. Mobilité Spécial - Personnel'!B:B,B47,'B. Mobilité Spécial - Personnel'!N:N)","v":0},0]
[null,"P23",{"$f":"SUMIFS('1. Frais de personnel'!S:S,'1. Frais de personnel'!C:C,B48,'1. Frais de personnel'!B:B,$C$25)+SUMIFS('2-3.Frais de voyage-séjour'!N:N,'2-3.Frais de voyage-séjour'!C:C,B48,'2-3.Frais de voyage-séjour'!B:B,$C$25)+SUMIFS('4. Equipement'!H:H,'4. Equipement'!C:C,B48,'4. Equipement'!B:B,$C$25)+SUMIFS('5. Sous-traitance'!H:H,'5. Sous-traitance'!C:C,B48,'5. Sous-traitance'!B:B,$C$25)","v":0},{"$f":"SUMIFS('1. Frais de personnel'!S:S,'1. Frais de personnel'!C:C,B48,'1. Frais de personnel'!B:B,$D$25)+SUMIFS('2-3.Frais de voyage-séjour'!N:N,'2-3.Frais de voyage-séjour'!C:C,B48,'2-3.Frais de voyage-séjour'!B:B,$D$25)+SUMIFS('4. Equipement'!H:H,'4. Equipement'!C:C,B48,'4. Equipement'!B:B,$D$25)+SUMIFS('5. Sous-traitance'!H:H,'5. Sous-traitance'!C:C,B48,'5. Sous-traitance'!B:B,$D$25)","v":0},{"$f":"SUMIFS('1. Frais de personnel'!S:S,'1. Frais de personnel'!C:C,B48,'1. Frais de personnel'!B:B,$E$25)+SUMIFS('2-3.Frais de voyage-séjour'!N:N,'2-3.Frais de voyage-séjour'!C:C,B48,'2-3.Frais de voyage-séjour'!B:B,$E$25)+SUMIFS('4. Equipement'!H:H,'4. Equipement'!C:C,B48,'4. Equipement'!B:B,$E$25)+SUMIFS('5. Sous-traitance'!H:H,'5. Sous-traitance'!C:C,B48,'5. Sous-traitance'!B:B,$E$25)","v":0},{"$f":"SUMIFS('1. Frais de personnel'!S:S,'1. Frais de personnel'!C:C,B48,'1. Frais de personnel'!B:B,$B$8)+SUMIFS('2-3.Frais de voyage-séjour'!N:N,'2-3.Frais de voyage-séjour'!C:C,B48,'2-3.Frais de voyage-séjour'!B:B,$B$8)+SUMIFS('4. Equipement'!H:H,'4. Equipement'!C:C,B48,'4. Equipement'!B:B,$B$8)+SUMIFS('5. Sous-traitance'!H:H,'5. Sous-traitance'!C:C,B48,'5. Sous-traitance'!B:B,$B$8)","v":0},{"$f":"SUMIFS('1. Frais de personnel'!S:S,'1. Frais de personnel'!C:C,B48,'1. Frais de personnel'!B:B,$G$25)+SUMIFS('2-3.Frais de voyage-séjour'!N:N,'2-3.Frais de voyage-séjour'!C:C,B48,'2-3.Frais de voyage-séjour'!B:B,$G$25)+SUMIFS('4. Equipement'!H:H,'4. Equipement'!C:C,B48,'4. Equipement'!B:B,$G$25)+SUMIFS('5. Sous-traitance'!H:H,'5. Sous-traitance'!C:C,B48,'5. Sous-traitance'!B:B,$G$25)","v":0},{"$f":"SUMIF('B. Mobilité Spécial - Etudiant'!B:B,B48,'B. Mobilité Spécial - Etudiant'!N:N)+SUMIF('B. Mobilité Spécial - Personnel'!B:B,B48,'B. Mobilité Spécial - Personnel'!N:N)","v":0},0]
[null,"P24",{"$f":"SUMIFS('1. Frais de personnel'!S:S,'1. Frais de personnel'!C:C,B49,'1. Frais de personnel'!B:B,$C$25)+SUMIFS('2-3.Frais de voyage-séjour'!N:N,'2-3.Frais de voyage-séjour'!C:C,B49,'2-3.Frais de voyage-séjour'!B:B,$C$25)+SUMIFS('4. Equipement'!H:H,'4. Equipement'!C:C,B49,'4. Equipement'!B:B,$C$25)+SUMIFS('5. Sous-traitance'!H:H,'5. Sous-traitance'!C:C,B49,'5. Sous-traitance'!B:B,$C$25)","v":0},{"$f":"SUMIFS('1. Frais de personnel'!S:S,'1. Frais de personnel'!C:C,B49,'1. Frais de personnel'!B:B,$D$25)+SUMIFS('2-3.Frais de voyage-séjour'!N:N,'2-3.Frais de voyage-séjour'!C:C,B49,'2-3.Frais de voyage-séjour'!B:B,$D$25)+SUMIFS('4. Equipement'!H:H,'4. Equipement'!C:C,B49,'4. Equipement'!B:B,$D$25)+SUMIFS('5. Sous-traitance'!H:H,'5. Sous-traitance'!C:C,B49,'5. Sous-traitance'!B:B,$D$25)","v":0},{"$f":"SUMIFS('1. Frais de personnel'!S:S,'1. Frais de personnel'!C:C,B49,'1. Frais de personnel'!B:B,$E$25)+SUMIFS('2-3.Frais de voyage-séjour'!N:N,'2-3.Frais de voyage-séjour'!C:C,B49,'2-3.Frais de voyage-séjour'!B:B,$E$25)+SUMIFS('4. Equipement'!H:H,'4. Equipement'!C:C,B49,'4. Equipement'!B:B,$E$25)+SUMIFS('5. Sous-traitance'!H:H,'5. Sous-traitance'!C:C,B49,'5. Sous-traitance'!B:B,$E$25)","v":0},{"$f":"SUMIFS('1. Frais de personnel'!S:S,'1. Frais de personnel'!C:C,B49,'1. Frais de personnel'!B:B,$B$8)+SUMIFS('2-3.Frais de voyage-séjour'!N:N,'2-3.Frais de voyage-séjour'!C:C,B49,'2-3.Frais de voyage-séjour'!B:B,$B$8)+SUMIFS('4. Equipement'!H:H,'4. Equipement'!C:C,B49,'4. Equipement'!B:B,$B$8)+SUMIFS('5. Sous-traitance'!H:H,'5. Sous-traitance'!C:C,B49,'5. Sous-traitance'!B:B,$B$8)","v":0},{"$f":"SUMIFS('1. Frais de personnel'!S:S,'1. Frais de personnel'!C:C,B49,'1. Frais de personnel'!B:B,$G$25)+SUMIFS('2-3.Frais de voyage-séjour'!N:N,'2-3.Frais de voyage-séjour'!C:C,B49,'2-3.Frais de voyage-séjour'!B:B,$G$25)+SUMIFS('4. Equipement'!H:H,'4. Equipement'!C:C,B49,'4. Equipement'!B:B,$G$25)+SUMIFS('5. Sous-traitance'!H:H,'5. Sous-traitance'!C:C,B49,'5. Sous-traitance'!B:B,$G$25)","v":0},{"$f":"SUMIF('B. Mobilité Spécial - Etudiant'!B:B,B49,'B. Mobilité Spécial - Etudiant'!N:N)+SUMIF('B. Mobilité Spécial - Personnel'!B:B,B49,'B. Mobilité Spécial - Personnel'!N:N)","v":0},0]
[null,"P25",{"$f":"SUMIFS('1. Frais de personnel'!S:S,'1. Frais de personnel'!C:C,B50,'1. Frais de personnel'!B:B,$C$25)+SUMIFS('2-3.Frais de voyage-séjour'!N:N,'2-3.Frais de voyage-séjour'!C:C,B50,'2-3.Frais de voyage-séjour'!B:B,$C$25)+SUMIFS('4. Equipement'!H:H,'4. Equipement'!C:C,B50,'4. Equipement'!B:B,$C$25)+SUMIFS('5. Sous-traitance'!H:H,'5. Sous-traitance'!C:C,B50,'5. Sous-traitance'!B:B,$C$25)","v":0},{"$f":"SUMIFS('1. Frais de personnel'!S:S,'1. Frais de personnel'!C:C,B50,'1. Frais de personnel'!B:B,$D$25)+SUMIFS('2-3.Frais de voyage-séjour'!N:N,'2-3.Frais de voyage-séjour'!C:C,B50,'2-3.Frais de voyage-séjour'!B:B,$D$25)+SUMIFS('4. Equipement'!H:H,'4. Equipement'!C:C,B50,'4. Equipement'!B:B,$D$25)+SUMIFS('5. Sous-traitance'!H:H,'5. Sous-traitance'!C:C,B50,'5. Sous-traitance'!B:B,$D$25)","v":0},{"$f":"SUMIFS('1. Frais de personnel'!S:S,'1. Frais de personnel'!C:C,B50,'1. Frais de personnel'!B:B,$E$25)+SUMIFS('2-3.Frais de voyage-séjour'!N:N,'2-3.Frais de voyage-séjour'!C:C,B50,'2-3.Frais de voyage-séjour'!B:B,$E$25)+SUMIFS('4. Equipement'!H:H,'4. Equipement'!C:C,B50,'4. Equipement'!B:B,$E$25)+SUMIFS('5. Sous-traitance'!H:H,'5. Sous-traitance'!C:C,B50,'5. Sous-traitance'!B:B,$E$25)","v":0},{"$f":"SUMIFS('1. Frais de personnel'!S:S,'1. Frais de personnel'!C:C,B50,'1. Frais de personnel'!B:B,$B$8)+SUMIFS('2-3.Frais de voyage-séjour'!N:N,'2-3.Frais de voyage-séjour'!C:C,B50,'2-3.Frais de voyage-séjour'!B:B,$B$8)+SUMIFS('4. Equipement'!H:H,'4. Equipement'!C:C,B50,'4. Equipement'!B:B,$B$8)+SUMIFS('5. Sous-traitance'!H:H,'5. Sous-traitance'!C:C,B50,'5. Sous-traitance'!B:B,$B$8)","v":0},{"$f":"SUMIFS('1. Frais de personnel'!S:S,'1. Frais de personnel'!C:C,B50,'1. Frais de personnel'!B:B,$G$25)+SUMIFS('2-3.Frais de voyage-séjour'!N:N,'2-3.Frais de voyage-séjour'!C:C,B50,'2-3.Frais de voyage-séjour'!B:B,$G$25)+SUMIFS('4. Equipement'!H:H,'4. Equipement'!C:C,B50,'4. Equipement'!B:B,$G$25)+SUMIFS('5. Sous-traitance'!H:H,'5. Sous-traitance'!C:C,B50,'5. Sous-traitance'!B:B,$G$25)","v":0},{"$f":"SUMIF('B. Mobilité Spécial - Etudiant'!B:B,B50,'B. Mobilité Spécial - Etudiant'!N:N)+SUMIF('B. Mobilité Spécial - Personnel'!B:B,B50,'B. Mobilité Spécial - Personnel'!N:N)","v":0},0]
[null,"P26",{"$f":"SUMIFS('1. Frais de personnel'!S:S,'1. Frais de personnel'!C:C,B51,'1. Frais de personnel'!B:B,$C$25)+SUMIFS('2-3.Frais de voyage-séjour'!N:N,'2-3.Frais de voyage-séjour'!C:C,B51,'2-3.Frais de voyage-séjour'!B:B,$C$25)+SUMIFS('4. Equipement'!H:H,'4. Equipement'!C:C,B51,'4. Equipement'!B:B,$C$25)+SUMIFS('5. Sous-traitance'!H:H,'5. Sous-traitance'!C:C,B51,'5. Sous-traitance'!B:B,$C$25)","v":0},{"$f":"SUMIFS('1. Frais de personnel'!S:S,'1. Frais de personnel'!C:C,B51,'1. Frais de personnel'!B:B,$D$25)+SUMIFS('2-3.Frais de voyage-séjour'!N:N,'2-3.Frais de voyage-séjour'!C:C,B51,'2-3.Frais de voyage-séjour'!B:B,$D$25)+SUMIFS('4. Equipement'!H:H,'4. Equipement'!C:C,B51,'4. Equipement'!B:B,$D$25)+SUMIFS('5. Sous-traitance'!H:H,'5. Sous-traitance'!C:C,B51,'5. Sous-traitance'!B:B,$D$25)","v":0},{"$f":"SUMIFS('1. Frais de personnel'!S:S,'1. Frais de personnel'!C:C,B51,'1. Frais de personnel'!B:B,$E$25)+SUMIFS('2-3.Frais de voyage-séjour'!N:N,'2-3.Frais de voyage-séjour'!C:C,B51,'2-3.Frais de voyage-séjour'!B:B,$E$25)+SUMIFS('4. Equipement'!H:H,'4. Equipement'!C:C,B51,'4. Equipement'!B:B,$E$25)+SUMIFS('5. Sous-traitance'!H:H,'5. Sous-traitance'!C:C,B51,'5. Sous-traitance'!B:B,$E$25)","v":0},{"$f":"SUMIFS('1. Frais de personnel'!S:S,'1. Frais de personnel'!C:C,B51,'1. Frais de personnel'!B:B,$B$8)+SUMIFS('2-3.Frais de voyage-séjour'!N:N,'2-3.Frais de voyage-séjour'!C:C,B51,'2-3.Frais de voyage-séjour'!B:B,$B$8)+SUMIFS('4. Equipement'!H:H,'4. Equipement'!C:C,B51,'4. Equipement'!B:B,$B$8)+SUMIFS('5. Sous-traitance'!H:H,'5. Sous-traitance'!C:C,B51,'5. Sous-traitance'!B:B,$B$8)","v":0},{"$f":"SUMIFS('1. Frais de personnel'!S:S,'1. Frais de personnel'!C:C,B51,'1. Frais de personnel'!B:B,$G$25)+SUMIFS('2-3.Frais de voyage-séjour'!N:N,'2-3.Frais de voyage-séjour'!C:C,B51,'2-3.Frais de voyage-séjour'!B:B,$G$25)+SUMIFS('4. Equipement'!H:H,'4. Equipement'!C:C,B51,'4. Equipement'!B:B,$G$25)+SUMIFS('5. Sous-traitance'!H:H,'5. Sous-traitance'!C:C,B51,'5. Sous-traitance'!B:B,$G$25)","v":0},{"$f":"SUMIF('B. Mobilité Spécial - Etudiant'!B:B,B51,'B. Mobilité Spécial - Etudiant'!N:N)+SUMIF('B. Mobilité Spécial - Personnel'!B:B,B51,'B. Mobilité Spécial - Personnel'!N:N)","v":0},0]
[null,"P27",{"$f":"SUMIFS('1. Frais de personnel'!S:S,'1. Frais de personnel'!C:C,B52,'1. Frais de personnel'!B:B,$C$25)+SUMIFS('2-3.Frais de voyage-séjour'!N:N,'2-3.Frais de voyage-séjour'!C:C,B52,'2-3.Frais de voyage-séjour'!B:B,$C$25)+SUMIFS('4. Equipement'!H:H,'4. Equipement'!C:C,B52,'4. Equipement'!B:B,$C$25)+SUMIFS('5. Sous-traitance'!H:H,'5. Sous-traitance'!C:C,B52,'5. Sous-traitance'!B:B,$C$25)","v":0},{"$f":"SUMIFS('1. Frais de personnel'!S:S,'1. Frais de personnel'!C:C,B52,'1. Frais de personnel'!B:B,$D$25)+SUMIFS('2-3.Frais de voyage-séjour'!N:N,'2-3.Frais de voyage-séjour'!C:C,B52,'2-3.Frais de voyage-séjour'!B:B,$D$25)+SUMIFS('4. Equipement'!H:H,'4. Equipement'!C:C,B52,'4. Equipement'!B:B,$D$25)+SUMIFS('5. Sous-traitance'!H:H,'5. Sous-traitance'!C:C,B52,'5. Sous-traitance'!B:B,$D$25)","v":0},{"$f":"SUMIFS('1. Frais de personnel'!S:S,'1. Frais de personnel'!C:C,B52,'1. Frais de personnel'!B:B,$E$25)+SUMIFS('2-3.Frais de voyage-séjour'!N:N,'2-3.Frais de voyage-séjour'!C:C,B52,'2-3.Frais de voyage-séjour'!B:B,$E$25)+SUMIFS('4. Equipement'!H:H,'4. Equipement'!C:C,B52,'4. Equipement'!B:B,$E$25)+SUMIFS('5. Sous-traitance'!H:H,'5. Sous-traitance'!C:C,B52,'5. Sous-traitance'!B:B,$E$25)","v":0},{"$f":"SUMIFS('1. Frais de personnel'!S:S,'1. Frais de personnel'!C:C,B52,'1. Frais de personnel'!B:B,$B$8)+SUMIFS('2-3.Frais de voyage-séjour'!N:N,'2-3.Frais de voyage-séjour'!C:C,B52,'2-3.Frais de voyage-séjour'!B:B,$B$8)+SUMIFS('4. Equipement'!H:H,'4. Equipement'!C:C,B52,'4. Equipement'!B:B,$B$8)+SUMIFS('5. Sous-traitance'!H:H,'5. Sous-traitance'!C:C,B52,'5. Sous-traitance'!B:B,$B$8)","v":0},{"$f":"SUMIFS('1. Frais de personnel'!S:S,'1. Frais de personnel'!C:C,B52,'1. Frais de personnel'!B:B,$G$25)+SUMIFS('2-3.Frais de voyage-séjour'!N:N,'2-3.Frais de voyage-séjour'!C:C,B52,'2-3.Frais de voyage-séjour'!B:B,$G$25)+SUMIFS('4. Equipement'!H:H,'4. Equipement'!C:C,B52,'4. Equipement'!B:B,$G$25)+SUMIFS('5. Sous-traitance'!H:H,'5. Sous-traitance'!C:C,B52,'5. Sous-traitance'!B:B,$G$25)","v":0},{"$f":"SUMIF('B. Mobilité Spécial - Etudiant'!B:B,B52,'B. Mobilité Spécial - Etudiant'!N:N)+SUMIF('B. Mobilité Spécial - Personnel'!B:B,B52,'B. Mobilité Spécial - Personnel'!N:N)","v":0},0]
[null,"P28",{"$f":"SUMIFS('1. Frais de personnel'!S:S,'1. Frais de personnel'!C:C,B53,'1. Frais de personnel'!B:B,$C$25)+SUMIFS('2-3.Frais de voyage-séjour'!N:N,'2-3.Frais de voyage-séjour'!C:C,B53,'2-3.Frais de voyage-séjour'!B:B,$C$25)+SUMIFS('4. Equipement'!H:H,'4. Equipement'!C:C,B53,'4. Equipement'!B:B,$C$25)+SUMIFS('5. Sous-traitance'!H:H,'5. Sous-traitance'!C:C,B53,'5. Sous-traitance'!B:B,$C$25)","v":0},{"$f":"SUMIFS('1. Frais de personnel'!S:S,'1. Frais de personnel'!C:C,B53,'1. Frais de personnel'!B:B,$D$25)+SUMIFS('2-3.Frais de voyage-séjour'!N:N,'2-3.Frais de voyage-séjour'!C:C,B53,'2-3.Frais de voyage-séjour'!B:B,$D$25)+SUMIFS('4. Equipement'!H:H,'4. Equipement'!C:C,B53,'4. Equipement'!B:B,$D$25)+SUMIFS('5. Sous-traitance'!H:H,'5. Sous-traitance'!C:C,B53,'5. Sous-traitance'!B:B,$D$25)","v":0},{"$f":"SUMIFS('1. Frais de personnel'!S:S,'1. Frais de personnel'!C:C,B53,'1. Frais de personnel'!B:B,$E$25)+SUMIFS('2-3.Frais de voyage-séjour'!N:N,'2-3.Frais de voyage-séjour'!C:C,B53,'2-3.Frais de voyage-séjour'!B:B,$E$25)+SUMIFS('4. Equipement'!H:H,'4. Equipement'!C:C,B53,'4. Equipement'!B:B,$E$25)+SUMIFS('5. Sous-traitance'!H:H,'5. Sous-traitance'!C:C,B53,'5. Sous-traitance'!B:B,$E$25)","v":0},{"$f":"SUMIFS('1. Frais de personnel'!S:S,'1. Frais de personnel'!C:C,B53,'1. Frais de personnel'!B:B,$B$8)+SUMIFS('2-3.Frais de voyage-séjour'!N:N,'2-3.Frais de voyage-séjour'!C:C,B53,'2-3.Frais de voyage-séjour'!B:B,$B$8)+SUMIFS('4. Equipement'!H:H,'4. Equipement'!C:C,B53,'4. Equipement'!B:B,$B$8)+SUMIFS('5. Sous-traitance'!H:H,'5. Sous-traitance'!C:C,B53,'5. Sous-traitance'!B:B,$B$8)","v":0},{"$f":"SUMIFS('1. Frais de personnel'!S:S,'1. Frais de personnel'!C:C,B53,'1. Frais de personnel'!B:B,$G$25)+SUMIFS('2-3.Frais de voyage-séjour'!N:N,'2-3.Frais de voyage-séjour'!C:C,B53,'2-3.Frais de voyage-séjour'!B:B,$G$25)+SUMIFS('4. Equipement'!H:H,'4. Equipement'!C:C,B53,'4. Equipement'!B:B,$G$25)+SUMIFS('5. Sous-traitance'!H:H,'5. Sous-traitance'!C:C,B53,'5. Sous-traitance'!B:B,$G$25)","v":0},{"$f":"SUMIF('B. Mobilité Spécial - Etudiant'!B:B,B53,'B. Mobilité Spécial - Etudiant'!N:N)+SUMIF('B. Mobilité Spécial - Personnel'!B:B,B53,'B. Mobilité Spécial - Personnel'!N:N)","v":0},0]
[null,"P29",{"$f":"SUMIFS('1. Frais de personnel'!S:S,'1. Frais de personnel'!C:C,B54,'1. Frais de personnel'!B:B,$C$25)+SUMIFS('2-3.Frais de voyage-séjour'!N:N,'2-3.Frais de voyage-séjour'!C:C,B54,'2-3.Frais de voyage-séjour'!B:B,$C$25)+SUMIFS('4. Equipement'!H:H,'4. Equipement'!C:C,B54,'4. Equipement'!B:B,$C$25)+SUMIFS('5. Sous-traitance'!H:H,'5. Sous-traitance'!C:C,B54,'5. Sous-traitance'!B:B,$C$25)","v":0},{"$f":"SUMIFS('1. Frais de personnel'!S:S,'1. Frais de personnel'!C:C,B54,'1. Frais de personnel'!B:B,$D$25)+SUMIFS('2-3.Frais de voyage-séjour'!N:N,'2-3.Frais de voyage-séjour'!C:C,B54,'2-3.Frais de voyage-séjour'!B:B,$D$25)+SUMIFS('4. Equipement'!H:H,'4. Equipement'!C:C,B54,'4. Equipement'!B:B,$D$25)+SUMIFS('5. Sous-traitance'!H:H,'5. Sous-traitance'!C:C,B54,'5. Sous-traitance'!B:B,$D$25)","v":0},{"$f":"SUMIFS('1. Frais de personnel'!S:S,'1. Frais de personnel'!C:C,B54,'1. Frais de personnel'!B:B,$E$25)+SUMIFS('2-3.Frais de voyage-séjour'!N:N,'2-3.Frais de voyage-séjour'!C:C,B54,'2-3.Frais de voyage-séjour'!B:B,$E$25)+SUMIFS('4. Equipement'!H:H,'4. Equipement'!C:C,B54,'4. Equipement'!B:B,$E$25)+SUMIFS('5. Sous-traitance'!H:H,'5. Sous-traitance'!C:C,B54,'5. Sous-traitance'!B:B,$E$25)","v":0},{"$f":"SUMIFS('1. Frais de personnel'!S:S,'1. Frais de personnel'!C:C,B54,'1. Frais de personnel'!B:B,$B$8)+SUMIFS('2-3.Frais de voyage-séjour'!N:N,'2-3.Frais de voyage-séjour'!C:C,B54,'2-3.Frais de voyage-séjour'!B:B,$B$8)+SUMIFS('4. Equipement'!H:H,'4. Equipement'!C:C,B54,'4. Equipement'!B:B,$B$8)+SUMIFS('5. Sous-traitance'!H:H,'5. Sous-traitance'!C:C,B54,'5. Sous-traitance'!B:B,$B$8)","v":0},{"$f":"SUMIFS('1. Frais de personnel'!S:S,'1. Frais de personnel'!C:C,B54,'1. Frais de personnel'!B:B,$G$25)+SUMIFS('2-3.Frais de voyage-séjour'!N:N,'2-3.Frais de voyage-séjour'!C:C,B54,'2-3.Frais de voyage-séjour'!B:B,$G$25)+SUMIFS('4. Equipement'!H:H,'4. Equipement'!C:C,B54,'4. Equipement'!B:B,$G$25)+SUMIFS('5. Sous-traitance'!H:H,'5. Sous-traitance'!C:C,B54,'5. Sous-traitance'!B:B,$G$25)","v":0},{"$f":"SUMIF('B. Mobilité Spécial - Etudiant'!B:B,B54,'B. Mobilité Spécial - Etudiant'!N:N)+SUMIF('B. Mobilité Spécial - Personnel'!B:B,B54,'B. Mobilité Spécial - Personnel'!N:N)","v":0},0]
[null,"P30",{"$f":"SUMIFS('1. Frais de personnel'!S:S,'1. Frais de personnel'!C:C,B55,'1. Frais de personnel'!B:B,$C$25)+SUMIFS('2-3.Frais de voyage-séjour'!N:N,'2-3.Frais de voyage-séjour'!C:C,B55,'2-3.Frais de voyage-séjour'!B:B,$C$25)+SUMIFS('4. Equipement'!H:H,'4. Equipement'!C:C,B55,'4. Equipement'!B:B,$C$25)+SUMIFS('5. Sous-traitance'!H:H,'5. Sous-traitance'!C:C,B55,'5. Sous-traitance'!B:B,$C$25)","v":0},{"$f":"SUMIFS('1. Frais de personnel'!S:S,'1. Frais de personnel'!C:C,B55,'1. Frais de personnel'!B:B,$D$25)+SUMIFS('2-3.Frais de voyage-séjour'!N:N,'2-3.Frais de voyage-séjour'!C:C,B55,'2-3.Frais de voyage-séjour'!B:B,$D$25)+SUMIFS('4. Equipement'!H:H,'4. Equipement'!C:C,B55,'4. Equipement'!B:B,$D$25)+SUMIFS('5. Sous-traitance'!H:H,'5. Sous-traitance'!C:C,B55,'5. Sous-traitance'!B:B,$D$25)","v":0},{"$f":"SUMIFS('1. Frais de personnel'!S:S,'1. Frais de personnel'!C:C,B55,'1. Frais de personnel'!B:B,$E$25)+SUMIFS('2-3.Frais de voyage-séjour'!N:N,'2-3.Frais de voyage-séjour'!C:C,B55,'2-3.Frais de voyage-séjour'!B:B,$E$25)+SUMIFS('4. Equipement'!H:H,'4. Equipement'!C:C,B55,'4. Equipement'!B:B,$E$25)+SUMIFS('5. Sous-traitance'!H:H,'5. Sous-traitance'!C:C,B55,'5. Sous-traitance'!B:B,$E$25)","v":0},{"$f":"SUMIFS('1. Frais de personnel'!S:S,'1. Frais de personnel'!C:C,B55,'1. Frais de personnel'!B:B,$B$8)+SUMIFS('2-3.Frais de voyage-séjour'!N:N,'2-3.Frais de voyage-séjour'!C:C,B55,'2-3.Frais de voyage-séjour'!B:B,$B$8)+SUMIFS('4. Equipement'!H:H,'4. Equipement'!C:C,B55,'4. Equipement'!B:B,$B$8)+SUMIFS('5. Sous-traitance'!H:H,'5. Sous-traitance'!C:C,B55,'5. Sous-traitance'!B:B,$B$8)","v":0},{"$f":"SUMIFS('1. Frais de personnel'!S:S,'1. Frais de personnel'!C:C,B55,'1. Frais de personnel'!B:B,$G$25)+SUMIFS('2-3.Frais de voyage-séjour'!N:N,'2-3.Frais de voyage-séjour'!C:C,B55,'2-3.Frais de voyage-séjour'!B:B,$G$25)+SUMIFS('4. Equipement'!H:H,'4. Equipement'!C:C,B55,'4. Equipement'!B:B,$G$25)+SUMIFS('5. Sous-traitance'!H:H,'5. Sous-traitance'!C:C,B55,'5. Sous-traitance'!B:B,$G$25)","v":0},{"$f":"SUMIF('B. Mobilité Spécial - Etudiant'!B:B,B55,'B. Mobilité Spécial - Etudiant'!N:N)+SUMIF('B. Mobilité Spécial - Personnel'!B:B,B55,'B. Mobilité Spécial - Personnel'!N:N)","v":0},0]
[null,"P31",{"$f":"SUMIFS('1. Frais de personnel'!S:S,'1. Frais de personnel'!C:C,B56,'1. Frais de personnel'!B:B,$C$25)+SUMIFS('2-3.Frais de voyage-séjour'!N:N,'2-3.Frais de voyage-séjour'!C:C,B56,'2-3.Frais de voyage-séjour'!B:B,$C$25)+SUMIFS('4. Equipement'!H:H,'4. Equipement'!C:C,B56,'4. Equipement'!B:B,$C$25)+SUMIFS('5. Sous-traitance'!H:H,'5. Sous-traitance'!C:C,B56,'5. Sous-traitance'!B:B,$C$25)","v":0},{"$f":"SUMIFS('1. Frais de personnel'!S:S,'1. Frais de personnel'!C:C,B56,'1. Frais de personnel'!B:B,$D$25)+SUMIFS('2-3.Frais de voyage-séjour'!N:N,'2-3.Frais de voyage-séjour'!C:C,B56,'2-3.Frais de voyage-séjour'!B:B,$D$25)+SUMIFS('4. Equipement'!H:H,'4. Equipement'!C:C,B56,'4. Equipement'!B:B,$D$25)+SUMIFS('5. Sous-traitance'!H:H,'5. Sous-traitance'!C:C,B56,'5. Sous-traitance'!B:B,$D$25)","v":0},{"$f":"SUMIFS('1. Frais de personnel'!S:S,'1. Frais de personnel'!C:C,B56,'1. Frais de personnel'!B:B,$E$25)+SUMIFS('2-3.Frais de voyage-séjour'!N:N,'2-3.Frais de voyage-séjour'!C:C,B56,'2-3.Frais de voyage-séjour'!B:B,$E$25)+SUMIFS('4. Equipement'!H:H,'4. Equipement'!C:C,B56,'4. Equipement'!B:B,$E$25)+SUMIFS('5. Sous-traitance'!H:H,'5. Sous-traitance'!C:C,B56,'5. Sous-traitance'!B:B,$E$25)","v":0},{"$f":"SUMIFS('1. Frais de personnel'!S:S,'1. Frais de personnel'!C:C,B56,'1. Frais de personnel'!B:B,$B$8)+SUMIFS('2-3.Frais de voyage-séjour'!N:N,'2-3.Frais de voyage-séjour'!C:C,B56,'2-3.Frais de voyage-séjour'!B:B,$B$8)+SUMIFS('4. Equipement'!H:H,'4. Equipement'!C:C,B56,'4. Equipement'!B:B,$B$8)+SUMIFS('5. Sous-traitance'!H:H,'5. Sous-traitance'!C:C,B56,'5. Sous-traitance'!B:B,$B$8)","v":0},{"$f":"SUMIFS('1. Frais de personnel'!S:S,'1. Frais de personnel'!C:C,B56,'1. Frais de personnel'!B:B,$G$25)+SUMIFS('2-3.Frais de voyage-séjour'!N:N,'2-3.Frais de voyage-séjour'!C:C,B56,'2-3.Frais de voyage-séjour'!B:B,$G$25)+SUMIFS('4. Equipement'!H:H,'4. Equipement'!C:C,B56,'4. Equipement'!B:B,$G$25)+SUMIFS('5. Sous-traitance'!H:H,'5. Sous-traitance'!C:C,B56,'5. Sous-traitance'!B:B,$G$25)","v":0},{"$f":"SUMIF('B. Mobilité Spécial - Etudiant'!B:B,B56,'B. Mobilité Spécial - Etudiant'!N:N)+SUMIF('B. Mobilité Spécial - Personnel'!B:B,B56,'B. Mobilité Spécial - Personnel'!N:N)","v":0},0]
[null,"P32",{"$f":"SUMIFS('1. Frais de personnel'!S:S,'1. Frais de personnel'!C:C,B57,'1. Frais de personnel'!B:B,$C$25)+SUMIFS('2-3.Frais de voyage-séjour'!N:N,'2-3.Frais de voyage-séjour'!C:C,B57,'2-3.Frais de voyage-séjour'!B:B,$C$25)+SUMIFS('4. Equipement'!H:H,'4. Equipement'!C:C,B57,'4. Equipement'!B:B,$C$25)+SUMIFS('5. Sous-traitance'!H:H,'5. Sous-traitance'!C:C,B57,'5. Sous-traitance'!B:B,$C$25)","v":0},{"$f":"SUMIFS('1. Frais de personnel'!S:S,'1. Frais de personnel'!C:C,B57,'1. Frais de personnel'!B:B,$D$25)+SUMIFS('2-3.Frais de voyage-séjour'!N:N,'2-3.Frais de voyage-séjour'!C:C,B57,'2-3.Frais de voyage-séjour'!B:B,$D$25)+SUMIFS('4. Equipement'!H:H,'4. Equipement'!C:C,B57,'4. Equipement'!B:B,$D$25)+SUMIFS('5. Sous-traitance'!H:H,'5. Sous-traitance'!C:C,B57,'5. Sous-traitance'!B:B,$D$25)","v":0},{"$f":"SUMIFS('1. Frais de personnel'!S:S,'1. Frais de personnel'!C:C,B57,'1. Frais de personnel'!B:B,$E$25)+SUMIFS('2-3.Frais de voyage-séjour'!N:N,'2-3.Frais de voyage-séjour'!C:C,B57,'2-3.Frais de voyage-séjour'!B:B,$E$25)+SUMIFS('4. Equipement'!H:H,'4. Equipement'!C:C,B57,'4. Equipement'!B:B,$E$25)+SUMIFS('5. Sous-traitance'!H:H,'5. Sous-traitance'!C:C,B57,'5. Sous-traitance'!B:B,$E$25)","v":0},{"$f":"SUMIFS('1. Frais de personnel'!S:S,'1. Frais de personnel'!C:C,B57,'1. Frais de personnel'!B:B,$B$8)+SUMIFS('2-3.Frais de voyage-séjour'!N:N,'2-3.Frais de voyage-séjour'!C:C,B57,'2-3.Frais de voyage-séjour'!B:B,$B$8)+SUMIFS('4. Equipement'!H:H,'4. Equipement'!C:C,B57,'4. Equipement'!B:B,$B$8)+SUMIFS('5. Sous-traitance'!H:H,'5. Sous-traitance'!C:C,B57,'5. Sous-traitance'!B:B,$B$8)","v":0},{"$f":"SUMIFS('1. Frais de personnel'!S:S,'1. Frais de personnel'!C:C,B57,'1. Frais de personnel'!B:B,$G$25)+SUMIFS('2-3.Frais de voyage-séjour'!N:N,'2-3.Frais de voyage-séjour'!C:C,B57,'2-3.Frais de voyage-séjour'!B:B,$G$25)+SUMIFS('4. Equipement'!H:H,'4. Equipement'!C:C,B57,'4. Equipement'!B:B,$G$25)+SUMIFS('5. Sous-traitance'!H:H,'5. Sous-traitance'!C:C,B57,'5. Sous-traitance'!B:B,$G$25)","v":0},{"$f":"SUMIF('B. Mobilité Spécial - Etudiant'!B:B,B57,'B. Mobilité Spécial - Etudiant'!N:N)+SUMIF('B. Mobilité Spécial - Personnel'!B:B,B57,'B. Mobilité Spécial - Personnel'!N:N)","v":0},0]
[null,"P33",{"$f":"SUMIFS('1. Frais de personnel'!S:S,'1. Frais de personnel'!C:C,B58,'1. Frais de personnel'!B:B,$C$25)+SUMIFS('2-3.Frais de voyage-séjour'!N:N,'2-3.Frais de voyage-séjour'!C:C,B58,'2-3.Frais de voyage-séjour'!B:B,$C$25)+SUMIFS('4. Equipement'!H:H,'4. Equipement'!C:C,B58,'4. Equipement'!B:B,$C$25)+SUMIFS('5. Sous-traitance'!H:H,'5. Sous-traitance'!C:C,B58,'5. Sous-traitance'!B:B,$C$25)","v":0},{"$f":"SUMIFS('1. Frais de personnel'!S:S,'1. Frais de personnel'!C:C,B58,'1. Frais de personnel'!B:B,$D$25)+SUMIFS('2-3.Frais de voyage-séjour'!N:N,'2-3.Frais de voyage-séjour'!C:C,B58,'2-3.Frais de voyage-séjour'!B:B,$D$25)+SUMIFS('4. Equipement'!H:H,'4. Equipement'!C:C,B58,'4. Equipement'!B:B,$D$25)+SUMIFS('5. Sous-traitance'!H:H,'5. Sous-traitance'!C:C,B58,'5. Sous-traitance'!B:B,$D$25)","v":0},{"$f":"SUMIFS('1. Frais de personnel'!S:S,'1. Frais de personnel'!C:C,B58,'1. Frais de personnel'!B:B,$E$25)+SUMIFS('2-3.Frais de voyage-séjour'!N:N,'2-3.Frais de voyage-séjour'!C:C,B58,'2-3.Frais de voyage-séjour'!B:B,$E$25)+SUMIFS('4. Equipement'!H:H,'4. Equipement'!C:C,B58,'4. Equipement'!B:B,$E$25)+SUMIFS('5. Sous-traitance'!H:H,'5. Sous-traitance'!C:C,B58,'5. Sous-traitance'!B:B,$E$25)","v":0},{"$f":"SUMIFS('1. Frais de personnel'!S:S,'1. Frais de personnel'!C:C,B58,'1. Frais de personnel'!B:B,$B$8)+SUMIFS('2-3.Frais de voyage-séjour'!N:N,'2-3.Frais de voyage-séjour'!C:C,B58,'2-3.Frais de voyage-séjour'!B:B,$B$8)+SUMIFS('4. Equipement'!H:H,'4. Equipement'!C:C,B58,'4. Equipement'!B:B,$B$8)+SUMIFS('5. Sous-traitance'!H:H,'5. Sous-traitance'!C:C,B58,'5. Sous-traitance'!B:B,$B$8)","v":0},{"$f":"SUMIFS('1. Frais de personnel'!S:S,'1. Frais de personnel'!C:C,B58,'1. Frais de personnel'!B:B,$G$25)+SUMIFS('2-3.Frais de voyage-séjour'!N:N,'2-3.Frais de voyage-séjour'!C:C,B58,'2-3.Frais de voyage-séjour'!B:B,$G$25)+SUMIFS('4. Equipement'!H:H,'4. Equipement'!C:C,B58,'4. Equipement'!B:B,$G$25)+SUMIFS('5. Sous-traitance'!H:H,'5. Sous-traitance'!C:C,B58,'5. Sous-traitance'!B:B,$G$25)","v":0},{"$f":"SUMIF('B. Mobilité Spécial - Etudiant'!B:B,B58,'B. Mobilité Spécial - Etudiant'!N:N)+SUMIF('B. Mobilité Spécial - Personnel'!B:B,B58,'B. Mobilité Spécial - Personnel'!N:N)","v":0},0]
[null,"P34",{"$f":"SUMIFS('1. Frais de personnel'!S:S,'1. Frais de personnel'!C:C,B59,'1. Frais de personnel'!B:B,$C$25)+SUMIFS('2-3.Frais de voyage-séjour'!N:N,'2-3.Frais de voyage-séjour'!C:C,B59,'2-3.Frais de voyage-séjour'!B:B,$C$25)+SUMIFS('4. Equipement'!H:H,'4. Equipement'!C:C,B59,'4. Equipement'!B:B,$C$25)+SUMIFS('5. Sous-traitance'!H:H,'5. Sous-traitance'!C:C,B59,'5. Sous-traitance'!B:B,$C$25)","v":0},{"$f":"SUMIFS('1. Frais de personnel'!S:S,'1. Frais de personnel'!C:C,B59,'1. Frais de personnel'!B:B,$D$25)+SUMIFS('2-3.Frais de voyage-séjour'!N:N,'2-3.Frais de voyage-séjour'!C:C,B59,'2-3.Frais de voyage-séjour'!B:B,$D$25)+SUMIFS('4. Equipement'!H:H,'4. Equipement'!C:C,B59,'4. Equipement'!B:B,$D$25)+SUMIFS('5. Sous-traitance'!H:H,'5. Sous-traitance'!C:C,B59,'5. Sous-traitance'!B:B,$D$25)","v":0},{"$f":"SUMIFS('1. Frais de personnel'!S:S,'1. Frais de personnel'!C:C,B59,'1. Frais de personnel'!B:B,$E$25)+SUMIFS('2-3.Frais de voyage-séjour'!N:N,'2-3.Frais de voyage-séjour'!C:C,B59,'2-3.Frais de voyage-séjour'!B:B,$E$25)+SUMIFS('4. Equipement'!H:H,'4. Equipement'!C:C,B59,'4. Equipement'!B:B,$E$25)+SUMIFS('5. Sous-traitance'!H:H,'5. Sous-traitance'!C:C,B59,'5. Sous-traitance'!B:B,$E$25)","v":0},{"$f":"SUMIFS('1. Frais de personnel'!S:S,'1. Frais de personnel'!C:C,B59,'1. Frais de personnel'!B:B,$B$8)+SUMIFS('2-3.Frais de voyage-séjour'!N:N,'2-3.Frais de voyage-séjour'!C:C,B59,'2-3.Frais de voyage-séjour'!B:B,$B$8)+SUMIFS('4. Equipement'!H:H,'4. Equipement'!C:C,B59,'4. Equipement'!B:B,$B$8)+SUMIFS('5. Sous-traitance'!H:H,'5. Sous-traitance'!C:C,B59,'5. Sous-traitance'!B:B,$B$8)","v":0},{"$f":"SUMIFS('1. Frais de personnel'!S:S,'1. Frais de personnel'!C:C,B59,'1. Frais de personnel'!B:B,$G$25)+SUMIFS('2-3.Frais de voyage-séjour'!N:N,'2-3.Frais de voyage-séjour'!C:C,B59,'2-3.Frais de voyage-séjour'!B:B,$G$25)+SUMIFS('4. Equipement'!H:H,'4. Equipement'!C:C,B59,'4. Equipement'!B:B,$G$25)+SUMIFS('5. Sous-traitance'!H:H,'5. Sous-traitance'!C:C,B59,'5. Sous-traitance'!B:B,$G$25)","v":0},{"$f":"SUMIF('B. Mobilité Spécial - Etudiant'!B:B,B59,'B. Mobilité Spécial - Etudiant'!N:N)+SUMIF('B. Mobilité Spécial - Personnel'!B:B,B59,'B. Mobilité Spécial - Personnel'!N:N)","v":0},0]
[null,"P35",{"$f":"SUMIFS('1. Frais de personnel'!S:S,'1. Frais de personnel'!C:C,B60,'1. Frais de personnel'!B:B,$C$25)+SUMIFS('2-3.Frais de voyage-séjour'!N:N,'2-3.Frais de voyage-séjour'!C:C,B60,'2-3.Frais de voyage-séjour'!B:B,$C$25)+SUMIFS('4. Equipement'!H:H,'4. Equipement'!C:C,B60,'4. Equipement'!B:B,$C$25)+SUMIFS('5. Sous-traitance'!H:H,'5. Sous-traitance'!C:C,B60,'5. Sous-traitance'!B:B,$C$25)","v":0},{"$f":"SUMIFS('1. Frais de personnel'!S:S,'1. Frais de personnel'!C:C,B60,'1. Frais de personnel'!B:B,$D$25)+SUMIFS('2-3.Frais de voyage-séjour'!N:N,'2-3.Frais de voyage-séjour'!C:C,B60,'2-3.Frais de voyage-séjour'!B:B,$D$25)+SUMIFS('4. Equipement'!H:H,'4. Equipement'!C:C,B60,'4. Equipement'!B:B,$D$25)+SUMIFS('5. Sous-traitance'!H:H,'5. Sous-traitance'!C:C,B60,'5. Sous-traitance'!B:B,$D$25)","v":0},{"$f":"SUMIFS('1. Frais de personnel'!S:S,'1. Frais de personnel'!C:C,B60,'1. Frais de personnel'!B:B,$E$25)+SUMIFS('2-3.Frais de voyage-séjour'!N:N,'2-3.Frais de voyage-séjour'!C:C,B60,'2-3.Frais de voyage-séjour'!B:B,$E$25)+SUMIFS('4. Equipement'!H:H,'4. Equipement'!C:C,B60,'4. Equipement'!B:B,$E$25)+SUMIFS('5. Sous-traitance'!H:H,'5. Sous-traitance'!C:C,B60,'5. Sous-traitance'!B:B,$E$25)","v":0},{"$f":"SUMIFS('1. Frais de personnel'!S:S,'1. Frais de personnel'!C:C,B60,'1. Frais de personnel'!B:B,$B$8)+SUMIFS('2-3.Frais de voyage-séjour'!N:N,'2-3.Frais de voyage-séjour'!C:C,B60,'2-3.Frais de voyage-séjour'!B:B,$B$8)+SUMIFS('4. Equipement'!H:H,'4. Equipement'!C:C,B60,'4. Equipement'!B:B,$B$8)+SUMIFS('5. Sous-traitance'!H:H,'5. Sous-traitance'!C:C,B60,'5. Sous-traitance'!B:B,$B$8)","v":0},{"$f":"SUMIFS('1. Frais de personnel'!S:S,'1. Frais de personnel'!C:C,B60,'1. Frais de personnel'!B:B,$G$25)+SUMIFS('2-3.Frais de voyage-séjour'!N:N,'2-3.Frais de voyage-séjour'!C:C,B60,'2-3.Frais de voyage-séjour'!B:B,$G$25)+SUMIFS('4. Equipement'!H:H,'4. Equipement'!C:C,B60,'4. Equipement'!B:B,$G$25)+SUMIFS('5. Sous-traitance'!H:H,'5. Sous-traitance'!C:C,B60,'5. Sous-traitance'!B:B,$G$25)","v":0},{"$f":"SUMIF('B. Mobilité Spécial - Etudiant'!B:B,B60,'B. Mobilité Spécial - Etudiant'!N:N)+SUMIF('B. Mobilité Spécial - Personnel'!B:B,B60,'B. Mobilité Spécial - Personnel'!N:N)","v":0},0]
[null,"P36",{"$f":"SUMIFS('1. Frais de personnel'!S:S,'1. Frais de personnel'!C:C,B61,'1. Frais de personnel'!B:B,$C$25)+SUMIFS('2-3.Frais de voyage-séjour'!N:N,'2-3.Frais de voyage-séjour'!C:C,B61,'2-3.Frais de voyage-séjour'!B:B,$C$25)+SUMIFS('4. Equipement'!H:H,'4. Equipement'!C:C,B61,'4. Equipement'!B:B,$C$25)+SUMIFS('5. Sous-traitance'!H:H,'5. Sous-traitance'!C:C,B61,'5. Sous-traitance'!B:B,$C$25)","v":0},{"$f":"SUMIFS('1. Frais de personnel'!S:S,'1. Frais de personnel'!C:C,B61,'1. Frais de personnel'!B:B,$D$25)+SUMIFS('2-3.Frais de voyage-séjour'!N:N,'2-3.Frais de voyage-séjour'!C:C,B61,'2-3.Frais de voyage-séjour'!B:B,$D$25)+SUMIFS('4. Equipement'!H:H,'4. Equipement'!C:C,B61,'4. Equipement'!B:B,$D$25)+SUMIFS('5. Sous-traitance'!H:H,'5. Sous-traitance'!C:C,B61,'5. Sous-traitance'!B:B,$D$25)","v":0},{"$f":"SUMIFS('1. Frais de personnel'!S:S,'1. Frais de personnel'!C:C,B61,'1. Frais de personnel'!B:B,$E$25)+SUMIFS('2-3.Frais de voyage-séjour'!N:N,'2-3.Frais de voyage-séjour'!C:C,B61,'2-3.Frais de voyage-séjour'!B:B,$E$25)+SUMIFS('4. Equipement'!H:H,'4. Equipement'!C:C,B61,'4. Equipement'!B:B,$E$25)+SUMIFS('5. Sous-traitance'!H:H,'5. Sous-traitance'!C:C,B61,'5. Sous-traitance'!B:B,$E$25)","v":0},{"$f":"SUMIFS('1. Frais de personnel'!S:S,'1. Frais de personnel'!C:C,B61,'1. Frais de personnel'!B:B,$B$8)+SUMIFS('2-3.Frais de voyage-séjour'!N:N,'2-3.Frais de voyage-séjour'!C:C,B61,'2-3.Frais de voyage-séjour'!B:B,$B$8)+SUMIFS('4. Equipement'!H:H,'4. Equipement'!C:C,B61,'4. Equipement'!B:B,$B$8)+SUMIFS('5. Sous-traitance'!H:H,'5. Sous-traitance'!C:C,B61,'5. Sous-traitance'!B:B,$B$8)","v":0},{"$f":"SUMIFS('1. Frais de personnel'!S:S,'1. Frais de personnel'!C:C,B61,'1. Frais de personnel'!B:B,$G$25)+SUMIFS('2-3.Frais de voyage-séjour'!N:N,'2-3.Frais de voyage-séjour'!C:C,B61,'2-3.Frais de voyage-séjour'!B:B,$G$25)+SUMIFS('4. Equipement'!H:H,'4. Equipement'!C:C,B61,'4. Equipement'!B:B,$G$25)+SUMIFS('5. Sous-traitance'!H:H,'5. Sous-traitance'!C:C,B61,'5. Sous-traitance'!B:B,$G$25)","v":0},{"$f":"SUMIF('B. Mobilité Spécial - Etudiant'!B:B,B61,'B. Mobilité Spécial - Etudiant'!N:N)+SUMIF('B. Mobilité Spécial - Personnel'!B:B,B61,'B. Mobilité Spécial - Personnel'!N:N)","v":0},0]
[null,"P37",{"$f":"SUMIFS('1. Frais de personnel'!S:S,'1. Frais de personnel'!C:C,B62,'1. Frais de personnel'!B:B,$C$25)+SUMIFS('2-3.Frais de voyage-séjour'!N:N,'2-3.Frais de voyage-séjour'!C:C,B62,'2-3.Frais de voyage-séjour'!B:B,$C$25)+SUMIFS('4. Equipement'!H:H,'4. Equipement'!C:C,B62,'4. Equipement'!B:B,$C$25)+SUMIFS('5. Sous-traitance'!H:H,'5. Sous-traitance'!C:C,B62,'5. Sous-traitance'!B:B,$C$25)","v":0},{"$f":"SUMIFS('1. Frais de personnel'!S:S,'1. Frais de personnel'!C:C,B62,'1. Frais de personnel'!B:B,$D$25)+SUMIFS('2-3.Frais de voyage-séjour'!N:N,'2-3.Frais de voyage-séjour'!C:C,B62,'2-3.Frais de voyage-séjour'!B:B,$D$25)+SUMIFS('4. Equipement'!H:H,'4. Equipement'!C:C,B62,'4. Equipement'!B:B,$D$25)+SUMIFS('5. Sous-traitance'!H:H,'5. Sous-traitance'!C:C,B62,'5. Sous-traitance'!B:B,$D$25)","v":0},{"$f":"SUMIFS('1. Frais de personnel'!S:S,'1. Frais de personnel'!C:C,B62,'1. Frais de personnel'!B:B,$E$25)+SUMIFS('2-3.Frais de voyage-séjour'!N:N,'2-3.Frais de voyage-séjour'!C:C,B62,'2-3.Frais de voyage-séjour'!B:B,$E$25)+SUMIFS('4. Equipement'!H:H,'4. Equipement'!C:C,B62,'4. Equipement'!B:B,$E$25)+SUMIFS('5. Sous-traitance'!H:H,'5. Sous-traitance'!C:C,B62,'5. Sous-traitance'!B:B,$E$25)","v":0},{"$f":"SUMIFS('1. Frais de personnel'!S:S,'1. Frais de personnel'!C:C,B62,'1. Frais de personnel'!B:B,$B$8)+SUMIFS('2-3.Frais de voyage-séjour'!N:N,'2-3.Frais de voyage-séjour'!C:C,B62,'2-3.Frais de voyage-séjour'!B:B,$B$8)+SUMIFS('4. Equipement'!H:H,'4. Equipement'!C:C,B62,'4. Equipement'!B:B,$B$8)+SUMIFS('5. Sous-traitance'!H:H,'5. Sous-traitance'!C:C,B62,'5. Sous-traitance'!B:B,$B$8)","v":0},{"$f":"SUMIFS('1. Frais de personnel'!S:S,'1. Frais de personnel'!C:C,B62,'1. Frais de personnel'!B:B,$G$25)+SUMIFS('2-3.Frais de voyage-séjour'!N:N,'2-3.Frais de voyage-séjour'!C:C,B62,'2-3.Frais de voyage-séjour'!B:B,$G$25)+SUMIFS('4. Equipement'!H:H,'4. Equipement'!C:C,B62,'4. Equipement'!B:B,$G$25)+SUMIFS('5. Sous-traitance'!H:H,'5. Sous-traitance'!C:C,B62,'5. Sous-traitance'!B:B,$G$25)","v":0},{"$f":"SUMIF('B. Mobilité Spécial - Etudiant'!B:B,B62,'B. Mobilité Spécial - Etudiant'!N:N)+SUMIF('B. Mobilité Spécial - Personnel'!B:B,B62,'B. Mobilité Spécial - Personnel'!N:N)","v":0},0]
[null,"P38",{"$f":"SUMIFS('1. Frais de personnel'!S:S,'1. Frais de personnel'!C:C,B63,'1. Frais de personnel'!B:B,$C$25)+SUMIFS('2-3.Frais de voyage-séjour'!N:N,'2-3.Frais de voyage-séjour'!C:C,B63,'2-3.Frais de voyage-séjour'!B:B,$C$25)+SUMIFS('4. Equipement'!H:H,'4. Equipement'!C:C,B63,'4. Equipement'!B:B,$C$25)+SUMIFS('5. Sous-traitance'!H:H,'5. Sous-traitance'!C:C,B63,'5. Sous-traitance'!B:B,$C$25)","v":0},{"$f":"SUMIFS('1. Frais de personnel'!S:S,'1. Frais de personnel'!C:C,B63,'1. Frais de personnel'!B:B,$D$25)+SUMIFS('2-3.Frais de voyage-séjour'!N:N,'2-3.Frais de voyage-séjour'!C:C,B63,'2-3.Frais de voyage-séjour'!B:B,$D$25)+SUMIFS('4. Equipement'!H:H,'4. Equipement'!C:C,B63,'4. Equipement'!B:B,$D$25)+SUMIFS('5. Sous-traitance'!H:H,'5. Sous-traitance'!C:C,B63,'5. Sous-traitance'!B:B,$D$25)","v":0},{"$f":"SUMIFS('1. Frais de personnel'!S:S,'1. Frais de personnel'!C:C,B63,'1. Frais de personnel'!B:B,$E$25)+SUMIFS('2-3.Frais de voyage-séjour'!N:N,'2-3.Frais de voyage-séjour'!C:C,B63,'2-3.Frais de voyage-séjour'!B:B,$E$25)+SUMIFS('4. Equipement'!H:H,'4. Equipement'!C:C,B63,'4. Equipement'!B:B,$E$25)+SUMIFS('5. Sous-traitance'!H:H,'5. Sous-traitance'!C:C,B63,'5. Sous-traitance'!B:B,$E$25)","v":0},{"$f":"SUMIFS('1. Frais de personnel'!S:S,'1. Frais de personnel'!C:C,B63,'1. Frais de personnel'!B:B,$B$8)+SUMIFS('2-3.Frais de voyage-séjour'!N:N,'2-3.Frais de voyage-séjour'!C:C,B63,'2-3.Frais de voyage-séjour'!B:B,$B$8)+SUMIFS('4. Equipement'!H:H,'4. Equipement'!C:C,B63,'4. Equipement'!B:B,$B$8)+SUMIFS('5. Sous-traitance'!H:H,'5. Sous-traitance'!C:C,B63,'5. Sous-traitance'!B:B,$B$8)","v":0},{"$f":"SUMIFS('1. Frais de personnel'!S:S,'1. Frais de personnel'!C:C,B63,'1. Frais de personnel'!B:B,$G$25)+SUMIFS('2-3.Frais de voyage-séjour'!N:N,'2-3.Frais de voyage-séjour'!C:C,B63,'2-3.Frais de voyage-séjour'!B:B,$G$25)+SUMIFS('4. Equipement'!H:H,'4. Equipement'!C:C,B63,'4. Equipement'!B:B,$G$25)+SUMIFS('5. Sous-traitance'!H:H,'5. Sous-traitance'!C:C,B63,'5. Sous-traitance'!B:B,$G$25)","v":0},{"$f":"SUMIF('B. Mobilité Spécial - Etudiant'!B:B,B63,'B. Mobilité Spécial - Etudiant'!N:N)+SUMIF('B. Mobilité Spécial - Personnel'!B:B,B63,'B. Mobilité Spécial - Personnel'!N:N)","v":0},0]
[null,"P39",{"$f":"SUMIFS('1. Frais de personnel'!S:S,'1. Frais de personnel'!C:C,B64,'1. Frais de personnel'!B:B,$C$25)+SUMIFS('2-3.Frais de voyage-séjour'!N:N,'2-3.Frais de voyage-séjour'!C:C,B64,'2-3.Frais de voyage-séjour'!B:B,$C$25)+SUMIFS('4. Equipement'!H:H,'4. Equipement'!C:C,B64,'4. Equipement'!B:B,$C$25)+SUMIFS('5. Sous-traitance'!H:H,'5. Sous-traitance'!C:C,B64,'5. Sous-traitance'!B:B,$C$25)","v":0},{"$f":"SUMIFS('1. Frais de personnel'!S:S,'1. Frais de personnel'!C:C,B64,'1. Frais de personnel'!B:B,$D$25)+SUMIFS('2-3.Frais de voyage-séjour'!N:N,'2-3.Frais de voyage-séjour'!C:C,B64,'2-3.Frais de voyage-séjour'!B:B,$D$25)+SUMIFS('4. Equipement'!H:H,'4. Equipement'!C:C,B64,'4. Equipement'!B:B,$D$25)+SUMIFS('5. Sous-traitance'!H:H,'5. Sous-traitance'!C:C,B64,'5. Sous-traitance'!B:B,$D$25)","v":0},{"$f":"SUMIFS('1. Frais de personnel'!S:S,'1. Frais de personnel'!C:C,B64,'1. Frais de personnel'!B:B,$E$25)+SUMIFS('2-3.Frais de voyage-séjour'!N:N,'2-3.Frais de voyage-séjour'!C:C,B64,'2-3.Frais de voyage-séjour'!B:B,$E$25)+SUMIFS('4. Equipement'!H:H,'4. Equipement'!C:C,B64,'4. Equipement'!B:B,$E$25)+SUMIFS('5. Sous-traitance'!H:H,'5. Sous-traitance'!C:C,B64,'5. Sous-traitance'!B:B,$E$25)","v":0},{"$f":"SUMIFS('1. Frais de personnel'!S:S,'1. Frais de personnel'!C:C,B64,'1. Frais de personnel'!B:B,$B$8)+SUMIFS('2-3.Frais de voyage-séjour'!N:N,'2-3.Frais de voyage-séjour'!C:C,B64,'2-3.Frais de voyage-séjour'!B:B,$B$8)+SUMIFS('4. Equipement'!H:H,'4. Equipement'!C:C,B64,'4. Equipement'!B:B,$B$8)+SUMIFS('5. Sous-traitance'!H:H,'5. Sous-traitance'!C:C,B64,'5. Sous-traitance'!B:B,$B$8)","v":0},{"$f":"SUMIFS('1. Frais de personnel'!S:S,'1. Frais de personnel'!C:C,B64,'1. Frais de personnel'!B:B,$G$25)+SUMIFS('2-3.Frais de voyage-séjour'!N:N,'2-3.Frais de voyage-séjour'!C:C,B64,'2-3.Frais de voyage-séjour'!B:B,$G$25)+SUMIFS('4. Equipement'!H:H,'4. Equipement'!C:C,B64,'4. Equipement'!B:B,$G$25)+SUMIFS('5. Sous-traitance'!H:H,'5. Sous-traitance'!C:C,B64,'5. Sous-traitance'!B:B,$G$25)","v":0},{"$f":"SUMIF('B. Mobilité Spécial - Etudiant'!B:B,B64,'B. Mobilité Spécial - Etudiant'!N:N)+SUMIF('B. Mobilité Spécial - Personnel'!B:B,B64,'B. Mobilité Spécial - Personnel'!N:N)","v":0},0]
[null,"P40",{"$f":"SUMIFS('1. Frais de personnel'!S:S,'1. Frais de personnel'!C:C,B65,'1. Frais de personnel'!B:B,$C$25)+SUMIFS('2-3.Frais de voyage-séjour'!N:N,'2-3.Frais de voyage-séjour'!C:C,B65,'2-3.Frais de voyage-séjour'!B:B,$C$25)+SUMIFS('4. Equipement'!H:H,'4. Equipement'!C:C,B65,'4. Equipement'!B:B,$C$25)+SUMIFS('5. Sous-traitance'!H:H,'5. Sous-traitance'!C:C,B65,'5. Sous-traitance'!B:B,$C$25)","v":0},{"$f":"SUMIFS('1. Frais de personnel'!S:S,'1. Frais de personnel'!C:C,B65,'1. Frais de personnel'!B:B,$D$25)+SUMIFS('2-3.Frais de voyage-séjour'!N:N,'2-3.Frais de voyage-séjour'!C:C,B65,'2-3.Frais de voyage-séjour'!B:B,$D$25)+SUMIFS('4. Equipement'!H:H,'4. Equipement'!C:C,B65,'4. Equipement'!B:B,$D$25)+SUMIFS('5. Sous-traitance'!H:H,'5. Sous-traitance'!C:C,B65,'5. Sous-traitance'!B:B,$D$25)","v":0},{"$f":"SUMIFS('1. Frais de personnel'!S:S,'1. Frais de personnel'!C:C,B65,'1. Frais de personnel'!B:B,$E$25)+SUMIFS('2-3.Frais de voyage-séjour'!N:N,'2-3.Frais de voyage-séjour'!C:C,B65,'2-3.Frais de voyage-séjour'!B:B,$E$25)+SUMIFS('4. Equipement'!H:H,'4. Equipement'!C:C,B65,'4. Equipement'!B:B,$E$25)+SUMIFS('5. Sous-traitance'!H:H,'5. Sous-traitance'!C:C,B65,'5. Sous-traitance'!B:B,$E$25)","v":0},{"$f":"SUMIFS('1. Frais de personnel'!S:S,'1. Frais de personnel'!C:C,B65,'1. Frais de personnel'!B:B,$B$8)+SUMIFS('2-3.Frais de voyage-séjour'!N:N,'2-3.Frais de voyage-séjour'!C:C,B65,'2-3.Frais de voyage-séjour'!B:B,$B$8)+SUMIFS('4. Equipement'!H:H,'4. Equipement'!C:C,B65,'4. Equipement'!B:B,$B$8)+SUMIFS('5. Sous-traitance'!H:H,'5. Sous-traitance'!C:C,B65,'5. Sous-traitance'!B:B,$B$8)","v":0},{"$f":"SUMIFS('1. Frais de personnel'!S:S,'1. Frais de personnel'!C:C,B65,'1. Frais de personnel'!B:B,$G$25)+SUMIFS('2-3.Frais de voyage-séjour'!N:N,'2-3.Frais de voyage-séjour'!C:C,B65,'2-3.Frais de voyage-séjour'!B:B,$G$25)+SUMIFS('4. Equipement'!H:H,'4. Equipement'!C:C,B65,'4. Equipement'!B:B,$G$25)+SUMIFS('5. Sous-traitance'!H:H,'5. Sous-traitance'!C:C,B65,'5. Sous-traitance'!B:B,$G$25)","v":0},{"$f":"SUMIF('B. Mobilité Spécial - Etudiant'!B:B,B65,'B. Mobilité Spécial - Etudiant'!N:N)+SUMIF('B. Mobilité Spécial - Personnel'!B:B,B65,'B. Mobilité Spécial - Personnel'!N:N)","v":0},0]
[null,"P41",{"$f":"SUMIFS('1. Frais de personnel'!S:S,'1. Frais de personnel'!C:C,B66,'1. Frais de personnel'!B:B,$C$25)+SUMIFS('2-3.Frais de voyage-séjour'!N:N,'2-3.Frais de voyage-séjour'!C:C,B66,'2-3.Frais de voyage-séjour'!B:B,$C$25)+SUMIFS('4. Equipement'!H:H,'4. Equipement'!C:C,B66,'4. Equipement'!B:B,$C$25)+SUMIFS('5. Sous-traitance'!H:H,'5. Sous-traitance'!C:C,B66,'5. Sous-traitance'!B:B,$C$25)","v":0},{"$f":"SUMIFS('1. Frais de personnel'!S:S,'1. Frais de personnel'!C:C,B66,'1. Frais de personnel'!B:B,$D$25)+SUMIFS('2-3.Frais de voyage-séjour'!N:N,'2-3.Frais de voyage-séjour'!C:C,B66,'2-3.Frais de voyage-séjour'!B:B,$D$25)+SUMIFS('4. Equipement'!H:H,'4. Equipement'!C:C,B66,'4. Equipement'!B:B,$D$25)+SUMIFS('5. Sous-traitance'!H:H,'5. Sous-traitance'!C:C,B66,'5. Sous-traitance'!B:B,$D$25)","v":0},{"$f":"SUMIFS('1. Frais de personnel'!S:S,'1. Frais de personnel'!C:C,B66,'1. Frais de personnel'!B:B,$E$25)+SUMIFS('2-3.Frais de voyage-séjour'!N:N,'2-3.Frais de voyage-séjour'!C:C,B66,'2-3.Frais de voyage-séjour'!B:B,$E$25)+SUMIFS('4. Equipement'!H:H,'4. Equipement'!C:C,B66,'4. Equipement'!B:B,$E$25)+SUMIFS('5. Sous-traitance'!H:H,'5. Sous-traitance'!C:C,B66,'5. Sous-traitance'!B:B,$E$25)","v":0},{"$f":"SUMIFS('1. Frais de personnel'!S:S,'1. Frais de personnel'!C:C,B66,'1. Frais de personnel'!B:B,$B$8)+SUMIFS('2-3.Frais de voyage-séjour'!N:N,'2-3.Frais de voyage-séjour'!C:C,B66,'2-3.Frais de voyage-séjour'!B:B,$B$8)+SUMIFS('4. Equipement'!H:H,'4. Equipement'!C:C,B66,'4. Equipement'!B:B,$B$8)+SUMIFS('5. Sous-traitance'!H:H,'5. Sous-traitance'!C:C,B66,'5. Sous-traitance'!B:B,$B$8)","v":0},{"$f":"SUMIFS('1. Frais de personnel'!S:S,'1. Frais de personnel'!C:C,B66,'1. Frais de personnel'!B:B,$G$25)+SUMIFS('2-3.Frais de voyage-séjour'!N:N,'2-3.Frais de voyage-séjour'!C:C,B66,'2-3.Frais de voyage-séjour'!B:B,$G$25)+SUMIFS('4. Equipement'!H:H,'4. Equipement'!C:C,B66,'4. Equipement'!B:B,$G$25)+SUMIFS('5. Sous-traitance'!H:H,'5. Sous-traitance'!C:C,B66,'5. Sous-traitance'!B:B,$G$25)","v":0},{"$f":"SUMIF('B. Mobilité Spécial - Etudiant'!B:B,B66,'B. Mobilité Spécial - Etudiant'!N:N)+SUMIF('B. Mobilité Spécial - Personnel'!B:B,B66,'B. Mobilité Spécial - Personnel'!N:N)","v":0},0]
[null,"P42",{"$f":"SUMIFS('1. Frais de personnel'!S:S,'1. Frais de personnel'!C:C,B67,'1. Frais de personnel'!B:B,$C$25)+SUMIFS('2-3.Frais de voyage-séjour'!N:N,'2-3.Frais de voyage-séjour'!C:C,B67,'2-3.Frais de voyage-séjour'!B:B,$C$25)+SUMIFS('4. Equipement'!H:H,'4. Equipement'!C:C,B67,'4. Equipement'!B:B,$C$25)+SUMIFS('5. Sous-traitance'!H:H,'5. Sous-traitance'!C:C,B67,'5. Sous-traitance'!B:B,$C$25)","v":0},{"$f":"SUMIFS('1. Frais de personnel'!S:S,'1. Frais de personnel'!C:C,B67,'1. Frais de personnel'!B:B,$D$25)+SUMIFS('2-3.Frais de voyage-séjour'!N:N,'2-3.Frais de voyage-séjour'!C:C,B67,'2-3.Frais de voyage-séjour'!B:B,$D$25)+SUMIFS('4. Equipement'!H:H,'4. Equipement'!C:C,B67,'4. Equipement'!B:B,$D$25)+SUMIFS('5. Sous-traitance'!H:H,'5. Sous-traitance'!C:C,B67,'5. Sous-traitance'!B:B,$D$25)","v":0},{"$f":"SUMIFS('1. Frais de personnel'!S:S,'1. Frais de personnel'!C:C,B67,'1. Frais de personnel'!B:B,$E$25)+SUMIFS('2-3.Frais de voyage-séjour'!N:N,'2-3.Frais de voyage-séjour'!C:C,B67,'2-3.Frais de voyage-séjour'!B:B,$E$25)+SUMIFS('4. Equipement'!H:H,'4. Equipement'!C:C,B67,'4. Equipement'!B:B,$E$25)+SUMIFS('5. Sous-traitance'!H:H,'5. Sous-traitance'!C:C,B67,'5. Sous-traitance'!B:B,$E$25)","v":0},{"$f":"SUMIFS('1. Frais de personnel'!S:S,'1. Frais de personnel'!C:C,B67,'1. Frais de personnel'!B:B,$B$8)+SUMIFS('2-3.Frais de voyage-séjour'!N:N,'2-3.Frais de voyage-séjour'!C:C,B67,'2-3.Frais de voyage-séjour'!B:B,$B$8)+SUMIFS('4. Equipement'!H:H,'4. Equipement'!C:C,B67,'4. Equipement'!B:B,$B$8)+SUMIFS('5. Sous-traitance'!H:H,'5. Sous-traitance'!C:C,B67,'5. Sous-traitance'!B:B,$B$8)","v":0},{"$f":"SUMIFS('1. Frais de personnel'!S:S,'1. Frais de personnel'!C:C,B67,'1. Frais de personnel'!B:B,$G$25)+SUMIFS('2-3.Frais de voyage-séjour'!N:N,'2-3.Frais de voyage-séjour'!C:C,B67,'2-3.Frais de voyage-séjour'!B:B,$G$25)+SUMIFS('4. Equipement'!H:H,'4. Equipement'!C:C,B67,'4. Equipement'!B:B,$G$25)+SUMIFS('5. Sous-traitance'!H:H,'5. Sous-traitance'!C:C,B67,'5. Sous-traitance'!B:B,$G$25)","v":0},{"$f":"SUMIF('B. Mobilité Spécial - Etudiant'!B:B,B67,'B. Mobilité Spécial - Etudiant'!N:N)+SUMIF('B. Mobilité Spécial - Personnel'!B:B,B67,'B. Mobilité Spécial - Personnel'!N:N)","v":0},0]
[null,"P43",{"$f":"SUMIFS('1. Frais de personnel'!S:S,'1. Frais de personnel'!C:C,B68,'1. Frais de personnel'!B:B,$C$25)+SUMIFS('2-3.Frais de voyage-séjour'!N:N,'2-3.Frais de voyage-séjour'!C:C,B68,'2-3.Frais de voyage-séjour'!B:B,$C$25)+SUMIFS('4. Equipement'!H:H,'4. Equipement'!C:C,B68,'4. Equipement'!B:B,$C$25)+SUMIFS('5. Sous-traitance'!H:H,'5. Sous-traitance'!C:C,B68,'5. Sous-traitance'!B:B,$C$25)","v":0},{"$f":"SUMIFS('1. Frais de personnel'!S:S,'1. Frais de personnel'!C:C,B68,'1. Frais de personnel'!B:B,$D$25)+SUMIFS('2-3.Frais de voyage-séjour'!N:N,'2-3.Frais de voyage-séjour'!C:C,B68,'2-3.Frais de voyage-séjour'!B:B,$D$25)+SUMIFS('4. Equipement'!H:H,'4. Equipement'!C:C,B68,'4. Equipement'!B:B,$D$25)+SUMIFS('5. Sous-traitance'!H:H,'5. Sous-traitance'!C:C,B68,'5. Sous-traitance'!B:B,$D$25)","v":0},{"$f":"SUMIFS('1. Frais de personnel'!S:S,'1. Frais de personnel'!C:C,B68,'1. Frais de personnel'!B:B,$E$25)+SUMIFS('2-3.Frais de voyage-séjour'!N:N,'2-3.Frais de voyage-séjour'!C:C,B68,'2-3.Frais de voyage-séjour'!B:B,$E$25)+SUMIFS('4. Equipement'!H:H,'4. Equipement'!C:C,B68,'4. Equipement'!B:B,$E$25)+SUMIFS('5. Sous-traitance'!H:H,'5. Sous-traitance'!C:C,B68,'5. Sous-traitance'!B:B,$E$25)","v":0},{"$f":"SUMIFS('1. Frais de personnel'!S:S,'1. Frais de personnel'!C:C,B68,'1. Frais de personnel'!B:B,$B$8)+SUMIFS('2-3.Frais de voyage-séjour'!N:N,'2-3.Frais de voyage-séjour'!C:C,B68,'2-3.Frais de voyage-séjour'!B:B,$B$8)+SUMIFS('4. Equipement'!H:H,'4. Equipement'!C:C,B68,'4. Equipement'!B:B,$B$8)+SUMIFS('5. Sous-traitance'!H:H,'5. Sous-traitance'!C:C,B68,'5. Sous-traitance'!B:B,$B$8)","v":0},{"$f":"SUMIFS('1. Frais de personnel'!S:S,'1. Frais de personnel'!C:C,B68,'1. Frais de personnel'!B:B,$G$25)+SUMIFS('2-3.Frais de voyage-séjour'!N:N,'2-3.Frais de voyage-séjour'!C:C,B68,'2-3.Frais de voyage-séjour'!B:B,$G$25)+SUMIFS('4. Equipement'!H:H,'4. Equipement'!C:C,B68,'4. Equipement'!B:B,$G$25)+SUMIFS('5. Sous-traitance'!H:H,'5. Sous-traitance'!C:C,B68,'5. Sous-traitance'!B:B,$G$25)","v":0},{"$f":"SUMIF('B. Mobilité Spécial - Etudiant'!B:B,B68,'B. Mobilité Spécial - Etudiant'!N:N)+SUMIF('B. Mobilité Spécial - Personnel'!B:B,B68,'B. Mobilité Spécial - Personnel'!N:N)","v":0},0]
[null,"P44",{"$f":"SUMIFS('1. Frais de personnel'!S:S,'1. Frais de personnel'!C:C,B69,'1. Frais de personnel'!B:B,$C$25)+SUMIFS('2-3.Frais de voyage-séjour'!N:N,'2-3.Frais de voyage-séjour'!C:C,B69,'2-3.Frais de voyage-séjour'!B:B,$C$25)+SUMIFS('4. Equipement'!H:H,'4. Equipement'!C:C,B69,'4. Equipement'!B:B,$C$25)+SUMIFS('5. Sous-traitance'!H:H,'5. Sous-traitance'!C:C,B69,'5. Sous-traitance'!B:B,$C$25)","v":0},{"$f":"SUMIFS('1. Frais de personnel'!S:S,'1. Frais de personnel'!C:C,B69,'1. Frais de personnel'!B:B,$D$25)+SUMIFS('2-3.Frais de voyage-séjour'!N:N,'2-3.Frais de voyage-séjour'!C:C,B69,'2-3.Frais de voyage-séjour'!B:B,$D$25)+SUMIFS('4. Equipement'!H:H,'4. Equipement'!C:C,B69,'4. Equipement'!B:B,$D$25)+SUMIFS('5. Sous-traitance'!H:H,'5. Sous-traitance'!C:C,B69,'5. Sous-traitance'!B:B,$D$25)","v":0},{"$f":"SUMIFS('1. Frais de personnel'!S:S,'1. Frais de personnel'!C:C,B69,'1. Frais de personnel'!B:B,$E$25)+SUMIFS('2-3.Frais de voyage-séjour'!N:N,'2-3.Frais de voyage-séjour'!C:C,B69,'2-3.Frais de voyage-séjour'!B:B,$E$25)+SUMIFS('4. Equipement'!H:H,'4. Equipement'!C:C,B69,'4. Equipement'!B:B,$E$25)+SUMIFS('5. Sous-traitance'!H:H,'5. Sous-traitance'!C:C,B69,'5. Sous-traitance'!B:B,$E$25)","v":0},{"$f":"SUMIFS('1. Frais de personnel'!S:S,'1. Frais de personnel'!C:C,B69,'1. Frais de personnel'!B:B,$B$8)+SUMIFS('2-3.Frais de voyage-séjour'!N:N,'2-3.Frais de voyage-séjour'!C:C,B69,'2-3.Frais de voyage-séjour'!B:B,$B$8)+SUMIFS('4. Equipement'!H:H,'4. Equipement'!C:C,B69,'4. Equipement'!B:B,$B$8)+SUMIFS('5. Sous-traitance'!H:H,'5. Sous-traitance'!C:C,B69,'5. Sous-traitance'!B:B,$B$8)","v":0},{"$f":"SUMIFS('1. Frais de personnel'!S:S,'1. Frais de personnel'!C:C,B69,'1. Frais de personnel'!B:B,$G$25)+SUMIFS('2-3.Frais de voyage-séjour'!N:N,'2-3.Frais de voyage-séjour'!C:C,B69,'2-3.Frais de voyage-séjour'!B:B,$G$25)+SUMIFS('4. Equipement'!H:H,'4. Equipement'!C:C,B69,'4. Equipement'!B:B,$G$25)+SUMIFS('5. Sous-traitance'!H:H,'5. Sous-traitance'!C:C,B69,'5. Sous-traitance'!B:B,$G$25)","v":0},{"$f":"SUMIF('B. Mobilité Spécial - Etudiant'!B:B,B69,'B. Mobilité Spécial - Etudiant'!N:N)+SUMIF('B. Mobilité Spécial - Personnel'!B:B,B69,'B. Mobilité Spécial - Personnel'!N:N)","v":0},0]
[null,"P45",{"$f":"SUMIFS('1. Frais de personnel'!S:S,'1. Frais de personnel'!C:C,B70,'1. Frais de personnel'!B:B,$C$25)+SUMIFS('2-3.Frais de voyage-séjour'!N:N,'2-3.Frais de voyage-séjour'!C:C,B70,'2-3.Frais de voyage-séjour'!B:B,$C$25)+SUMIFS('4. Equipement'!H:H,'4. Equipement'!C:C,B70,'4. Equipement'!B:B,$C$25)+SUMIFS('5. Sous-traitance'!H:H,'5. Sous-traitance'!C:C,B70,'5. Sous-traitance'!B:B,$C$25)","v":0},{"$f":"SUMIFS('1. Frais de personnel'!S:S,'1. Frais de personnel'!C:C,B70,'1. Frais de personnel'!B:B,$D$25)+SUMIFS('2-3.Frais de voyage-séjour'!N:N,'2-3.Frais de voyage-séjour'!C:C,B70,'2-3.Frais de voyage-séjour'!B:B,$D$25)+SUMIFS('4. Equipement'!H:H,'4. Equipement'!C:C,B70,'4. Equipement'!B:B,$D$25)+SUMIFS('5. Sous-traitance'!H:H,'5. Sous-traitance'!C:C,B70,'5. Sous-traitance'!B:B,$D$25)","v":0},{"$f":"SUMIFS('1. Frais de personnel'!S:S,'1. Frais de personnel'!C:C,B70,'1. Frais de personnel'!B:B,$E$25)+SUMIFS('2-3.Frais de voyage-séjour'!N:N,'2-3.Frais de voyage-séjour'!C:C,B70,'2-3.Frais de voyage-séjour'!B:B,$E$25)+SUMIFS('4. Equipement'!H:H,'4. Equipement'!C:C,B70,'4. Equipement'!B:B,$E$25)+SUMIFS('5. Sous-traitance'!H:H,'5. Sous-traitance'!C:C,B70,'5. Sous-traitance'!B:B,$E$25)","v":0},{"$f":"SUMIFS('1. Frais de personnel'!S:S,'1. Frais de personnel'!C:C,B70,'1. Frais de personnel'!B:B,$B$8)+SUMIFS('2-3.Frais de voyage-séjour'!N:N,'2-3.Frais de voyage-séjour'!C:C,B70,'2-3.Frais de voyage-séjour'!B:B,$B$8)+SUMIFS('4. Equipement'!H:H,'4. Equipement'!C:C,B70,'4. Equipement'!B:B,$B$8)+SUMIFS('5. Sous-traitance'!H:H,'5. Sous-traitance'!C:C,B70,'5. Sous-traitance'!B:B,$B$8)","v":0},{"$f":"SUMIFS('1. Frais de personnel'!S:S,'1. Frais de personnel'!C:C,B70,'1. Frais de personnel'!B:B,$G$25)+SUMIFS('2-3.Frais de voyage-séjour'!N:N,'2-3.Frais de voyage-séjour'!C:C,B70,'2-3.Frais de voyage-séjour'!B:B,$G$25)+SUMIFS('4. Equipement'!H:H,'4. Equipement'!C:C,B70,'4. Equipement'!B:B,$G$25)+SUMIFS('5. Sous-traitance'!H:H,'5. Sous-traitance'!C:C,B70,'5. Sous-traitance'!B:B,$G$25)","v":0},{"$f":"SUMIF('B. Mobilité Spécial - Etudiant'!B:B,B70,'B. Mobilité Spécial - Etudiant'!N:N)+SUMIF('B. Mobilité Spécial - Personnel'!B:B,B70,'B. Mobilité Spécial - Personnel'!N:N)","v":0},0]
[null,"P46",{"$f":"SUMIFS('1. Frais de personnel'!S:S,'1. Frais de personnel'!C:C,B71,'1. Frais de personnel'!B:B,$C$25)+SUMIFS('2-3.Frais de voyage-séjour'!N:N,'2-3.Frais de voyage-séjour'!C:C,B71,'2-3.Frais de voyage-séjour'!B:B,$C$25)+SUMIFS('4. Equipement'!H:H,'4. Equipement'!C:C,B71,'4. Equipement'!B:B,$C$25)+SUMIFS('5. Sous-traitance'!H:H,'5. Sous-traitance'!C:C,B71,'5. Sous-traitance'!B:B,$C$25)","v":0},{"$f":"SUMIFS('1. Frais de personnel'!S:S,'1. Frais de personnel'!C:C,B71,'1. Frais de personnel'!B:B,$D$25)+SUMIFS('2-3.Frais de voyage-séjour'!N:N,'2-3.Frais de voyage-séjour'!C:C,B71,'2-3.Frais de voyage-séjour'!B:B,$D$25)+SUMIFS('4. Equipement'!H:H,'4. Equipement'!C:C,B71,'4. Equipement'!B:B,$D$25)+SUMIFS('5. Sous-traitance'!H:H,'5. Sous-traitance'!C:C,B71,'5. Sous-traitance'!B:B,$D$25)","v":0},{"$f":"SUMIFS('1. Frais de personnel'!S:S,'1. Frais de personnel'!C:C,B71,'1. Frais de personnel'!B:B,$E$25)+SUMIFS('2-3.Frais de voyage-séjour'!N:N,'2-3.Frais de voyage-séjour'!C:C,B71,'2-3.Frais de voyage-séjour'!B:B,$E$25)+SUMIFS('4. Equipement'!H:H,'4. Equipement'!C:C,B71,'4. Equipement'!B:B,$E$25)+SUMIFS('5. Sous-traitance'!H:H,'5. Sous-traitance'!C:C,B71,'5. Sous-traitance'!B:B,$E$25)","v":0},{"$f":"SUMIFS('1. Frais de personnel'!S:S,'1. Frais de personnel'!C:C,B71,'1. Frais de personnel'!B:B,$B$8)+SUMIFS('2-3.Frais de voyage-séjour'!N:N,'2-3.Frais de voyage-séjour'!C:C,B71,'2-3.Frais de voyage-séjour'!B:B,$B$8)+SUMIFS('4. Equipement'!H:H,'4. Equipement'!C:C,B71,'4. Equipement'!B:B,$B$8)+SUMIFS('5. Sous-traitance'!H:H,'5. Sous-traitance'!C:C,B71,'5. Sous-traitance'!B:B,$B$8)","v":0},{"$f":"SUMIFS('1. Frais de personnel'!S:S,'1. Frais de personnel'!C:C,B71,'1. Frais de personnel'!B:B,$G$25)+SUMIFS('2-3.Frais de voyage-séjour'!N:N,'2-3.Frais de voyage-séjour'!C:C,B71,'2-3.Frais de voyage-séjour'!B:B,$G$25)+SUMIFS('4. Equipement'!H:H,'4. Equipement'!C:C,B71,'4. Equipement'!B:B,$G$25)+SUMIFS('5. Sous-traitance'!H:H,'5. Sous-traitance'!C:C,B71,'5. Sous-traitance'!B:B,$G$25)","v":0},{"$f":"SUMIF('B. Mobilité Spécial - Etudiant'!B:B,B71,'B. Mobilité Spécial - Etudiant'!N:N)+SUMIF('B. Mobilité Spécial - Personnel'!B:B,B71,'B. Mobilité Spécial - Personnel'!N:N)","v":0},0]
[null,"P47",{"$f":"SUMIFS('1. Frais de personnel'!S:S,'1. Frais de personnel'!C:C,B72,'1. Frais de personnel'!B:B,$C$25)+SUMIFS('2-3.Frais de voyage-séjour'!N:N,'2-3.Frais de voyage-séjour'!C:C,B72,'2-3.Frais de voyage-séjour'!B:B,$C$25)+SUMIFS('4. Equipement'!H:H,'4. Equipement'!C:C,B72,'4. Equipement'!B:B,$C$25)+SUMIFS('5. Sous-traitance'!H:H,'5. Sous-traitance'!C:C,B72,'5. Sous-traitance'!B:B,$C$25)","v":0},{"$f":"SUMIFS('1. Frais de personnel'!S:S,'1. Frais de personnel'!C:C,B72,'1. Frais de personnel'!B:B,$D$25)+SUMIFS('2-3.Frais de voyage-séjour'!N:N,'2-3.Frais de voyage-séjour'!C:C,B72,'2-3.Frais de voyage-séjour'!B:B,$D$25)+SUMIFS('4. Equipement'!H:H,'4. Equipement'!C:C,B72,'4. Equipement'!B:B,$D$25)+SUMIFS('5. Sous-traitance'!H:H,'5. Sous-traitance'!C:C,B72,'5. Sous-traitance'!B:B,$D$25)","v":0},{"$f":"SUMIFS('1. Frais de personnel'!S:S,'1. Frais de personnel'!C:C,B72,'1. Frais de personnel'!B:B,$E$25)+SUMIFS('2-3.Frais de voyage-séjour'!N:N,'2-3.Frais de voyage-séjour'!C:C,B72,'2-3.Frais de voyage-séjour'!B:B,$E$25)+SUMIFS('4. Equipement'!H:H,'4. Equipement'!C:C,B72,'4. Equipement'!B:B,$E$25)+SUMIFS('5. Sous-traitance'!H:H,'5. Sous-traitance'!C:C,B72,'5. Sous-traitance'!B:B,$E$25)","v":0},{"$f":"SUMIFS('1. Frais de personnel'!S:S,'1. Frais de personnel'!C:C,B72,'1. Frais de personnel'!B:B,$B$8)+SUMIFS('2-3.Frais de voyage-séjour'!N:N,'2-3.Frais de voyage-séjour'!C:C,B72,'2-3.Frais de voyage-séjour'!B:B,$B$8)+SUMIFS('4. Equipement'!H:H,'4. Equipement'!C:C,B72,'4. Equipement'!B:B,$B$8)+SUMIFS('5. Sous-traitance'!H:H,'5. Sous-traitance'!C:C,B72,'5. Sous-traitance'!B:B,$B$8)","v":0},{"$f":"SUMIFS('1. Frais de personnel'!S:S,'1. Frais de personnel'!C:C,B72,'1. Frais de personnel'!B:B,$G$25)+SUMIFS('2-3.Frais de voyage-séjour'!N:N,'2-3.Frais de voyage-séjour'!C:C,B72,'2-3.Frais de voyage-séjour'!B:B,$G$25)+SUMIFS('4. Equipement'!H:H,'4. Equipement'!C:C,B72,'4. Equipement'!B:B,$G$25)+SUMIFS('5. Sous-traitance'!H:H,'5. Sous-traitance'!C:C,B72,'5. Sous-traitance'!B:B,$G$25)","v":0},{"$f":"SUMIF('B. Mobilité Spécial - Etudiant'!B:B,B72,'B. Mobilité Spécial - Etudiant'!N:N)+SUMIF('B. Mobilité Spécial - Personnel'!B:B,B72,'B. Mobilité Spécial - Personnel'!N:N)","v":0},0]
[null,"P48",{"$f":"SUMIFS('1. Frais de personnel'!S:S,'1. Frais de personnel'!C:C,B73,'1. Frais de personnel'!B:B,$C$25)+SUMIFS('2-3.Frais de voyage-séjour'!N:N,'2-3.Frais de voyage-séjour'!C:C,B73,'2-3.Frais de voyage-séjour'!B:B,$C$25)+SUMIFS('4. Equipement'!H:H,'4. Equipement'!C:C,B73,'4. Equipement'!B:B,$C$25)+SUMIFS('5. Sous-traitance'!H:H,'5. Sous-traitance'!C:C,B73,'5. Sous-traitance'!B:B,$C$25)","v":0},{"$f":"SUMIFS('1. Frais de personnel'!S:S,'1. Frais de personnel'!C:C,B73,'1. Frais de personnel'!B:B,$D$25)+SUMIFS('2-3.Frais de voyage-séjour'!N:N,'2-3.Frais de voyage-séjour'!C:C,B73,'2-3.Frais de voyage-séjour'!B:B,$D$25)+SUMIFS('4. Equipement'!H:H,'4. Equipement'!C:C,B73,'4. Equipement'!B:B,$D$25)+SUMIFS('5. Sous-traitance'!H:H,'5. Sous-traitance'!C:C,B73,'5. Sous-traitance'!B:B,$D$25)","v":0},{"$f":"SUMIFS('1. Frais de personnel'!S:S,'1. Frais de personnel'!C:C,B73,'1. Frais de personnel'!B:B,$E$25)+SUMIFS('2-3.Frais de voyage-séjour'!N:N,'2-3.Frais de voyage-séjour'!C:C,B73,'2-3.Frais de voyage-séjour'!B:B,$E$25)+SUMIFS('4. Equipement'!H:H,'4. Equipement'!C:C,B73,'4. Equipement'!B:B,$E$25)+SUMIFS('5. Sous-traitance'!H:H,'5. Sous-traitance'!C:C,B73,'5. Sous-traitance'!B:B,$E$25)","v":0},{"$f":"SUMIFS('1. Frais de personnel'!S:S,'1. Frais de personnel'!C:C,B73,'1. Frais de personnel'!B:B,$B$8)+SUMIFS('2-3.Frais de voyage-séjour'!N:N,'2-3.Frais de voyage-séjour'!C:C,B73,'2-3.Frais de voyage-séjour'!B:B,$B$8)+SUMIFS('4. Equipement'!H:H,'4. Equipement'!C:C,B73,'4. Equipement'!B:B,$B$8)+SUMIFS('5. Sous-traitance'!H:H,'5. Sous-traitance'!C:C,B73,'5. Sous-traitance'!B:B,$B$8)","v":0},{"$f":"SUMIFS('1. Frais de personnel'!S:S,'1. Frais de personnel'!C:C,B73,'1. Frais de personnel'!B:B,$G$25)+SUMIFS('2-3.Frais de voyage-séjour'!N:N,'2-3.Frais de voyage-séjour'!C:C,B73,'2-3.Frais de voyage-séjour'!B:B,$G$25)+SUMIFS('4. Equipement'!H:H,'4. Equipement'!C:C,B73,'4. Equipement'!B:B,$G$25)+SUMIFS('5. Sous-traitance'!H:H,'5. Sous-traitance'!C:C,B73,'5. Sous-traitance'!B:B,$G$25)","v":0},{"$f":"SUMIF('B. Mobilité Spécial - Etudiant'!B:B,B73,'B. Mobilité Spécial - Etudiant'!N:N)+SUMIF('B. Mobilité Spécial - Personnel'!B:B,B73,'B. Mobilité Spécial - Personnel'!N:N)","v":0},0]
[null,"P49",{"$f":"SUMIFS('1. Frais de personnel'!S:S,'1. Frais de personnel'!C:C,B74,'1. Frais de personnel'!B:B,$C$25)+SUMIFS('2-3.Frais de voyage-séjour'!N:N,'2-3.Frais de voyage-séjour'!C:C,B74,'2-3.Frais de voyage-séjour'!B:B,$C$25)+SUMIFS('4. Equipement'!H:H,'4. Equipement'!C:C,B74,'4. Equipement'!B:B,$C$25)+SUMIFS('5. Sous-traitance'!H:H,'5. Sous-traitance'!C:C,B74,'5. Sous-traitance'!B:B,$C$25)","v":0},{"$f":"SUMIFS('1. Frais de personnel'!S:S,'1. Frais de personnel'!C:C,B74,'1. Frais de personnel'!B:B,$D$25)+SUMIFS('2-3.Frais de voyage-séjour'!N:N,'2-3.Frais de voyage-séjour'!C:C,B74,'2-3.Frais de voyage-séjour'!B:B,$D$25)+SUMIFS('4. Equipement'!H:H,'4. Equipement'!C:C,B74,'4. Equipement'!B:B,$D$25)+SUMIFS('5. Sous-traitance'!H:H,'5. Sous-traitance'!C:C,B74,'5. Sous-traitance'!B:B,$D$25)","v":0},{"$f":"SUMIFS('1. Frais de personnel'!S:S,'1. Frais de personnel'!C:C,B74,'1. Frais de personnel'!B:B,$E$25)+SUMIFS('2-3.Frais de voyage-séjour'!N:N,'2-3.Frais de voyage-séjour'!C:C,B74,'2-3.Frais de voyage-séjour'!B:B,$E$25)+SUMIFS('4. Equipement'!H:H,'4. Equipement'!C:C,B74,'4. Equipement'!B:B,$E$25)+SUMIFS('5. Sous-traitance'!H:H,'5. Sous-traitance'!C:C,B74,'5. Sous-traitance'!B:B,$E$25)","v":0},{"$f":"SUMIFS('1. Frais de personnel'!S:S,'1. Frais de personnel'!C:C,B74,'1. Frais de personnel'!B:B,$B$8)+SUMIFS('2-3.Frais de voyage-séjour'!N:N,'2-3.Frais de voyage-séjour'!C:C,B74,'2-3.Frais de voyage-séjour'!B:B,$B$8)+SUMIFS('4. Equipement'!H:H,'4. Equipement'!C:C,B74,'4. Equipement'!B:B,$B$8)+SUMIFS('5. Sous-traitance'!H:H,'5. Sous-traitance'!C:C,B74,'5. Sous-traitance'!B:B,$B$8)","v":0},{"$f":"SUMIFS('1. Frais de personnel'!S:S,'1. Frais de personnel'!C:C,B74,'1. Frais de personnel'!B:B,$G$25)+SUMIFS('2-3.Frais de voyage-séjour'!N:N,'2-3.Frais de voyage-séjour'!C:C,B74,'2-3.Frais de voyage-séjour'!B:B,$G$25)+SUMIFS('4. Equipement'!H:H,'4. Equipement'!C:C,B74,'4. Equipement'!B:B,$G$25)+SUMIFS('5. Sous-traitance'!H:H,'5. Sous-traitance'!C:C,B74,'5. Sous-traitance'!B:B,$G$25)","v":0},{"$f":"SUMIF('B. Mobilité Spécial - Etudiant'!B:B,B74,'B. Mobilité Spécial - Etudiant'!N:N)+SUMIF('B. Mobilité Spécial - Personnel'!B:B,B74,'B. Mobilité Spécial - Personnel'!N:N)","v":0},0]
[null,"P50",{"$f":"SUMIFS('1. Frais de personnel'!S:S,'1. Frais de personnel'!C:C,B75,'1. Frais de personnel'!B:B,$C$25)+SUMIFS('2-3.Frais de voyage-séjour'!N:N,'2-3.Frais de voyage-séjour'!C:C,B75,'2-3.Frais de voyage-séjour'!B:B,$C$25)+SUMIFS('4. Equipement'!H:H,'4. Equipement'!C:C,B75,'4. Equipement'!B:B,$C$25)+SUMIFS('5. Sous-traitance'!H:H,'5. Sous-traitance'!C:C,B75,'5. Sous-traitance'!B:B,$C$25)","v":0},{"$f":"SUMIFS('1. Frais de personnel'!S:S,'1. Frais de personnel'!C:C,B75,'1. Frais de personnel'!B:B,$D$25)+SUMIFS('2-3.Frais de voyage-séjour'!N:N,'2-3.Frais de voyage-séjour'!C:C,B75,'2-3.Frais de voyage-séjour'!B:B,$D$25)+SUMIFS('4. Equipement'!H:H,'4. Equipement'!C:C,B75,'4. Equipement'!B:B,$D$25)+SUMIFS('5. Sous-traitance'!H:H,'5. Sous-traitance'!C:C,B75,'5. Sous-traitance'!B:B,$D$25)","v":0},{"$f":"SUMIFS('1. Frais de personnel'!S:S,'1. Frais de personnel'!C:C,B75,'1. Frais de personnel'!B:B,$E$25)+SUMIFS('2-3.Frais de voyage-séjour'!N:N,'2-3.Frais de voyage-séjour'!C:C,B75,'2-3.Frais de voyage-séjour'!B:B,$E$25)+SUMIFS('4. Equipement'!H:H,'4. Equipement'!C:C,B75,'4. Equipement'!B:B,$E$25)+SUMIFS('5. Sous-traitance'!H:H,'5. Sous-traitance'!C:C,B75,'5. Sous-traitance'!B:B,$E$25)","v":0},{"$f":"SUMIFS('1. Frais de personnel'!S:S,'1. Frais de personnel'!C:C,B75,'1. Frais de personnel'!B:B,$B$8)+SUMIFS('2-3.Frais de voyage-séjour'!N:N,'2-3.Frais de voyage-séjour'!C:C,B75,'2-3.Frais de voyage-séjour'!B:B,$B$8)+SUMIFS('4. Equipement'!H:H,'4. Equipement'!C:C,B75,'4. Equipement'!B:B,$B$8)+SUMIFS('5. Sous-traitance'!H:H,'5. Sous-traitance'!C:C,B75,'5. Sous-traitance'!B:B,$B$8)","v":0},{"$f":"SUMIFS('1. Frais de personnel'!S:S,'1. Frais de personnel'!C:C,B75,'1. Frais de personnel'!B:B,$G$25)+SUMIFS('2-3.Frais de voyage-séjour'!N:N,'2-3.Frais de voyage-séjour'!C:C,B75,'2-3.Frais de voyage-séjour'!B:B,$G$25)+SUMIFS('4. Equipement'!H:H,'4. Equipement'!C:C,B75,'4. Equipement'!B:B,$G$25)+SUMIFS('5. Sous-traitance'!H:H,'5. Sous-traitance'!C:C,B75,'5. Sous-traitance'!B:B,$G$25)","v":0},{"$f":"SUMIF('B. Mobilité Spécial - Etudiant'!B:B,B75,'B. Mobilité Spécial - Etudiant'!N:N)+SUMIF('B. Mobilité Spécial - Personnel'!B:B,B75,'B. Mobilité Spécial - Personnel'!N:N)","v":0},0]
[null,"P51",{"$f":"SUMIFS('1. Frais de personnel'!S:S,'1. Frais de personnel'!C:C,B76,'1. Frais de personnel'!B:B,$C$25)+SUMIFS('2-3.Frais de voyage-séjour'!N:N,'2-3.Frais de voyage-séjour'!C:C,B76,'2-3.Frais de voyage-séjour'!B:B,$C$25)+SUMIFS('4. Equipement'!H:H,'4. Equipement'!C:C,B76,'4. Equipement'!B:B,$C$25)+SUMIFS('5. Sous-traitance'!H:H,'5. Sous-traitance'!C:C,B76,'5. Sous-traitance'!B:B,$C$25)","v":0},{"$f":"SUMIFS('1. Frais de personnel'!S:S,'1. Frais de personnel'!C:C,B76,'1. Frais de personnel'!B:B,$D$25)+SUMIFS('2-3.Frais de voyage-séjour'!N:N,'2-3.Frais de voyage-séjour'!C:C,B76,'2-3.Frais de voyage-séjour'!B:B,$D$25)+SUMIFS('4. Equipement'!H:H,'4. Equipement'!C:C,B76,'4. Equipement'!B:B,$D$25)+SUMIFS('5. Sous-traitance'!H:H,'5. Sous-traitance'!C:C,B76,'5. Sous-traitance'!B:B,$D$25)","v":0},{"$f":"SUMIFS('1. Frais de personnel'!S:S,'1. Frais de personnel'!C:C,B76,'1. Frais de personnel'!B:B,$E$25)+SUMIFS('2-3.Frais de voyage-séjour'!N:N,'2-3.Frais de voyage-séjour'!C:C,B76,'2-3.Frais de voyage-séjour'!B:B,$E$25)+SUMIFS('4. Equipement'!H:H,'4. Equipement'!C:C,B76,'4. Equipement'!B:B,$E$25)+SUMIFS('5. Sous-traitance'!H:H,'5. Sous-traitance'!C:C,B76,'5. Sous-traitance'!B:B,$E$25)","v":0},{"$f":"SUMIFS('1. Frais de personnel'!S:S,'1. Frais de personnel'!C:C,B76,'1. Frais de personnel'!B:B,$B$8)+SUMIFS('2-3.Frais de voyage-séjour'!N:N,'2-3.Frais de voyage-séjour'!C:C,B76,'2-3.Frais de voyage-séjour'!B:B,$B$8)+SUMIFS('4. Equipement'!H:H,'4. Equipement'!C:C,B76,'4. Equipement'!B:B,$B$8)+SUMIFS('5. Sous-traitance'!H:H,'5. Sous-traitance'!C:C,B76,'5. Sous-traitance'!B:B,$B$8)","v":0},{"$f":"SUMIFS('1. Frais de personnel'!S:S,'1. Frais de personnel'!C:C,B76,'1. Frais de personnel'!B:B,$G$25)+SUMIFS('2-3.Frais de voyage-séjour'!N:N,'2-3.Frais de voyage-séjour'!C:C,B76,'2-3.Frais de voyage-séjour'!B:B,$G$25)+SUMIFS('4. Equipement'!H:H,'4. Equipement'!C:C,B76,'4. Equipement'!B:B,$G$25)+SUMIFS('5. Sous-traitance'!H:H,'5. Sous-traitance'!C:C,B76,'5. Sous-traitance'!B:B,$G$25)","v":0},{"$f":"SUMIF('B. Mobilité Spécial - Etudiant'!B:B,B76,'B. Mobilité Spécial - Etudiant'!N:N)+SUMIF('B. Mobilité Spécial - Personnel'!B:B,B76,'B. Mobilité Spécial - Personnel'!N:N)","v":0},0]
[null,"P52",{"$f":"SUMIFS('1. Frais de personnel'!S:S,'1. Frais de personnel'!C:C,B77,'1. Frais de personnel'!B:B,$C$25)+SUMIFS('2-3.Frais de voyage-séjour'!N:N,'2-3.Frais de voyage-séjour'!C:C,B77,'2-3.Frais de voyage-séjour'!B:B,$C$25)+SUMIFS('4. Equipement'!H:H,'4. Equipement'!C:C,B77,'4. Equipement'!B:B,$C$25)+SUMIFS('5. Sous-traitance'!H:H,'5. Sous-traitance'!C:C,B77,'5. Sous-traitance'!B:B,$C$25)","v":0},{"$f":"SUMIFS('1. Frais de personnel'!S:S,'1. Frais de personnel'!C:C,B77,'1. Frais de personnel'!B:B,$D$25)+SUMIFS('2-3.Frais de voyage-séjour'!N:N,'2-3.Frais de voyage-séjour'!C:C,B77,'2-3.Frais de voyage-séjour'!B:B,$D$25)+SUMIFS('4. Equipement'!H:H,'4. Equipement'!C:C,B77,'4. Equipement'!B:B,$D$25)+SUMIFS('5. Sous-traitance'!H:H,'5. Sous-traitance'!C:C,B77,'5. Sous-traitance'!B:B,$D$25)","v":0},{"$f":"SUMIFS('1. Frais de personnel'!S:S,'1. Frais de personnel'!C:C,B77,'1. Frais de personnel'!B:B,$E$25)+SUMIFS('2-3.Frais de voyage-séjour'!N:N,'2-3.Frais de voyage-séjour'!C:C,B77,'2-3.Frais de voyage-séjour'!B:B,$E$25)+SUMIFS('4. Equipement'!H:H,'4. Equipement'!C:C,B77,'4. Equipement'!B:B,$E$25)+SUMIFS('5. Sous-traitance'!H:H,'5. Sous-traitance'!C:C,B77,'5. Sous-traitance'!B:B,$E$25)","v":0},{"$f":"SUMIFS('1. Frais de personnel'!S:S,'1. Frais de personnel'!C:C,B77,'1. Frais de personnel'!B:B,$B$8)+SUMIFS('2-3.Frais de voyage-séjour'!N:N,'2-3.Frais de voyage-séjour'!C:C,B77,'2-3.Frais de voyage-séjour'!B:B,$B$8)+SUMIFS('4. Equipement'!H:H,'4. Equipement'!C:C,B77,'4. Equipement'!B:B,$B$8)+SUMIFS('5. Sous-traitance'!H:H,'5. Sous-traitance'!C:C,B77,'5. Sous-traitance'!B:B,$B$8)","v":0},{"$f":"SUMIFS('1. Frais de personnel'!S:S,'1. Frais de personnel'!C:C,B77,'1. Frais de personnel'!B:B,$G$25)+SUMIFS('2-3.Frais de voyage-séjour'!N:N,'2-3.Frais de voyage-séjour'!C:C,B77,'2-3.Frais de voyage-séjour'!B:B,$G$25)+SUMIFS('4. Equipement'!H:H,'4. Equipement'!C:C,B77,'4. Equipement'!B:B,$G$25)+SUMIFS('5. Sous-traitance'!H:H,'5. Sous-traitance'!C:C,B77,'5. Sous-traitance'!B:B,$G$25)","v":0},{"$f":"SUMIF('B. Mobilité Spécial - Etudiant'!B:B,B77,'B. Mobilité Spécial - Etudiant'!N:N)+SUMIF('B. Mobilité Spécial - Personnel'!B:B,B77,'B. Mobilité Spécial - Personnel'!N:N)","v":0},0]
[null,"P53",{"$f":"SUMIFS('1. Frais de personnel'!S:S,'1. Frais de personnel'!C:C,B78,'1. Frais de personnel'!B:B,$C$25)+SUMIFS('2-3.Frais de voyage-séjour'!N:N,'2-3.Frais de voyage-séjour'!C:C,B78,'2-3.Frais de voyage-séjour'!B:B,$C$25)+SUMIFS('4. Equipement'!H:H,'4. Equipement'!C:C,B78,'4. Equipement'!B:B,$C$25)+SUMIFS('5. Sous-traitance'!H:H,'5. Sous-traitance'!C:C,B78,'5. Sous-traitance'!B:B,$C$25)","v":0},{"$f":"SUMIFS('1. Frais de personnel'!S:S,'1. Frais de personnel'!C:C,B78,'1. Frais de personnel'!B:B,$D$25)+SUMIFS('2-3.Frais de voyage-séjour'!N:N,'2-3.Frais de voyage-séjour'!C:C,B78,'2-3.Frais de voyage-séjour'!B:B,$D$25)+SUMIFS('4. Equipement'!H:H,'4. Equipement'!C:C,B78,'4. Equipement'!B:B,$D$25)+SUMIFS('5. Sous-traitance'!H:H,'5. Sous-traitance'!C:C,B78,'5. Sous-traitance'!B:B,$D$25)","v":0},{"$f":"SUMIFS('1. Frais de personnel'!S:S,'1. Frais de personnel'!C:C,B78,'1. Frais de personnel'!B:B,$E$25)+SUMIFS('2-3.Frais de voyage-séjour'!N:N,'2-3.Frais de voyage-séjour'!C:C,B78,'2-3.Frais de voyage-séjour'!B:B,$E$25)+SUMIFS('4. Equipement'!H:H,'4. Equipement'!C:C,B78,'4. Equipement'!B:B,$E$25)+SUMIFS('5. Sous-traitance'!H:H,'5. Sous-traitance'!C:C,B78,'5. Sous-traitance'!B:B,$E$25)","v":0},{"$f":"SUMIFS('1. Frais de personnel'!S:S,'1. Frais de personnel'!C:C,B78,'1. Frais de personnel'!B:B,$B$8)+SUMIFS('2-3.Frais de voyage-séjour'!N:N,'2-3.Frais de voyage-séjour'!C:C,B78,'2-3.Frais de voyage-séjour'!B:B,$B$8)+SUMIFS('4. Equipement'!H:H,'4. Equipement'!C:C,B78,'4. Equipement'!B:B,$B$8)+SUMIFS('5. Sous-traitance'!H:H,'5. Sous-traitance'!C:C,B78,'5. Sous-traitance'!B:B,$B$8)","v":0},{"$f":"SUMIFS('1. Frais de personnel'!S:S,'1. Frais de personnel'!C:C,B78,'1. Frais de personnel'!B:B,$G$25)+SUMIFS('2-3.Frais de voyage-séjour'!N:N,'2-3.Frais de voyage-séjour'!C:C,B78,'2-3.Frais de voyage-séjour'!B:B,$G$25)+SUMIFS('4. Equipement'!H:H,'4. Equipement'!C:C,B78,'4. Equipement'!B:B,$G$25)+SUMIFS('5. Sous-traitance'!H:H,'5. Sous-traitance'!C:C,B78,'5. Sous-traitance'!B:B,$G$25)","v":0},{"$f":"SUMIF('B. Mobilité Spécial - Etudiant'!B:B,B78,'B. Mobilité Spécial - Etudiant'!N:N)+SUMIF('B. Mobilité Spécial - Personnel'!B:B,B78,'B. Mobilité Spécial - Personnel'!N:N)","v":0},0]
[null,"P54",{"$f":"SUMIFS('1. Frais de personnel'!S:S,'1. Frais de personnel'!C:C,B79,'1. Frais de personnel'!B:B,$C$25)+SUMIFS('2-3.Frais de voyage-séjour'!N:N,'2-3.Frais de voyage-séjour'!C:C,B79,'2-3.Frais de voyage-séjour'!B:B,$C$25)+SUMIFS('4. Equipement'!H:H,'4. Equipement'!C:C,B79,'4. Equipement'!B:B,$C$25)+SUMIFS('5. Sous-traitance'!H:H,'5. Sous-traitance'!C:C,B79,'5. Sous-traitance'!B:B,$C$25)","v":0},{"$f":"SUMIFS('1. Frais de personnel'!S:S,'1. Frais de personnel'!C:C,B79,'1. Frais de personnel'!B:B,$D$25)+SUMIFS('2-3.Frais de voyage-séjour'!N:N,'2-3.Frais de voyage-séjour'!C:C,B79,'2-3.Frais de voyage-séjour'!B:B,$D$25)+SUMIFS('4. Equipement'!H:H,'4. Equipement'!C:C,B79,'4. Equipement'!B:B,$D$25)+SUMIFS('5. Sous-traitance'!H:H,'5. Sous-traitance'!C:C,B79,'5. Sous-traitance'!B:B,$D$25)","v":0},{"$f":"SUMIFS('1. Frais de personnel'!S:S,'1. Frais de personnel'!C:C,B79,'1. Frais de personnel'!B:B,$E$25)+SUMIFS('2-3.Frais de voyage-séjour'!N:N,'2-3.Frais de voyage-séjour'!C:C,B79,'2-3.Frais de voyage-séjour'!B:B,$E$25)+SUMIFS('4. Equipement'!H:H,'4. Equipement'!C:C,B79,'4. Equipement'!B:B,$E$25)+SUMIFS('5. Sous-traitance'!H:H,'5. Sous-traitance'!C:C,B79,'5. Sous-traitance'!B:B,$E$25)","v":0},{"$f":"SUMIFS('1. Frais de personnel'!S:S,'1. Frais de personnel'!C:C,B79,'1. Frais de personnel'!B:B,$B$8)+SUMIFS('2-3.Frais de voyage-séjour'!N:N,'2-3.Frais de voyage-séjour'!C:C,B79,'2-3.Frais de voyage-séjour'!B:B,$B$8)+SUMIFS('4. Equipement'!H:H,'4. Equipement'!C:C,B79,'4. Equipement'!B:B,$B$8)+SUMIFS('5. Sous-traitance'!H:H,'5. Sous-traitance'!C:C,B79,'5. Sous-traitance'!B:B,$B$8)","v":0},{"$f":"SUMIFS('1. Frais de personnel'!S:S,'1. Frais de personnel'!C:C,B79,'1. Frais de personnel'!B:B,$G$25)+SUMIFS('2-3.Frais de voyage-séjour'!N:N,'2-3.Frais de voyage-séjour'!C:C,B79,'2-3.Frais de voyage-séjour'!B:B,$G$25)+SUMIFS('4. Equipement'!H:H,'4. Equipement'!C:C,B79,'4. Equipement'!B:B,$G$25)+SUMIFS('5. Sous-traitance'!H:H,'5. Sous-traitance'!C:C,B79,'5. Sous-traitance'!B:B,$G$25)","v":0},{"$f":"SUMIF('B. Mobilité Spécial - Etudiant'!B:B,B79,'B. Mobilité Spécial - Etudiant'!N:N)+SUMIF('B. Mobilité Spécial - Personnel'!B:B,B79,'B. Mobilité Spécial - Personnel'!N:N)","v":0},0]
[null,"P55",{"$f":"SUMIFS('1. Frais de personnel'!S:S,'1. Frais de personnel'!C:C,B80,'1. Frais de personnel'!B:B,$C$25)+SUMIFS('2-3.Frais de voyage-séjour'!N:N,'2-3.Frais de voyage-séjour'!C:C,B80,'2-3.Frais de voyage-séjour'!B:B,$C$25)+SUMIFS('4. Equipement'!H:H,'4. Equipement'!C:C,B80,'4. Equipement'!B:B,$C$25)+SUMIFS('5. Sous-traitance'!H:H,'5. Sous-traitance'!C:C,B80,'5. Sous-traitance'!B:B,$C$25)","v":0},{"$f":"SUMIFS('1. Frais de personnel'!S:S,'1. Frais de personnel'!C:C,B80,'1. Frais de personnel'!B:B,$D$25)+SUMIFS('2-3.Frais de voyage-séjour'!N:N,'2-3.Frais de voyage-séjour'!C:C,B80,'2-3.Frais de voyage-séjour'!B:B,$D$25)+SUMIFS('4. Equipement'!H:H,'4. Equipement'!C:C,B80,'4. Equipement'!B:B,$D$25)+SUMIFS('5. Sous-traitance'!H:H,'5. Sous-traitance'!C:C,B80,'5. Sous-traitance'!B:B,$D$25)","v":0},{"$f":"SUMIFS('1. Frais de personnel'!S:S,'1. Frais de personnel'!C:C,B80,'1. Frais de personnel'!B:B,$E$25)+SUMIFS('2-3.Frais de voyage-séjour'!N:N,'2-3.Frais de voyage-séjour'!C:C,B80,'2-3.Frais de voyage-séjour'!B:B,$E$25)+SUMIFS('4. Equipement'!H:H,'4. Equipement'!C:C,B80,'4. Equipement'!B:B,$E$25)+SUMIFS('5. Sous-traitance'!H:H,'5. Sous-traitance'!C:C,B80,'5. Sous-traitance'!B:B,$E$25)","v":0},{"$f":"SUMIFS('1. Frais de personnel'!S:S,'1. Frais de personnel'!C:C,B80,'1. Frais de personnel'!B:B,$B$8)+SUMIFS('2-3.Frais de voyage-séjour'!N:N,'2-3.Frais de voyage-séjour'!C:C,B80,'2-3.Frais de voyage-séjour'!B:B,$B$8)+SUMIFS('4. Equipement'!H:H,'4. Equipement'!C:C,B80,'4. Equipement'!B:B,$B$8)+SUMIFS('5. Sous-traitance'!H:H,'5. Sous-traitance'!C:C,B80,'5. Sous-traitance'!B:B,$B$8)","v":0},{"$f":"SUMIFS('1. Frais de personnel'!S:S,'1. Frais de personnel'!C:C,B80,'1. Frais de personnel'!B:B,$G$25)+SUMIFS('2-3.Frais de voyage-séjour'!N:N,'2-3.Frais de voyage-séjour'!C:C,B80,'2-3.Frais de voyage-séjour'!B:B,$G$25)+SUMIFS('4. Equipement'!H:H,'4. Equipement'!C:C,B80,'4. Equipement'!B:B,$G$25)+SUMIFS('5. Sous-traitance'!H:H,'5. Sous-traitance'!C:C,B80,'5. Sous-traitance'!B:B,$G$25)","v":0},{"$f":"SUMIF('B. Mobilité Spécial - Etudiant'!B:B,B80,'B. Mobilité Spécial - Etudiant'!N:N)+SUMIF('B. Mobilité Spécial - Personnel'!B:B,B80,'B. Mobilité Spécial - Personnel'!N:N)","v":0},0]
[null,"TOTAL",{"$f":"SUM(C26:C80)","v":0},{"$f":"SUM(D26:D80)","v":0},0,0,0,0,{"$f":"SUM(C81:H81)","v":0}]

{"sheet":"Rates","index":9,"n_rows":182,"n_cols":17,"rows_kept":182,"cut":false,"hidden":true,"merged":[[1,4,1,7],[1,8,1,11]]}
[]
[null,null,null,null,"Staff Costs",null,null,null,"SMS"]
[null,null,"Country","PR/PA","Gestionnaire","Enseignant/formateur/chercheur","Personnel technique","Personnel administratif","Etudiants des Pays Partenaires","Etudiants des Pays Programmes","Personnel des Pays Partenaires","Personnel des Pays Programmes",null,"Country\nSMS",null,"Distance","Travel \nCosts\n(EUR)"]
[null,1,"Allemagne","Pays Programmes",280,214,162,131,800,0,120,0,null,"Allemagne",null,"0 KM et 9 KM",0]
[null,2,"Ancienne République yougoslave de Macédoine","Pays Programmes",88,74,55,39,750,0,120,0,null,"Ancienne République yougoslave de Macédoine",null,"10 KM et 99 KM",20]
[null,3,"Autriche","Pays Programmes",294,241,190,157,850,0,140,0,null,"Autriche",null,"100 KM et 499 KM",180]
[null,4,"Belgique","Pays Programmes",280,214,162,131,800,0,140,0,null,"Belgique",null,"500 KM et 1999 KM",275]
[null,5,"Bulgarie","Pays Programmes",88,74,55,39,750,0,140,0,null,"Bulgarie",null,"2000 KM et 2999 KM",360]
[null,6,"Chypre","Pays Programmes",164,137,102,78,800,0,140,0,null,"Chypre",null,"3000 KM et 3999 KM",530]
[null,7,"Croatie","Pays Programmes",88,74,55,39,800,0,100,0,null,"Croatie",null,"4000 KM et 7999 KM",820]
[null,8,"Danemark","Pays Programmes",294,241,190,157,850,0,160,0,null,"Danemark",null,"8000 KM ou plus",1100]
[null,9,"Espagne","Pays Programmes",164,137,102,78,800,0,120,0,null,"Espagne"]
[null,10,"Estonie","Pays Programmes",88,74,55,39,750,0,100,0,null,"Estonie",null,"Work Package"]
[null,11,"Finlande","Pays Programmes",280,214,162,131,850,0,140,0,null,"Finlande",null,"Préparation"]
[null,12,"France","Pays Programmes",280,214,162,131,850,0,140,0,null,"France",null,"Développement"]
[null,13,"Grèce","Pays Programmes",164,137,102,78,800,0,140,0,null,"Grèce",null,"Plan Qualité"]
[null,14,"Hongrie","Pays Programmes",88,74,55,39,750,0,140,0,null,"Hongrie",null,"Diffusion et Exploitation des Résultats"]
[null,15,"Irlande","Pays Programmes",294,241,190,157,850,0,160,0,null,"Irlande",null,"Gestion"]
[null,16,"Islande","Pays Programmes",280,214,162,131,800,0,140,0,null,"Islande"]
[null,17,"Italie","Pays Programmes",280,214,162,131,850,0,140,0,null,"Italie",null,"Action Type"]
[null,18,"Lettonie","Pays Programmes",88,74,55,39,750,0,120,0,null,"Lettonie",null,"Projet Conjoint"]
[null,19,"Liechtenstein","Pays Programmes",294,241,190,157,850,0,140,0,null,"Liechtenstein",null,"Projet Structurel"]
[null,20,"Lituanie","Pays Programmes",88,74,55,39,750,0,100,0,null,"Lituanie"]
[null,21,"Luxembourg","Pays Programmes",294,241,190,157,800,0,140,0,null,"Luxembourg",null,"Duration"]
[null,22,"Malte","Pays Programmes",164,137,102,78,750,0,120,0,null,"Malte",null,24]
[null,23,"Norvège","Pays Programmes",294,241,190,157,850,0,140,0,null,"Norvège",null,36]
[null,24,"Pays-Bas","Pays Programmes",294,241,190,157,800,0,160,0,null,"Pays-Bas"]
[null,25,"Pologne","Pays Programmes",88,74,55,39,750,0,140,0,null,"Pologne",null,"Category 2"]
[null,26,"Portugal","Pays Programmes",164,137,102,78,800,0,120,0,null,"Portugal",null,"Etudiant"]
[null,27,"République tchèque","Pays Programmes",164,137,102,78,800,0,140,0,null,"République tchèque",null,"Personnel"]
[null,28,"Roumanie","Pays Programmes",88,74,55,39,750,0,140,0,null,"Roumanie"]
[null,29,"Royaume-Uni","Pays Programmes",280,214,162,131,850,0,160,0,null,"Royaume-Uni"]
[null,30,"Slovaquie","Pays Programmes",88,74,55,39,750,0,120,0,null,"Slovaquie"]
[null,31,"Slovénie","Pays Programmes",164,137,102,78,800,0,100,0,null,"Slovénie"]
[null,32,"Suède","Pays Programmes",294,241,190,157,850,0,160,0,null,"Suède"]
[null,33,"Turquie","Pays Programmes",88,74,55,39,800,0,140,0,null,"Turquie"]
[null,34,"Afghanistan","Pays Partenaires",77,57,40,32,0,0,0,0,null,"Albanie"]
[null,35,"Afrique du Sud","Pays Partenaires",77,57,40,32,0,0,0,0,null,"Algérie"]
[null,36,"Albanie","Pays Partenaires",108,80,57,45,750,650,100,160,null,"Arménie"]
[null,37,"Algérie","Pays Partenaires",47,33,22,17,750,650,100,160,null,"Azerbaïdjan"]
[null,38,"Angola","Pays Partenaires",108,80,57,45,0,0,0,0,null,"Biélorussie"]
[null,39,"Antigua-et-Barbuda","Pays Partenaires",108,80,57,45,0,0,0,0,null,"Bosnie-Herzégovine"]
[null,40,"Argentine","Pays Partenaires",108,80,57,45,0,0,0,0,null,"Égypte"]
[null,41,"Arménie","Pays Partenaires",47,33,22,17,750,650,100,160,null,"Géorgie"]
[null,42,"Azerbaïdjan","Pays Partenaires",77,57,40,32,750,650,100,160,null,"Israël"]
[null,43,"Bahamas","Pays Partenaires",77,57,40,32,0,0,0,0,null,"Jordanie"]
[null,44,"Bangladesh","Pays Partenaires",47,33,22,17,0,0,0,0,null,"Kosovo"]
[null,45,"Barbade","Pays Partenaires",108,80,57,45,0,0,0,0,null,"Liban"]
[null,46,"Belize","Pays Partenaires",47,33,22,17,0,0,0,0,null,"Libye"]
[null,47,"Bénin","Pays Partenaires",47,33,22,17,0,0,0,0,null,"Maroc"]
[null,48,"Bhoutan","Pays Partenaires",47,33,22,17,0,0,0,0,null,"Moldavie"]
[null,49,"Biélorussie","Pays Partenaires",47,33,22,17,750,650,100,160,null,"Monténégro"]
[null,50,"Bolivie","Pays Partenaires",77,57,40,32,0,0,0,0,null,"Palestine"]
[null,51,"Bosnie-Herzégovine","Pays Partenaires",108,80,57,45,750,650,100,160,null,"Serbie"]
[null,52,"Botswana","Pays Partenaires",47,33,22,17,0,0,0,0,null,"Syrie"]
[null,53,"Brésil","Pays Partenaires",108,80,57,45,0,0,0,0,null,"Tunisie"]
[null,54,"Burkina Faso","Pays Partenaires",77,57,40,32,0,0,0,0,null,"Ukraine"]
[null,55,"Burundi","Pays Partenaires",47,33,22,17,0,0,0,0]
[null,56,"Cambodge","Pays Partenaires",47,33,22,17,0,0,0,0]
[null,57,"Cameroun","Pays Partenaires",77,57,40,32,0,0,0,0]
[null,58,"Cape-Vert","Pays Partenaires",47,33,22,17,0,0,0,0]
[null,59,"Chili","Pays Partenaires",108,80,57,45,0,0,0,0]
[null,60,"Chine","Pays Partenaires",77,57,40,32,0,0,0,0]
[null,61,"Colombie","Pays Partenaires",108,80,57,45,0,0,0,0]
[null,62,"Comores","Pays Partenaires",108,80,57,45,0,0,0,0]
[null,63,"Congo (Brazzaville)","Pays Partenaires",77,57,40,32,0,0,0,0]
[null,64,"Congo (Kinshasa)","Pays Partenaires",47,33,22,17,0,0,0,0]
[null,65,"Costa Rica","Pays Partenaires",77,57,40,32,0,0,0,0]
[null,66,"Côte d’Ivoire","Pays Partenaires",108,80,57,45,0,0,0,0]
[null,67,"Cuba","Pays Partenaires",47,33,22,17,0,0,0,0]
[null,68,"Djibouti","Pays Partenaires",77,57,40,32,0,0,0,0]
[null,69,"Dominique","Pays Partenaires",108,80,57,45,0,0,0,0]
[null,70,"Égypte","Pays Partenaires",47,33,22,17,750,650,100,160]
[null,71,"El Salvador","Pays Partenaires",77,57,40,32,0,0,0,0]
[null,72,"Équateur","Pays Partenaires",77,57,40,32,0,0,0,0]
[null,73,"Érythrée","Pays Partenaires",47,33,22,17,0,0,0,0]
[null,74,"Éthiopie","Pays Partenaires",47,33,22,17,0,0,0,0]
[null,75,"Fidji","Pays Partenaires",47,33,22,17,0,0,0,0]
[null,76,"Gabon","Pays Partenaires",108,80,57,45,0,0,0,0]
[null,77,"Gambie","Pays Partenaires",47,33,22,17,0,0,0,0]
[null,78,"Géorgie","Pays Partenaires",77,57,40,32,750,650,100,160]
[null,79,"Ghana","Pays Partenaires",47,33,22,17,0,0,0,0]
[null,80,"Grenade","Pays Partenaires",108,80,57,45,0,0,0,0]
[null,81,"Guatemala","Pays Partenaires",77,57,40,32,0,0,0,0]
[null,82,"Guinée équatoriale","Pays Partenaires",47,33,22,17,0,0,0,0]
[null,83,"Guinée-Bissau","Pays Partenaires",77,57,40,32,0,0,0,0]
[null,84,"Guyana","Pays Partenaires",47,33,22,17,0,0,0,0]
[null,85,"Haïti","Pays Partenaires",77,57,40,32,0,0,0,0]
[null,86,"Honduras","Pays Partenaires",47,33,22,17,0,0,0,0]
[null,87,"Îles Cook","Pays Partenaires",108,80,57,45,0,0,0,0]
[null,88,"Îles Marshall","Pays Partenaires",47,33,22,17,0,0,0,0]
[null,89,"Îles Salomon","Pays Partenaires",47,33,22,17,0,0,0,0]
[null,90,"Inde","Pays Partenaires",47,33,22,17,0,0,0,0]
[null,91,"Indonésie","Pays Partenaires",47,33,22,17,0,0,0,0]
[null,92,"Iran","Pays Partenaires",77,57,40,32,0,0,0,0]
[null,93,"Iraq","Pays Partenaires",77,57,40,32,0,0,0,0]
[null,94,"Israël","Pays Partenaires",166,132,102,92,750,650,100,160]
[null,95,"Jamaïque","Pays Partenaires",77,57,40,32,0,0,0,0]
[null,96,"Jordanie","Pays Partenaires",77,57,40,32,750,650,100,160]
[null,97,"Kazakhstan","Pays Partenaires",77,57,40,32,0,0,0,0]
[null,98,"Kenya","Pays Partenaires",77,57,40,32,0,0,0,0]
[null,99,"Kirghizstan","Pays Partenaires",47,33,22,17,0,0,0,0]
[null,100,"Kiribati","Pays Partenaires",47,33,22,17,0,0,0,0]
[null,101,"Kosovo","Pays Partenaires",108,80,57,45,750,650,100,160]
[null,102,"Laos","Pays Partenaires",47,33,22,17,0,0,0,0]
[null,103,"Lesotho","Pays Partenaires",47,33,22,17,0,0,0,0]
[null,104,"Liban","Pays Partenaires",108,80,57,45,750,650,100,160]
[null,105,"Liberia","Pays Partenaires",47,33,22,17,0,0,0,0]
[null,106,"Libye","Pays Partenaires",108,80,57,45,750,650,100,160]
[null,107,"Madagascar","Pays Partenaires",47,33,22,17,0,0,0,0]
[null,108,"Malaisie","Pays Partenaires",47,33,22,17,0,0,0,0]
[null,109,"Malawi","Pays Partenaires",47,33,22,17,0,0,0,0]
[null,110,"Maldives","Pays Partenaires",47,33,22,17,0,0,0,0]
[null,111,"Mali","Pays Partenaires",47,33,22,17,0,0,0,0]
[null,112,"Maroc","Pays Partenaires",77,57,40,32,750,650,100,160]
[null,113,"Maurice","Pays Partenaires",47,33,22,17,0,0,0,0]
[null,114,"Mauritanie","Pays Partenaires",47,33,22,17,0,0,0,0]
[null,115,"Mexique","Pays Partenaires",108,80,57,45,0,0,0,0]
[null,116,"Micronésie","Pays Partenaires",77,57,40,32,0,0,0,0]
[null,117,"Moldavie","Pays Partenaires",47,33,22,17,750,650,100,160]
[null,118,"Mongolie","Pays Partenaires",47,33,22,17,0,0,0,0]
[null,119,"Monténégro","Pays Partenaires",108,80,57,45,750,650,100,160]
[null,120,"Mozambique","Pays Partenaires",77,57,40,32,0,0,0,0]
[null,121,"Myanmar","Pays Partenaires",47,33,22,17,0,0,0,0]
[null,122,"Namibie","Pays Partenaires",77,57,40,32,0,0,0,0]
[null,123,"Nauru","Pays Partenaires",47,33,22,17,0,0,0,0]
[null,124,"Népal","Pays Partenaires",47,33,22,17,0,0,0,0]
[null,125,"Nicaragua","Pays Partenaires",47,33,22,17,0,0,0,0]
[null,126,"Niger","Pays Partenaires",47,33,22,17,0,0,0,0]
[null,127,"Nigeria","Pays Partenaires",108,80,57,45,0,0,0,0]
[null,128,"Niue","Pays Partenaires",47,33,22,17,0,0,0,0]
[null,129,"Ouganda","Pays Partenaires",47,33,22,17,0,0,0,0]
[null,130,"Ouzbékistan","Pays Partenaires",47,33,22,17,0,0,0,0]
[null,131,"Pakistan","Pays Partenaires",47,33,22,17,0,0,0,0]
[null,132,"Palaos","Pays Partenaires",47,33,22,17,0,0,0,0]
[null,133,"Palestine","Pays Partenaires",77,57,40,32,750,650,100,160]
[null,134,"Panama","Pays Partenaires",77,57,40,32,0,0,0,0]
[null,135,"Papouasie-Nouvelle-Guinée","Pays Partenaires",77,57,40,32,0,0,0,0]
[null,136,"Paraguay","Pays Partenaires",77,57,40,32,0,0,0,0]
[null,137,"Pérou","Pays Partenaires",108,80,57,45,0,0,0,0]
[null,138,"Philippines","Pays Partenaires",47,33,22,17,0,0,0,0]
[null,139,"République centrafricaine","Pays Partenaires",47,33,22,17,0,0,0,0]
[null,140,"République de Guinée","Pays Partenaires",47,33,22,17,0,0,0,0]
[null,141,"République dominicaine","Pays Partenaires",77,57,40,32,0,0,0,0]
[null,142,"RPD Corée","Pays Partenaires",47,33,22,17,0,0,0,0]
[null,143,"Russie","Pays Partenaires",77,57,40,32,0,0,0,0]
[null,144,"Rwanda","Pays Partenaires",47,33,22,17,0,0,0,0]
[null,145,"Saint-Christophe-et-Niévès","Pays Partenaires",108,80,57,45,0,0,0,0]
[null,146,"Sainte-Lucie","Pays Partenaires",108,80,57,45,0,0,0,0]
[null,147,"Saint-Vincent-et-les-Grenadines","Pays Partenaires",108,80,57,45,0,0,0,0]
[null,148,"Samoa","Pays Partenaires",47,33,22,17,0,0,0,0]
[null,149,"Sao Tomé-et-Principe","Pays Partenaires",108,80,57,45,0,0,0,0]
[null,150,"Sénégal","Pays Partenaires",77,57,40,32,0,0,0,0]
[null,151,"Serbie","Pays Partenaires",108,80,57,45,750,650,100,160]
[null,152,"Seychelles","Pays Partenaires",108,80,57,45,0,0,0,0]
[null,153,"Sierra Leone","Pays Partenaires",47,33,22,17,0,0,0,0]
[null,154,"Somalie","Pays Partenaires",47,33,22,17,0,0,0,0]
[null,155,"Soudan","Pays Partenaires",47,33,22,17,0,0,0,0]
[null,156,"Soudan du Sud","Pays Partenaires",47,33,22,17,0,0,0,0]
[null,157,"Sri Lanka","Pays Partenaires",47,33,22,17,0,0,0,0]
[null,158,"Suriname","Pays Partenaires",77,57,40,32,0,0,0,0]
[null,159,"Swaziland","Pays Partenaires",77,57,40,32,0,0,0,0]
[null,160,"Syrie","Pays Partenaires",47,33,22,17,750,650,100,160]
[null,161,"Tadjikistan","Pays Partenaires",47,33,22,17,0,0,0,0]
[null,162,"Tanzanie","Pays Partenaires",47,33,22,17,0,0,0,0]
[null,163,"Tchad","Pays Partenaires",47,33,22,17,0,0,0,0]
[null,164,"Thaïlande","Pays Partenaires",108,80,57,45,0,0,0,0]
[null,165,"Timor-Oriental","Pays Partenaires",47,33,22,17,0,0,0,0]
[null,166,"Togo","Pays Partenaires",47,33,22,17,0,0,0,0]
[null,167,"Tonga","Pays Partenaires",47,33,22,17,0,0,0,0]
[null,168,"Trinité-et-Tobago","Pays Partenaires",77,57,40,32,0,0,0,0]
[null,169,"Tunisie","Pays Partenaires",47,33,22,17,750,650,100,160]
[null,170,"Turkménistan","Pays Partenaires",47,33,22,17,0,0,0,0]
[null,171,"Tuvalu","Pays Partenaires",47,33,22,17,0,0,0,0]
[null,172,"Ukraine","Pays Partenaires",108,80,57,45,750,650,100,160]
[null,173,"Uruguay","Pays Partenaires",108,80,57,45,0,0,0,0]
[null,174,"Vanuatu","Pays Partenaires",77,57,40,32,0,0,0,0]
[null,175,"Venezuela","Pays Partenaires",108,80,57,45,0,0,0,0]
[null,176,"Viêt Nam","Pays Partenaires",47,33,22,17,0,0,0,0]
[null,177,"Yémen","Pays Partenaires",47,33,22,17,0,0,0,0]
[null,178,"Zambie","Pays Partenaires",108,80,57,45,0,0,0,0]
[null,179,"Zimbabwe","Pays Partenaires",108,80,57,45,0,0,0,0]

{"sheet":"Coûts Unitaires & RèglesFinance","index":10,"n_rows":186,"n_cols":28,"rows_kept":186,"cut":false,"hidden":false,"merged":[[4,22,4,27],[5,22,5,27],[0,1,0,27],[3,1,3,6],[3,8,3,9],[3,11,3,13],[3,15,3,16],[3,18,3,20],[3,22,3,27],[2,2,2,7],[1,2,1,7],[6,15,6,16],[6,18,6,20],[4,1,5,6],[4,8,5,9],[4,11,5,13],[4,15,5,16],[4,18,5,20]]}
[null,"COÛTS UNITAIRES ET UN RÉSUMÉ DES RÈGLES DE FINANCEMENT POUR LES PROJETS CONJOINTS ET STRUCTURELS DE RENFORCEMENT DES CAPACITÉ DANS LE DOMAINE DE L'ENSEIGNEMENT SUPÉRIEUR\n\nVeuillez trouver ci-dessous les valeurs des coûts unitaires utilisées dans ce fichier pour le calcul de la subvention.\nFaites référence au guide du programmes Erasmus+ 2017* pour un aperçu complet des règles de financement applicables aux projets conjoints et structurels de renforcement des capacité dans le domaine de l'enseignement supérieur (partie B du Guide et Annexe I) "]
[null,"* Lien vers le guide du Programme Erasmus+ 2017: ","http://ec.europa.eu/programmes/erasmus-plus/resources_en"]
[null,"* Lien vers l'appel à propositions, formulaires de candidature, annexes et lignes directrices:","http://eur-lex.europa.eu/legal-content/EN/TXT/?uri=OJ:JOC_2016_386_R_0009"]
[null,"A.1 Frais de Personnel",null,null,null,null,null,null,"A.2 & B Frais de Voyage",null,null,"A. 3 Frais de Séjour",null,null,null,"A.4 Equipement",null,null,"A.5 Sous-traitance",null,null,null,"B - Volet Spécial pour la Mobilité"]
[null,"Les coûts unitaires\n\nContribution aux frais de personnel effectuant des tâches qui sont directement nécessaires à la réalisation des objectifs du projet.\n\nConditionnelles: les candidats devront justifier le type et le volume des ressources nécessaires dans le cadre de la mise en œuvre des activités et des résultats proposées. La contribution est valable à condition que le salaire pour les mêmes tâches est compensée qu'une seule fois.",null,null,null,null,null,null,"Les coûts unitaires sont indiqués sur la base de la distance d'un voyage par participant.\n\nLes distances de voyage doivent être calculés en utilisant le calculateur de distance fourni par la Commission européenne.\n\nLe demandeur doit indiquer la distance d’un trajet aller afin que puisse être calculé le montant de la bourse de l’UE qui servira à financer le voyage aller-retour.",null,null,"Les frais de subsistance, le logement, transports locaux et publics tels que bus et taxi, assurance-santé personnelle ou facultative.\n\n Les coûts unitaires sur la base de la durée du séjour des participants:\n\nPersonnel: \n120 EUR/jour du jour 1 au jour 14\n70 EUR/jour du jour 15 au jour 60\n50 EUR/jour du jour 61 au jour 90 (le maximum)\n\nEtudiant: \n55 EUR/jour du jour 1 au jour 14\n40 EUR/jour du jour 15 au jour 90 (le maximum)",null,null,null,"Contribution pour l'achat de matériel nécessaire à la mise en œuvre du projet. Le soutien est valable uniquement pour le matériel acheté pour les EES dans les pays partenaires.\n\nCondition: la demande subvention pour couvrir ces coûts doit être motivée dans le formulaire de demande.",null,null,"Contribution aux coûts de sous-traitance qui sont nécessaires pour la mise en œuvre du projet, y compris, notamment, les coûts pour les audits financiers obligatoires (certificat d'audit) et pour activités d'assurance de la qualité (externe).\n\nSous-traitance pour les tâches de gestion de projets-ne est pas admissible.\nLa sous-traitance à des organismes externes devrait être très occasionnelle. \n\nLes compétences spécifiques et une expertise particulière nécessaire pour atteindre les objectifs du projet devraient être trouvées dans le consortium et devraient déterminer sa composition.",null,null,null,"Les frais de voyage (étudiants et personnel): Les coûts unitaires (veuillez faire référence à des coûts unitaires dans le tableau A2).\nContribution aux frais de voyage des étudiants et du personnel impliqués dans le \"volet spécial mobilité\", de leur lieu d'origine au lieu de l'activité et retour (y compris les frais de visa et l'assurance obligatoire liée, assurance voyage et frais d'annulation si justifié).\n\nLes activités et voyages connexes doivent être effectuées dans les pays impliqués dans le projet. Toute exception à cette règle doit être autorisée par l'Agence Executive. Pour la liste détaillée des activités admissibles, voir l'annexe I du présent guide.\n\nLes frais de séjour: les coûts unitaires sur la base de la durée du séjour des participants.\nLes frais de subsistance, le logement, transports locaux et publics tels que bus et taxi, assurance-santé personnelle ou facultative -  sur la base de la durée du séjour par participant."]
[null,null,null,null,null,null,null,null,null,null,null,null,null,null,null,null,null,null,null,null,null,null,"Frais de séjour pour le Volet Spécial Mobilité"]
[null,"Pays","PR/PA","Gestionnaire","Enseignant/formateur/chercheur","Personnel \nTechnique","Personnel administratif",null,"Distance","Frais de Voyage\n(EUR)",null,"Nombre de jours","Etudiant","Personnel",null,"100% des coûts éligibles\nMax. 30% de la subvention totale",null,null,"100% des coûts éligibles\nMax. 10% de la subvention totale",null,null,null,"Country","PR/PA","Etudiants des Pays Partenaires","Etudiants des Pays Programmes","Personnel des Pays Partenaires","Personnel des Pays Programmes"]
[null,{"$f":"Rates!C4","v":"Allemagne"},{"$f":"Rates!D4","v":"Pays Programmes"},{"$f":"Rates!E4","v":280},{"$f":"Rates!F4","v":214},{"$f":"Rates!G4","v":162},{"$f":"Rates!H4","v":131},null,{"$f":"Rates!P4","v":"0 KM et 9 KM"},{"$f":"Rates!Q4","v":0},null,1,{"$f":"L8*55","v":55},{"$f":"L8*120","v":120},null,null,null,null,null,null,null,null,{"$f":"Rates!N4","v":"Allemagne"},{"$f":"VLOOKUP(W8,Rates!$C$4:$L$182,2,FALSE)","v":"Pays Programmes"},{"$f":"VLOOKUP(W8,Rates!$C$4:$L$182,7,FALSE)","v":800},{"$f":"VLOOKUP(W8,Rates!$C$4:$L$182,8,FALSE)","v":0},{"$f":"VLOOKUP(W8,Rates!$C$4:$L$182,9,FALSE)","v":120},{"$f":"VLOOKUP(W8,Rates!$C$4:$L$182,10,FALSE)","v":0}]
[null,{"$f":"Rates!C5","v":"Ancienne République yougoslave de Macédoine"},{"$f":"Rates!D5","v":"Pays Programmes"},{"$f":"Rates!E5","v":88},{"$f":"Rates!F5","v":74},{"$f":"Rates!G5","v":55},{"$f":"Rates!H5","v":39},null,{"$f":"Rates!P5","v":"10 KM et 99 KM"},{"$f":"Rates!Q5","v":20},null,2,{"$f":"L9*55","v":110},{"$f":"L9*120","v":240},null,null,null,null,null,null,null,null,{"$f":"Rates!N5","v":"Ancienne République yougoslave de Macédoine"},{"$f":"VLOOKUP(W9,Rates!$C$4:$L$182,2,FALSE)","v":"Pays Programmes"},{"$f":"VLOOKUP(W9,Rates!$C$4:$L$182,7,FALSE)","v":750},{"$f":"VLOOKUP(W9,Rates!$C$4:$L$182,8,FALSE)","v":0},{"$f":"VLOOKUP(W9,Rates!$C$4:$L$182,9,FALSE)","v":120},{"$f":"VLOOKUP(W9,Rates!$C$4:$L$182,10,FALSE)","v":0}]
[null,{"$f":"Rates!C6","v":"Autriche"},{"$f":"Rates!D6","v":"Pays Programmes"},{"$f":"Rates!E6","v":294},{"$f":"Rates!F6","v":241},{"$f":"Rates!G6","v":190},{"$f":"Rates!H6","v":157},null,{"$f":"Rates!P6","v":"100 KM et 499 KM"},{"$f":"Rates!Q6","v":180},null,3,165,360,null,null,null,null,null,null,null,null,{"$f":"Rates!N6","v":"Autriche"},{"$f":"VLOOKUP(W10,Rates!$C$4:$L$182,2,FALSE)","v":"Pays Programmes"},{"$f":"VLOOKUP(W10,Rates!$C$4:$L$182,7,FALSE)","v":850},{"$f":"VLOOKUP(W10,Rates!$C$4:$L$182,8,FALSE)","v":0},{"$f":"VLOOKUP(W10,Rates!$C$4:$L$182,9,FALSE)","v":140},{"$f":"VLOOKUP(W10,Rates!$C$4:$L$182,10,FALSE)","v":0}]
[null,{"$f":"Rates!C7","v":"Belgique"},{"$f":"Rates!D7","v":"Pays Programmes"},{"$f":"Rates!E7","v":280},{"$f":"Rates!F7","v":214},{"$f":"Rates!G7","v":162},{"$f":"Rates!H7","v":131},null,{"$f":"Rates!P7","v":"500 KM et 1999 KM"},{"$f":"Rates!Q7","v":275},null,4,220,480,null,null,null,null,null,null,null,null,{"$f":"Rates!N7","v":"Belgique"},{"$f":"VLOOKUP(W11,Rates!$C$4:$L$182,2,FALSE)","v":"Pays Programmes"},{"$f":"VLOOKUP(W11,Rates!$C$4:$L$182,7,FALSE)","v":800},{"$f":"VLOOKUP(W11,Rates!$C$4:$L$182,8,FALSE)","v":0},{"$f":"VLOOKUP(W11,Rates!$C$4:$L$182,9,FALSE)","v":140},{"$f":"VLOOKUP(W11,Rates!$C$4:$L$182,10,FALSE)","v":0}]
[null,{"$f":"Rates!C8","v":"Bulgarie"},{"$f":"Rates!D8","v":"Pays Programmes"},{"$f":"Rates!E8","v":88},{"$f":"Rates!F8","v":74},{"$f":"Rates!G8","v":55},{"$f":"Rates!H8","v":39},null,{"$f":"Rates!P8","v":"2000 KM et 2999 KM"},{"$f":"Rates!Q8","v":360},null,5,275,600,null,null,null,null,null,null,null,null,{"$f":"Rates!N8","v":"Bulgarie"},{"$f":"VLOOKUP(W12,Rates!$C$4:$L$182,2,FALSE)","v":"Pays Programmes"},{"$f":"VLOOKUP(W12,Rates!$C$4:$L$182,7,FALSE)","v":750},{"$f":"VLOOKUP(W12,Rates!$C$4:$L$182,8,FALSE)","v":0},{"$f":"VLOOKUP(W12,Rates!$C$4:$L$182,9,FALSE)","v":140},{"$f":"VLOOKUP(W12,Rates!$C$4:$L$182,10,FALSE)","v":0}]
[null,{"$f":"Rates!C9","v":"Chypre"},{"$f":"Rates!D9","v":"Pays Programmes"},{"$f":"Rates!E9","v":164},{"$f":"Rates!F9","v":137},{"$f":"Rates!G9","v":102},{"$f":"Rates!H9","v":78},null,{"$f":"Rates!P9","v":"3000 KM et 3999 KM"},{"$f":"Rates!Q9","v":530},null,6,330,720,null,null,null,null,null,null,null,null,{"$f":"Rates!N9","v":"Chypre"},{"$f":"VLOOKUP(W13,Rates!$C$4:$L$182,2,FALSE)","v":"Pays Programmes"},{"$f":"VLOOKUP(W13,Rates!$C$4:$L$182,7,FALSE)","v":800},{"$f":"VLOOKUP(W13,Rates!$C$4:$L$182,8,FALSE)","v":0},{"$f":"VLOOKUP(W13,Rates!$C$4:$L$182,9,FALSE)","v":140},{"$f":"VLOOKUP(W13,Rates!$C$4:$L$182,10,FALSE)","v":0}]
[null,{"$f":"Rates!C10","v":"Croatie"},{"$f":"Rates!D10","v":"Pays Programmes"},{"$f":"Rates!E10","v":88},{"$f":"Rates!F10","v":74},{"$f":"Rates!G10","v":55},{"$f":"Rates!H10","v":39},null,{"$f":"Rates!P10","v":"4000 KM et 7999 KM"},{"$f":"Rates!Q10","v":820},null,7,385,840,null,null,null,null,null,null,null,null,{"$f":"Rates!N10","v":"Croatie"},{"$f":"VLOOKUP(W14,Rates!$C$4:$L$182,2,FALSE)","v":"Pays Programmes"},{"$f":"VLOOKUP(W14,Rates!$C$4:$L$182,7,FALSE)","v":800},{"$f":"VLOOKUP(W14,Rates!$C$4:$L$182,8,FALSE)","v":0},{"$f":"VLOOKUP(W14,Rates!$C$4:$L$182,9,FALSE)","v":100},{"$f":"VLOOKUP(W14,Rates!$C$4:$L$182,10,FALSE)","v":0}]
[null,{"$f":"Rates!C11","v":"Danemark"},{"$f":"Rates!D11","v":"Pays Programmes"},{"$f":"Rates!E11","v":294},{"$f":"Rates!F11","v":241},{"$f":"Rates!G11","v":190},{"$f":"Rates!H11","v":157},null,{"$f":"Rates!P11","v":"8000 KM ou plus"},{"$f":"Rates!Q11","v":1100},null,8,440,960,null,null,null,null,null,null,null,null,{"$f":"Rates!N11","v":"Danemark"},{"$f":"VLOOKUP(W15,Rates!$C$4:$L$182,2,FALSE)","v":"Pays Programmes"},{"$f":"VLOOKUP(W15,Rates!$C$4:$L$182,7,FALSE)","v":850},{"$f":"VLOOKUP(W15,Rates!$C$4:$L$182,8,FALSE)","v":0},{"$f":"VLOOKUP(W15,Rates!$C$4:$L$182,9,FALSE)","v":160},{"$f":"VLOOKUP(W15,Rates!$C$4:$L$182,10,FALSE)","v":0}]
[null,{"$f":"Rates!C12","v":"Espagne"},{"$f":"Rates!D12","v":"Pays Programmes"},{"$f":"Rates!E12","v":164},{"$f":"Rates!F12","v":137},{"$f":"Rates!G12","v":102},{"$f":"Rates!H12","v":78},null,null,null,null,9,495,1080,null,null,null,null,null,null,null,null,{"$f":"Rates!N12","v":"Espagne"},{"$f":"VLOOKUP(W16,Rates!$C$4:$L$182,2,FALSE)","v":"Pays Programmes"},{"$f":"VLOOKUP(W16,Rates!$C$4:$L$182,7,FALSE)","v":800},{"$f":"VLOOKUP(W16,Rates!$C$4:$L$182,8,FALSE)","v":0},{"$f":"VLOOKUP(W16,Rates!$C$4:$L$182,9,FALSE)","v":120},{"$f":"VLOOKUP(W16,Rates!$C$4:$L$182,10,FALSE)","v":0}]
[null,{"$f":"Rates!C13","v":"Estonie"},{"$f":"Rates!D13","v":"Pays Programmes"},{"$f":"Rates!E13","v":88},{"$f":"Rates!F13","v":74},{"$f":"Rates!G13","v":55},{"$f":"Rates!H13","v":39},null,null,null,null,10,550,1200,null,null,null,null,null,null,null,null,{"$f":"Rates!N13","v":"Estonie"},{"$f":"VLOOKUP(W17,Rates!$C$4:$L$182,2,FALSE)","v":"Pays Programmes"},{"$f":"VLOOKUP(W17,Rates!$C$4:$L$182,7,FALSE)","v":750},{"$f":"VLOOKUP(W17,Rates!$C$4:$L$182,8,FALSE)","v":0},{"$f":"VLOOKUP(W17,Rates!$C$4:$L$182,9,FALSE)","v":100},{"$f":"VLOOKUP(W17,Rates!$C$4:$L$182,10,FALSE)","v":0}]
[null,{"$f":"Rates!C14","v":"Finlande"},{"$f":"Rates!D14","v":"Pays Programmes"},{"$f":"Rates!E14","v":280},{"$f":"Rates!F14","v":214},{"$f":"Rates!G14","v":162},{"$f":"Rates!H14","v":131},null,null,null,null,11,605,1320,null,null,null,null,null,null,null,null,{"$f":"Rates!N14","v":"Finlande"},{"$f":"VLOOKUP(W18,Rates!$C$4:$L$182,2,FALSE)","v":"Pays Programmes"},{"$f":"VLOOKUP(W18,Rates!$C$4:$L$182,7,FALSE)","v":850},{"$f":"VLOOKUP(W18,Rates!$C$4:$L$182,8,FALSE)","v":0},{"$f":"VLOOKUP(W18,Rates!$C$4:$L$182,9,FALSE)","v":140},{"$f":"VLOOKUP(W18,Rates!$C$4:$L$182,10,FALSE)","v":0}]
[null,{"$f":"Rates!C15","v":"France"},{"$f":"Rates!D15","v":"Pays Programmes"},{"$f":"Rates!E15","v":280},{"$f":"Rates!F15","v":214},{"$f":"Rates!G15","v":162},{"$f":"Rates!H15","v":131},null,null,null,null,12,660,1440,null,null,null,null,null,null,null,null,{"$f":"Rates!N15","v":"France"},{"$f":"VLOOKUP(W19,Rates!$C$4:$L$182,2,FALSE)","v":"Pays Programmes"},{"$f":"VLOOKUP(W19,Rates!$C$4:$L$182,7,FALSE)","v":850},{"$f":"VLOOKUP(W19,Rates!$C$4:$L$182,8,FALSE)","v":0},{"$f":"VLOOKUP(W19,Rates!$C$4:$L$182,9,FALSE)","v":140},{"$f":"VLOOKUP(W19,Rates!$C$4:$L$182,10,FALSE)","v":0}]
[null,{"$f":"Rates!C16","v":"Grèce"},{"$f":"Rates!D16","v":"Pays Programmes"},{"$f":"Rates!E16","v":164},{"$f":"Rates!F16","v":137},{"$f":"Rates!G16","v":102},{"$f":"Rates!H16","v":78},null,null,null,null,13,715,1560,null,null,null,null,null,null,null,null,{"$f":"Rates!N16","v":"Grèce"},{"$f":"VLOOKUP(W20,Rates!$C$4:$L$182,2,FALSE)","v":"Pays Programmes"},{"$f":"VLOOKUP(W20,Rates!$C$4:$L$182,7,FALSE)","v":800},{"$f":"VLOOKUP(W20,Rates!$C$4:$L$182,8,FALSE)","v":0},{"$f":"VLOOKUP(W20,Rates!$C$4:$L$182,9,FALSE)","v":140},{"$f":"VLOOKUP(W20,Rates!$C$4:$L$182,10,FALSE)","v":0}]
[null,{"$f":"Rates!C17","v":"Hongrie"},{"$f":"Rates!D17","v":"Pays Programmes"},{"$f":"Rates!E17","v":88},{"$f":"Rates!F17","v":74},{"$f":"Rates!G17","v":55},{"$f":"Rates!H17","v":39},null,null,null,null,14,770,1680,null,null,null,null,null,null,null,null,{"$f":"Rates!N17","v":"Hongrie"},{"$f":"VLOOKUP(W21,Rates!$C$4:$L$182,2,FALSE)","v":"Pays Programmes"},{"$f":"VLOOKUP(W21,Rates!$C$4:$L$182,7,FALSE)","v":750},{"$f":"VLOOKUP(W21,Rates!$C$4:$L$182,8,FALSE)","v":0},{"$f":"VLOOKUP(W21,Rates!$C$4:$L$182,9,FALSE)","v":140},{"$f":"VLOOKUP(W21,Rates!$C$4:$L$182,10,FALSE)","v":0}]
[null,{"$f":"Rates!C18","v":"Irlande"},{"$f":"Rates!D18","v":"Pays Programmes"},{"$f":"Rates!E18","v":294},{"$f":"Rates!F18","v":241},{"$f":"Rates!G18","v":190},{"$f":"Rates!H18","v":157},null,null,null,null,15,{"$f":"((L22-$L$21)*40)+770","v":810},{"$f":"((L22-$L$21)*70)+1680","v":1750},null,null,null,null,null,null,null,null,{"$f":"Rates!N18","v":"Irlande"},{"$f":"VLOOKUP(W22,Rates!$C$4:$L$182,2,FALSE)","v":"Pays Programmes"},{"$f":"VLOOKUP(W22,Rates!$C$4:$L$182,7,FALSE)","v":850},{"$f":"VLOOKUP(W22,Rates!$C$4:$L$182,8,FALSE)","v":0},{"$f":"VLOOKUP(W22,Rates!$C$4:$L$182,9,FALSE)","v":160},{"$f":"VLOOKUP(W22,Rates!$C$4:$L$182,10,FALSE)","v":0}]
[null,{"$f":"Rates!C19","v":"Islande"},{"$f":"Rates!D19","v":"Pays Programmes"},{"$f":"Rates!E19","v":280},{"$f":"Rates!F19","v":214},{"$f":"Rates!G19","v":162},{"$f":"Rates!H19","v":131},null,null,null,null,16,{"$f":"((L23-$L$21)*40)+770","v":850},{"$f":"((L23-$L$21)*70)+1680","v":1820},null,null,null,null,null,null,null,null,{"$f":"Rates!N19","v":"Islande"},{"$f":"VLOOKUP(W23,Rates!$C$4:$L$182,2,FALSE)","v":"Pays Programmes"},{"$f":"VLOOKUP(W23,Rates!$C$4:$L$182,7,FALSE)","v":800},{"$f":"VLOOKUP(W23,Rates!$C$4:$L$182,8,FALSE)","v":0},{"$f":"VLOOKUP(W23,Rates!$C$4:$L$182,9,FALSE)","v":140},{"$f":"VLOOKUP(W23,Rates!$C$4:$L$182,10,FALSE)","v":0}]
[null,{"$f":"Rates!C20","v":"Italie"},{"$f":"Rates!D20","v":"Pays Programmes"},{"$f":"Rates!E20","v":280},{"$f":"Rates!F20","v":214},{"$f":"Rates!G20","v":162},{"$f":"Rates!H20","v":131},null,null,null,null,17,890,1890,null,null,null,null,null,null,null,null,{"$f":"Rates!N20","v":"Italie"},{"$f":"VLOOKUP(W24,Rates!$C$4:$L$182,2,FALSE)","v":"Pays Programmes"},{"$f":"VLOOKUP(W24,Rates!$C$4:$L$182,7,FALSE)","v":850},{"$f":"VLOOKUP(W24,Rates!$C$4:$L$182,8,FALSE)","v":0},{"$f":"VLOOKUP(W24,Rates!$C$4:$L$182,9,FALSE)","v":140},{"$f":"VLOOKUP(W24,Rates!$C$4:$L$182,10,FALSE)","v":0}]
[null,{"$f":"Rates!C21","v":"Lettonie"},{"$f":"Rates!D21","v":"Pays Programmes"},{"$f":"Rates!E21","v":88},{"$f":"Rates!F21","v":74},{"$f":"Rates!G21","v":55},{"$f":"Rates!H21","v":39},null,null,null,null,18,930,1960,null,null,null,null,null,null,null,null,{"$f":"Rates!N21","v":"Lettonie"},{"$f":"VLOOKUP(W25,Rates!$C$4:$L$182,2,FALSE)","v":"Pays Programmes"},{"$f":"VLOOKUP(W25,Rates!$C$4:$L$182,7,FALSE)","v":750},{"$f":"VLOOKUP(W25,Rates!$C$4:$L$182,8,FALSE)","v":0},{"$f":"VLOOKUP(W25,Rates!$C$4:$L$182,9,FALSE)","v":120},{"$f":"VLOOKUP(W25,Rates!$C$4:$L$182,10,FALSE)","v":0}]
[null,{"$f":"Rates!C22","v":"Liechtenstein"},{"$f":"Rates!D22","v":"Pays Programmes"},{"$f":"Rates!E22","v":294},{"$f":"Rates!F22","v":241},{"$f":"Rates!G22","v":190},{"$f":"Rates!H22","v":157},null,null,null,null,19,970,2030,null,null,null,null,null,null,null,null,{"$f":"Rates!N22","v":"Liechtenstein"},{"$f":"VLOOKUP(W26,Rates!$C$4:$L$182,2,FALSE)","v":"Pays Programmes"},{"$f":"VLOOKUP(W26,Rates!$C$4:$L$182,7,FALSE)","v":850},{"$f":"VLOOKUP(W26,Rates!$C$4:$L$182,8,FALSE)","v":0},{"$f":"VLOOKUP(W26,Rates!$C$4:$L$182,9,FALSE)","v":140},{"$f":"VLOOKUP(W26,Rates!$C$4:$L$182,10,FALSE)","v":0}]
[null,{"$f":"Rates!C23","v":"Lituanie"},{"$f":"Rates!D23","v":"Pays Programmes"},{"$f":"Rates!E23","v":88},{"$f":"Rates!F23","v":74},{"$f":"Rates!G23","v":55},{"$f":"Rates!H23","v":39},null,null,null,null,20,1010,2100,null,null,null,null,null,null,null,null,{"$f":"Rates!N23","v":"Lituanie"},{"$f":"VLOOKUP(W27,Rates!$C$4:$L$182,2,FALSE)","v":"Pays Programmes"},{"$f":"VLOOKUP(W27,Rates!$C$4:$L$182,7,FALSE)","v":750},{"$f":"VLOOKUP(W27,Rates!$C$4:$L$182,8,FALSE)","v":0},{"$f":"VLOOKUP(W27,Rates!$C$4:$L$182,9,FALSE)","v":100},{"$f":"VLOOKUP(W27,Rates!$C$4:$L$182,10,FALSE)","v":0}]
[null,{"$f":"Rates!C24","v":"Luxembourg"},{"$f":"Rates!D24","v":"Pays Programmes"},{"$f":"Rates!E24","v":294},{"$f":"Rates!F24","v":241},{"$f":"Rates!G24","v":190},{"$f":"Rates!H24","v":157},null,null,null,null,21,1050,2170,null,null,null,null,null,null,null,null,{"$f":"Rates!N24","v":"Luxembourg"},{"$f":"VLOOKUP(W28,Rates!$C$4:$L$182,2,FALSE)","v":"Pays Programmes"},{"$f":"VLOOKUP(W28,Rates!$C$4:$L$182,7,FALSE)","v":800},{"$f":"VLOOKUP(W28,Rates!$C$4:$L$182,8,FALSE)","v":0},{"$f":"VLOOKUP(W28,Rates!$C$4:$L$182,9,FALSE)","v":140},{"$f":"VLOOKUP(W28,Rates!$C$4:$L$182,10,FALSE)","v":0}]
[null,{"$f":"Rates!C25","v":"Malte"},{"$f":"Rates!D25","v":"Pays Programmes"},{"$f":"Rates!E25","v":164},{"$f":"Rates!F25","v":137},{"$f":"Rates!G25","v":102},{"$f":"Rates!H25","v":78},null,null,null,null,22,1090,2240,null,null,null,null,null,null,null,null,{"$f":"Rates!N25","v":"Malte"},{"$f":"VLOOKUP(W29,Rates!$C$4:$L$182,2,FALSE)","v":"Pays Programmes"},{"$f":"VLOOKUP(W29,Rates!$C$4:$L$182,7,FALSE)","v":750},{"$f":"VLOOKUP(W29,Rates!$C$4:$L$182,8,FALSE)","v":0},{"$f":"VLOOKUP(W29,Rates!$C$4:$L$182,9,FALSE)","v":120},{"$f":"VLOOKUP(W29,Rates!$C$4:$L$182,10,FALSE)","v":0}]
[null,{"$f":"Rates!C26","v":"Norvège"},{"$f":"Rates!D26","v":"Pays Programmes"},{"$f":"Rates!E26","v":294},{"$f":"Rates!F26","v":241},{"$f":"Rates!G26","v":190},{"$f":"Rates!H26","v":157},null,null,null,null,23,1130,2310,null,null,null,null,null,null,null,null,{"$f":"Rates!N26","v":"Norvège"},{"$f":"VLOOKUP(W30,Rates!$C$4:$L$182,2,FALSE)","v":"Pays Programmes"},{"$f":"VLOOKUP(W30,Rates!$C$4:$L$182,7,FALSE)","v":850},{"$f":"VLOOKUP(W30,Rates!$C$4:$L$182,8,FALSE)","v":0},{"$f":"VLOOKUP(W30,Rates!$C$4:$L$182,9,FALSE)","v":140},{"$f":"VLOOKUP(W30,Rates!$C$4:$L$182,10,FALSE)","v":0}]
[null,{"$f":"Rates!C27","v":"Pays-Bas"},{"$f":"Rates!D27","v":"Pays Programmes"},{"$f":"Rates!E27","v":294},{"$f":"Rates!F27","v":241},{"$f":"Rates!G27","v":190},{"$f":"Rates!H27","v":157},null,null,null,null,24,1170,2380,null,null,null,null,null,null,null,null,{"$f":"Rates!N27","v":"Pays-Bas"},{"$f":"VLOOKUP(W31,Rates!$C$4:$L$182,2,FALSE)","v":"Pays Programmes"},{"$f":"VLOOKUP(W31,Rates!$C$4:$L$182,7,FALSE)","v":800},{"$f":"VLOOKUP(W31,Rates!$C$4:$L$182,8,FALSE)","v":0},{"$f":"VLOOKUP(W31,Rates!$C$4:$L$182,9,FALSE)","v":160},{"$f":"VLOOKUP(W31,Rates!$C$4:$L$182,10,FALSE)","v":0}]
[null,{"$f":"Rates!C28","v":"Pologne"},{"$f":"Rates!D28","v":"Pays Programmes"},{"$f":"Rates!E28","v":88},{"$f":"Rates!F28","v":74},{"$f":"Rates!G28","v":55},{"$f":"Rates!H28","v":39},null,null,null,null,25,1210,2450,null,null,null,null,null,null,null,null,{"$f":"Rates!N28","v":"Pologne"},{"$f":"VLOOKUP(W32,Rates!$C$4:$L$182,2,FALSE)","v":"Pays Programmes"},{"$f":"VLOOKUP(W32,Rates!$C$4:$L$182,7,FALSE)","v":750},{"$f":"VLOOKUP(W32,Rates!$C$4:$L$182,8,FALSE)","v":0},{"$f":"VLOOKUP(W32,Rates!$C$4:$L$182,9,FALSE)","v":140},{"$f":"VLOOKUP(W32,Rates!$C$4:$L$182,10,FALSE)","v":0}]
[null,{"$f":"Rates!C29","v":"Portugal"},{"$f":"Rates!D29","v":"Pays Programmes"},{"$f":"Rates!E29","v":164},{"$f":"Rates!F29","v":137},{"$f":"Rates!G29","v":102},{"$f":"Rates!H29","v":78},null,null,null,null,26,1250,2520,null,null,null,null,null,null,null,null,{"$f":"Rates!N29","v":"Portugal"},{"$f":"VLOOKUP(W33,Rates!$C$4:$L$182,2,FALSE)","v":"Pays Programmes"},{"$f":"VLOOKUP(W33,Rates!$C$4:$L$182,7,FALSE)","v":800},{"$f":"VLOOKUP(W33,Rates!$C$4:$L$182,8,FALSE)","v":0},{"$f":"VLOOKUP(W33,Rates!$C$4:$L$182,9,FALSE)","v":120},{"$f":"VLOOKUP(W33,Rates!$C$4:$L$182,10,FALSE)","v":0}]
[null,{"$f":"Rates!C30","v":"République tchèque"},{"$f":"Rates!D30","v":"Pays Programmes"},{"$f":"Rates!E30","v":164},{"$f":"Rates!F30","v":137},{"$f":"Rates!G30","v":102},{"$f":"Rates!H30","v":78},null,null,null,null,27,1290,2590,null,null,null,null,null,null,null,null,{"$f":"Rates!N30","v":"République tchèque"},{"$f":"VLOOKUP(W34,Rates!$C$4:$L$182,2,FALSE)","v":"Pays Programmes"},{"$f":"VLOOKUP(W34,Rates!$C$4:$L$182,7,FALSE)","v":800},{"$f":"VLOOKUP(W34,Rates!$C$4:$L$182,8,FALSE)","v":0},{"$f":"VLOOKUP(W34,Rates!$C$4:$L$182,9,FALSE)","v":140},{"$f":"VLOOKUP(W34,Rates!$C$4:$L$182,10,FALSE)","v":0}]
[null,{"$f":"Rates!C31","v":"Roumanie"},{"$f":"Rates!D31","v":"Pays Programmes"},{"$f":"Rates!E31","v":88},{"$f":"Rates!F31","v":74},{"$f":"Rates!G31","v":55},{"$f":"Rates!H31","v":39},null,null,null,null,28,1330,2660,null,null,null,null,null,null,null,null,{"$f":"Rates!N31","v":"Roumanie"},{"$f":"VLOOKUP(W35,Rates!$C$4:$L$182,2,FALSE)","v":"Pays Programmes"},{"$f":"VLOOKUP(W35,Rates!$C$4:$L$182,7,FALSE)","v":750},{"$f":"VLOOKUP(W35,Rates!$C$4:$L$182,8,FALSE)","v":0},{"$f":"VLOOKUP(W35,Rates!$C$4:$L$182,9,FALSE)","v":140},{"$f":"VLOOKUP(W35,Rates!$C$4:$L$182,10,FALSE)","v":0}]
[null,{"$f":"Rates!C32","v":"Royaume-Uni"},{"$f":"Rates!D32","v":"Pays Programmes"},{"$f":"Rates!E32","v":280},{"$f":"Rates!F32","v":214},{"$f":"Rates!G32","v":162},{"$f":"Rates!H32","v":131},null,null,null,null,29,1370,2730,null,null,null,null,null,null,null,null,{"$f":"Rates!N32","v":"Royaume-Uni"},{"$f":"VLOOKUP(W36,Rates!$C$4:$L$182,2,FALSE)","v":"Pays Programmes"},{"$f":"VLOOKUP(W36,Rates!$C$4:$L$182,7,FALSE)","v":850},{"$f":"VLOOKUP(W36,Rates!$C$4:$L$182,8,FALSE)","v":0},{"$f":"VLOOKUP(W36,Rates!$C$4:$L$182,9,FALSE)","v":160},{"$f":"VLOOKUP(W36,Rates!$C$4:$L$182,10,FALSE)","v":0}]
[null,{"$f":"Rates!C33","v":"Slovaquie"},{"$f":"Rates!D33","v":"Pays Programmes"},{"$f":"Rates!E33","v":88},{"$f":"Rates!F33","v":74},{"$f":"Rates!G33","v":55},{"$f":"Rates!H33","v":39},null,null,null,null,30,1410,2800,null,null,null,null,null,null,null,null,{"$f":"Rates!N33","v":"Slovaquie"},{"$f":"VLOOKUP(W37,Rates!$C$4:$L$182,2,FALSE)","v":"Pays Programmes"},{"$f":"VLOOKUP(W37,Rates!$C$4:$L$182,7,FALSE)","v":750},{"$f":"VLOOKUP(W37,Rates!$C$4:$L$182,8,FALSE)","v":0},{"$f":"VLOOKUP(W37,Rates!$C$4:$L$182,9,FALSE)","v":120},{"$f":"VLOOKUP(W37,Rates!$C$4:$L$182,10,FALSE)","v":0}]
[null,{"$f":"Rates!C34","v":"Slovénie"},{"$f":"Rates!D34","v":"Pays Programmes"},{"$f":"Rates!E34","v":164},{"$f":"Rates!F34","v":137},{"$f":"Rates!G34","v":102},{"$f":"Rates!H34","v":78},null,null,null,null,31,1450,2870,null,null,null,null,null,null,null,null,{"$f":"Rates!N34","v":"Slovénie"},{"$f":"VLOOKUP(W38,Rates!$C$4:$L$182,2,FALSE)","v":"Pays Programmes"},{"$f":"VLOOKUP(W38,Rates!$C$4:$L$182,7,FALSE)","v":800},{"$f":"VLOOKUP(W38,Rates!$C$4:$L$182,8,FALSE)","v":0},{"$f":"VLOOKUP(W38,Rates!$C$4:$L$182,9,FALSE)","v":100},{"$f":"VLOOKUP(W38,Rates!$C$4:$L$182,10,FALSE)","v":0}]
[null,{"$f":"Rates!C35","v":"Suède"},{"$f":"Rates!D35","v":"Pays Programmes"},{"$f":"Rates!E35","v":294},{"$f":"Rates!F35","v":241},{"$f":"Rates!G35","v":190},{"$f":"Rates!H35","v":157},null,null,null,null,32,1490,2940,null,null,null,null,null,null,null,null,{"$f":"Rates!N35","v":"Suède"},{"$f":"VLOOKUP(W39,Rates!$C$4:$L$182,2,FALSE)","v":"Pays Programmes"},{"$f":"VLOOKUP(W39,Rates!$C$4:$L$182,7,FALSE)","v":850},{"$f":"VLOOKUP(W39,Rates!$C$4:$L$182,8,FALSE)","v":0},{"$f":"VLOOKUP(W39,Rates!$C$4:$L$182,9,FALSE)","v":160},{"$f":"VLOOKUP(W39,Rates!$C$4:$L$182,10,FALSE)","v":0}]
[null,{"$f":"Rates!C36","v":"Turquie"},{"$f":"Rates!D36","v":"Pays Programmes"},{"$f":"Rates!E36","v":88},{"$f":"Rates!F36","v":74},{"$f":"Rates!G36","v":55},{"$f":"Rates!H36","v":39},null,null,null,null,33,1530,3010,null,null,null,null,null,null,null,null,{"$f":"Rates!N36","v":"Turquie"},{"$f":"VLOOKUP(W40,Rates!$C$4:$L$182,2,FALSE)","v":"Pays Programmes"},{"$f":"VLOOKUP(W40,Rates!$C$4:$L$182,7,FALSE)","v":800},{"$f":"VLOOKUP(W40,Rates!$C$4:$L$182,8,FALSE)","v":0},{"$f":"VLOOKUP(W40,Rates!$C$4:$L$182,9,FALSE)","v":140},{"$f":"VLOOKUP(W40,Rates!$C$4:$L$182,10,FALSE)","v":0}]
[null,{"$f":"Rates!C37","v":"Afghanistan"},{"$f":"Rates!D37","v":"Pays Partenaires"},{"$f":"Rates!E37","v":77},{"$f":"Rates!F37","v":57},{"$f":"Rates!G37","v":40},{"$f":"Rates!H37","v":32},null,null,null,null,34,1570,3080,null,null,null,null,null,null,null,null,{"$f":"Rates!N37","v":"Albanie"},{"$f":"VLOOKUP(W41,Rates!$C$4:$L$182,2,FALSE)","v":"Pays Partenaires"},{"$f":"VLOOKUP(W41,Rates!$C$4:$L$182,7,FALSE)","v":750},{"$f":"VLOOKUP(W41,Rates!$C$4:$L$182,8,FALSE)","v":650},{"$f":"VLOOKUP(W41,Rates!$C$4:$L$182,9,FALSE)","v":100},{"$f":"VLOOKUP(W41,Rates!$C$4:$L$182,10,FALSE)","v":160}]
[null,{"$f":"Rates!C38","v":"Afrique du Sud"},{"$f":"Rates!D38","v":"Pays Partenaires"},{"$f":"Rates!E38","v":77},{"$f":"Rates!F38","v":57},{"$f":"Rates!G38","v":40},{"$f":"Rates!H38","v":32},null,null,null,null,35,1610,3150,null,null,null,null,null,null,null,null,{"$f":"Rates!N38","v":"Algérie"},{"$f":"VLOOKUP(W42,Rates!$C$4:$L$182,2,FALSE)","v":"Pays Partenaires"},{"$f":"VLOOKUP(W42,Rates!$C$4:$L$182,7,FALSE)","v":750},{"$f":"VLOOKUP(W42,Rates!$C$4:$L$182,8,FALSE)","v":650},{"$f":"VLOOKUP(W42,Rates!$C$4:$L$182,9,FALSE)","v":100},{"$f":"VLOOKUP(W42,Rates!$C$4:$L$182,10,FALSE)","v":160}]
[null,{"$f":"Rates!C39","v":"Albanie"},{"$f":"Rates!D39","v":"Pays Partenaires"},{"$f":"Rates!E39","v":108},{"$f":"Rates!F39","v":80},{"$f":"Rates!G39","v":57},{"$f":"Rates!H39","v":45},null,null,null,null,36,1650,3220,null,null,null,null,null,null,null,null,{"$f":"Rates!N39","v":"Arménie"},{"$f":"VLOOKUP(W43,Rates!$C$4:$L$182,2,FALSE)","v":"Pays Partenaires"},{"$f":"VLOOKUP(W43,Rates!$C$4:$L$182,7,FALSE)","v":750},{"$f":"VLOOKUP(W43,Rates!$C$4:$L$182,8,FALSE)","v":650},{"$f":"VLOOKUP(W43,Rates!$C$4:$L$182,9,FALSE)","v":100},{"$f":"VLOOKUP(W43,Rates!$C$4:$L$182,10,FALSE)","v":160}]
[null,{"$f":"Rates!C40","v":"Algérie"},{"$f":"Rates!D40","v":"Pays Partenaires"},{"$f":"Rates!E40","v":47},{"$f":"Rates!F40","v":33},{"$f":"Rates!G40","v":22},{"$f":"Rates!H40","v":17},null,null,null,null,37,1690,3290,null,null,null,null,null,null,null,null,{"$f":"Rates!N40","v":"Azerbaïdjan"},{"$f":"VLOOKUP(W44,Rates!$C$4:$L$182,2,FALSE)","v":"Pays Partenaires"},{"$f":"VLOOKUP(W44,Rates!$C$4:$L$182,7,FALSE)","v":750},{"$f":"VLOOKUP(W44,Rates!$C$4:$L$182,8,FALSE)","v":650},{"$f":"VLOOKUP(W44,Rates!$C$4:$L$182,9,FALSE)","v":100},{"$f":"VLOOKUP(W44,Rates!$C$4:$L$182,10,FALSE)","v":160}]
[null,{"$f":"Rates!C41","v":"Angola"},{"$f":"Rates!D41","v":"Pays Partenaires"},{"$f":"Rates!E41","v":108},{"$f":"Rates!F41","v":80},{"$f":"Rates!G41","v":57},{"$f":"Rates!H41","v":45},null,null,null,null,38,1730,3360,null,null,null,null,null,null,null,null,{"$f":"Rates!N41","v":"Biélorussie"},{"$f":"VLOOKUP(W45,Rates!$C$4:$L$182,2,FALSE)","v":"Pays Partenaires"},{"$f":"VLOOKUP(W45,Rates!$C$4:$L$182,7,FALSE)","v":750},{"$f":"VLOOKUP(W45,Rates!$C$4:$L$182,8,FALSE)","v":650},{"$f":"VLOOKUP(W45,Rates!$C$4:$L$182,9,FALSE)","v":100},{"$f":"VLOOKUP(W45,Rates!$C$4:$L$182,10,FALSE)","v":160}]
[null,{"$f":"Rates!C42","v":"Antigua-et-Barbuda"},{"$f":"Rates!D42","v":"Pays Partenaires"},{"$f":"Rates!E42","v":108},{"$f":"Rates!F42","v":80},{"$f":"Rates!G42","v":57},{"$f":"Rates!H42","v":45},null,null,null,null,39,1770,3430,null,null,null,null,null,null,null,null,{"$f":"Rates!N42","v":"Bosnie-Herzégovine"},{"$f":"VLOOKUP(W46,Rates!$C$4:$L$182,2,FALSE)","v":"Pays Partenaires"},{"$f":"VLOOKUP(W46,Rates!$C$4:$L$182,7,FALSE)","v":750},{"$f":"VLOOKUP(W46,Rates!$C$4:$L$182,8,FALSE)","v":650},{"$f":"VLOOKUP(W46,Rates!$C$4:$L$182,9,FALSE)","v":100},{"$f":"VLOOKUP(W46,Rates!$C$4:$L$182,10,FALSE)","v":160}]
[null,{"$f":"Rates!C43","v":"Argentine"},{"$f":"Rates!D43","v":"Pays Partenaires"},{"$f":"Rates!E43","v":108},{"$f":"Rates!F43","v":80},{"$f":"Rates!G43","v":57},{"$f":"Rates!H43","v":45},null,null,null,null,40,1810,3500,null,null,null,null,null,null,null,null,{"$f":"Rates!N43","v":"Égypte"},{"$f":"VLOOKUP(W47,Rates!$C$4:$L$182,2,FALSE)","v":"Pays Partenaires"},{"$f":"VLOOKUP(W47,Rates!$C$4:$L$182,7,FALSE)","v":750},{"$f":"VLOOKUP(W47,Rates!$C$4:$L$182,8,FALSE)","v":650},{"$f":"VLOOKUP(W47,Rates!$C$4:$L$182,9,FALSE)","v":100},{"$f":"VLOOKUP(W47,Rates!$C$4:$L$182,10,FALSE)","v":160}]
[null,{"$f":"Rates!C44","v":"Arménie"},{"$f":"Rates!D44","v":"Pays Partenaires"},{"$f":"Rates!E44","v":47},{"$f":"Rates!F44","v":33},{"$f":"Rates!G44","v":22},{"$f":"Rates!H44","v":17},null,null,null,null,41,1850,3570,null,null,null,null,null,null,null,null,{"$f":"Rates!N44","v":"Géorgie"},{"$f":"VLOOKUP(W48,Rates!$C$4:$L$182,2,FALSE)","v":"Pays Partenaires"},{"$f":"VLOOKUP(W48,Rates!$C$4:$L$182,7,FALSE)","v":750},{"$f":"VLOOKUP(W48,Rates!$C$4:$L$182,8,FALSE)","v":650},{"$f":"VLOOKUP(W48,Rates!$C$4:$L$182,9,FALSE)","v":100},{"$f":"VLOOKUP(W48,Rates!$C$4:$L$182,10,FALSE)","v":160}]
[null,{"$f":"Rates!C45","v":"Azerbaïdjan"},{"$f":"Rates!D45","v":"Pays Partenaires"},{"$f":"Rates!E45","v":77},{"$f":"Rates!F45","v":57},{"$f":"Rates!G45","v":40},{"$f":"Rates!H45","v":32},null,null,null,null,42,1890,3640,null,null,null,null,null,null,null,null,{"$f":"Rates!N45","v":"Israël"},{"$f":"VLOOKUP(W49,Rates!$C$4:$L$182,2,FALSE)","v":"Pays Partenaires"},{"$f":"VLOOKUP(W49,Rates!$C$4:$L$182,7,FALSE)","v":750},{"$f":"VLOOKUP(W49,Rates!$C$4:$L$182,8,FALSE)","v":650},{"$f":"VLOOKUP(W49,Rates!$C$4:$L$182,9,FALSE)","v":100},{"$f":"VLOOKUP(W49,Rates!$C$4:$L$182,10,FALSE)","v":160}]
[null,{"$f":"Rates!C46","v":"Bahamas"},{"$f":"Rates!D46","v":"Pays Partenaires"},{"$f":"Rates!E46","v":77},{"$f":"Rates!F46","v":57},{"$f":"Rates!G46","v":40},{"$f":"Rates!H46","v":32},null,null,null,null,43,1930,3710,null,null,null,null,null,null,null,null,{"$f":"Rates!N46","v":"Jordanie"},{"$f":"VLOOKUP(W50,Rates!$C$4:$L$182,2,FALSE)","v":"Pays Partenaires"},{"$f":"VLOOKUP(W50,Rates!$C$4:$L$182,7,FALSE)","v":750},{"$f":"VLOOKUP(W50,Rates!$C$4:$L$182,8,FALSE)","v":650},{"$f":"VLOOKUP(W50,Rates!$C$4:$L$182,9,FALSE)","v":100},{"$f":"VLOOKUP(W50,Rates!$C$4:$L$182,10,FALSE)","v":160}]
[null,{"$f":"Rates!C47","v":"Bangladesh"},{"$f":"Rates!D47","v":"Pays Partenaires"},{"$f":"Rates!E47","v":47},{"$f":"Rates!F47","v":33},{"$f":"Rates!G47","v":22},{"$f":"Rates!H47","v":17},null,null,null,null,44,1970,3780,null,null,null,null,null,null,null,null,{"$f":"Rates!N47","v":"Kosovo"},{"$f":"VLOOKUP(W51,Rates!$C$4:$L$182,2,FALSE)","v":"Pays Partenaires"},{"$f":"VLOOKUP(W51,Rates!$C$4:$L$182,7,FALSE)","v":750},{"$f":"VLOOKUP(W51,Rates!$C$4:$L$182,8,FALSE)","v":650},{"$f":"VLOOKUP(W51,Rates!$C$4:$L$182,9,FALSE)","v":100},{"$f":"VLOOKUP(W51,Rates!$C$4:$L$182,10,FALSE)","v":160}]
[null,{"$f":"Rates!C48","v":"Barbade"},{"$f":"Rates!D48","v":"Pays Partenaires"},{"$f":"Rates!E48","v":108},{"$f":"Rates!F48","v":80},{"$f":"Rates!G48","v":57},{"$f":"Rates!H48","v":45},null,null,null,null,45,2010,3850,null,null,null,null,null,null,null,null,{"$f":"Rates!N48","v":"Liban"},{"$f":"VLOOKUP(W52,Rates!$C$4:$L$182,2,FALSE)","v":"Pays Partenaires"},{"$f":"VLOOKUP(W52,Rates!$C$4:$L$182,7,FALSE)","v":750},{"$f":"VLOOKUP(W52,Rates!$C$4:$L$182,8,FALSE)","v":650},{"$f":"VLOOKUP(W52,Rates!$C$4:$L$182,9,FALSE)","v":100},{"$f":"VLOOKUP(W52,Rates!$C$4:$L$182,10,FALSE)","v":160}]
[null,{"$f":"Rates!C49","v":"Belize"},{"$f":"Rates!D49","v":"Pays Partenaires"},{"$f":"Rates!E49","v":47},{"$f":"Rates!F49","v":33},{"$f":"Rates!G49","v":22},{"$f":"Rates!H49","v":17},null,null,null,null,46,2050,3920,null,null,null,null,null,null,null,null,{"$f":"Rates!N49","v":"Libye"},{"$f":"VLOOKUP(W53,Rates!$C$4:$L$182,2,FALSE)","v":"Pays Partenaires"},{"$f":"VLOOKUP(W53,Rates!$C$4:$L$182,7,FALSE)","v":750},{"$f":"VLOOKUP(W53,Rates!$C$4:$L$182,8,FALSE)","v":650},{"$f":"VLOOKUP(W53,Rates!$C$4:$L$182,9,FALSE)","v":100},{"$f":"VLOOKUP(W53,Rates!$C$4:$L$182,10,FALSE)","v":160}]
[null,{"$f":"Rates!C50","v":"Bénin"},{"$f":"Rates!D50","v":"Pays Partenaires"},{"$f":"Rates!E50","v":47},{"$f":"Rates!F50","v":33},{"$f":"Rates!G50","v":22},{"$f":"Rates!H50","v":17},null,null,null,null,47,2090,3990,null,null,null,null,null,null,null,null,{"$f":"Rates!N50","v":"Maroc"},{"$f":"VLOOKUP(W54,Rates!$C$4:$L$182,2,FALSE)","v":"Pays Partenaires"},{"$f":"VLOOKUP(W54,Rates!$C$4:$L$182,7,FALSE)","v":750},{"$f":"VLOOKUP(W54,Rates!$C$4:$L$182,8,FALSE)","v":650},{"$f":"VLOOKUP(W54,Rates!$C$4:$L$182,9,FALSE)","v":100},{"$f":"VLOOKUP(W54,Rates!$C$4:$L$182,10,FALSE)","v":160}]
[null,{"$f":"Rates!C51","v":"Bhoutan"},{"$f":"Rates!D51","v":"Pays Partenaires"},{"$f":"Rates!E51","v":47},{"$f":"Rates!F51","v":33},{"$f":"Rates!G51","v":22},{"$f":"Rates!H51","v":17},null,null,null,null,48,2130,4060,null,null,null,null,null,null,null,null,{"$f":"Rates!N51","v":"Moldavie"},{"$f":"VLOOKUP(W55,Rates!$C$4:$L$182,2,FALSE)","v":"Pays Partenaires"},{"$f":"VLOOKUP(W55,Rates!$C$4:$L$182,7,FALSE)","v":750},{"$f":"VLOOKUP(W55,Rates!$C$4:$L$182,8,FALSE)","v":650},{"$f":"VLOOKUP(W55,Rates!$C$4:$L$182,9,FALSE)","v":100},{"$f":"VLOOKUP(W55,Rates!$C$4:$L$182,10,FALSE)","v":160}]
[null,{"$f":"Rates!C52","v":"Biélorussie"},{"$f":"Rates!D52","v":"Pays Partenaires"},{"$f":"Rates!E52","v":47},{"$f":"Rates!F52","v":33},{"$f":"Rates!G52","v":22},{"$f":"Rates!H52","v":17},null,null,null,null,49,2170,4130,null,null,null,null,null,null,null,null,{"$f":"Rates!N52","v":"Monténégro"},{"$f":"VLOOKUP(W56,Rates!$C$4:$L$182,2,FALSE)","v":"Pays Partenaires"},{"$f":"VLOOKUP(W56,Rates!$C$4:$L$182,7,FALSE)","v":750},{"$f":"VLOOKUP(W56,Rates!$C$4:$L$182,8,FALSE)","v":650},{"$f":"VLOOKUP(W56,Rates!$C$4:$L$182,9,FALSE)","v":100},{"$f":"VLOOKUP(W56,Rates!$C$4:$L$182,10,FALSE)","v":160}]
[null,{"$f":"Rates!C53","v":"Bolivie"},{"$f":"Rates!D53","v":"Pays Partenaires"},{"$f":"Rates!E53","v":77},{"$f":"Rates!F53","v":57},{"$f":"Rates!G53","v":40},{"$f":"Rates!H53","v":32},null,null,null,null,50,2210,4200,null,null,null,null,null,null,null,null,{"$f":"Rates!N53","v":"Palestine"},{"$f":"VLOOKUP(W57,Rates!$C$4:$L$182,2,FALSE)","v":"Pays Partenaires"},{"$f":"VLOOKUP(W57,Rates!$C$4:$L$182,7,FALSE)","v":750},{"$f":"VLOOKUP(W57,Rates!$C$4:$L$182,8,FALSE)","v":650},{"$f":"VLOOKUP(W57,Rates!$C$4:$L$182,9,FALSE)","v":100},{"$f":"VLOOKUP(W57,Rates!$C$4:$L$182,10,FALSE)","v":160}]
[null,{"$f":"Rates!C54","v":"Bosnie-Herzégovine"},{"$f":"Rates!D54","v":"Pays Partenaires"},{"$f":"Rates!E54","v":108},{"$f":"Rates!F54","v":80},{"$f":"Rates!G54","v":57},{"$f":"Rates!H54","v":45},null,null,null,null,51,2250,4270,null,null,null,null,null,null,null,null,{"$f":"Rates!N54","v":"Serbie"},{"$f":"VLOOKUP(W58,Rates!$C$4:$L$182,2,FALSE)","v":"Pays Partenaires"},{"$f":"VLOOKUP(W58,Rates!$C$4:$L$182,7,FALSE)","v":750},{"$f":"VLOOKUP(W58,Rates!$C$4:$L$182,8,FALSE)","v":650},{"$f":"VLOOKUP(W58,Rates!$C$4:$L$182,9,FALSE)","v":100},{"$f":"VLOOKUP(W58,Rates!$C$4:$L$182,10,FALSE)","v":160}]
[null,{"$f":"Rates!C55","v":"Botswana"},{"$f":"Rates!D55","v":"Pays Partenaires"},{"$f":"Rates!E55","v":47},{"$f":"Rates!F55","v":33},{"$f":"Rates!G55","v":22},{"$f":"Rates!H55","v":17},null,null,null,null,52,2290,4340,null,null,null,null,null,null,null,null,{"$f":"Rates!N55","v":"Syrie"},{"$f":"VLOOKUP(W59,Rates!$C$4:$L$182,2,FALSE)","v":"Pays Partenaires"},{"$f":"VLOOKUP(W59,Rates!$C$4:$L$182,7,FALSE)","v":750},{"$f":"VLOOKUP(W59,Rates!$C$4:$L$182,8,FALSE)","v":650},{"$f":"VLOOKUP(W59,Rates!$C$4:$L$182,9,FALSE)","v":100},{"$f":"VLOOKUP(W59,Rates!$C$4:$L$182,10,FALSE)","v":160}]
[null,{"$f":"Rates!C56","v":"Brésil"},{"$f":"Rates!D56","v":"Pays Partenaires"},{"$f":"Rates!E56","v":108},{"$f":"Rates!F56","v":80},{"$f":"Rates!G56","v":57},{"$f":"Rates!H56","v":45},null,null,null,null,53,2330,4410,null,null,null,null,null,null,null,null,{"$f":"Rates!N56","v":"Tunisie"},{"$f":"VLOOKUP(W60,Rates!$C$4:$L$182,2,FALSE)","v":"Pays Partenaires"},{"$f":"VLOOKUP(W60,Rates!$C$4:$L$182,7,FALSE)","v":750},{"$f":"VLOOKUP(W60,Rates!$C$4:$L$182,8,FALSE)","v":650},{"$f":"VLOOKUP(W60,Rates!$C$4:$L$182,9,FALSE)","v":100},{"$f":"VLOOKUP(W60,Rates!$C$4:$L$182,10,FALSE)","v":160}]
[null,{"$f":"Rates!C57","v":"Burkina Faso"},{"$f":"Rates!D57","v":"Pays Partenaires"},{"$f":"Rates!E57","v":77},{"$f":"Rates!F57","v":57},{"$f":"Rates!G57","v":40},{"$f":"Rates!H57","v":32},null,null,null,null,54,2370,4480,null,null,null,null,null,null,null,null,{"$f":"Rates!N57","v":"Ukraine"},{"$f":"VLOOKUP(W61,Rates!$C$4:$L$182,2,FALSE)","v":"Pays Partenaires"},{"$f":"VLOOKUP(W61,Rates!$C$4:$L$182,7,FALSE)","v":750},{"$f":"VLOOKUP(W61,Rates!$C$4:$L$182,8,FALSE)","v":650},{"$f":"VLOOKUP(W61,Rates!$C$4:$L$182,9,FALSE)","v":100},{"$f":"VLOOKUP(W61,Rates!$C$4:$L$182,10,FALSE)","v":160}]
[null,{"$f":"Rates!C58","v":"Burundi"},{"$f":"Rates!D58","v":"Pays Partenaires"},{"$f":"Rates!E58","v":47},{"$f":"Rates!F58","v":33},{"$f":"Rates!G58","v":22},{"$f":"Rates!H58","v":17},null,null,null,null,55,2410,4550]
[null,{"$f":"Rates!C59","v":"Cambodge"},{"$f":"Rates!D59","v":"Pays Partenaires"},{"$f":"Rates!E59","v":47},{"$f":"Rates!F59","v":33},{"$f":"Rates!G59","v":22},{"$f":"Rates!H59","v":17},null,null,null,null,56,2450,4620]
[null,{"$f":"Rates!C60","v":"Cameroun"},{"$f":"Rates!D60","v":"Pays Partenaires"},{"$f":"Rates!E60","v":77},{"$f":"Rates!F60","v":57},{"$f":"Rates!G60","v":40},{"$f":"Rates!H60","v":32},null,null,null,null,57,2490,4690]
[null,{"$f":"Rates!C61","v":"Cape-Vert"},{"$f":"Rates!D61","v":"Pays Partenaires"},{"$f":"Rates!E61","v":47},{"$f":"Rates!F61","v":33},{"$f":"Rates!G61","v":22},{"$f":"Rates!H61","v":17},null,null,null,null,58,2530,4760]
[null,{"$f":"Rates!C62","v":"Chili"},{"$f":"Rates!D62","v":"Pays Partenaires"},{"$f":"Rates!E62","v":108},{"$f":"Rates!F62","v":80},{"$f":"Rates!G62","v":57},{"$f":"Rates!H62","v":45},null,null,null,null,59,2570,4830]
[null,{"$f":"Rates!C63","v":"Chine"},{"$f":"Rates!D63","v":"Pays Partenaires"},{"$f":"Rates!E63","v":77},{"$f":"Rates!F63","v":57},{"$f":"Rates!G63","v":40},{"$f":"Rates!H63","v":32},null,null,null,null,60,2610,4900]
[null,{"$f":"Rates!C64","v":"Colombie"},{"$f":"Rates!D64","v":"Pays Partenaires"},{"$f":"Rates!E64","v":108},{"$f":"Rates!F64","v":80},{"$f":"Rates!G64","v":57},{"$f":"Rates!H64","v":45},null,null,null,null,61,2650,{"$f":"((L68-$L$67)*50)+4900","v":4950}]
[null,{"$f":"Rates!C65","v":"Comores"},{"$f":"Rates!D65","v":"Pays Partenaires"},{"$f":"Rates!E65","v":108},{"$f":"Rates!F65","v":80},{"$f":"Rates!G65","v":57},{"$f":"Rates!H65","v":45},null,null,null,null,62,2690,{"$f":"((L69-$L$67)*50)+4900","v":5000}]
[null,{"$f":"Rates!C66","v":"Congo (Brazzaville)"},{"$f":"Rates!D66","v":"Pays Partenaires"},{"$f":"Rates!E66","v":77},{"$f":"Rates!F66","v":57},{"$f":"Rates!G66","v":40},{"$f":"Rates!H66","v":32},null,null,null,null,63,2730,5050]
[null,{"$f":"Rates!C67","v":"Congo (Kinshasa)"},{"$f":"Rates!D67","v":"Pays Partenaires"},{"$f":"Rates!E67","v":47},{"$f":"Rates!F67","v":33},{"$f":"Rates!G67","v":22},{"$f":"Rates!H67","v":17},null,null,null,null,64,2770,5100]
[null,{"$f":"Rates!C68","v":"Costa Rica"},{"$f":"Rates!D68","v":"Pays Partenaires"},{"$f":"Rates!E68","v":77},{"$f":"Rates!F68","v":57},{"$f":"Rates!G68","v":40},{"$f":"Rates!H68","v":32},null,null,null,null,65,2810,5150]
[null,{"$f":"Rates!C69","v":"Côte d’Ivoire"},{"$f":"Rates!D69","v":"Pays Partenaires"},{"$f":"Rates!E69","v":108},{"$f":"Rates!F69","v":80},{"$f":"Rates!G69","v":57},{"$f":"Rates!H69","v":45},null,null,null,null,66,2850,5200]
[null,{"$f":"Rates!C70","v":"Cuba"},{"$f":"Rates!D70","v":"Pays Partenaires"},{"$f":"Rates!E70","v":47},{"$f":"Rates!F70","v":33},{"$f":"Rates!G70","v":22},{"$f":"Rates!H70","v":17},null,null,null,null,67,2890,5250]
[null,{"$f":"Rates!C71","v":"Djibouti"},{"$f":"Rates!D71","v":"Pays Partenaires"},{"$f":"Rates!E71","v":77},{"$f":"Rates!F71","v":57},{"$f":"Rates!G71","v":40},{"$f":"Rates!H71","v":32},null,null,null,null,68,2930,5300]
[null,{"$f":"Rates!C72","v":"Dominique"},{"$f":"Rates!D72","v":"Pays Partenaires"},{"$f":"Rates!E72","v":108},{"$f":"Rates!F72","v":80},{"$f":"Rates!G72","v":57},{"$f":"Rates!H72","v":45},null,null,null,null,69,2970,5350]
[null,{"$f":"Rates!C73","v":"Égypte"},{"$f":"Rates!D73","v":"Pays Partenaires"},{"$f":"Rates!E73","v":47},{"$f":"Rates!F73","v":33},{"$f":"Rates!G73","v":22},{"$f":"Rates!H73","v":17},null,null,null,null,70,3010,5400]
[null,{"$f":"Rates!C74","v":"El Salvador"},{"$f":"Rates!D74","v":"Pays Partenaires"},{"$f":"Rates!E74","v":77},{"$f":"Rates!F74","v":57},{"$f":"Rates!G74","v":40},{"$f":"Rates!H74","v":32},null,null,null,null,71,3050,5450]
[null,{"$f":"Rates!C75","v":"Équateur"},{"$f":"Rates!D75","v":"Pays Partenaires"},{"$f":"Rates!E75","v":77},{"$f":"Rates!F75","v":57},{"$f":"Rates!G75","v":40},{"$f":"Rates!H75","v":32},null,null,null,null,72,3090,5500]
[null,{"$f":"Rates!C76","v":"Érythrée"},{"$f":"Rates!D76","v":"Pays Partenaires"},{"$f":"Rates!E76","v":47},{"$f":"Rates!F76","v":33},{"$f":"Rates!G76","v":22},{"$f":"Rates!H76","v":17},null,null,null,null,73,3130,5550]
[null,{"$f":"Rates!C77","v":"Éthiopie"},{"$f":"Rates!D77","v":"Pays Partenaires"},{"$f":"Rates!E77","v":47},{"$f":"Rates!F77","v":33},{"$f":"Rates!G77","v":22},{"$f":"Rates!H77","v":17},null,null,null,null,74,3170,5600]
[null,{"$f":"Rates!C78","v":"Fidji"},{"$f":"Rates!D78","v":"Pays Partenaires"},{"$f":"Rates!E78","v":47},{"$f":"Rates!F78","v":33},{"$f":"Rates!G78","v":22},{"$f":"Rates!H78","v":17},null,null,null,null,75,3210,5650]
[null,{"$f":"Rates!C79","v":"Gabon"},{"$f":"Rates!D79","v":"Pays Partenaires"},{"$f":"Rates!E79","v":108},{"$f":"Rates!F79","v":80},{"$f":"Rates!G79","v":57},{"$f":"Rates!H79","v":45},null,null,null,null,76,3250,5700]
[null,{"$f":"Rates!C80","v":"Gambie"},{"$f":"Rates!D80","v":"Pays Partenaires"},{"$f":"Rates!E80","v":47},{"$f":"Rates!F80","v":33},{"$f":"Rates!G80","v":22},{"$f":"Rates!H80","v":17},null,null,null,null,77,3290,5750]
[null,{"$f":"Rates!C81","v":"Géorgie"},{"$f":"Rates!D81","v":"Pays Partenaires"},{"$f":"Rates!E81","v":77},{"$f":"Rates!F81","v":57},{"$f":"Rates!G81","v":40},{"$f":"Rates!H81","v":32},null,null,null,null,78,3330,5800]
[null,{"$f":"Rates!C82","v":"Ghana"},{"$f":"Rates!D82","v":"Pays Partenaires"},{"$f":"Rates!E82","v":47},{"$f":"Rates!F82","v":33},{"$f":"Rates!G82","v":22},{"$f":"Rates!H82","v":17},null,null,null,null,79,3370,5850]
[null,{"$f":"Rates!C83","v":"Grenade"},{"$f":"Rates!D83","v":"Pays Partenaires"},{"$f":"Rates!E83","v":108},{"$f":"Rates!F83","v":80},{"$f":"Rates!G83","v":57},{"$f":"Rates!H83","v":45},null,null,null,null,80,{"$f":"((L87-$L$21)*40)+770","v":3410},5900]
[null,{"$f":"Rates!C84","v":"Guatemala"},{"$f":"Rates!D84","v":"Pays Partenaires"},{"$f":"Rates!E84","v":77},{"$f":"Rates!F84","v":57},{"$f":"Rates!G84","v":40},{"$f":"Rates!H84","v":32},null,null,null,null,81,3450,5950]
[null,{"$f":"Rates!C85","v":"Guinée équatoriale"},{"$f":"Rates!D85","v":"Pays Partenaires"},{"$f":"Rates!E85","v":47},{"$f":"Rates!F85","v":33},{"$f":"Rates!G85","v":22},{"$f":"Rates!H85","v":17},null,null,null,null,82,3490,6000]
[null,{"$f":"Rates!C86","v":"Guinée-Bissau"},{"$f":"Rates!D86","v":"Pays Partenaires"},{"$f":"Rates!E86","v":77},{"$f":"Rates!F86","v":57},{"$f":"Rates!G86","v":40},{"$f":"Rates!H86","v":32},null,null,null,null,83,3530,6050]
[null,{"$f":"Rates!C87","v":"Guyana"},{"$f":"Rates!D87","v":"Pays Partenaires"},{"$f":"Rates!E87","v":47},{"$f":"Rates!F87","v":33},{"$f":"Rates!G87","v":22},{"$f":"Rates!H87","v":17},null,null,null,null,84,3570,6100]
[null,{"$f":"Rates!C88","v":"Haïti"},{"$f":"Rates!D88","v":"Pays Partenaires"},{"$f":"Rates!E88","v":77},{"$f":"Rates!F88","v":57},{"$f":"Rates!G88","v":40},{"$f":"Rates!H88","v":32},null,null,null,null,85,3610,6150]
[null,{"$f":"Rates!C89","v":"Honduras"},{"$f":"Rates!D89","v":"Pays Partenaires"},{"$f":"Rates!E89","v":47},{"$f":"Rates!F89","v":33},{"$f":"Rates!G89","v":22},{"$f":"Rates!H89","v":17},null,null,null,null,86,3650,6200]
[null,{"$f":"Rates!C90","v":"Îles Cook"},{"$f":"Rates!D90","v":"Pays Partenaires"},{"$f":"Rates!E90","v":108},{"$f":"Rates!F90","v":80},{"$f":"Rates!G90","v":57},{"$f":"Rates!H90","v":45},null,null,null,null,87,3690,6250]
[null,{"$f":"Rates!C91","v":"Îles Marshall"},{"$f":"Rates!D91","v":"Pays Partenaires"},{"$f":"Rates!E91","v":47},{"$f":"Rates!F91","v":33},{"$f":"Rates!G91","v":22},{"$f":"Rates!H91","v":17},null,null,null,null,88,3730,6300]
[null,{"$f":"Rates!C92","v":"Îles Salomon"},{"$f":"Rates!D92","v":"Pays Partenaires"},{"$f":"Rates!E92","v":47},{"$f":"Rates!F92","v":33},{"$f":"Rates!G92","v":22},{"$f":"Rates!H92","v":17},null,null,null,null,89,3770,6350]
[null,{"$f":"Rates!C93","v":"Inde"},{"$f":"Rates!D93","v":"Pays Partenaires"},{"$f":"Rates!E93","v":47},{"$f":"Rates!F93","v":33},{"$f":"Rates!G93","v":22},{"$f":"Rates!H93","v":17},null,null,null,null,90,3810,6400]
[null,{"$f":"Rates!C94","v":"Indonésie"},{"$f":"Rates!D94","v":"Pays Partenaires"},{"$f":"Rates!E94","v":47},{"$f":"Rates!F94","v":33},{"$f":"Rates!G94","v":22},{"$f":"Rates!H94","v":17}]
[null,{"$f":"Rates!C95","v":"Iran"},{"$f":"Rates!D95","v":"Pays Partenaires"},{"$f":"Rates!E95","v":77},{"$f":"Rates!F95","v":57},{"$f":"Rates!G95","v":40},{"$f":"Rates!H95","v":32}]
[null,{"$f":"Rates!C96","v":"Iraq"},{"$f":"Rates!D96","v":"Pays Partenaires"},{"$f":"Rates!E96","v":77},{"$f":"Rates!F96","v":57},{"$f":"Rates!G96","v":40},{"$f":"Rates!H96","v":32}]
[null,{"$f":"Rates!C97","v":"Israël"},{"$f":"Rates!D97","v":"Pays Partenaires"},{"$f":"Rates!E97","v":166},{"$f":"Rates!F97","v":132},{"$f":"Rates!G97","v":102},{"$f":"Rates!H97","v":92}]
[null,{"$f":"Rates!C98","v":"Jamaïque"},{"$f":"Rates!D98","v":"Pays Partenaires"},{"$f":"Rates!E98","v":77},{"$f":"Rates!F98","v":57},{"$f":"Rates!G98","v":40},{"$f":"Rates!H98","v":32}]
[null,{"$f":"Rates!C99","v":"Jordanie"},{"$f":"Rates!D99","v":"Pays Partenaires"},{"$f":"Rates!E99","v":77},{"$f":"Rates!F99","v":57},{"$f":"Rates!G99","v":40},{"$f":"Rates!H99","v":32}]
[null,{"$f":"Rates!C100","v":"Kazakhstan"},{"$f":"Rates!D100","v":"Pays Partenaires"},{"$f":"Rates!E100","v":77},{"$f":"Rates!F100","v":57},{"$f":"Rates!G100","v":40},{"$f":"Rates!H100","v":32}]
[null,{"$f":"Rates!C101","v":"Kenya"},{"$f":"Rates!D101","v":"Pays Partenaires"},{"$f":"Rates!E101","v":77},{"$f":"Rates!F101","v":57},{"$f":"Rates!G101","v":40},{"$f":"Rates!H101","v":32}]
[null,{"$f":"Rates!C102","v":"Kirghizstan"},{"$f":"Rates!D102","v":"Pays Partenaires"},{"$f":"Rates!E102","v":47},{"$f":"Rates!F102","v":33},{"$f":"Rates!G102","v":22},{"$f":"Rates!H102","v":17}]
[null,{"$f":"Rates!C103","v":"Kiribati"},{"$f":"Rates!D103","v":"Pays Partenaires"},{"$f":"Rates!E103","v":47},{"$f":"Rates!F103","v":33},{"$f":"Rates!G103","v":22},{"$f":"Rates!H103","v":17}]
[null,{"$f":"Rates!C104","v":"Kosovo"},{"$f":"Rates!D104","v":"Pays Partenaires"},{"$f":"Rates!E104","v":108},{"$f":"Rates!F104","v":80},{"$f":"Rates!G104","v":57},{"$f":"Rates!H104","v":45}]
[null,{"$f":"Rates!C105","v":"Laos"},{"$f":"Rates!D105","v":"Pays Partenaires"},{"$f":"Rates!E105","v":47},{"$f":"Rates!F105","v":33},{"$f":"Rates!G105","v":22},{"$f":"Rates!H105","v":17}]
[null,{"$f":"Rates!C106","v":"Lesotho"},{"$f":"Rates!D106","v":"Pays Partenaires"},{"$f":"Rates!E106","v":47},{"$f":"Rates!F106","v":33},{"$f":"Rates!G106","v":22},{"$f":"Rates!H106","v":17}]
[null,{"$f":"Rates!C107","v":"Liban"},{"$f":"Rates!D107","v":"Pays Partenaires"},{"$f":"Rates!E107","v":108},{"$f":"Rates!F107","v":80},{"$f":"Rates!G107","v":57},{"$f":"Rates!H107","v":45}]
[null,{"$f":"Rates!C108","v":"Liberia"},{"$f":"Rates!D108","v":"Pays Partenaires"},{"$f":"Rates!E108","v":47},{"$f":"Rates!F108","v":33},{"$f":"Rates!G108","v":22},{"$f":"Rates!H108","v":17}]
[null,{"$f":"Rates!C109","v":"Libye"},{"$f":"Rates!D109","v":"Pays Partenaires"},{"$f":"Rates!E109","v":108},{"$f":"Rates!F109","v":80},{"$f":"Rates!G109","v":57},{"$f":"Rates!H109","v":45}]
[null,{"$f":"Rates!C110","v":"Madagascar"},{"$f":"Rates!D110","v":"Pays Partenaires"},{"$f":"Rates!E110","v":47},{"$f":"Rates!F110","v":33},{"$f":"Rates!G110","v":22},{"$f":"Rates!H110","v":17}]
[null,{"$f":"Rates!C111","v":"Malaisie"},{"$f":"Rates!D111","v":"Pays Partenaires"},{"$f":"Rates!E111","v":47},{"$f":"Rates!F111","v":33},{"$f":"Rates!G111","v":22},{"$f":"Rates!H111","v":17}]
[null,{"$f":"Rates!C112","v":"Malawi"},{"$f":"Rates!D112","v":"Pays Partenaires"},{"$f":"Rates!E112","v":47},{"$f":"Rates!F112","v":33},{"$f":"Rates!G112","v":22},{"$f":"Rates!H112","v":17}]
[null,{"$f":"Rates!C113","v":"Maldives"},{"$f":"Rates!D113","v":"Pays Partenaires"},{"$f":"Rates!E113","v":47},{"$f":"Rates!F113","v":33},{"$f":"Rates!G113","v":22},{"$f":"Rates!H113","v":17}]
[null,{"$f":"Rates!C114","v":"Mali"},{"$f":"Rates!D114","v":"Pays Partenaires"},{"$f":"Rates!E114","v":47},{"$f":"Rates!F114","v":33},{"$f":"Rates!G114","v":22},{"$f":"Rates!H114","v":17}]
[null,{"$f":"Rates!C115","v":"Maroc"},{"$f":"Rates!D115","v":"Pays Partenaires"},{"$f":"Rates!E115","v":77},{"$f":"Rates!F115","v":57},{"$f":"Rates!G115","v":40},{"$f":"Rates!H115","v":32}]
[null,{"$f":"Rates!C116","v":"Maurice"},{"$f":"Rates!D116","v":"Pays Partenaires"},{"$f":"Rates!E116","v":47},{"$f":"Rates!F116","v":33},{"$f":"Rates!G116","v":22},{"$f":"Rates!H116","v":17}]
[null,{"$f":"Rates!C117","v":"Mauritanie"},{"$f":"Rates!D117","v":"Pays Partenaires"},{"$f":"Rates!E117","v":47},{"$f":"Rates!F117","v":33},{"$f":"Rates!G117","v":22},{"$f":"Rates!H117","v":17}]
[null,{"$f":"Rates!C118","v":"Mexique"},{"$f":"Rates!D118","v":"Pays Partenaires"},{"$f":"Rates!E118","v":108},{"$f":"Rates!F118","v":80},{"$f":"Rates!G118","v":57},{"$f":"Rates!H118","v":45}]
[null,{"$f":"Rates!C119","v":"Micronésie"},{"$f":"Rates!D119","v":"Pays Partenaires"},{"$f":"Rates!E119","v":77},{"$f":"Rates!F119","v":57},{"$f":"Rates!G119","v":40},{"$f":"Rates!H119","v":32}]
[null,{"$f":"Rates!C120","v":"Moldavie"},{"$f":"Rates!D120","v":"Pays Partenaires"},{"$f":"Rates!E120","v":47},{"$f":"Rates!F120","v":33},{"$f":"Rates!G120","v":22},{"$f":"Rates!H120","v":17}]
[null,{"$f":"Rates!C121","v":"Mongolie"},{"$f":"Rates!D121","v":"Pays Partenaires"},{"$f":"Rates!E121","v":47},{"$f":"Rates!F121","v":33},{"$f":"Rates!G121","v":22},{"$f":"Rates!H121","v":17}]
[null,{"$f":"Rates!C122","v":"Monténégro"},{"$f":"Rates!D122","v":"Pays Partenaires"},{"$f":"Rates!E122","v":108},{"$f":"Rates!F122","v":80},{"$f":"Rates!G122","v":57},{"$f":"Rates!H122","v":45}]
[null,{"$f":"Rates!C123","v":"Mozambique"},{"$f":"Rates!D123","v":"Pays Partenaires"},{"$f":"Rates!E123","v":77},{"$f":"Rates!F123","v":57},{"$f":"Rates!G123","v":40},{"$f":"Rates!H123","v":32}]
[null,{"$f":"Rates!C124","v":"Myanmar"},{"$f":"Rates!D124","v":"Pays Partenaires"},{"$f":"Rates!E124","v":47},{"$f":"Rates!F124","v":33},{"$f":"Rates!G124","v":22},{"$f":"Rates!H124","v":17}]
[null,{"$f":"Rates!C125","v":"Namibie"},{"$f":"Rates!D125","v":"Pays Partenaires"},{"$f":"Rates!E125","v":77},{"$f":"Rates!F125","v":57},{"$f":"Rates!G125","v":40},{"$f":"Rates!H125","v":32}]
[null,{"$f":"Rates!C126","v":"Nauru"},{"$f":"Rates!D126","v":"Pays Partenaires"},{"$f":"Rates!E126","v":47},{"$f":"Rates!F126","v":33},{"$f":"Rates!G126","v":22},{"$f":"Rates!H126","v":17}]
[null,{"$f":"Rates!C127","v":"Népal"},{"$f":"Rates!D127","v":"Pays Partenaires"},{"$f":"Rates!E127","v":47},{"$f":"Rates!F127","v":33},{"$f":"Rates!G127","v":22},{"$f":"Rates!H127","v":17}]
[null,{"$f":"Rates!C128","v":"Nicaragua"},{"$f":"Rates!D128","v":"Pays Partenaires"},{"$f":"Rates!E128","v":47},{"$f":"Rates!F128","v":33},{"$f":"Rates!G128","v":22},{"$f":"Rates!H128","v":17}]
[null,{"$f":"Rates!C129","v":"Niger"},{"$f":"Rates!D129","v":"Pays Partenaires"},{"$f":"Rates!E129","v":47},{"$f":"Rates!F129","v":33},{"$f":"Rates!G129","v":22},{"$f":"Rates!H129","v":17}]
[null,{"$f":"Rates!C130","v":"Nigeria"},{"$f":"Rates!D130","v":"Pays Partenaires"},{"$f":"Rates!E130","v":108},{"$f":"Rates!F130","v":80},{"$f":"Rates!G130","v":57},{"$f":"Rates!H130","v":45}]
[null,{"$f":"Rates!C131","v":"Niue"},{"$f":"Rates!D131","v":"Pays Partenaires"},{"$f":"Rates!E131","v":47},{"$f":"Rates!F131","v":33},{"$f":"Rates!G131","v":22},{"$f":"Rates!H131","v":17}]
[null,{"$f":"Rates!C132","v":"Ouganda"},{"$f":"Rates!D132","v":"Pays Partenaires"},{"$f":"Rates!E132","v":47},{"$f":"Rates!F132","v":33},{"$f":"Rates!G132","v":22},{"$f":"Rates!H132","v":17}]
[null,{"$f":"Rates!C133","v":"Ouzbékistan"},{"$f":"Rates!D133","v":"Pays Partenaires"},{"$f":"Rates!E133","v":47},{"$f":"Rates!F133","v":33},{"$f":"Rates!G133","v":22},{"$f":"Rates!H133","v":17}]
[null,{"$f":"Rates!C134","v":"Pakistan"},{"$f":"Rates!D134","v":"Pays Partenaires"},{"$f":"Rates!E134","v":47},{"$f":"Rates!F134","v":33},{"$f":"Rates!G134","v":22},{"$f":"Rates!H134","v":17}]
[null,{"$f":"Rates!C135","v":"Palaos"},{"$f":"Rates!D135","v":"Pays Partenaires"},{"$f":"Rates!E135","v":47},{"$f":"Rates!F135","v":33},{"$f":"Rates!G135","v":22},{"$f":"Rates!H135","v":17}]
[null,{"$f":"Rates!C136","v":"Palestine"},{"$f":"Rates!D136","v":"Pays Partenaires"},{"$f":"Rates!E136","v":77},{"$f":"Rates!F136","v":57},{"$f":"Rates!G136","v":40},{"$f":"Rates!H136","v":32}]
[null,{"$f":"Rates!C137","v":"Panama"},{"$f":"Rates!D137","v":"Pays Partenaires"},{"$f":"Rates!E137","v":77},{"$f":"Rates!F137","v":57},{"$f":"Rates!G137","v":40},{"$f":"Rates!H137","v":32}]
[null,{"$f":"Rates!C138","v":"Papouasie-Nouvelle-Guinée"},{"$f":"Rates!D138","v":"Pays Partenaires"},{"$f":"Rates!E138","v":77},{"$f":"Rates!F138","v":57},{"$f":"Rates!G138","v":40},{"$f":"Rates!H138","v":32}]
[null,{"$f":"Rates!C139","v":"Paraguay"},{"$f":"Rates!D139","v":"Pays Partenaires"},{"$f":"Rates!E139","v":77},{"$f":"Rates!F139","v":57},{"$f":"Rates!G139","v":40},{"$f":"Rates!H139","v":32}]
[null,{"$f":"Rates!C140","v":"Pérou"},{"$f":"Rates!D140","v":"Pays Partenaires"},{"$f":"Rates!E140","v":108},{"$f":"Rates!F140","v":80},{"$f":"Rates!G140","v":57},{"$f":"Rates!H140","v":45}]
[null,{"$f":"Rates!C141","v":"Philippines"},{"$f":"Rates!D141","v":"Pays Partenaires"},{"$f":"Rates!E141","v":47},{"$f":"Rates!F141","v":33},{"$f":"Rates!G141","v":22},{"$f":"Rates!H141","v":17}]
[null,{"$f":"Rates!C142","v":"République centrafricaine"},{"$f":"Rates!D142","v":"Pays Partenaires"},{"$f":"Rates!E142","v":47},{"$f":"Rates!F142","v":33},{"$f":"Rates!G142","v":22},{"$f":"Rates!H142","v":17}]
[null,{"$f":"Rates!C143","v":"République de Guinée"},{"$f":"Rates!D143","v":"Pays Partenaires"},{"$f":"Rates!E143","v":47},{"$f":"Rates!F143","v":33},{"$f":"Rates!G143","v":22},{"$f":"Rates!H143","v":17}]
[null,{"$f":"Rates!C144","v":"République dominicaine"},{"$f":"Rates!D144","v":"Pays Partenaires"},{"$f":"Rates!E144","v":77},{"$f":"Rates!F144","v":57},{"$f":"Rates!G144","v":40},{"$f":"Rates!H144","v":32}]
[null,{"$f":"Rates!C145","v":"RPD Corée"},{"$f":"Rates!D145","v":"Pays Partenaires"},{"$f":"Rates!E145","v":47},{"$f":"Rates!F145","v":33},{"$f":"Rates!G145","v":22},{"$f":"Rates!H145","v":17}]
[null,{"$f":"Rates!C146","v":"Russie"},{"$f":"Rates!D146","v":"Pays Partenaires"},{"$f":"Rates!E146","v":77},{"$f":"Rates!F146","v":57},{"$f":"Rates!G146","v":40},{"$f":"Rates!H146","v":32}]
[null,{"$f":"Rates!C147","v":"Rwanda"},{"$f":"Rates!D147","v":"Pays Partenaires"},{"$f":"Rates!E147","v":47},{"$f":"Rates!F147","v":33},{"$f":"Rates!G147","v":22},{"$f":"Rates!H147","v":17}]
[null,{"$f":"Rates!C148","v":"Saint-Christophe-et-Niévès"},{"$f":"Rates!D148","v":"Pays Partenaires"},{"$f":"Rates!E148","v":108},{"$f":"Rates!F148","v":80},{"$f":"Rates!G148","v":57},{"$f":"Rates!H148","v":45}]
[null,{"$f":"Rates!C149","v":"Sainte-Lucie"},{"$f":"Rates!D149","v":"Pays Partenaires"},{"$f":"Rates!E149","v":108},{"$f":"Rates!F149","v":80},{"$f":"Rates!G149","v":57},{"$f":"Rates!H149","v":45}]
[null,{"$f":"Rates!C150","v":"Saint-Vincent-et-les-Grenadines"},{"$f":"Rates!D150","v":"Pays Partenaires"},{"$f":"Rates!E150","v":108},{"$f":"Rates!F150","v":80},{"$f":"Rates!G150","v":57},{"$f":"Rates!H150","v":45}]
[null,{"$f":"Rates!C151","v":"Samoa"},{"$f":"Rates!D151","v":"Pays Partenaires"},{"$f":"Rates!E151","v":47},{"$f":"Rates!F151","v":33},{"$f":"Rates!G151","v":22},{"$f":"Rates!H151","v":17}]
[null,{"$f":"Rates!C152","v":"Sao Tomé-et-Principe"},{"$f":"Rates!D152","v":"Pays Partenaires"},{"$f":"Rates!E152","v":108},{"$f":"Rates!F152","v":80},{"$f":"Rates!G152","v":57},{"$f":"Rates!H152","v":45}]
[null,{"$f":"Rates!C153","v":"Sénégal"},{"$f":"Rates!D153","v":"Pays Partenaires"},{"$f":"Rates!E153","v":77},{"$f":"Rates!F153","v":57},{"$f":"Rates!G153","v":40},{"$f":"Rates!H153","v":32}]
[null,{"$f":"Rates!C154","v":"Serbie"},{"$f":"Rates!D154","v":"Pays Partenaires"},{"$f":"Rates!E154","v":108},{"$f":"Rates!F154","v":80},{"$f":"Rates!G154","v":57},{"$f":"Rates!H154","v":45}]
[null,{"$f":"Rates!C155","v":"Seychelles"},{"$f":"Rates!D155","v":"Pays Partenaires"},{"$f":"Rates!E155","v":108},{"$f":"Rates!F155","v":80},{"$f":"Rates!G155","v":57},{"$f":"Rates!H155","v":45}]
[null,{"$f":"Rates!C156","v":"Sierra Leone"},{"$f":"Rates!D156","v":"Pays Partenaires"},{"$f":"Rates!E156","v":47},{"$f":"Rates!F156","v":33},{"$f":"Rates!G156","v":22},{"$f":"Rates!H156","v":17}]
[null,{"$f":"Rates!C157","v":"Somalie"},{"$f":"Rates!D157","v":"Pays Partenaires"},{"$f":"Rates!E157","v":47},{"$f":"Rates!F157","v":33},{"$f":"Rates!G157","v":22},{"$f":"Rates!H157","v":17}]
[null,{"$f":"Rates!C158","v":"Soudan"},{"$f":"Rates!D158","v":"Pays Partenaires"},{"$f":"Rates!E158","v":47},{"$f":"Rates!F158","v":33},{"$f":"Rates!G158","v":22},{"$f":"Rates!H158","v":17}]
[null,{"$f":"Rates!C159","v":"Soudan du Sud"},{"$f":"Rates!D159","v":"Pays Partenaires"},{"$f":"Rates!E159","v":47},{"$f":"Rates!F159","v":33},{"$f":"Rates!G159","v":22},{"$f":"Rates!H159","v":17}]
[null,{"$f":"Rates!C160","v":"Sri Lanka"},{"$f":"Rates!D160","v":"Pays Partenaires"},{"$f":"Rates!E160","v":47},{"$f":"Rates!F160","v":33},{"$f":"Rates!G160","v":22},{"$f":"Rates!H160","v":17}]
[null,{"$f":"Rates!C161","v":"Suriname"},{"$f":"Rates!D161","v":"Pays Partenaires"},{"$f":"Rates!E161","v":77},{"$f":"Rates!F161","v":57},{"$f":"Rates!G161","v":40},{"$f":"Rates!H161","v":32}]
[null,{"$f":"Rates!C162","v":"Swaziland"},{"$f":"Rates!D162","v":"Pays Partenaires"},{"$f":"Rates!E162","v":77},{"$f":"Rates!F162","v":57},{"$f":"Rates!G162","v":40},{"$f":"Rates!H162","v":32}]
[null,{"$f":"Rates!C163","v":"Syrie"},{"$f":"Rates!D163","v":"Pays Partenaires"},{"$f":"Rates!E163","v":47},{"$f":"Rates!F163","v":33},{"$f":"Rates!G163","v":22},{"$f":"Rates!H163","v":17}]
[null,{"$f":"Rates!C164","v":"Tadjikistan"},{"$f":"Rates!D164","v":"Pays Partenaires"},{"$f":"Rates!E164","v":47},{"$f":"Rates!F164","v":33},{"$f":"Rates!G164","v":22},{"$f":"Rates!H164","v":17}]
[null,{"$f":"Rates!C165","v":"Tanzanie"},{"$f":"Rates!D165","v":"Pays Partenaires"},{"$f":"Rates!E165","v":47},{"$f":"Rates!F165","v":33},{"$f":"Rates!G165","v":22},{"$f":"Rates!H165","v":17}]
[null,{"$f":"Rates!C166","v":"Tchad"},{"$f":"Rates!D166","v":"Pays Partenaires"},{"$f":"Rates!E166","v":47},{"$f":"Rates!F166","v":33},{"$f":"Rates!G166","v":22},{"$f":"Rates!H166","v":17}]
[null,{"$f":"Rates!C167","v":"Thaïlande"},{"$f":"Rates!D167","v":"Pays Partenaires"},{"$f":"Rates!E167","v":108},{"$f":"Rates!F167","v":80},{"$f":"Rates!G167","v":57},{"$f":"Rates!H167","v":45}]
[null,{"$f":"Rates!C168","v":"Timor-Oriental"},{"$f":"Rates!D168","v":"Pays Partenaires"},{"$f":"Rates!E168","v":47},{"$f":"Rates!F168","v":33},{"$f":"Rates!G168","v":22},{"$f":"Rates!H168","v":17}]
[null,{"$f":"Rates!C169","v":"Togo"},{"$f":"Rates!D169","v":"Pays Partenaires"},{"$f":"Rates!E169","v":47},{"$f":"Rates!F169","v":33},{"$f":"Rates!G169","v":22},{"$f":"Rates!H169","v":17}]
[null,{"$f":"Rates!C170","v":"Tonga"},{"$f":"Rates!D170","v":"Pays Partenaires"},{"$f":"Rates!E170","v":47},{"$f":"Rates!F170","v":33},{"$f":"Rates!G170","v":22},{"$f":"Rates!H170","v":17}]
[null,{"$f":"Rates!C171","v":"Trinité-et-Tobago"},{"$f":"Rates!D171","v":"Pays Partenaires"},{"$f":"Rates!E171","v":77},{"$f":"Rates!F171","v":57},{"$f":"Rates!G171","v":40},{"$f":"Rates!H171","v":32}]
[null,{"$f":"Rates!C172","v":"Tunisie"},{"$f":"Rates!D172","v":"Pays Partenaires"},{"$f":"Rates!E172","v":47},{"$f":"Rates!F172","v":33},{"$f":"Rates!G172","v":22},{"$f":"Rates!H172","v":17}]
[null,{"$f":"Rates!C173","v":"Turkménistan"},{"$f":"Rates!D173","v":"Pays Partenaires"},{"$f":"Rates!E173","v":47},{"$f":"Rates!F173","v":33},{"$f":"Rates!G173","v":22},{"$f":"Rates!H173","v":17}]
[null,{"$f":"Rates!C174","v":"Tuvalu"},{"$f":"Rates!D174","v":"Pays Partenaires"},{"$f":"Rates!E174","v":47},{"$f":"Rates!F174","v":33},{"$f":"Rates!G174","v":22},{"$f":"Rates!H174","v":17}]
[null,{"$f":"Rates!C175","v":"Ukraine"},{"$f":"Rates!D175","v":"Pays Partenaires"},{"$f":"Rates!E175","v":108},{"$f":"Rates!F175","v":80},{"$f":"Rates!G175","v":57},{"$f":"Rates!H175","v":45}]
[null,{"$f":"Rates!C176","v":"Uruguay"},{"$f":"Rates!D176","v":"Pays Partenaires"},{"$f":"Rates!E176","v":108},{"$f":"Rates!F176","v":80},{"$f":"Rates!G176","v":57},{"$f":"Rates!H176","v":45}]
[null,{"$f":"Rates!C177","v":"Vanuatu"},{"$f":"Rates!D177","v":"Pays Partenaires"},{"$f":"Rates!E177","v":77},{"$f":"Rates!F177","v":57},{"$f":"Rates!G177","v":40},{"$f":"Rates!H177","v":32}]
[null,{"$f":"Rates!C178","v":"Venezuela"},{"$f":"Rates!D178","v":"Pays Partenaires"},{"$f":"Rates!E178","v":108},{"$f":"Rates!F178","v":80},{"$f":"Rates!G178","v":57},{"$f":"Rates!H178","v":45}]
[null,{"$f":"Rates!C179","v":"Viêt Nam"},{"$f":"Rates!D179","v":"Pays Partenaires"},{"$f":"Rates!E179","v":47},{"$f":"Rates!F179","v":33},{"$f":"Rates!G179","v":22},{"$f":"Rates!H179","v":17}]
[null,{"$f":"Rates!C180","v":"Yémen"},{"$f":"Rates!D180","v":"Pays Partenaires"},{"$f":"Rates!E180","v":47},{"$f":"Rates!F180","v":33},{"$f":"Rates!G180","v":22},{"$f":"Rates!H180","v":17}]
[null,{"$f":"Rates!C181","v":"Zambie"},{"$f":"Rates!D181","v":"Pays Partenaires"},{"$f":"Rates!E181","v":108},{"$f":"Rates!F181","v":80},{"$f":"Rates!G181","v":57},{"$f":"Rates!H181","v":45}]
[null,{"$f":"Rates!C182","v":"Zimbabwe"},{"$f":"Rates!D182","v":"Pays Partenaires"},{"$f":"Rates!E182","v":108},{"$f":"Rates!F182","v":80},{"$f":"Rates!G182","v":57},{"$f":"Rates!H182","v":45}]